Workbook

Sheet About JEDI
B3: JEDI - Marine and Hydrokinetic
B5: Jobs and Economic Development Model (JEDI)
B9: Release Number: MH12.23.16
B12: The Jobs and Economic Development Impact Model (JEDI) for Marine and Hydrokinetic was developed to demonstrate the economic benefits associated with
B13: marine hydro systems in the United States. The primary goal in developing the state level model was to provide a tool for system developers, renewable energy
B14: advocates, government officials, decision makers and other potential users, to easily identify the local economic impacts associated with constructing and operating
B15: these systems. The second goal was to facilitate broad access and usage of the model by making it adaptable to a web based application that can be put on
B16: a web site.
B17: Consistent with these goals, a strong emphasis was placed on designing the model in a user-friendly format that could be easily modified - reflecting different
B18: levels of project specific information and user skill. This insures the greatest flexibility for inexperienced spreadsheet users, those unfamiliar with economic impact
B19: analysis and more experienced and knowledgeable users who have a need for this specific type of analysis.
B20: Persons wishing more information on how and/or where the model is being used or the role of the National Renewable Energy Laboratory in analyzing
B21: hydro and other renewable technologies should contact Suzanne Tegen at:
B23: National Renewable Energy Laboratory
B24: 15013 Denver West Parkway
B25: Golden, Colorado, 80401
B26: Tel.: 303.384.6939
B27: Email: suzanne.tegen@nrel.gov.
B29: The model was developed by Marshall Goldberg of MRG & Associates, under contract with the National Renewable Energy Laboratory. Persons wishing
B30: more information on the methodology or data in the model should contact him at:
B32: MRG & Associates
B33: 17935 Starduster Dr.
B34: Nevada City, California, 95959
B35: Tel.: 530.432.9373
B36: Email: MRGAssociates@earthlink.net
B38: Preliminary cost input data was developed by RE Vision Consulting, under contract with the U.S. Department of Energy. Persons wanting more
B39: information on the input data and technology assumptions should contact Mirko Previsic at:
B41: RE Vision Consulting, LLC
B42: Sacramento, CA
B43: Tel: 916-977 3970
B44: Email: mirko@re-vision.net
B47: The JEDI model utilizes multipliers derived from IMPLAN data using the IMPLAN ProfessionalTM Version 3.0 Social Accounting & Impact Analysis
B48: Software. Persons wishing more information on the IMPLAN data or the software should contact the IMPLAN Group.
B50: IMPLAN Group, LLC
B51: 16740 Birkdale Commons Parkway Suite 206
B52: Huntersville, North Carolina 28078
B53: Tel: 651.439.4421
B54: www.implan.com

Sheet FAQ
B2: JEDI - Marine and Hydrokinetic
B4: Jobs and Economic Development Model (JEDI)
B6: Frequently Asked Questions (FAQ)
B9: How can I determine which version of the JEDI model I have?
B10: The version (release number) of the model you are currently using is listed in the "About JEDI" worksheet contained in this model.
B13: When I open up the model I receive a security alert message stating "the macros in the file have been disabled," how do I change the security setting so I
B14: can run the model with the macros enabled?
B15: The message you are receiving is related to the level of security you have chosen in your Excel™ set up. To change the setting for opening files, open Excel™, on the
B16: top toolbar, click on "tools," then "macros" then "security." Reset the security level to "medium," this will enable you to choose to enable or disable macros each
B17: time you open a file. Alternately, the model can be successfully run with the macros disabled.
B19: How do I run a county or regional level analysis?
B20: Running a county or regional level analysis is similar to running a state level analysis, although there are two key differences users must keep in mind. First, the model
B21: does not contain county or regional level multipliers, thus users must obtain these and add them into the model. (See FAQ on obtaining county or regional level
B22: multipliers and how to add in the data) Second, to run a county or regional level analysis users must enter the county or regional population in the Project Description
B23: area. The population provides a reference for the model to automatically insert 'local share" defaults for the analysis.
B25: Where can I get county or regional level data to add-in to the model to run a county or region specific analysis?
B26: County level multipliers and personal consumption expenditure patterns are available from a number of sources. Users familiar with IMPLAN or input-output modeling can
B27: purchase the raw county level data and derive the multipliers themselves, purchase them from someone familiar with input-output modeling, purchase them directly from
B28: IMPLAN (www.implan.com), or contact MRG & Associates (mrgassociates@earthlink.net), the model developer.
B30: How do I add in county or regional level multipliers and the personal consumption expenditure data?
B31: Adding-in county or regional level multipliers and personal consumtption expenditure data involves going to the "User Add-in Location" worksheet in this model and
B32: cutting and pasting the data into their respective locations. With the data installed it is also necessary to insert the county or region name and the year of the data.
B34: What does the "local share" refer to?
B35: The "local share" refers to the percentage of each expenditure that is actually spent locally (i.e., in the state, county or region being analyzed). For example, if $1 million
B36: is going to be spent on construction materials and half ($500,000) of this total will be purchased from local suppliers, we say the "local share" is 50 percent.
B38: I want to make my analysis as accurate as possible, where can I get information to adjust the default "local share" values (in the ProjectData worksheet)
B39: for my state or county?
B40: Since the "local share" is directly related to the availability of local businesses and services and their ability to meet the construction and annual operating demands
B41: of the project, it is important to have an accurate picture of these local resources. This can be obtained in a number of ways: contacting experienced and knowlegeable
B42: persons in the area, contacting local business and contractor organizations and/or the local chamber of commerce, among others.
B44: I want to make my property tax estimates as accurate as possible, where can I get information to modify the tax rates in the ProjectData worksheet.
B45: for my state or county?
B46: Calculating annual property taxes is different in every state and typically a complex formula. The default methodology used in the model incorporates a generic formula
B47: that derives the taxes from the product of the assessed value (percentage of construction cost), the taxable value (percentage of assessed value) and the tax rate
B48: (percentage of taxable value). Alternately, users may input a know tax payment. Information on tax rates and formulas for calculating property taxes can often be found
B49: by contacting the state Dept. of Revenue or Taxation, or the local taxation authority.
B51: I am interested in viewing and possibly editting internal formulas within the model, how do I access them?
B52: The JEDI model contains several intermediate worksheets that are an integral part of the model analysis. These worksheets are not designed to be changed by users.
B53: Several of these worksheets, including default data, calculations, and deflators may be viewed by merely clicking on the respective worksheet and scrolling to the right.
B54: Although these sheets may be viewed by users they are protected and can not be changed. The model contains two additional worksheets: multipliers and household
B55: expenditures. These worksheets are hidden to protect proprietary data derived from IMPLAN (Minnesota Implan Group).
B57: Is additional technical support available?
B58: Yes, technical support is available by contacting Suzanne Tegen, technical monitor at the National Renewable Energy Laboratory. She can be reached at 303-384-6939
B59: or by email at Suzanne.Tegen@nrel.gov.

Sheet Start
B3: JEDI - Marine and Hydrokinetic
D4: Jobs and Economic Development Impact Model

Sheet ProjectData
A1: Marine and Hydrokinetic Project Data | B1: Important: Due to the many uncertainties surrounding these new and emerging technologies all cost estimates and resulting impacts should be viewed as preliminary and caution applied when reporting results.
A2: Please read instructions before getting started
A4: INSTRUCTIONS:
A5: 1. Begin by entering Project Location (from pull-down list) and other Project Descriptive Data relevant to your particular project. After inputting Descriptive Data press enter (or cursor to the next cell) to continue.
A6: 2. Once Descriptive Data is complete, you may choose to utilize the detailed model default values for Project Cost (based on your Descriptive Data) by choosing "Y" on line 24 OR you may choose to use your own values entered (modified) under Project Cost Data by choosing "N" on line 24. Choose "Y" to accept Project Cost default values or "N" to over-ride Project Cost default values and use your own inputs. Important: if you wish to model a system size different from the reference system size, "N" is automatically entered on line 24 and you must enter detailed Project Cost Data below.
A7: 3. Press 'Go To Summary Impacts' Button
A8: NOTES: Additional information is available by pointing to the red triangles located in cell corners. Only those cells with a white background can accept new values.
A11: Project Descriptive Data | T11: =IF(B12="MYCOUNTY",IF(B13="",2,1),IF(B12="MYREGION",IF(B13="",2,1),0)) -> 0
A12: Project Location | B12: California | D12: =IF(B12="MYREGION",IF('User Add-in Location'!F25=0,"Error - No Regional multiplier and/or PCE data in User Add-in Location",""),IF(B12="MYCOUNTY",IF('User Add-in Location'!E25=0,"Error - No County multiplier and/or PCE data in User Add-in Location",""),"")) -> 
A13: Population (only required for County/Region analysis) | D13: =IF(B12="MYREGION",IF('User Add-in Location'!F25=0,"",IF(B12="MYREGION","Enter Region Population","")),IF(B12="MYCOUNTY",IF('User Add-in Location'!E25=0,"",IF(B12="MYCOUNTY","Enter County Population","")),"")) -> 
A14: Year of Construction/Installation | B14: 2011 | C14: =IF(D13="","",IF(B13<1,"**Error - Population Data Missing**","")) -> 
A15: System Type | B15: Wave Power
A16: Reference System Size - Nameplate Capacity (MW) | B16: =DefaultData!AI15 -> 10
A17: Project Size - Nameplate Capacity (MW) | B17: =B16 -> 10 | C17: =IF(B17=B16,""," Enter detailed Project Cost Data below.") -> 
A18: Construction Period (months) | B18: =DefaultData!AI14 -> 24
A19: Installed Capital Cost ($/KW) | B19: =DefaultData!AI13 -> 5289.7 | C19: =IF(B24="N"," User Revised Capital Cost","") ->  | F19: =IF(B24="N",C43,"") ->  | Q19: Y
A20: Annualized O & M Cost (percent of Capital Cost) | B20: =DefaultData!AI48 -> 0.06816180502 | C20: =IF(B24="N"," User Revised O&M Cost","") ->  | F20: =IF(B24="N",C52/F19,"") ->  | Q20: N
A21: Money Value (Dollar Year) | B21: 2009 | D21: =IF(B25="N","User Revised O&M Cost","") -> 
D22: =IF(B26="N","User Revised O&M Cost","") -> 
A24: Utilize Project Cost Data default values? Choose "Y" to accept default values below or "N" to over-ride default values and utilize new user defined values as entered below. | B24: =Q24 -> Y | C24: =IF(B24="y","Press 'Go To Summary Impacts' Button",IF(B24="N","Modify or Enter System Cost Data (change data below).","Error - Re-enter 'Y' or 'N'")) -> Press 'Go To Summary Impacts' Button | Q24: =IF(B17=B16,"Y","N") -> Y
A27: If desired, default values (in cells below - based on Project Descriptive Data entered above) may be restored by pressing the 'Restore Default Values' button. Note: it is not necessary to restore defaults to incorporate default Project Cost Data in system analysis (simply enter a "Y" in cell B24 above).
A28: Project Cost Data
A29: =DefaultData!C14 -> Installed Capital Costs | B29: Cost | C29: Cost | D29: Percent of | E29: Local
A30: =DefaultData!C15 -> Tidal Power | B30: (Million Dollars) | C30: Per KW | D30: Total Cost | E30: Share (%)
A31: =DefaultData!C16 -> Device | B31: =DefaultData!$D16 -> 36.29232121 | C31: =B31*1000/(B$17) -> 3629.232121 | D31: =IF(B$45=0,"na",B31/(B$45)) -> 0.6447681609 | E31: =$T31 -> 0.25 | T31: =IF(B$17=B$16,IF(T$11=0,DefaultData!$G16,IF(T$11=2,"Pop. Data Missing",IF($B$13<DefaultData!$H$13,DefaultData!$H16,IF($B$13<DefaultData!$I$13,DefaultData!$O16,IF($B$13<DefaultData!$J$13,DefaultData!$R16,DefaultData!$U16))))),0) -> 0.25 | Y31: =DefaultData!$D16 -> 36.29232121 | AB31: =$T31 -> 0.25
A32: =DefaultData!C17 -> Underwater Electrical Collector System | B32: =DefaultData!$D17 -> 4.88397529 | C32: =B32*1000/(B$17) -> 488.397529 | D32: 0.08676854115 | E32: =$T32 -> 0 | T32: =IF(B$17=B$16,IF(T$11=0,DefaultData!$G17,IF(T$11=2,"Pop. Data Missing",IF($B$13<DefaultData!$H$13,DefaultData!$H17,IF($B$13<DefaultData!$I$13,DefaultData!$O17,IF($B$13<DefaultData!$J$13,DefaultData!$R17,DefaultData!$U17))))),0) -> 0 | Y32: =DefaultData!$D17 -> 4.88397529 | AB32: =$T32 -> 0
A33: =DefaultData!C18 -> Underwater Transmission Cable | B33: =DefaultData!$D18 -> 0.7848685382 | C33: =B33*1000/(B$17) -> 78.48685382 | D33: 0.01394394812 | E33: =$T33 -> 0 | T33: =IF(B$17=B$16,IF(T$11=0,DefaultData!$G18,IF(T$11=2,"Pop. Data Missing",IF($B$13<DefaultData!$H$13,DefaultData!$H18,IF($B$13<DefaultData!$I$13,DefaultData!$O18,IF($B$13<DefaultData!$J$13,DefaultData!$R18,DefaultData!$U18))))),0) -> 0 | Y33: =DefaultData!$D18 -> 0.7848685382 | AB33: =$T33 -> 0
A34: =DefaultData!C19 -> Cable Landing and Grid Interconnection | B34: =DefaultData!$D19 -> 1.151140523 | C34: =B34*1000/(B$17) -> 115.1140523 | D34: 0.02045112391 | E34: =$T34 -> 0 | T34: =IF(B$17=B$16,IF(T$11=0,DefaultData!$G19,IF(T$11=2,"Pop. Data Missing",IF($B$13<DefaultData!$H$13,DefaultData!$H19,IF($B$13<DefaultData!$I$13,DefaultData!$O19,IF($B$13<DefaultData!$J$13,DefaultData!$R19,DefaultData!$U19))))),0) -> 0 | Y34: =DefaultData!$D19 -> 1.151140523 | AB34: =$T34 -> 0
A35: =DefaultData!C20 -> Balance of Plant | B35: =DefaultData!$D20 -> 2.092982769 | C35: =B35*1000/(B$17) -> 209.2982769 | D35: 0.03718386165 | E35: =$T35 -> 0.75 | T35: =IF(B$17=B$16,IF(T$11=0,DefaultData!$G20,IF(T$11=2,"Pop. Data Missing",IF($B$13<DefaultData!$H$13,DefaultData!$H20,IF($B$13<DefaultData!$I$13,DefaultData!$O20,IF($B$13<DefaultData!$J$13,DefaultData!$R20,DefaultData!$U20))))),0) -> 0.75 | Y35: =DefaultData!$D20 -> 2.092982769 | AB35: =$T35 -> 0.75
A36: =DefaultData!C21 -> Subtotal | B36: =SUM(B31:B35) -> 45.20528833 | C36: =SUM(C31:C35) -> 4520.528833 | D36: 0.8031156358 | Y36: =SUM(Y31:Y35) -> 45.20528833
A37: =DefaultData!C22 -> Installation/Labor
A38: =DefaultData!C23 -> Mooring and Device Installation | B38: =DefaultData!$D23 -> 2.616228461 | C38: =B38*1000/(B$17) -> 261.6228461 | D38: =IF(B$45=0,"na",B38/(B$45)) -> 0.04647982706 | E38: =$T38 -> 0.25 | T38: =IF(B$17=B$16,IF(T$11=0,DefaultData!$G23,IF(T$11=2,"Pop. Data Missing",IF($B$13<DefaultData!$H$13,DefaultData!$H23,IF($B$13<DefaultData!$I$13,DefaultData!$O23,IF($B$13<DefaultData!$J$13,DefaultData!$R23,DefaultData!$U23))))),0) -> 0.25 | Y38: =DefaultData!$D23 -> 2.616228461 | AB38: =$T38 -> 0.25
A39: =DefaultData!C24 -> Underwater Cable Installation | B39: =DefaultData!$D24 -> 2.092982769 | C39: =B39*1000/(B$17) -> 209.2982769 | D39: 0.03718386165 | E39: =$T39 -> 0.25 | T39: =IF(B$17=B$16,IF(T$11=0,DefaultData!$G24,IF(T$11=2,"Pop. Data Missing",IF($B$13<DefaultData!$H$13,DefaultData!$H24,IF($B$13<DefaultData!$I$13,DefaultData!$O24,IF($B$13<DefaultData!$J$13,DefaultData!$R24,DefaultData!$U24))))),0) -> 0.25 | Y39: =DefaultData!$D24 -> 2.092982769 | AB39: =$T39 -> 0.25
A40: =DefaultData!C25 -> Cable Landing and Grid Connection | B40: =DefaultData!$D25 -> 0.5232456921 | C40: =B40*1000/(B$17) -> 52.32456921 | D40: 0.009295965412 | E40: =$T40 -> 0.25 | T40: =IF(B$17=B$16,IF(T$11=0,DefaultData!$G25,IF(T$11=2,"Pop. Data Missing",IF($B$13<DefaultData!$H$13,DefaultData!$H25,IF($B$13<DefaultData!$I$13,DefaultData!$O25,IF($B$13<DefaultData!$J$13,DefaultData!$R25,DefaultData!$U25))))),0) -> 0.25 | Y40: =DefaultData!$D25 -> 0.5232456921 | AB40: =$T40 -> 0.25
A41: =DefaultData!C27 -> Subtotal | B41: =SUM(B38:B40) -> 5.232456921 | C41: =SUM(C38:C40) -> 523.2456921 | D41: 0.09295965412 | Y41: =SUM(Y38:Y40) -> 5.232456921
A42: =DefaultData!C28 -> Permitting Cost | B42: =DefaultData!$D28 -> 2.459254753 | C42: =B42*1000/(B$17) -> 245.9254753 | D42: 0.04369103743 | E42: =$T42 -> 0.75 | T42: =IF(B$17=B$16,IF(T$11=0,DefaultData!$G28,IF(T$11=2,"Pop. Data Missing",IF($B$13<DefaultData!$H$13,DefaultData!$H28,IF($B$13<DefaultData!$I$13,DefaultData!$O28,IF($B$13<DefaultData!$J$13,DefaultData!$R28,DefaultData!$U28))))),0) -> 0.75 | Y42: =DefaultData!$D28 -> 2.459254753 | AB42: =$T42 -> 0.75
A43: Subtotal | B43: =B42+B41+B36 -> 52.897 | C43: =C42+C41+C36 -> 5289.7 | D43: 0.9397663273 | Y43: =Y42+Y41+Y36 -> 52.897
A44: Sales Tax (Materials & Equipment Purchases) | B44: =B36*$B75 -> 3.390396624 | C44: =B44*1000/(B$17) -> 339.0396624 | D44: 0.06023367268 | E44: =$T44 -> 1 | T44: =DefaultData!G31 -> 1 | Y44: =Y36*$B75 -> 3.390396624 | AB44: =$T44 -> 1
A45: Total | B45: =B44+B43 -> 56.28739662 | C45: =C44+C43 -> 5628.739662 | D45: 1 | Y45: =Y44+Y43 -> 56.28739662
A47: =DefaultData!C33 -> Annualized Operating and Maintenance Costs
C48: Cost | D48: Percent of | E48: Local
B49: Cost | C49: Per KW | D49: Total Cost | E49: Share (%)
A50: =DefaultData!C35 -> Labor | B50: =DefaultData!$D35 -> 0.76 | C50: =B50*10^3/B$17 -> 76 | D50: =IF(B$54=0,"na",B50/B$54) -> 0.2031343861 | E50: =$T50 -> 1 | T50: =IF(B$17=B$16,IF(T$11=0,DefaultData!$G35,IF(T$11=2,"Pop. Data Missing",IF($B$13<DefaultData!$H$13,DefaultData!$H35,IF($B$13<DefaultData!$I$13,DefaultData!$O35,IF($B$13<DefaultData!$J$13,DefaultData!$R35,DefaultData!$U35))))),0) -> 1 | Y50: =DefaultData!$D35 -> 0.76 | AB50: =$T50 -> 1
A51: =DefaultData!C36 -> Materials and Services | B51: =DefaultData!$D36 -> 2.845555 | C51: =B51*10^3/B$17 -> 284.5555 | D51: =IF(B$54=0,"na",B51/B$54) -> 0.7605658788 | E51: =$T51 -> 0.5 | T51: =IF(B$17=B$16,IF(T$11=0,DefaultData!$G36,IF(T$11=2,"Pop. Data Missing",IF($B$13<DefaultData!$H$13,DefaultData!$H36,IF($B$13<DefaultData!$I$13,DefaultData!$O36,IF($B$13<DefaultData!$J$13,DefaultData!$R36,DefaultData!$U36))))),0) -> 0.5 | Y51: =DefaultData!$D36 -> 2.845555 | AB51: =$T51 -> 0.5
A52: Subtotal | B52: =B51+B50 -> 3.605555 | C52: =B52*10^3/B$17 -> 360.5555 | D52: =IF(B$54=0,"na",B52/B$54) -> 0.9637002649 | Y52: =Y51+Y50 -> 3.605555
A53: Sales Tax (Materials & Equipment Purchases) | B53: =DefaultData!$D38 -> 0.1358105795 | C53: =B53*10^3/B$17 -> 13.58105795 | D53: =IF(B$54=0,"na",B53/B$54) -> 0.03629973513 | E53: =$T53 -> 1 | T53: =DefaultData!G38 -> 1 | Y53: =DefaultData!$D38 -> 0.1358105795 | AB53: =$T53 -> 1
A54: Total (without property taxes and debt financing) | B54: =B53+B52 -> 3.74136558 | C54: =B54*10^3/B$17 -> 374.136558 | D54: =IF(B$54=0,"na",B54/B$54) -> 1 | Y54: =Y53+Y52 -> 3.74136558
A56: =DefaultData!C41 -> Other Parameters
A57: =DefaultData!C42 -> Financial Parameters | D57: Local
A58: =DefaultData!C43 -> Debt Financing | D58: Share (%)
A59: =DefaultData!C44 -> Percentage financed | B59: =DefaultData!$D44 -> 0.2 | D59: =DefaultData!$F44 -> 0 | T59: =DefaultData!$F44 -> 0 | Y59: =DefaultData!$D44 -> 0.2 | AA59: =DefaultData!$F44 -> 0
A60: =DefaultData!C45 -> Years financed (term) | B60: =DefaultData!$D45 -> 20 | C60: =IF(B60<=0," **Error, term (years) must be entered.","") ->  | Y60: =DefaultData!$D45 -> 20
A61: =DefaultData!C46 -> Interest rate | B61: =DefaultData!$D46 -> 0.1 | Y61: =DefaultData!$D46 -> 0.1
A62: =DefaultData!C48 -> Equity Financing/Repayment
A63: =DefaultData!C49 -> Percentage equity | B63: =DefaultData!$D49 -> 0.8 | Y63: =DefaultData!$D49 -> 0.8
A64: =DefaultData!C50 -> Individual Investors (percent of equity) | B64: =DefaultData!$D50 -> 0 | D64: =DefaultData!$F50 -> 1 | T64: =DefaultData!$F50 -> 1 | Y64: =DefaultData!$D50 -> 0 | AA64: =DefaultData!$F50 -> 1
A65: =DefaultData!C51 -> Corporate Investors (percent of equity) | B65: =1-B64 -> 1 | D65: =DefaultData!$F51 -> 0 | T65: =DefaultData!$F51 -> 0 | AA65: =DefaultData!$F51 -> 0
A66: =DefaultData!C52 -> Return on equity | B66: =DefaultData!$D52 -> 0.12 | Y66: =DefaultData!$D52 -> 0.12
A67: =DefaultData!C53 -> Repayment term (years) | B67: =DefaultData!$D53 -> 10 | Y67: =DefaultData!$D53 -> 10
A68: =DefaultData!C54 -> Tax Parameters
A69: =DefaultData!C55 -> Local Property Tax (percent of taxable value) | B69: =DefaultData!$D55 -> 0 | Y69: =DefaultData!$D55 -> 0
A70: =DefaultData!C56 -> Assessed Value (percent of construction cost) | B70: =DefaultData!$D56 -> 1 | Y70: =DefaultData!$D56 -> 1
A71: =DefaultData!C57 -> Taxable Value (percent of assessed value) | B71: =DefaultData!$D57 -> 1 | Y71: =DefaultData!$D57 -> 1
A72: =DefaultData!C58 -> Taxable Value ( million$ - if applicable) | B72: =+B71*B70*B43 -> 52.897 | Y72: =+Y71*Y70*Y43 -> 52.897
A73: Property Tax Exemption (percent of local taxes) | B73: =DefaultData!$D59 -> 1 | Y73: =DefaultData!$D59 -> 1
A74: Local Property Taxes | B74: =B72*B69*(1-B73) -> 0 | D74: =DefaultData!$F60 -> 1 | T74: =DefaultData!$F60 -> 1 | Y74: =Y72*Y69*(1-Y73) -> 0 | AA74: =DefaultData!$F60 -> 1
A75: Local Sales Tax Rate | B75: =DefaultData!$D61 -> 0.075 | Y75: =DefaultData!$D61 -> 0.075
A76: =DefaultData!C62 -> Lease Cost (if applicable) | B76: =DefaultData!$D62 -> 0 | D76: =DefaultData!$F62 -> 1 | T76: =DefaultData!$F62 -> 1 | Y76: =DefaultData!$D62 -> 0 | AA76: =DefaultData!$F62 -> 1
P739: =DefaultData!Y57 -> Wave Power
P740: =IF(DefaultData!Y58=0,"",DefaultData!Y58) -> Tidal Power
P741: =IF(DefaultData!Y59=0,"",DefaultData!Y59) -> Ocean Current
P742: =IF(DefaultData!Y60=0,"",DefaultData!Y60) -> River Current
O753: =('User Add-in Location'!B10) -> MyCounty
O754: =('User Add-in Location'!C10) -> MyRegion
O755: Alabama
O756: Alaska
O757: Arizona
O758: Arkansas
O759: California
O760: Colorado
O761: Connecticut
O762: Delaware
O763: District of Columbia
O764: Florida
O765: Georgia
O766: Hawaii
O767: Idaho
O768: Illinois
O769: Indiana
O770: Iowa
O771: Kansas
O772: Kentucky
O773: Louisiana
O774: Maine
O775: Maryland
O776: Massachusetts
O777: Michigan
O778: Minnesota
O779: Mississippi
O780: Missouri
O781: Montana
O782: Nebraska
O783: Nevada
O784: New Hampshire
O785: New Jersey
O786: New Mexico
O787: New York
O788: North Carolina
O789: North Dakota
O790: Ohio
O791: Oklahoma
O792: Oregon
O793: Pennsylvania
O794: Rhode Island
O795: South Carolina
O796: South Dakota
O797: Tennessee
O798: Texas
O799: United States
O800: Utah
O801: Vermont
O802: Virginia
O803: Washington
O804: West Virginia
O805: Wisconsin
O806: Wyoming

Sheet SummaryResults
A1: =CONCATENATE("Marine and Hydrokinetic - Project Data Summary based on ",$AE$40, " values") -> Marine and Hydrokinetic - Project Data Summary based on model default values | BB1: =Summary_Results -> Marine and Hydrokinetic - Project Data Summary based on model default values | BH1: =Summary_Results -> Marine and Hydrokinetic - Project Data Summary based on model default values
A2: Project Location | C2: =IF(ProjectData!B12="MyCounty",'User Add-in Location'!B3,IF(ProjectData!B12="MyRegion",'User Add-in Location'!B4,ProjectData!B12)) -> California | BB2: Project Location | BD2: =C2 -> California | BH2: Project Location | BI2: =ProjectData!B12 -> California | BK2: =IF(BI2="MYREGION",IF('User Add-in Location'!BL14=0,"Error - No Regional multiplier data in User Add-in Location",""),IF(BI2="MYCOUNTY",IF('User Add-in Location'!BK14=0,"Error - No County multiplier data in User Add-in Location",""),"")) -> 
A3: Year of Construction or Installation | C3: =ProjectData!B14 -> 2011 | BB3: Year of Construction or Installation | BD3: =C3 -> 2011 | BH3: Population (only required for County/Region analysis) | BI3: =IF(ProjectData!B13>0,ProjectData!B13,"") ->  | BK3: =IF(BI2="MYREGION",IF('User Add-in Location'!BL14=0,"",IF(BI2="MYREGION","Enter Region Population","")),IF(BI2="MYCOUNTY",IF('User Add-in Location'!BK14=0,"",IF(BI2="MYCOUNTY","Enter County Population","")),"")) -> 
A4: Reference System Size - Nameplate Capacity (MW) | C4: =ProjectData!B16 -> 10 | D4: =ProjectData!D12 ->  | BB4: Reference System Size - Nameplate Capacity (MW) | BD4: =C4 -> 10 | BH4: Year of Construction or Installation | BI4: =ProjectData!B14 -> 2011 | BJ4: =IF(BK3="","",IF(BI3<1,"**Error - Population Data Missing**","")) -> 
A5: Project Size - Nameplate Capacity (MW) | C5: =ProjectData!B17 -> 10 | BB5: Total Project Size - Nameplate Capacity (MW) | BD5: =C5 -> 10 | BH5: System Type | BI5: =ProjectData!B15 -> Wave Power
A6: Construction Period (months) | C6: =ProjectData!B18 -> 24 | BB6: Construction Period (months) | BD6: 24 | BH6: Reference System Size - Nameplate Capacity (MW) | BI6: =ProjectData!B17 -> 10
A7: System Type | C7: =ProjectData!B15 -> Wave Power | BB7: System Type | BD7: Wave Power | BH7: Total Project Size - Nameplate Capacity (MW) | BI7: =ProjectData!B17 -> 10
A8: System Cost ($/KW) | C8: =SummaryResults!C11*10^6/(SummaryResults!C5*1000) -> 5628.739662 | BB8: System Cost ($/KW) | BD8: 5628.739662 | BH8: Construction Period (months) | BI8: =ProjectData!B18 -> 24
A9: Annualized O & M Cost (percent of Capital Cost) | C9: =IF(B63=0,"na",B71/B63) -> 0.06816180502 | BB9: Annualized O & M Cost (percent of Capital Cost) | BD9: 0.06816180502 | BH9: System Cost ($/KW) | BI9: =C8 -> 5628.739662
A10: Money Value (Dollar Year) | C10: =ProjectData!B21 -> 2009 | BB10: Money Value (Dollar Year) | BD10: 2009 | BH10: Annualized O & M Cost (percent of Capital Cost) | BI10: =C9 -> 0.06816180502
A11: Project Construction or Installation Cost (million$) | C11: =Calculations!D21 -> 56.28739662 | BB11: Project Construction or Installation Cost | BD11: 56.28739662 | BH11: Money Value (Dollar Year) | BI11: =ProjectData!B21 -> 2009
A12: Local Spending (million$) | C12: =Calculations!F58 -> 17.1857641 | BB12: Local Spending | BD12: 17.1857641
A13: Total Annual Operational Expenses (million$) | C13: =C14+C16 -> 11.70746434 | BB13: Total Annual Operational Expenses | BD13: 11.70746434 | BH13: Project Cost Data
A14: Direct Operating and Maintenance Costs (million$) | C14: =Calculations!D76 -> 3.605555 | BB14: Direct Operating and Maintenance Costs | BD14: 3.605555 | BH14: =ProjectData!A29 -> Installed Capital Costs | BI14: =ProjectData!B29 -> Cost | BJ14: =ProjectData!C29 -> Cost | BK14: =ProjectData!D29 -> Percent of | BL14: =ProjectData!E29 -> Local
A15: Local Spending (million$) | C15: =Calculations!G76 -> 2.1827775 | BB15: Local Spending | BD15: 2.1827775 | BH15: =ProjectData!A30 -> Tidal Power | BJ15: =ProjectData!C30 -> Per KW | BK15: =ProjectData!D30 -> Total Cost | BL15: =ProjectData!E30 -> Share (%)
A16: Other Annual Costs (million$) | C16: =Calculations!E76 -> 8.101909344 | BB16: Other Annual Costs | BD16: 8.101909344 | BH16: =ProjectData!A31 -> Device | BI16: =B51 -> 36.29232121 | BJ16: =BI16*10^6/(BI$7*1000) -> 3629.232121 | BK16: =IF(BI$29=0,"na",BI16/BI$29) -> 0.6447681609 | BL16: =C51 -> 0.25
A17: Local Spending (million$) | C17: =Calculations!H76 -> 0.1358105795 | BB17: Local Spending | BD17: 0.1358105795 | BH17: =ProjectData!A32 -> Underwater Electrical Collector System | BI17: 4.88397529 | BJ17: 488.397529 | BK17: 0.08676854115 | BL17: =C52 -> 0
A18: Debt Payments (million$) | C18: =Calculations!G70 -> 0 | BB18: Debt Payments | BD18: 0 | BH18: =ProjectData!A33 -> Underwater Transmission Cable | BI18: 0.7848685382 | BJ18: 78.48685382 | BK18: 0.01394394812 | BL18: =C53 -> 0
A19: Property Taxes (million$) | C19: =Calculations!G73 -> 0 | BB19: Property Taxes | BD19: 0 | BH19: =ProjectData!A34 -> Cable Landing and Grid Interconnection | BI19: 1.151140523 | BJ19: 115.1140523 | BK19: 0.02045112391 | BL19: =C54 -> 0
A20: Sales Tax (million$) | C20: =Calculations!G69 -> 0.1358105795 | BB20: Sales Tax | BD20: 0.1358105795 | BH20: =ProjectData!A35 -> Balance of Plant | BI20: 2.092982769 | BJ20: 209.2982769 | BK20: 0.03718386165 | BL20: =C55 -> 0.75
BH21: =ProjectData!A36 -> Subtotal | BI21: 45.20528833 | BJ21: 4520.528833 | BK21: 0.8031156358
A22: Local Economic Impacts - Summary Results | BB22: Local Economic Impacts - Summary Results | BH22: =ProjectData!A37 -> Installation/Labor
B23: Jobs | C23: Earnings | D23: Output | E23: Value Added | BC23: Jobs | BD23: Earnings | BE23: Output | BF23: Value Added | BH23: =ProjectData!A38 -> Mooring and Device Installation | BI23: =B58 -> 2.616228461 | BJ23: =BI23*10^6/(BI$7*1000) -> 261.6228461 | BK23: =IF(BI$29=0,"na",BI23/BI$29) -> 0.04647982706 | BL23: =C58 -> 0.25
A24: During construction and installation period | C24: =CONCATENATE("$MM (",$C10,")") -> $MM (2009) | D24: =CONCATENATE("$MM (",$C10,")") -> $MM (2009) | E24: =CONCATENATE("$MM (",$C10,")") -> $MM (2009) | BB24: During construction and installation period | BD24: =C24 -> $MM (2009) | BE24: $MM (2009) | BF24: $MM (2009) | BH24: =ProjectData!A39 -> Underwater Cable Installation | BI24: =B59 -> 2.092982769 | BJ24: 209.2982769 | BK24: 0.03718386165 | BL24: =C59 -> 0.25
A25: Project Development and Onsite Labor Impacts | B25: =Calculations!AH42 -> 18.87556697 | C25: =Calculations!AI42 -> 1.3006629 | D25: =Calculations!AJ42 -> 2.744160056 | E25: =Calculations!AK42 -> 1.817372908 | BB25: Project Development and Onsite Labor Impacts | BC25: =B25 -> 18.87556697 | BD25: 1.3006629 | BE25: 2.744160056 | BF25: 1.817372908 | BH25: =ProjectData!A40 -> Cable Landing and Grid Connection | BI25: =B60 -> 0.5232456921 | BJ25: 52.32456921 | BK25: 0.009295965412 | BL25: =C60 -> 0.25
A26: Construction and Installation Labor | B26: =Calculations!AH43 -> 4.76691412 | C26: =Calculations!AI43 -> 0.541973427 | BB26: Construction and Installation Labor | BC26: 4.76691412 | BD26: =C26 -> 0.541973427 | BH26: =ProjectData!A41 -> Subtotal | BI26: =B61 -> 5.232456921 | BJ26: 523.2456921 | BK26: 0.09295965412
A27: Construction and Installation Related Services | B27: =Calculations!AH44 -> 14.10865286 | C27: =Calculations!AI44 -> 0.7586894731 | Z27: =IF(C6<12,B30*(C6/12),B30/(C6/12)) -> 71.20138216 | BB27: Construction and Installation Related Services | BC27: 14.10865286 | BD27: =C27 -> 0.7586894731 | BH27: =ProjectData!A42 -> Permitting Cost | BI27: =B62 -> 2.459254753 | BJ27: 245.9254753 | BK27: 0.04369103743
A28: Equipment and Supply Chain Impacts | B28: =Calculations!AH45 -> 74.86329177 | C28: =Calculations!AI45 -> 5.214560814 | D28: =Calculations!AJ45 -> 18.16149954 | E28: =Calculations!AK45 -> 8.813697782 | Z28: =ROUND(Z27,) -> 71 | BB28: Module and Supply Chain Impacts | BC28: 74.86329177 | BD28: =C28 -> 5.214560814 | BE28: =D28 -> 18.16149954 | BF28: 8.813697782 | BH28: =ProjectData!A44 -> Sales Tax (Materials & Equipment Purchases) | BI28: =B64 -> 3.390396624 | BJ28: 339.0396624 | BK28: 0.06023367268 | BL28: =C64 -> 1
A29: Induced Impacts | B29: =Calculations!AH46 -> 48.66390558 | C29: =Calculations!AI46 -> 2.81434892 | D29: =Calculations!AJ46 -> 7.925382118 | E29: =Calculations!AK46 -> 4.866620882 | BB29: Induced Impacts | BC29: 48.66390558 | BD29: =C29 -> 2.81434892 | BE29: 7.925382118 | BF29: 4.866620882 | BH29: =ProjectData!A45 -> Total | BI29: =B65 -> 56.28739662 | BJ29: 5628.739662 | BK29: 1
A30: Total Impacts | B30: =Calculations!AH47 -> 142.4027643 | C30: =Calculations!AI47 -> 9.329572634 | D30: =Calculations!AJ47 -> 28.83104171 | E30: =Calculations!AK47 -> 15.49769157 | BB30: Total Impacts | BC30: 142.4027643 | BD30: =C30 -> 9.329572634 | BE30: 28.83104171 | BF30: 15.49769157
BH31: =ProjectData!A47 -> Annualized Operating and Maintenance Costs
C32: Annual | D32: Annual | E32: Annual | BD32: =C32 -> Annual | BE32: Annual | BF32: Annual | BI32: =ProjectData!B49 -> Cost | BJ32: =ProjectData!C48 -> Cost | BK32: =ProjectData!D48 -> Percent of | BL32: =ProjectData!E48 -> Local
B33: Annual | C33: Earnings | D33: Output | E33: Output | BC33: =B33 -> Annual | BD33: Earnings | BE33: Output | BF33: Value Added | BJ33: =ProjectData!C49 -> Per KW | BK33: =ProjectData!D49 -> Total Cost | BL33: =ProjectData!E49 -> Share (%)
A34: During operating years | B34: Jobs | C34: =CONCATENATE("$MM (",$C10,")") -> $MM (2009) | D34: =CONCATENATE("$MM (",$C10,")") -> $MM (2009) | E34: =CONCATENATE("$MM (",$C10,")") -> $MM (2009) | BB34: During operating years | BC34: =B34 -> Jobs | BD34: $MM (2009) | BE34: $MM (2009) | BF34: $MM (2009) | BH34: =ProjectData!A50 -> Labor | BI34: =B69 -> 0.76 | BJ34: =BI34*10^6/(BI$7*1000) -> 76 | BK34: =IF(BI$38=0,"na",BI34/BI$38) -> 0.2031343861 | BL34: =C69 -> 1
A35: Onsite Labor Impacts | BB35: Onsite Labor Impacts | BH35: =ProjectData!A51 -> Materials and Services | BI35: =B70 -> 2.845555 | BJ35: =BI35*10^6/(BI$7*1000) -> 284.5555 | BK35: =IF(BI$38=0,"na",BI35/BI$38) -> 0.7605658788
A36: Hydro Project Labor Only | B36: =Calculations!AH51 -> 9.5 | C36: =Calculations!AI51 -> 0.7058979214 | D36: =Calculations!AJ51 -> 0.7058979214 | E36: =Calculations!AK51 -> 0.7058979214 | BB36: Hydro Project Labor Only | BC36: =B36 -> 9.5 | BD36: 0.7058979214 | BE36: 0.7058979214 | BF36: 0.7058979214 | BH36: =ProjectData!A52 -> Subtotal | BI36: =B71 -> 3.605555 | BJ36: =BI36*10^6/(BI$7*1000) -> 360.5555 | BK36: =IF(BI$38=0,"na",BI36/BI$38) -> 0.9637002649
A37: Local Revenue and Supply Chain Impacts | B37: =Calculations!AH52 -> 9.711776173 | C37: =Calculations!AI52 -> 0.6656643971 | D37: =Calculations!AJ52 -> 2.391907389 | E37: =Calculations!AK52 -> 1.319470164 | BB37: Local Revenue and Supply Chain Impacts | BC37: 9.711776173 | BD37: 0.6656643971 | BE37: 2.391907389 | BF37: 1.319470164 | BH37: =ProjectData!A53 -> Sales Tax (Materials & Equipment Purchases) | BI37: =B72 -> 0.1358105795 | BJ37: =BI37*10^6/(BI$7*1000) -> 13.58105795 | BK37: =IF(BI$38=0,"na",BI37/BI$38) -> 0.03629973513 | BL37: =C72 -> 1
A38: Induced Impacts | B38: =Calculations!AH53 -> 5.8741967 | C38: =Calculations!AI53 -> 0.3392686073 | D38: =Calculations!AJ53 -> 0.955320634 | E38: =Calculations!AK53 -> 0.5866372761 | BB38: Induced Impacts | BC38: 5.8741967 | BD38: 0.3392686073 | BE38: 0.955320634 | BF38: 0.5866372761 | BH38: =ProjectData!A54 -> Total (without property taxes and debt financing) | BI38: =BI37+BI36 -> 3.74136558 | BJ38: =BI38*10^6/(BI$7*1000) -> 374.136558 | BK38: =IF(BI$38=0,"na",BI38/BI$38) -> 1
A39: Total Impacts | B39: =Calculations!AH54 -> 25.08597287 | C39: =Calculations!AI54 -> 1.710830926 | D39: =Calculations!AJ54 -> 4.053125945 | E39: =Calculations!AK54 -> 2.612005362 | BB39: Total Impacts | BC39: 25.08597287 | BD39: 1.710830926 | BE39: 4.053125945 | BF39: 2.612005362
A40: =CONCATENATE("Notes: Earnings and Output values are millions of dollars in year ",$C10, " dollars. Construction period related jobs are full time") -> Notes: Earnings and Output values are millions of dollars in year 2009 dollars. Construction period related jobs are full time | AE40: =IF(ProjectData!B17=ProjectData!B16,"model default","User modifications to default") -> model default | BB40: =CONCATENATE("Notes: Earnings and Output values are millions of dollars in year ",$C10, " dollars. Construction period related jobs are full time") -> Notes: Earnings and Output values are millions of dollars in year 2009 dollars. Construction period related jobs are full time | BH40: =ProjectData!A56 -> Other Parameters
A41: =CONCATENATE(" equivalent jobs for one year. Based on the ",$C6," month construction period this is an annual average of approximately ",$Z28," full time") -> equivalent jobs for one year. Based on the 24 month construction period this is an annual average of approximately 71 full time | BB41: =CONCATENATE(" equivalent jobs for one year. Based on the ",$C6," month construction period this is an annual average of approximately ",$Z28," full time") -> equivalent jobs for one year. Based on the 24 month construction period this is an annual average of approximately 71 full time | BH41: =ProjectData!A57 -> Financial Parameters | BK41: =ProjectData!D57 -> Local
A42: equivalent jobs. Hydro project labor includes all onsite operators and technicians as well as administration and management. | BB42: equivalent jobs. Hydro project labor includes all onsite operators and technicians as well as administration and management. | BH42: =ProjectData!A58 -> Debt Financing | BK42: =ProjectData!D58 -> Share (%)
A43: The analysis does not include impacts associated with plant "profits" and assumes no tax abatement unless noted. | BB43: The analysis does not include impacts associated with plant "profits" and assumes no tax abatement unless noted. | BH43: =ProjectData!A59 -> Percentage financed | BI43: =ProjectData!B59 -> 0.2 | BK43: =C84 -> 0
A44: Totals may not add up due to independent rounding. Due to the many uncertainties surrounding these new and emerging | BB44: Totals may not add up due to independent rounding. Due to the many uncertainties surrounding these new and emerging | BH44: =ProjectData!A60 -> Years financed (term) | BI44: =ProjectData!B60 -> 20
A45: technologies all impacts should be viewed as preliminary and caution applied when reporting results. | BB45: technologies all impacts should be viewed as preliminary and caution applied when reporting results. | BH45: =ProjectData!A61 -> Interest rate | BI45: =ProjectData!B61 -> 0.1
BH46: =ProjectData!A68 -> Tax Parameters
A47: Detailed Hydro Project Data Costs | BB47: Detailed Hydro Project Data Costs | BH47: =ProjectData!A69 -> Local Property Tax (percent of taxable value) | BI47: =ProjectData!B69 -> 0
B48: =Calculations!AC5 -> Cost | C48: Purchased | BD48: Local | BH48: =ProjectData!A70 -> Assessed Value (percent of construction cost) | BI48: =ProjectData!B70 -> 1
A49: Installation Costs | B49: =CONCATENATE("$MM (",$C10,")") -> $MM (2009) | C49: Locally (%) | BB49: Installation Costs | BC49: Cost | BD49: Share (%) | BH49: =ProjectData!A71 -> Taxable Value (percent of assessed value) | BI49: =ProjectData!B71 -> 1
A50: Materials & Equipment | BB50: Materials & Equipment | BH50: =ProjectData!A72 -> Taxable Value ( million$ - if applicable) | BI50: =ProjectData!B72 -> 52.897
A51: =Calculations!AB7 -> Device | B51: =Calculations!AC7 -> 36.29232121 | C51: =Calculations!AD7 -> 0.25 | BB51: =A51 -> Device | BC51: 36.29232121 | BD51: 0.25 | BH51: Property Tax Exemption (percent of local taxes) | BI51: =ProjectData!B73 -> 1
A52: =Calculations!AB8 -> Underwater Electrical Collector System | B52: =Calculations!AC8 -> 4.88397529 | C52: =Calculations!AD8 -> 0 | BB52: Underwater Electrical Collector System | BC52: 4.88397529 | BD52: 0 | BH52: =ProjectData!A74 -> Local Property Taxes | BI52: =ProjectData!B74 -> 0 | BK52: =C93 -> 1
A53: =Calculations!AB9 -> Underwater Transmission Cable | B53: =Calculations!AC9 -> 0.7848685382 | C53: =Calculations!AD9 -> 0 | BB53: Underwater Transmission Cable | BC53: 0.7848685382 | BD53: 0 | BH53: =ProjectData!A75 -> Local Sales Tax Rate | BI53: =ProjectData!B75 -> 0.075 | BK53: =C94 -> 1
A54: =Calculations!AB10 -> Cable Landing and Grid Interconnection | B54: =Calculations!AC10 -> 1.151140523 | C54: =Calculations!AD10 -> 0 | BB54: Cable Landing and Grid Interconnection | BC54: 1.151140523 | BD54: 0 | BH54: =ProjectData!A76 -> Lease Cost (if applicable) | BI54: =ProjectData!B76 -> 0 | BK54: =C95 -> 1
A55: =Calculations!AB11 -> Balance of Plant | B55: =Calculations!AC11 -> 2.092982769 | C55: =Calculations!AD11 -> 0.75 | BB55: Balance of Plant | BC55: 2.092982769 | BD55: 0.75
A56: =Calculations!AB12 -> Subtotal | B56: =Calculations!AC12 -> 45.20528833 | BB56: =A56 -> Subtotal | BC56: =B56 -> 45.20528833
A57: =Calculations!AB13 -> Installation/Labor | BB57: =A57 -> Installation/Labor
A58: =Calculations!AB14 -> Mooring and Device Installation | B58: =Calculations!AC14 -> 2.616228461 | C58: =Calculations!AD14 -> 0.25 | BB58: Mooring and Device Installation | BC58: =B58 -> 2.616228461 | BD58: 0.25
A59: =Calculations!AB15 -> Underwater Cable Installation | B59: =Calculations!AC15 -> 2.092982769 | C59: =Calculations!AD15 -> 0.25 | BB59: Underwater Cable Installation | BC59: 2.092982769 | BD59: 0.25
A60: =Calculations!AB16 -> Cable Landing and Grid Connection | B60: =Calculations!AC16 -> 0.5232456921 | C60: =Calculations!AD16 -> 0.25 | BB60: Cable Landing and Grid Connection | BC60: 0.5232456921 | BD60: 0.25
A61: =Calculations!AB17 -> Subtotal | B61: =Calculations!AC17 -> 5.232456921 | BB61: Subtotal | BC61: 5.232456921 | BD61: 0
A62: =Calculations!AB18 -> Permitting Cost | B62: =Calculations!AC18 -> 2.459254753 | C62: =Calculations!AD18 -> 0.75 | BB62: Permitting Cost | BC62: =B62 -> 2.459254753
A63: =Calculations!AB19 -> Subtotal | B63: =Calculations!AC19 -> 52.897 | BB63: Subtotal | BC63: =B63 -> 52.897
A64: =Calculations!AB20 -> Sales Tax (Materials & Equipment Purchases) | B64: =Calculations!AC20 -> 3.390396624 | C64: =Calculations!AD20 -> 1 | BB64: Sales Tax (Materials & Equipment Purchases) | BC64: =B64 -> 3.390396624 | BD64: =C64 -> 1
A65: =Calculations!AB21 -> Total | B65: =Calculations!AC21 -> 56.28739662 | BB65: Total | BC65: =B65 -> 56.28739662
A67: =Calculations!AB23 -> Annualized Operating and Maintenance Costs | B67: =Calculations!AC24 -> Cost | C67: Purchased | BB67: =A67 -> Annualized Operating and Maintenance Costs
B68: =CONCATENATE("$MM (",$C10,")") -> $MM (2009) | C68: Locally (%) | BC68: =B68 -> $MM (2009) | BD68: Local
A69: =Calculations!AB25 -> Labor | B69: =Calculations!AC25 -> 0.76 | C69: =Calculations!AD25 -> 1 | BD69: Share (%)
A70: =Calculations!AB26 -> Materials and Services | B70: =Calculations!AC26 -> 2.845555 | C70: =Calculations!AD26 -> 0.5 | BB70: =A69 -> Labor | BC70: 0.76 | BD70: 1
A71: =Calculations!AB27 -> Subtotal | B71: =Calculations!AC27 -> 3.605555 | BB71: Materials and Services | BC71: 2.845555 | BD71: 0.5
A72: =Calculations!AB28 -> Sales Tax (Materials & Equipment Purchases) | B72: =Calculations!AC28 -> 0.1358105795 | C72: =Calculations!AD28 -> 1 | BB72: =A71 -> Subtotal | BC72: 3.605555
A73: =Calculations!AB29 -> Average Annual Debt Payment (Interest and Principal) | B73: =Calculations!AC29 -> 1.0314915 | C73: =Calculations!AD29 -> 0 | BB73: Sales Tax (Materials & Equipment Purchases) | BC73: 0.1358105795 | BD73: =C72 -> 1
A74: =Calculations!AB30 -> Equity Payment - Individuals | B74: =Calculations!AC30 -> 0 | C74: =Calculations!AD30 -> 0 | BB74: Average Annual Debt Payment (Interest and Principal) | BC74: 1.0314915 | BD74: 0
A75: =Calculations!AB31 -> Equity Payment - Corporate | B75: =Calculations!AC31 -> 6.934607264 | C75: =Calculations!AD31 -> 0 | BB75: Equity Payment - Individuals | BC75: 0 | BD75: 0
A76: =Calculations!AB32 -> Property Taxes | B76: =Calculations!AC32 -> 0 | C76: =Calculations!AD32 -> 1 | BB76: Equity Payment - Corporate | BC76: 6.934607264 | BD76: 0
A77: =Calculations!AB33 -> Lease Cost | B77: =Calculations!AC33 -> 0 | C77: =Calculations!AD33 -> 1 | BB77: Property Taxes | BC77: 0 | BD77: 1
A78: =Calculations!AB34 -> Total | B78: =Calculations!AC34 -> 11.70746434 | BB78: Lease Cost | BC78: 0 | BD78: 1
BB79: Total | BC79: 11.70746434
A80: =Calculations!AB36 -> Other Parameters
C81: Purchased | BB81: =A80 -> Other Parameters
A82: =Calculations!AB38 -> Financial Parameters | C82: Locally (%) | BD82: Local
A83: =Calculations!AB39 -> Debt Financing | BB83: =A82 -> Financial Parameters | BD83: Share (%)
A84: =Calculations!AB40 -> Percentage financed | B84: =Calculations!AC40 -> 0.2 | C84: =Calculations!AD40 -> 0 | BB84: Debt Financing
A85: =Calculations!AB41 -> Years financed (term) | B85: =Calculations!AC41 -> 20 | BB85: Percentage financed | BC85: =B84 -> 0.2 | BD85: =C84 -> 0
A86: =Calculations!AB42 -> Interest rate | B86: =Calculations!AC42 -> 0.1 | BB86: Years financed (term) | BC86: =B85 -> 20
A87: =Calculations!AB43 -> Tax Parameters | BB87: Interest rate | BC87: =B86 -> 0.1
A88: =Calculations!AB44 -> Local Property Tax (percent of taxable value) | B88: =Calculations!AC44 -> 0 | BB88: Tax Parameters
A89: =Calculations!AB45 -> Assessed Value (percent of construction cost) | B89: =Calculations!AC45 -> 1 | BB89: Local Property Tax (percent of taxable value) | BC89: =B88 -> 0
A90: =Calculations!AB46 -> Taxable Value (percent of assessed value) | B90: =Calculations!AC46 -> 1 | BB90: Assessed Value (percent of construction cost) | BC90: 1
A91: =Calculations!AB47 -> Taxable Value ( million$ - if applicable) | B91: =Calculations!AC47 -> 52.897 | BB91: Taxable Value (percent of assessed value) | BC91: 1
A92: =Calculations!AB48 -> Property Tax Exemption (percent of local taxes) | B92: =Calculations!AC48 -> 1 | BB92: Taxable Value ( million$ - if applicable) | BC92: 52.897
A93: =Calculations!AB49 -> Local Property Taxes | B93: =Calculations!AC49 -> 0 | C93: =Calculations!AD49 -> 1 | BB93: Property Tax Exemption (percent of local taxes) | BC93: 1
A94: =Calculations!AB50 -> Local Sales Tax Rate | B94: =Calculations!AC50 -> 0.075 | C94: =Calculations!AD50 -> 1 | BB94: Local Property Taxes | BC94: 0 | BD94: =C93 -> 1
A95: =Calculations!AB51 -> Lease Cost (if applicable) | B95: =Calculations!AC51 -> 0 | C95: =Calculations!AD51 -> 1 | BB95: Local Sales Tax Rate | BC95: 0.075 | BD95: =C94 -> 1
BB96: =A95 -> Lease Cost (if applicable) | BC96: 0 | BD96: =C95 -> 1

Sheet User Add-in Location
A1: Multipliers For Economic Input-Output Analysis
A3: MyCounty (name) | C3: Year of Data | E3: =IF(B3="","",IF(D3=""," Enter Year of Data",IF(D3>2006,IF(D3<2016,""," ERROR - Deflators Data Not Current")," ERROR - Deflators Data Not Current"))) -> 
A4: MyRegion (includes) | C4: Year of Data | E4: =IF(B4="","",IF(D4=""," Enter Year of Data",IF(D4>2006,IF(D4<2016,""," ERROR - Deflators Data Not Current")," ERROR - Deflators Data Not Current"))) -> 
A5: State (Name)
A6: Sales Tax Rate (%) | C6: =IF(B$6=""," To incorporate Sales Tax in analysis Enter Sales Tax Rate","") -> To incorporate Sales Tax in analysis Enter Sales Tax Rate
A7: Property Tax Exemption (%) | C7: =IF(B$7=""," To incorporate Property Tax Exemption (if applicable) in analysis Enter Percentage","") -> To incorporate Property Tax Exemption (if applicable) in analysis Enter Percentage
A9: Jobs Per Million Dollars Change in Final Demand | D9: Personal Consumption Expenditures (PCE)
A10: Jobs Direct Multipliers | B10: MyCounty | C10: MyRegion | E10: =B10 -> MyCounty | F10: =C10 -> MyRegion
A11: Agriculture | B11: 0 | C11: 0 | E11: 0 | F11: 0
A12: Mining | B12: 0 | C12: 0 | E12: 0 | F12: 0
A13: Construction | B13: 0 | C13: 0 | E13: 0 | F13: 0
A14: Manufacturing | B14: 0 | C14: 0 | E14: 0 | F14: 0
A15: Fabricated Metals | B15: 0 | C15: 0 | E15: 0 | F15: 0
A16: Machinery | B16: 0 | C16: 0 | E16: 0 | F16: 0
A17: Electrical Equipment | B17: 0 | C17: 0 | E17: 0 | F17: 0
A18: TCPU | B18: 0 | C18: 0 | E18: 0 | F18: 0
A19: Wholesale Trade | B19: 0 | C19: 0 | E19: 0 | F19: 0
A20: Retail Trade | B20: 0 | C20: 0 | E20: 0 | F20: 0
A21: FIRE | B21: 0 | C21: 0 | E21: 0 | F21: 0
A22: Misc. Services | B22: 0 | C22: 0 | E22: 0 | F22: 0
A23: Professional Services | B23: 0 | C23: 0 | E23: 0 | F23: 0
A24: Government | B24: 0 | C24: 0 | E24: 0 | F24: 0
D25: Total | E25: =SUM(E11:E24) -> 0 | F25: =SUM(F11:F24) -> 0
A26: Jobs Per Million Dollars Change in Final Demand
A27: Jobs Indirect Multipliers | B27: =B10 -> MyCounty | C27: =C10 -> MyRegion
A28: Agriculture | B28: 0 | C28: 0
A29: Mining | B29: 0 | C29: 0
A30: Construction | B30: 0 | C30: 0
A31: Manufacturing | B31: 0 | C31: 0
A32: Fabricated Metals | B32: 0 | C32: 0
A33: Machinery | B33: 0 | C33: 0
A34: Electrical Equipment | B34: 0 | C34: 0
A35: TCPU | B35: 0 | C35: 0
A36: Wholesale Trade | B36: 0 | C36: 0
A37: Retail Trade | B37: 0 | C37: 0
A38: FIRE | B38: 0 | C38: 0
A39: Misc. Services | B39: 0 | C39: 0
A40: Professional Services | B40: 0 | C40: 0
A41: Government | B41: 0 | C41: 0
A43: Jobs Per Million Dollars Change in Final Demand
A44: Jobs Induced Multipliers | B44: =B27 -> MyCounty | C44: =C27 -> MyRegion
A45: Agriculture | B45: 0 | C45: 0
A46: Mining | B46: 0 | C46: 0
A47: Construction | B47: 0 | C47: 0
A48: Manufacturing | B48: 0 | C48: 0
A49: Fabricated Metals | B49: 0 | C49: 0
A50: Machinery | B50: 0 | C50: 0
A51: Electrical Equipment | B51: 0 | C51: 0
A52: TCPU | B52: 0 | C52: 0
A53: Wholesale Trade | B53: 0 | C53: 0
A54: Retail Trade | B54: 0 | C54: 0
A55: FIRE | B55: 0 | C55: 0
A56: Misc. Services | B56: 0 | C56: 0
A57: Professional Services | B57: 0 | C57: 0
A58: Government | B58: 0 | C58: 0
A60: Earnings Per Million Dollars Change in Final Demand
A61: Earnings Direct Multipliers | B61: =B44 -> MyCounty | C61: =C44 -> MyRegion
A62: Agriculture | B62: 0 | C62: 0
A63: Mining | B63: 0 | C63: 0
A64: Construction | B64: 0 | C64: 0
A65: Manufacturing | B65: 0 | C65: 0
A66: Fabricated Metals | B66: 0 | C66: 0
A67: Machinery | B67: 0 | C67: 0
A68: Electrical Equipment | B68: 0 | C68: 0
A69: TCPU | B69: 0 | C69: 0
A70: Wholesale Trade | B70: 0 | C70: 0
A71: Retail Trade | B71: 0 | C71: 0
A72: FIRE | B72: 0 | C72: 0
A73: Misc. Services | B73: 0 | C73: 0
A74: Professional Services | B74: 0 | C74: 0
A75: Government | B75: 0 | C75: 0
A77: Earnings Per Million Dollars Change in Final Demand
A78: Earnings Indirect Multipliers | B78: =B61 -> MyCounty | C78: =C61 -> MyRegion
A79: Agriculture | B79: 0.08730359375 | C79: 0
A80: Mining | B80: 0.04399460554 | C80: 0
A81: Construction | B81: 0.07391008735 | C81: 0
A82: Manufacturing | B82: 0.05087846518 | C82: 0
A83: Fabricated Metals | B83: 0.04215984046 | C83: 0
A84: Machinery | B84: 0.08125139773 | C84: 0
A85: Electrical Equipment | B85: 0 | C85: 0
A86: TCPU | B86: 0.07964375615 | C86: 0
A87: Wholesale Trade | B87: 0.04456052184 | C87: 0
A88: Retail Trade | B88: 0.04406493902 | C88: 0
A89: FIRE | B89: 0.06061181426 | C89: 0
A90: Misc. Services | B90: 0.0736579299 | C90: 0
A91: Professional Services | B91: 0.05704891682 | C91: 0
A92: Government | B92: 0.01825803518 | C92: 0
A94: Earnings Per Million Dollars Change in Final Demand
A95: Earnings Induced Multipliers | B95: =B78 -> MyCounty | C95: =C78 -> MyRegion
A96: Agriculture | B96: 0 | C96: 0
A97: Mining | B97: 0 | C97: 0
A98: Construction | B98: 0 | C98: 0
A99: Manufacturing | B99: 0 | C99: 0
A100: Fabricated Metals | B100: 0 | C100: 0
A101: Machinery | B101: 0 | C101: 0
A102: Electrical Equipment | B102: 0 | C102: 0
A103: TCPU | B103: 0 | C103: 0
A104: Wholesale Trade | B104: 0 | C104: 0
A105: Retail Trade | B105: 0 | C105: 0
A106: FIRE | B106: 0 | C106: 0
A107: Misc. Services | B107: 0 | C107: 0
A108: Professional Services | B108: 0 | C108: 0
A109: Government | B109: 0 | C109: 0
A111: Output Per Million Dollars Change in Final Demand
A112: Output Direct Multipliers | B112: =B95 -> MyCounty | C112: =C95 -> MyRegion
A113: Agriculture | B113: 0 | C113: 0
A114: Mining | B114: 0 | C114: 0
A115: Construction | B115: 0 | C115: 0
A116: Manufacturing | B116: 0 | C116: 0
A117: Fabricated Metals | B117: 0 | C117: 0
A118: Machinery | B118: 0 | C118: 0
A119: Electrical Equipment | B119: 0 | C119: 0
A120: TCPU | B120: 0 | C120: 0
A121: Wholesale Trade | B121: 0 | C121: 0
A122: Retail Trade | B122: 0 | C122: 0
A123: FIRE | B123: 0 | C123: 0
A124: Misc. Services | B124: 0 | C124: 0
A125: Professional Services | B125: 0 | C125: 0
A126: Government | B126: 0 | C126: 0
A128: Output Per Million Dollars Change in Final Demand
A129: Output Indirect Multipliers | B129: =B112 -> MyCounty | C129: =C112 -> MyRegion
A130: Agriculture | B130: 0 | C130: 0
A131: Mining | B131: 0 | C131: 0
A132: Construction | B132: 0 | C132: 0
A133: Manufacturing | B133: 0 | C133: 0
A134: Fabricated Metals | B134: 0 | C134: 0
A135: Machinery | B135: 0 | C135: 0
A136: Electrical Equipment | B136: 0 | C136: 0
A137: TCPU | B137: 0 | C137: 0
A138: Wholesale Trade | B138: 0 | C138: 0
A139: Retail Trade | B139: 0 | C139: 0
A140: FIRE | B140: 0 | C140: 0
A141: Misc. Services | B141: 0 | C141: 0
A142: Professional Services | B142: 0 | C142: 0
A143: Government | B143: 0 | C143: 0
A145: Output Per Million Dollars Change in Final Demand
A146: Output Induced Multipliers | B146: =B129 -> MyCounty | C146: =C129 -> MyRegion
A147: Agriculture | B147: 0 | C147: 0
A148: Mining | B148: 0 | C148: 0
A149: Construction | B149: 0 | C149: 0
A150: Manufacturing | B150: 0 | C150: 0
A151: Fabricated Metals | B151: 0 | C151: 0
A152: Machinery | B152: 0 | C152: 0
A153: Electrical Equipment | B153: 0 | C153: 0
A154: TCPU | B154: 0 | C154: 0
A155: Wholesale Trade | B155: 0 | C155: 0
A156: Retail Trade | B156: 0 | C156: 0
A157: FIRE | B157: 0 | C157: 0
A158: Misc. Services | B158: 0 | C158: 0
A159: Professional Services | B159: 0 | C159: 0
A160: Government | B160: 0 | C160: 0
A162: Value Added Per Million Dollars Change in Final Demand
A163: Value Added Direct Multipliers | B163: MyCounty | C163: MyRegion
A164: Agriculture | B164: 0 | C164: 0
A165: Mining | B165: 0 | C165: 0
A166: Construction | B166: 0 | C166: 0
A167: Manufacturing | B167: 0 | C167: 0
A168: Fabricated Metals | B168: 0 | C168: 0
A169: Machinery | B169: 0 | C169: 0
A170: Electrical Equipment | B170: 0 | C170: 0
A171: TCPU | B171: 0 | C171: 0
A172: Wholesale Trade | B172: 0 | C172: 0
A173: Retail Trade | B173: 0 | C173: 0
A174: FIRE | B174: 0 | C174: 0
A175: Misc. Services | B175: 0 | C175: 0
A176: Professional Services | B176: 0 | C176: 0
A177: Government | B177: 0 | C177: 0
A179: Value Added Per Million Dollars Change in Final Demand
A180: Value Added Indirect Multipliers | B180: MyCounty | C180: MyRegion
A181: Agriculture | B181: 0 | C181: 0
A182: Mining | B182: 0 | C182: 0
A183: Construction | B183: 0 | C183: 0
A184: Manufacturing | B184: 0 | C184: 0
A185: Fabricated Metals | B185: 0 | C185: 0
A186: Machinery | B186: 0 | C186: 0
A187: Electrical Equipment | B187: 0 | C187: 0
A188: TCPU | B188: 0 | C188: 0
A189: Wholesale Trade | B189: 0 | C189: 0
A190: Retail Trade | B190: 0 | C190: 0
A191: FIRE | B191: 0 | C191: 0
A192: Misc. Services | B192: 0 | C192: 0
A193: Professional Services | B193: 0 | C193: 0
A194: Government | B194: 0 | C194: 0
A196: Value Added Per Million Dollars Change in Final Demand
A197: Value Added Induced Multipliers | B197: MyCounty | C197: MyRegion
A198: Agriculture | B198: 0 | C198: 0
A199: Mining | B199: 0 | C199: 0
A200: Construction | B200: 0 | C200: 0
A201: Manufacturing | B201: 0 | C201: 0
A202: Fabricated Metals | B202: 0 | C202: 0
A203: Machinery | B203: 0 | C203: 0
A204: Electrical Equipment | B204: 0 | C204: 0
A205: TCPU | B205: 0 | C205: 0
A206: Wholesale Trade | B206: 0 | C206: 0
A207: Retail Trade | B207: 0 | C207: 0
A208: FIRE | B208: 0 | C208: 0
A209: Misc. Services | B209: 0 | C209: 0
A210: Professional Services | B210: 0 | C210: 0
A211: Government | B211: 0 | C211: 0
O760: Alabama
... 50 more rows

Sheet DefaultData
D1: System Type
D2: =ProjectData!B15 -> Wave Power | O2: 1 | P2: 2 | Q2: 3 | R2: 4 | S2: 5 | T2: 6
O3: 1 | P3: 2 | Q3: 3 | R3: 4 | S3: 5 | T3: 6
E4: KW | F4: Total KW Installed
A5: Warning | E5: =ProjectData!B17*1000 -> 10000 | F5: =E5 -> 10000
A7: This Worksheet contains Data and Formulas that are an integral part of the JEDI model. | D7: Construction | E7: Project Cost | F7: O&M | G7: O&M Cost
D8: Cost Per KW | E8: MM$ | F8: Cost Per KW | G8: MM$ | AK8: Wave Power | AL8: Tidal Power | AM8: Ocean Current | AN8: River Current
A9: Although the data and formulas are available for review they must not be changed. | D9: =IF(ProjectData!B17=ProjectData!B16,ProjectData!B19,0) -> 5289.7 | E9: =+D9*F5/10^6 -> 52.897 | F9: =ProjectData!B20*D9 -> 360.5555 | G9: =F9*F5/10^6 -> 3.605555 | AK9: 1 | AL9: 2 | AM9: 3 | AN9: 4
A11: Any changes to the data or formulas will impact the analysis and may invalidate the model results. | C11: Project Data | D11: Default Values - Based on Cost Per KW from Project Data sheet | AI11: =ProjectData!B15 -> Wave Power | AK11: Wave Power | AL11: Tidal Power | AM11: Ocean Current | AN11: River Current | AV11: Scale | AW11: 1 | BB11: =AW11 -> 1 | BF11: =AW11 -> 1 | BJ11: =AW11 -> 1
H12: Very Small | I12: Small | J12: Medium | K12: Large | AI12: =IF(AI11="Wave Power",1,IF(AI11="Tidal Power",2,IF(AI11="Ocean Current",3,IF(AI11="River Current",4,"Error")))) -> 1 | AK12: 1 | AL12: 2 | AM12: 3 | AN12: 4
H13: 30000 | I13: 100000 | J13: 300000 | K13: 400000 | M13: =ProjectData!B13 -> 0 | AI13: =HLOOKUP(AI$12,AK$12:AP$47,AJ13) -> 5289.7 | AJ13: 2 | AK13: 5289.7 | AL13: 4566.7 | AM13: 6776.7 | AN13: 3897.94 | AV13: 5289.7 | AW13: 1 | BA13: 4566.7 | BB13: 1 | BE13: 6776.7 | BF13: 1 | BI13: 3897.94 | BJ13: 1
C14: Installed Capital Costs | D14: Cost | E14: Cost | F14: Percent | G14: State | H14: County | I14: County | J14: County | K14: County | O14: 30000 | AI14: =HLOOKUP(AI$12,AK$12:AP$47,AJ14) -> 24 | AJ14: =AJ13+1 -> 3 | AK14: 24 | AL14: 24 | AM14: 24 | AN14: 12 | AS14: Installation Costs | AV14: Wave Power | AW14: Scale | AX14: Scaled Cost Share | AY14: Adj. Scaled Cost | BA14: Tidal Power | BB14: Scale | BC14: Scaled Cost Share | BD14: Adj. Scaled Cost | BE14: Ocean Current | BF14: Scale | BG14: Scaled Cost Share | BH14: Adj. Scaled Cost | BI14: River Current | BJ14: Scale | BK14: Scaled Cost Share | BL14: Adj. Scaled Cost
C15: Tidal Power | E15: Per KW | F15: of Cost | G15: Local Share | H15: Local Share | I15: Local Share | J15: Local Share | K15: Local Share | O15: 100000 | R15: 300000 | U15: 400000 | AI15: =HLOOKUP(AI$12,AK$12:AP$47,AJ15) -> 10 | AJ15: 4 | AK15: 10 | AL15: 10 | AM15: 10 | AN15: 5 | AS15: Materials & Equipment
C16: Device | D16: =(E$9-D$27)*F16 -> 36.29232121 | E16: =D16/F$5 -> 0.003629232121 | F16: =AI16+AI17+AI19 -> 0.7614112894 | G16: =IF(ProjectData!$B$12="United States",1,0.25) -> 0.25 | H16: 0 | I16: 0 | J16: 0.25 | K16: =G16 -> 0.25 | M16: =(M$13-H$13)/(I$13-H$13) -> -0.4285714286 | N16: =+I16-H16 -> 0 | O16: =H16+(N16*M16) -> 0 | P16: =(M$13-I$13)/(J$13-I$13) -> -0.5 | Q16: =J16-I16 -> 0.25 | R16: =I16+(P16*Q16) -> -0.125 | S16: =IF((M$13-J$13)/(K$13-J$13)>1,1,(M$13-J$13)/(K$13-J$13)) -> -3 | T16: =K16-J16 -> 0 | U16: =J16+(S16*T16) -> 0.25 | AH16: structural | AI16: =HLOOKUP(AI$12,AK$12:AP$48,AJ16) -> 0.3023250708 | AJ16: 5 | AK16: =AY16 -> 0.3023250708 | AL16: =BD16 -> 0.2915976672 | AM16: =BH16 -> 0.2259750405 | AN16: =BL16 -> 0.2266667397 | AR16: =(AV16+AV19)/(AV16+AV17+AV19) -> 0.4705882353 | AS16: Structural | AV16: 0.2724197282 | AW16: 1 | AX16: =AV16*AW$13^AW16 -> 0.2724197282 | AY16: =AX16/AX$37 -> 0.3023250708 | BA16: 0.2660564521 | BB16: =BB$11 -> 1 | BC16: =BA16*BB$13^BB16 -> 0.2660564521 | BD16: =BC16/BC$37 -> 0.2915976672 | BE16: 0.1792908053 | BF16: =BF$11 -> 1 | BG16: =BE16*BF$13^BF16 -> 0.1792908053 | BH16: =BG16/BG$37 -> 0.2259750405 | BI16: 0.2124198936 | BJ16: =BJ$11 -> 1 | BK16: =BI16*BJ$13^BJ16 -> 0.2124198936 | BL16: =BK16/BK$37 -> 0.2266667397
C17: Underwater Electrical Collector System | D17: =(E$9-D$27)*F17 -> 4.88397529 | E17: =D17/F$5 -> 0.000488397529 | F17: =AI18 -> 0.102465585 | G17: =IF(ProjectData!$B$12="United States",1,0) -> 0 | H17: 0 | I17: 0 | J17: 0 | K17: 0 | M17: =(M$13-H$13)/(I$13-H$13) -> -0.4285714286 | N17: =+I17-H17 -> 0 | O17: =H17+(N17*M17) -> 0 | P17: =(M$13-I$13)/(J$13-I$13) -> -0.5 | Q17: =J17-I17 -> 0 | R17: =I17+(P17*Q17) -> 0 | S17: =IF((M$13-J$13)/(K$13-J$13)>1,1,(M$13-J$13)/(K$13-J$13)) -> -3 | T17: =K17-J17 -> 0 | U17: =J17+(S17*T17) -> 0 | AH17: power take off | AI17: 0.4031000944 | AJ17: 6 | AK17: =AY17 -> 0.4031000944 | AL17: =BD17 -> 0.323997408 | AM17: =BH17 -> 0.2510833783 | AN17: =BL17 -> 0.6296298324 | AS17: Power Take Off | AV17: 0.3632263042 | AW17: 1 | AX17: =AV17*AW$13^AW17 -> 0.3632263042 | AY17: =AX17/AX$37 -> 0.4031000944 | BA17: 0.2956182802 | BB17: 1 | BC17: 0.2956182802 | BD17: =BC17/BC$37 -> 0.323997408 | BE17: 0.1992120058 | BF17: 1 | BG17: 0.1992120058 | BH17: =BG17/BG$37 -> 0.2510833783 | BI17: 0.59005526 | BJ17: =BJ$11 -> 1 | BK17: 0.59005526 | BL17: =BK17/BK$37 -> 0.6296298324
A18: To view the data and formulas simply scroll over to the adjacent columns to the right. | C18: Underwater Transmission Cable | D18: =(E$9-D$27)*F18 -> 0.7848685382 | E18: =D18/F$5 -> 7.848685382e-05 | F18: =AI20 -> 0.01646650712 | G18: =IF(ProjectData!$B$12="United States",1,0) -> 0 | H18: 0 | I18: 0 | J18: 0 | K18: 0 | M18: =(M$13-H$13)/(I$13-H$13) -> -0.4285714286 | N18: =+I18-H18 -> 0 | O18: =H18+(N18*M18) -> 0 | P18: =(M$13-I$13)/(J$13-I$13) -> -0.5 | Q18: =J18-I18 -> 0 | R18: =I18+(P18*Q18) -> 0 | S18: =IF((M$13-J$13)/(K$13-J$13)>1,1,(M$13-J$13)/(K$13-J$13)) -> -3 | T18: =K18-J18 -> 0 | U18: =J18+(S18*T18) -> 0 | AH18: Underwater Electrical Collector System | AI18: 0.102465585 | AJ18: 7 | AK18: 0.102465585 | AL18: 0.1120071039 | AM18: 0.1239979913 | AN18: 0.02380000767 | AS18: Electrical Collector System | AV18: 0.09232991078 | AW18: 1 | AX18: 0.09232991078 | AY18: 0.102465585 | BA18: 0.1021963343 | BB18: 1 | BC18: 0.1021963343 | BD18: 0.1120071039 | BE18: 0.098381218 | BF18: 1 | BG18: 0.098381218 | BH18: 0.1239979913 | BI18: 0.02230408883 | BJ18: 1 | BK18: 0.02230408883 | BL18: 0.02380000767
C19: Cable Landing and Grid Interconnection | D19: =(E$9-D$27)*F19 -> 1.151140523 | E19: =D19/F$5 -> 0.0001151140523 | F19: =AI21 -> 0.02415087712 | G19: =IF(ProjectData!$B$12="United States",1,0) -> 0 | H19: 0 | I19: 0 | J19: 0 | K19: 0 | M19: =(M$13-H$13)/(I$13-H$13) -> -0.4285714286 | N19: =+I19-H19 -> 0 | O19: =H19+(N19*M19) -> 0 | P19: =(M$13-I$13)/(J$13-I$13) -> -0.5 | Q19: =J19-I19 -> 0 | R19: =I19+(P19*Q19) -> 0 | S19: =IF((M$13-J$13)/(K$13-J$13)>1,1,(M$13-J$13)/(K$13-J$13)) -> -3 | T19: =K19-J19 -> 0 | U19: =J19+(S19*T19) -> 0 | Z19: Default | AH19: foundation | AI19: 0.05598612422 | AJ19: 8 | AK19: 0.05598612422 | AL19: 0.1295989632 | AM19: 0.1859876876 | AN19: 0.0273752101 | AS19: Foundation | AV19: 0.05044809781 | AW19: 1 | AX19: 0.05044809781 | AY19: 0.05598612422 | BA19: 0.1182473121 | BB19: 1 | BC19: 0.1182473121 | BD19: 0.1295989632 | BE19: 0.1475644488 | BF19: 1 | BG19: 0.1475644488 | BH19: 0.1859876876 | BI19: 0.02565457652 | BJ19: 1 | BK19: 0.02565457652 | BL19: 0.0273752101
C20: Balance of Plant | D20: =(E$9-D$27)*F20 -> 2.092982769 | E20: =D20/F$5 -> 0.0002092982769 | F20: =AI22 -> 0.04391068567 | G20: =IF(ProjectData!$B$12="United States",1,0.75) -> 0.75 | H20: 0 | I20: 0 | J20: 0.75 | K20: 0.75 | M20: =(M$13-H$13)/(I$13-H$13) -> -0.4285714286 | N20: =+I20-H20 -> 0 | O20: =H20+(N20*M20) -> 0 | P20: =(M$13-I$13)/(J$13-I$13) -> -0.5 | Q20: =J20-I20 -> 0.75 | R20: =I20+(P20*Q20) -> -0.375 | S20: =IF((M$13-J$13)/(K$13-J$13)>1,1,(M$13-J$13)/(K$13-J$13)) -> -3 | T20: =K20-J20 -> 0 | U20: =J20+(S20*T20) -> 0.75 | Z20: Construction and Installation Labor | AA20: Day Rate | AB20: Crew | AC20: Wage per hour | AH20: Underwater Transmission Cable | AI20: 0.01646650712 | AJ20: 9 | AK20: 0.01646650712 | AL20: 0.011999904 | AM20: 0.1115926126 | AN20: 0.01368760505 | AS20: Sea Cable | AV20: 0.01483767583 | AW20: 1 | AX20: 0.01483767583 | AY20: 0.01646650712 | BA20: 0.01094882519 | BB20: 1 | BC20: 0.01094882519 | BD20: 0.011999904 | BE20: 0.08853866926 | BF20: 1 | BG20: 0.08853866926 | BH20: 0.1115926126 | BI20: 0.01282728826 | BJ20: 1 | BK20: 0.01282728826 | BL20: 0.01368760505
C21: Subtotal | D21: =SUM(D16:D20) -> 45.20528833 | E21: =SUM(E16:E20) -> 0.004520528833 | F21: =SUM(F16:F20) -> 0.9484049443 | Z21: Vessel | AA21: =D102 -> 10000 | AB21: =F102 -> 4 | AC21: =G102 -> 64.21911925 | AH21: Cable Landing and Grid Interconnection | AI21: 0.02415087712 | AJ21: 10 | AK21: 0.02415087712 | AL21: 0.0263997888 | AM21: 0.02045864564 | AN21: 0.00273752101 | AS21: Sea Cable Landing and Grid Interconnection | AV21: 0.02176192455 | AW21: 1 | AX21: 0.02176192455 | AY21: 0.02415087712 | BA21: 0.02408741542 | BB21: 1 | BC21: 0.02408741542 | BD21: 0.0263997888 | BE21: 0.01623208937 | BF21: 1 | BG21: 0.01623208937 | BH21: 0.02045864564 | BI21: 0.002565457652 | BJ21: 1 | BK21: 0.002565457652 | BL21: 0.00273752101
C22: Installation/Labor | Z22: Fuel | AA22: =E102 -> 3500 | AH22: Vessels and Equip | AI22: 0.04391068567 | AJ22: 11 | AK22: 0.04391068567 | AL22: 0.047999616 | AM22: 0.03719753752 | AN22: 0.01368760505 | AS22: Vessels and Equipment | AV22: 0.03956713554 | AW22: 1 | AX22: 0.03956713554 | AY22: 0.04391068567 | BA22: 0.04379530076 | BB22: 1 | BC22: 0.04379530076 | BD22: 0.047999616 | BE22: 0.02951288975 | BF22: 1 | BG22: 0.02951288975 | BH22: 0.03719753752 | BI22: 0.01282728826 | BJ22: 1 | BK22: 0.01282728826 | BL22: 0.01368760505
C23: Mooring and Device Installation | D23: =E$9*F23 -> 2.616228461 | E23: =D23/F$5 -> 0.0002616228461 | F23: =AI25 -> 0.04945891942 | G23: =IF(ProjectData!$B$12="United States",1,0.25) -> 0.25 | H23: 0.25 | I23: 0.25 | J23: 0.25 | K23: =G23 -> 0.25 | M23: =(M$13-H$13)/(I$13-H$13) -> -0.4285714286 | N23: =+I23-H23 -> 0 | O23: =H23+(N23*M23) -> 0.25 | P23: =(M$13-I$13)/(J$13-I$13) -> -0.5 | Q23: =J23-I23 -> 0 | R23: =I23+(P23*Q23) -> 0.25 | S23: =IF((M$13-J$13)/(K$13-J$13)>1,1,(M$13-J$13)/(K$13-J$13)) -> -3 | T23: =K23-J23 -> 0 | U23: =J23+(S23*T23) -> 0.25 | Z23: Other | AI23: 0.9484049443 | AJ23: 12 | AK23: =AY23 -> 0.9484049443 | AL23: 0.9436004512 | AM23: 0.9562928934 | AN23: 0.937584521 | AS23: Subtotal | AV23: 0.8545907769 | AX23: =SUM(AX16:AX22) -> 0.8545907769 | AY23: =SUM(AY16:AY22) -> 0.9484049443 | BA23: 0.8609499201 | BC23: =SUM(BC16:BC22) -> 0.8609499201 | BD23: =SUM(BD16:BD22) -> 0.9436004512 | BE23: 0.7587321263 | BG23: =SUM(BG16:BG22) -> 0.7587321263 | BH23: =SUM(BH16:BH22) -> 0.9562928934 | BI23: 0.8786538531 | BK23: =SUM(BK16:BK22) -> 0.8786538531 | BL23: =SUM(BL16:BL22) -> 0.937584521
C24: Underwater Cable Installation | D24: =E$9*F24 -> 2.092982769 | E24: =D24/F$5 -> 0.0002092982769 | F24: =AI26 -> 0.03956713554 | G24: =IF(ProjectData!$B$12="United States",1,0.25) -> 0.25 | H24: 0.25 | I24: 0.25 | J24: 0.25 | K24: 0.25 | M24: =(M$13-H$13)/(I$13-H$13) -> -0.4285714286 | N24: =+I24-H24 -> 0 | O24: =H24+(N24*M24) -> 0.25 | P24: =(M$13-I$13)/(J$13-I$13) -> -0.5 | Q24: =J24-I24 -> 0 | R24: =I24+(P24*Q24) -> 0.25 | S24: =IF((M$13-J$13)/(K$13-J$13)>1,1,(M$13-J$13)/(K$13-J$13)) -> -3 | T24: =K24-J24 -> 0 | U24: =J24+(S24*T24) -> 0.25 | AA24: Percentage | AB24: Cost | AJ24: 13 | AS24: Installation/Labor
C25: Cable Landing and Grid Connection | D25: =E$9*F25 -> 0.5232456921 | E25: =D25/F$5 -> 5.232456921e-05 | F25: =AI27 -> 0.009891783884 | G25: =IF(ProjectData!$B$12="United States",1,0.25) -> 0.25 | H25: 0.25 | I25: 0.25 | J25: 0.25 | K25: 0.25 | M25: =(M$13-H$13)/(I$13-H$13) -> -0.4285714286 | N25: =+I25-H25 -> 0 | O25: =H25+(N25*M25) -> 0.25 | P25: =(M$13-I$13)/(J$13-I$13) -> -0.5 | Q25: =J25-I25 -> 0 | R25: =I25+(P25*Q25) -> 0.25 | S25: =IF((M$13-J$13)/(K$13-J$13)>1,1,(M$13-J$13)/(K$13-J$13)) -> -3 | T25: =K25-J25 -> 0 | U25: =J25+(S25*T25) -> 0.25 | Z25: Labor | AA25: =AB25/AA$21 -> 0.32 | AB25: =AB21*Z30*10 -> 3200 | AH25: Mooring and Device Installation | AI25: 0.04945891942 | AJ25: 14 | AK25: =AX25 -> 0.04945891942 | AL25: =BC25 -> 0.05474412596 | AM25: =BG25 -> 0.03689111219 | AN25: =BK25 -> 0.04361278008 | AS25: Mooring and Devices | AV25: 0.04945891942 | AW25: 1 | AX25: =AV25*AW$13^AW25 -> 0.04945891942 | BA25: 0.05474412596 | BB25: =BB$11 -> 1 | BC25: =BA25*BB$13^BB25 -> 0.05474412596 | BE25: 0.03689111219 | BF25: =BF$11 -> 1 | BG25: =BE25*BF$13^BF25 -> 0.03689111219 | BI25: 0.04361278008 | BJ25: =BJ$11 -> 1 | BK25: =BI25*BJ$13^BJ25 -> 0.04361278008
C26: Other Costs | D26: =E$9*F26 -> 0 | E26: =D26/F$5 -> 0 | F26: =AI28 -> 0 | Z26: Fuel | AA26: =AB26/AA$21 -> 0.35 | AB26: =AA22 -> 3500 | AH26: Underwater Cable Installation | AI26: 0.03956713554 | AJ26: 15 | AK26: 0.03956713554 | AL26: 0.02189765038 | AM26: 0.1623208937 | AN26: 0.00641364413 | AS26: Sea Cable | AV26: 0.03956713554 | AW26: 1 | AX26: =AV26*AW$13^AW26 -> 0.03956713554 | BA26: 0.02189765038 | BB26: =BB$11 -> 1 | BC26: =BA26*BB$13^BB26 -> 0.02189765038 | BE26: 0.1623208937 | BF26: =BF$11 -> 1 | BG26: =BE26*BF$13^BF26 -> 0.1623208937 | BI26: 0.00641364413 | BJ26: =BJ$11 -> 1 | BK26: =BI26*BJ$13^BJ26 -> 0.00641364413
C27: Subtotal | D27: =SUM(D23:D26) -> 5.232456921 | E27: =SUM(E23:E26) -> 0.0005232456921 | F27: =SUM(F23:F26) -> 0.09891783884 | Z27: Other | AA27: =1-(AA26+AA25) -> 0.33 | AB27: =AA21-(AB25+AB26) -> 3300 | AH27: Cable Landing and Grid Connection | AI27: 0.009891783884 | AJ27: 16 | AK27: 0.009891783884 | AL27: 0.01094882519 | AM27: 0.007378222439 | AN27: 0.01282728826 | AS27: Sea Cable Landing and Grid Interconnection | AV27: 0.009891783884 | AW27: 1 | AX27: =AV27*AW$13^AW27 -> 0.009891783884 | BA27: 0.01094882519 | BB27: =BB$11 -> 1 | BC27: =BA27*BB$13^BB27 -> 0.01094882519 | BE27: 0.007378222439 | BF27: =BF$11 -> 1 | BG27: =BE27*BF$13^BF27 -> 0.007378222439 | BI27: 0.01282728826 | BJ27: =BJ$11 -> 1 | BK27: =BI27*BJ$13^BJ27 -> 0.01282728826
C28: Permitting Cost | D28: =(E$9-D$27)*F28 -> 2.459254753 | E28: =D28/F$5 -> 0.0002459254753 | F28: =AI31+AI32+AI33+AI34 -> 0.05159505566 | G28: =IF(ProjectData!$B$12="United States",1,0.75) -> 0.75 | H28: 0.75 | I28: 0.75 | J28: 0.75 | K28: 0.75 | M28: =(M$13-H$13)/(I$13-H$13) -> -0.4285714286 | N28: =+I28-H28 -> 0 | O28: =H28+(N28*M28) -> 0.75 | P28: =(M$13-I$13)/(J$13-I$13) -> -0.5 | Q28: =J28-I28 -> 0 | R28: =I28+(P28*Q28) -> 0.75 | S28: =IF((M$13-J$13)/(K$13-J$13)>1,1,(M$13-J$13)/(K$13-J$13)) -> -3 | T28: =K28-J28 -> 0 | U28: =J28+(S28*T28) -> 0.75 | Z28: Total | AB28: =SUM(AB25:AB27) -> 10000 | AH28: Other Costs | AI28: =HLOOKUP(AI$12,AK$12:AP$48,AJ28) -> 0 | AJ28: 17 | AK28: 0 | AL28: 0 | AM28: 0 | AN28: 0 | AS28: Other Costs
Z29: Employer Cost | AA29: Wage per hour | AB29: Employer Ben Costs | AD29: Earnings per year (incl empl costs) | AI29: 0.09891783884 | AJ29: =AJ28+1 -> 18 | AK29: 0.09891783884 | AL29: 0.08759060153 | AM29: 0.2065902283 | AN29: 0.06285371247 | AS29: Subtotal | AV29: 0.09891783884 | AX29: =SUM(AX25:AX27) -> 0.09891783884 | BA29: 0.08759060153 | BC29: =SUM(BC25:BC27) -> 0.08759060153 | BE29: 0.2065902283 | BG29: =SUM(BG25:BG27) -> 0.2065902283 | BI29: 0.06285371247 | BK29: =SUM(BK25:BK27) -> 0.06285371247
C30: Subtotal | D30: =D28+D27+D21 -> 52.897 | E30: =E28+E27+E21 -> 0.0052897 | F30: =F28+F27+F21 -> 1.098917839 | H30: Very Small | I30: Small | J30: Medium | K30: Large | Z30: =AA30+AB30 -> 80 | AA30: =AC21 -> 64.21911925 | AB30: =AA30*Calculations!K29 -> 15.78088075 | AD30: =Z30*40*52 -> 166400 | AI30: 0 | AJ30: 19 | AK30: 0 | AL30: 0 | AM30: 0 | AN30: 0 | AS30: Other Costs
C31: Sales Tax (Materials & Equipment Purchases) | D31: =D21*D61 -> 3.390396624 | E31: =D31/F$5 -> 0.0003390396624 | G31: 1 | H31: 30000 | I31: 100000 | J31: 300000 | K31: 400000 | AH31: Environmental Analysis/Permiting | AI31: 0.00658660285 | AJ31: 20 | AK31: =AY31 -> 0.00658660285 | AL31: =BD31 -> 0.0071999424 | AM31: =BH31 -> 0.005579630628 | AN31: =BL31 -> 0.01642512606 | AS31: Environmental Analysis/Permiting | AV31: 0.005935070331 | AW31: 1 | AX31: =AV31*AW$13^AW31 -> 0.005935070331 | AY31: =AX31/AX$37 -> 0.00658660285 | BA31: 0.006569295115 | BB31: =BB$11 -> 1 | BC31: =BA31*BB$13^BB31 -> 0.006569295115 | BD31: =BC31/BC$37 -> 0.0071999424 | BE31: 0.004426933463 | BF31: =BF$11 -> 1 | BG31: =BE31*BF$13^BF31 -> 0.004426933463 | BH31: =BG31/BG$37 -> 0.005579630628 | BI31: 0.01539274591 | BJ31: =BJ$11 -> 1 | BK31: =BI31*BJ$13^BJ31 -> 0.01539274591 | BL31: =BK31/BK$37 -> 0.01642512606
C32: Total | D32: =D31+D30 -> 56.28739662 | H32: County | I32: County | J32: County | K32: County | Z32: User Defined | AD32: Calculations | AH32: Engineering and Design | AI32: 0.03073747997 | AJ32: 21 | AK32: 0.03073747997 | AL32: 0.0335997312 | AM32: 0.02603827627 | AN32: 0.02190016808 | AS32: Engineering and Design | AV32: 0.02769699488 | AW32: 1 | AX32: =AV32*AW$13^AW32 -> 0.02769699488 | AY32: =AX32/AX$37 -> 0.03073747997 | BA32: 0.03065671053 | BB32: =BB$11 -> 1 | BC32: =BA32*BB$13^BB32 -> 0.03065671053 | BD32: =BC32/BC$37 -> 0.0335997312 | BE32: 0.02065902283 | BF32: =BF$11 -> 1 | BG32: =BE32*BF$13^BF32 -> 0.02065902283 | BH32: =BG32/BG$37 -> 0.02603827627 | BI32: 0.02052366122 | BJ32: =BJ$11 -> 1 | BK32: =BI32*BJ$13^BJ32 -> 0.02052366122 | BL32: =BK32/BK$37 -> 0.02190016808
C33: Annualized Operating and Maintenance Costs | D33: Cost | E33: Cost | F33: Percent | G33: Local Share | H33: Local Share | I33: Local Share | J33: Local Share | K33: Local Share | Z33: Construction and Installation Labor | AA33: Day Rate | AB33: Crew | AC33: Wage per hour | AH33: Other Costs | AI33: 0.00658660285 | AJ33: 22 | AK33: 0.00658660285 | AL33: 0.0071999424 | AM33: 0.005579630628 | AN33: 0.01368760505 | AS33: Other Costs | AV33: 0.005935070331 | AW33: 1 | AX33: =AV33*AW$13^AW33 -> 0.005935070331 | AY33: =AX33/AX$37 -> 0.00658660285 | BA33: 0.006569295115 | BB33: =BB$11 -> 1 | BC33: =BA33*BB$13^BB33 -> 0.006569295115 | BD33: =BC33/BC$37 -> 0.0071999424 | BE33: 0.004426933463 | BF33: =BF$11 -> 1 | BG33: =BE33*BF$13^BF33 -> 0.004426933463 | BH33: =BG33/BG$37 -> 0.005579630628 | BI33: 0.01282728826 | BJ33: =BJ$11 -> 1 | BK33: =BI33*BJ$13^BJ33 -> 0.01282728826 | BL33: =BK33/BK$37 -> 0.01368760505
E34: Per KW | F34: of Cost | Z34: Vessel | AA34: =AA21 -> 10000 | AB34: =AB21 -> 4 | AC34: =AC21 -> 64.21911925 | AD34: =IF(ProjectData!B$24="Y",DefaultData!AA21,DefaultData!AA34) -> 10000 | AE34: =IF(ProjectData!C$24="Y",DefaultData!AB21,DefaultData!AB34) -> 4 | AF34: =IF(ProjectData!D$24="Y",DefaultData!AC21,DefaultData!AC34) -> 64.21911925 | AH34: Project Management | AI34: 0.007684369991 | AJ34: 23 | AK34: 0.007684369991 | AL34: 0.008399932801 | AM34: 0.006509569067 | AN34: 0.01040257984 | AS34: Project Management | AV34: 0.006924248719 | AW34: 1 | AX34: =AV34*AW$13^AW34 -> 0.006924248719 | AY34: =AX34/AX$37 -> 0.007684369991 | BA34: 0.007664177634 | BB34: =BB$11 -> 1 | BC34: =BA34*BB$13^BB34 -> 0.007664177634 | BD34: =BC34/BC$37 -> 0.008399932801 | BE34: 0.005164755707 | BF34: =BF$11 -> 1 | BG34: =BE34*BF$13^BF34 -> 0.005164755707 | BH34: =BG34/BG$37 -> 0.006509569067 | BI34: 0.009748739078 | BJ34: =BJ$11 -> 1 | BK34: =BI34*BJ$13^BJ34 -> 0.009748739078 | BL34: =BK34/BK$37 -> 0.01040257984
C35: Labor | D35: =G$9*F35 -> 0.76 | E35: =D35/F$5 -> 7.6e-05 | F35: =AI41 -> 0.2107858568 | G35: 1 | H35: 1 | I35: 1 | J35: 1 | K35: 1 | M35: =(M$13-H$13)/(I$13-H$13) -> -0.4285714286 | N35: =+I35-H35 -> 0 | O35: =H35+(N35*M35) -> 1 | P35: =(M$13-I$13)/(J$13-I$13) -> -0.5 | Q35: =J35-I35 -> 0 | R35: =I35+(P35*Q35) -> 1 | S35: =IF((M$13-J$13)/(K$13-J$13)>1,1,(M$13-J$13)/(K$13-J$13)) -> -3 | T35: =K35-J35 -> 0 | U35: =J35+(S35*T35) -> 1 | Z35: Fuel | AA35: =AA22 -> 3500 | AI35: 0.05159505566 | AJ35: 24 | AK35: 0.05159505566 | AL35: 0.0563995488 | AM35: 0.04370710659 | AN35: 0.06241547904 | AS35: Subtotal | AV35: 0.04649138426 | AX35: =SUM(AX31:AX34) -> 0.04649138426 | AY35: =SUM(AY31:AY34) -> 0.05159505566 | BA35: 0.0514594784 | BC35: =SUM(BC31:BC34) -> 0.0514594784 | BD35: =SUM(BD31:BD34) -> 0.0563995488 | BE35: 0.03467764546 | BG35: =SUM(BG31:BG34) -> 0.03467764546 | BH35: =SUM(BH31:BH34) -> 0.04370710659 | BI35: 0.05849243447 | BK35: =SUM(BK31:BK34) -> 0.05849243447 | BL35: =SUM(BL31:BL34) -> 0.06241547904
C36: Materials and Services | D36: =(G$9-D$35)*F36 -> 2.845555 | E36: =D36/F$5 -> 0.0002845555 | F36: =AI44+AI45+AI46 -> 1 | G36: =IF(ProjectData!$B$12="United States",1,0.5) -> 0.5 | H36: 0 | I36: =(0.65/3.3) -> 0.196969697 | J36: 0.5 | K36: 0.5 | M36: =(M$13-H$13)/(I$13-H$13) -> -0.4285714286 | N36: =+I36-H36 -> 0.196969697 | O36: =H36+(N36*M36) -> -0.08441558442 | P36: =(M$13-I$13)/(J$13-I$13) -> -0.5 | Q36: =J36-I36 -> 0.303030303 | R36: =I36+(P36*Q36) -> 0.04545454545 | S36: =IF((M$13-J$13)/(K$13-J$13)>1,1,(M$13-J$13)/(K$13-J$13)) -> -3 | T36: =K36-J36 -> 0 | U36: =J36+(S36*T36) -> 0.5 | Z36: Other | AD36: Calculations | AI36: 1 | AJ36: 25 | AK36: 1 | AL36: 1 | AM36: 1 | AN36: 1 | AS36: Subtotal | AV36: 1 | AX36: =AX35+AX29+AX23 -> 1 | AY36: =AY35+AY29+AY23 -> 1 | BA36: 1 | BC36: =BC35+BC29+BC23 -> 1 | BD36: =BD35+BD29+BD23 -> 1 | BE36: 1 | BG36: =BG35+BG29+BG23 -> 1 | BH36: =BH35+BH29+BH23 -> 1 | BI36: 1 | BK36: =BK35+BK29+BK23 -> 1 | BL36: =BL35+BL29+BL23 -> 1
C37: Subtotal | D37: =D36+D35 -> 3.605555 | E37: =E36+E35 -> 0.0003605555 | AA37: Percentage | AB37: Cost | AD37: Percentage | AJ37: 26 | AS37: Sales Tax (Materials & Equipment Purchases) | AX37: =AX36-AX29 -> 0.9010821612 | BC37: =BC36-BC29 -> 0.9124093985 | BG37: =BG36-BG29 -> 0.7934097717 | BK37: =BK36-BK29 -> 0.9371462875
C38: Sales Tax (Materials & Equipment Purchases) | D38: =D36*(2.1/3.3)*D61 -> 0.1358105795 | E38: =D38/F$5 -> 1.358105795e-05 | G38: 1 | Z38: Labor | AA38: =AB38/AA$34 -> 0.32 | AB38: =AB34*(Z43*10) -> 3200 | AD38: =IF(ProjectData!B$24="Y",DefaultData!AA25,DefaultData!AA38) -> 0.32 | AJ38: 27 | AS38: Total
C39: Total | D39: =D38+D37 -> 3.74136558 | E39: =E38+E37 -> 0.000374136558 | Z39: Fuel | AA39: =AB39/AA$34 -> 0.35 | AB39: =AA35 -> 3500 | AD39: =IF(ProjectData!B$24="Y",DefaultData!AA26,DefaultData!AA39) -> 0.35 | AJ39: 28 | AS39: Hydro System Annual Operating and Maintenance Costs
Z40: Other | AA40: =1-(AA38+AA39) -> 0.33 | AB40: =AA40*AA34 -> 3300 | AD40: =IF(ProjectData!B$24="Y",DefaultData!AA27,DefaultData!AA40) -> 0.33 | AJ40: 29 | AS40: Labor
C41: Other Parameters | Z41: Total | AB41: =SUM(AB38:AB40) -> 10000 | AI41: =HLOOKUP(AI$12,AK$12:AP$48,AJ41) -> 0.2107858568 | AJ41: 30 | AK41: =AX41 -> 0.2107858568 | AL41: =BC41 -> 0.2268077849 | AM41: =BG41 -> 0.1894149446 | AN41: =BK41 -> 0.399694367 | AS41: Technicians/Personnel | AV41: 0.2107858568 | AW41: 1 | AX41: =AV41*AW$13^AW41 -> 0.2107858568 | BA41: 0.2268077849 | BB41: =BB$11 -> 1 | BC41: =BA41*BB$13^BB41 -> 0.2268077849 | BE41: 0.1894149446 | BF41: =BF$11 -> 1 | BG41: =BE41*BF$13^BF41 -> 0.1894149446 | BI41: 0.399694367 | BJ41: =BJ$11 -> 1 | BK41: =BI41*BJ$13^BJ41 -> 0.399694367
C42: Financial Parameters | F42: Local Share | Z42: Employer Cost | AA42: Wage per hour | AB42: Employer Ben Costs | AD42: Earnings per year (incl empl costs) | AI42: =HLOOKUP(AI$12,AK$12:AP$48,AJ42) -> 0 | AJ42: 31 | AS42: Subtotal
C43: Debt Financing | Z43: =AA43+AB43 -> 80 | AA43: =AC34 -> 64.21911925 | AB43: =AA43*Calculations!K29 -> 15.78088075 | AD43: =Z43*40*52 -> 166400 | AJ43: 32 | AS43: Materials and Services
C44: Percentage financed | D44: 0.2 | F44: =IF(ProjectData!$B$12="United States",1,0) -> 0 | Z44: Calculation | AI44: =HLOOKUP(AI$12,AK$12:AP$48,AJ44) -> 0.6913765504 | AJ44: 33 | AK44: =AY44 -> 0.6913765504 | AL44: =BD44 -> 0.689289829 | AM44: =BH44 -> 0.6505593639 | AN44: =BL44 -> 0.7397979094 | AS44: Replacement Parts + consumables | AV44: 0.5456441519 | AW44: 1 | AX44: =AV44*AW$13^AW44 -> 0.5456441519 | AY44: =AX44/AX$49 -> 0.6913765504 | BA44: 0.5329535298 | BB44: =BB$11 -> 1 | BC44: =BA44*BB$13^BB44 -> 0.5329535298 | BD44: =BC44/BC$49 -> 0.689289829 | BE44: 0.527333698 | BF44: =BF$11 -> 1 | BG44: =BE44*BF$13^BF44 -> 0.527333698 | BH44: =BG44/BG$49 -> 0.6505593639 | BI44: 0.4441048523 | BJ44: =BJ$11 -> 1 | BK44: =BI44*BJ$13^BJ44 -> 0.4441048523 | BL44: =BK44/BK$49 -> 0.7397979094
C45: Years financed (term) | D45: 20 | Z45: =IF(ProjectData!$B24="y",DefaultData!Z30,Z43) -> 80 | AA45: =IF(ProjectData!$B24="y",DefaultData!AA30,AA43) -> 64.21911925 | AB45: =IF(ProjectData!$B24="y",DefaultData!AB30,AB43) -> 15.78088075 | AD45: =Z45*40*52 -> 166400 | AI45: =HLOOKUP(AI$12,AK$12:AP$48,AJ45) -> 0.04217103518 | AJ45: 34 | AK45: =AY45 -> 0.04217103518 | AL45: =BD45 -> 0.04631675644 | AM45: =BH45 -> 0.03689634127 | AN45: =BL45 -> 0.03698989547 | AS45: Facilities | AV45: 0.03328197739 | AW45: 1 | AX45: =AV45*AW$13^AW45 -> 0.03328197739 | AY45: =AX45/AX$49 -> 0.04217103518 | BA45: 0.03581175551 | BB45: =BB$11 -> 1 | BC45: =BA45*BB$13^BB45 -> 0.03581175551 | BD45: =BC45/BC$49 -> 0.04631675644 | BE45: 0.02990762283 | BF45: =BF$11 -> 1 | BG45: =BE45*BF$13^BF45 -> 0.02990762283 | BH45: =BG45/BG$49 -> 0.03689634127 | BI45: 0.02220524261 | BJ45: =BJ$11 -> 1 | BK45: =BI45*BJ$13^BJ45 -> 0.02220524261 | BL45: =BK45/BK$49 -> 0.03698989547
C46: Interest rate | D46: 0.1 | AI46: =HLOOKUP(AI$12,AK$12:AP$48,AJ46) -> 0.2664524144 | AJ46: 35 | AK46: =AY46 -> 0.2664524144 | AL46: =BD46 -> 0.2643934145 | AM46: =BH46 -> 0.3125442948 | AN46: =BL46 -> 0.2232121951 | AS46: Insurance | AV46: 0.2102880139 | AW46: 1 | AX46: =AV46*AW$13^AW46 -> 0.2102880139 | AY46: =AX46/AX$49 -> 0.2664524144 | BA46: 0.2044269298 | BB46: =BB$11 -> 1 | BC46: =BA46*BB$13^BB46 -> 0.2044269298 | BD46: =BC46/BC$49 -> 0.2643934145 | BE46: 0.2533437345 | BF46: =BF$11 -> 1 | BG46: =BE46*BF$13^BF46 -> 0.2533437345 | BH46: =BG46/BG$49 -> 0.3125442948 | BI46: 0.1339955381 | BJ46: =BJ$11 -> 1 | BK46: =BI46*BJ$13^BJ46 -> 0.1339955381 | BL46: =BK46/BK$49 -> 0.2232121951
C47: Average Annual Payment (Interest and Principal) million$ | D47: =Calculations!F186 -> 1.0314915 | Z47: O&M Default | AI47: =HLOOKUP(AI$12,AK$12:AP$48,AJ47) -> 1 | AJ47: 36 | AK47: =AY47 -> 1 | AL47: =BD47 -> 1 | AM47: =BH47 -> 1 | AN47: =BL47 -> 1 | AS47: Subtotal | AV47: 0.7892141432 | AX47: =SUM(AX44:AX46) -> 0.7892141432 | AY47: =SUM(AY44:AY46) -> 1 | BA47: 0.7731922151 | BC47: =SUM(BC44:BC46) -> 0.7731922151 | BD47: =SUM(BD44:BD46) -> 1 | BE47: 0.8105850554 | BG47: =SUM(BG44:BG46) -> 0.8105850554 | BH47: =SUM(BH44:BH46) -> 1 | BI47: 0.600305633 | BK47: =SUM(BK44:BK46) -> 0.600305633 | BL47: =SUM(BL44:BL46) -> 1
C48: Equity Financing/Repayment | F48: Local Share | Z48: Employer Cost | AA48: Wage per hour | AB48: Employer Ben Costs | AD48: Earnings per year (incl empl costs) | AI48: =HLOOKUP(AI$12,AK$12:AP$48,AJ48) -> 0.06816180502 | AJ48: 37 | AK48: =AK50/AK13 -> 0.06816180502 | AL48: =AL50/AL13 -> 0.07337585127 | AM48: =AM50/AM13 -> 0.05920809539 | AN48: =AN50/AN13 -> 0.05776693587 | AS48: Total | AV48: 1 | AX48: =AX47+AX41 -> 1 | BA48: 1 | BC48: =BC47+BC41 -> 1 | BE48: 1 | BG48: =BG47+BG41 -> 1 | BI48: 1 | BK48: =BK47+BK41 -> 1
C49: Percentage equity | D49: =1-D44 -> 0.8 | Z49: =AA49+AB49 -> 38.46153846 | AA49: =G104 -> 30.87457656 | AB49: =H104*AA49 -> 7.586961898 | AD49: =Z49*40*52 -> 80000 | AE49: =AA49*40*52 -> 64219.11925 | AX49: =AX47 -> 0.7892141432 | BC49: =BC47 -> 0.7731922151 | BG49: =BG47 -> 0.8105850554 | BK49: =BK47 -> 0.600305633
C50: Individual Investors (percent of equity) | D50: 0 | F50: 1 | Z50: User Defined | AK50: 360.5555 | AL50: 335.0855 | AM50: 401.2355 | AN50: 225.17205
C51: Corporate Investors (percent of equity) | D51: =1-D50 -> 1 | F51: =IF(ProjectData!$B$12="United States",1,0) -> 0 | Z51: Employer Cost | AA51: Wage per hour | AB51: Employer Ben Costs | AD51: Earnings per year (incl empl costs)
C52: Return on equity | D52: 0.12 | Z52: =AA52+AB52 -> 38.46153846 | AA52: =AA49 -> 30.87457656 | AB52: =AB49 -> 7.586961898 | AD52: =Z52*40*52 -> 80000
C53: Repayment term (years) | D53: 10
C54: Tax Parameters | Z54: Calculation | AA54: Wage per hour | AB54: Employer Ben Costs | AD54: Earnings per year (incl empl costs)
C55: Local Property Tax (percent of taxable value) | D55: 0 | Z55: =IF(ProjectData!$B24="y",DefaultData!Z49,DefaultData!Z52) -> 38.46153846 | AA55: =IF(ProjectData!$B24="y",DefaultData!AA49,DefaultData!AA52) -> 30.87457656 | AB55: =IF(ProjectData!$B24="y",DefaultData!AB49,DefaultData!AB52) -> 7.586961898 | AD55: =IF(ProjectData!$B24="y",DefaultData!AD49,DefaultData!AD52) -> 80000 | CO55: Simple Avg Cost
C56: Assessed Value (percent of construction cost) | D56: 1 | Y56: =ProjectData!B$12 -> California | AF56: System Size (kW) | AJ56: Alabama | AK56: Alaska | AL56: Arizona | AM56: Arkansas | AN56: California | AO56: Colorado | AP56: Connecticut | AQ56: Delaware | AR56: District of Columbia | AS56: Florida | AT56: Georgia | AU56: Hawaii | AV56: Idaho | AW56: Illinois | AX56: Indiana | AY56: Iowa | AZ56: Kansas | BA56: Kentucky | BB56: Louisiana | BC56: Maine | BD56: Maryland | BE56: Massachusetts | BF56: Michigan | BG56: Minnesota | BH56: Mississippi | BI56: Missouri | BJ56: Montana | BK56: MyCounty | BL56: MyRegion | BM56: Nebraska | BN56: Nevada | BO56: New Hampshire | BP56: New Jersey | BQ56: New Mexico | BR56: New York | BS56: North Carolina | BT56: North Dakota | BU56: Ohio | BV56: Oklahoma | BW56: Oregon | BX56: Pennsylvania | BY56: Rhode Island | BZ56: South Carolina | CA56: South Dakota | CB56: Tennessee | CC56: Texas | CD56: Utah | CE56: Vermont | CF56: Virginia | CG56: Washington | CH56: West Virginia | CI56: Wisconsin | CJ56: Wyoming | CK56: Avg. | CO56: =IF(AJ64<CN57,CO57,IF(AJ64<CN58,CO58,IF(AJ64<CN59,CO59,IF(AJ64<CN60,CO60,IF(AJ64<CN61,CO61,IF(AJ64<CN62,CO62,IF(AJ64<CN63,CO63,IF(AJ64<CN64,CO64,CO65))))))))*1000 -> 0 | CP56: System Size
C57: Taxable Value (percent of assessed value) | D57: 1 | Y57: =HLOOKUP(Y$56,AJ$56:CJ$60,AI57) -> Wave Power | AF57: 0 | AG57: 10 | AH57: 2 | AI57: 2 | AJ57: Wave Power | AK57: Wave Power | AL57: River Current | AM57: River Current | AN57: Wave Power | AO57: River Current | AP57: Wave Power | AQ57: Wave Power | AR57: River Current | AS57: Wave Power | AT57: Wave Power | AU57: Wave Power | AV57: River Current | AW57: Wave Power | AX57: Wave Power | AY57: River Current | AZ57: River Current | BA57: River Current | BB57: Wave Power | BC57: Wave Power | BD57: River Current | BE57: Wave Power | BF57: Wave Power | BG57: River Current | BH57: Wave Power | BI57: River Current | BJ57: River Current | BK57: Wave Power | BL57: Wave Power | BM57: River Current | BN57: River Current | BO57: Wave Power | BP57: Wave Power | BQ57: River Current | BR57: Wave Power | BS57: Wave Power | BT57: River Current | BU57: Wave Power | BV57: River Current | BW57: Wave Power | BX57: Wave Power | BY57: Wave Power | BZ57: Wave Power | CA57: River Current | CB57: River Current | CC57: Wave Power | CD57: River Current | CE57: River Current | CF57: Wave Power | CG57: Wave Power | CH57: River Current | CI57: Wave Power | CJ57: River Current | CN57: 2 | CO57: 0 | CP57: <2 kW
C58: Taxable Value ( million$ - if applicable) | D58: =+D30*D56*D57 -> 52.897 | Y58: =HLOOKUP(Y$56,AJ$56:CJ$60,AI58) -> Tidal Power | AF58: 10 | AG58: 100 | AH58: =AH57+1 -> 3 | AI58: 3 | AJ58: Tidal Power | AK58: Tidal Power | AN58: Tidal Power | AP58: Tidal Power | AQ58: Tidal Power | AS58: Tidal Power | AT58: Tidal Power | AU58: Tidal Power | AW58: Tidal Power | AX58: Tidal Power | BB58: Tidal Power | BC58: Tidal Power | BE58: Tidal Power | BF58: Tidal Power | BH58: Tidal Power | BK58: Tidal Power | BL58: Tidal Power | BO58: Tidal Power | BP58: Tidal Power | BR58: Tidal Power | BS58: Tidal Power | BU58: Tidal Power | BW58: Tidal Power | BX58: Tidal Power | BY58: Tidal Power | BZ58: Tidal Power | CC58: Tidal Power | CF58: Tidal Power | CG58: Tidal Power | CI58: Tidal Power | CN58: 5 | CO58: 0 | CP58: 2-5 kW
C59: Property Tax Exemption (percent of local taxes) | D59: =AJ75 -> 1 | Y59: =HLOOKUP(Y$56,AJ$56:CJ$60,AI59) -> Ocean Current | AF59: 100 | AG59: 500 | AH59: =AH58+1 -> 4 | AI59: 4 | AJ59: Ocean Current | AK59: Ocean Current | AN59: Ocean Current | AP59: Ocean Current | AQ59: Ocean Current | AS59: Ocean Current | AT59: Ocean Current | AU59: Ocean Current | AW59: Ocean Current | AX59: Ocean Current | BB59: Ocean Current | BC59: Ocean Current | BE59: Ocean Current | BF59: Ocean Current | BH59: Ocean Current | BK59: Ocean Current | BL59: Ocean Current | BO59: Ocean Current | BP59: Ocean Current | BR59: Ocean Current | BS59: Ocean Current | BU59: Ocean Current | BW59: Ocean Current | BX59: Ocean Current | BY59: Ocean Current | BZ59: Ocean Current | CC59: Ocean Current | CF59: Ocean Current | CG59: Ocean Current | CI59: Ocean Current | CN59: 10 | CO59: 0 | CP59: 5-10 kW
C60: Local Property Taxes | D60: =+D55*D58*(1-D59) -> 0 | F60: 1 | Y60: =HLOOKUP(Y$56,AJ$56:CJ$60,AI60) -> River Current | AF60: 500 | AH60: 5 | AI60: 5 | AJ60: River Current | AK60: River Current | AN60: River Current | AP60: River Current | AQ60: River Current | AS60: River Current | AT60: River Current | AU60: River Current | AW60: River Current | AX60: River Current | BB60: River Current | BC60: River Current | BE60: River Current | BF60: River Current | BH60: River Current | BK60: River Current | BL60: River Current | BO60: River Current | BP60: River Current | BR60: River Current | BS60: River Current | BU60: River Current | BW60: River Current | BX60: River Current | BY60: River Current | BZ60: River Current | CC60: River Current | CF60: River Current | CG60: River Current | CI60: River Current | CN60: 30 | CO60: 0 | CP60: 10-30 kW
C61: Local Sales Tax Rate | D61: =AJ78 -> 0.075 | F61: 1 | AH61: 6 | CN61: 100 | CO61: 0 | CP61: 30-100 kW
C62: Lease Cost (if applicable) | D62: 0 | F62: 1 | AH62: 7 | CN62: 250 | CO62: 0 | CP62: 100-250 kW
AH63: 8 | AI63: State | AJ63: =ProjectData!B12 -> California | CN63: 500 | CO63: 0 | CP63: 250-500 kW
AH64: 9 | AI64: System Size | AJ64: =ProjectData!B17 -> 10 | CN64: 750 | CO64: 0 | CP64: 500-750 kW
AH65: 10 | AI65: Offset | AJ65: =IF($AJ64>$AF60,AH60,IF($AJ64>$AF59,AH59,IF($AJ64>$AF58,$AH58,$AH57))) -> 2 | CO65: 0 | CP65: >750 kW
AH66: 11
AH67: 12 | AI67: Base Cost | AK67: =IF($AJ64>$AF60,CK60,IF($AJ64>$AF59,CK59,IF($AJ64>$AF58,$CK58,$CK57)))*1000 -> 0
AH68: 13 | AI68: State Cost
AH69: 14
AH70: 15 | AI70: Sales Tax Rate | AJ70: 0.04 | AK70: 0 | AL70: 0.056 | AM70: 0.065 | AN70: 0.075 | AO70: 0.029 | AP70: 0.0635 | AQ70: 0 | AR70: 0.0575 | AS70: 0.06 | AT70: 0.04 | AU70: 0.04 | AV70: 0.06 | AW70: 0.0625 | AX70: 0.07 | AY70: 0.06 | AZ70: 0.065 | BA70: 0.06 | BB70: 0.05 | BC70: 0.055 | BD70: 0.06 | BE70: 0.0625 | BF70: 0.06 | BG70: 0.06875 | BH70: 0.07 | BI70: 0.04225 | BJ70: 0 | BK70: ='User Add-in Location'!B6 -> 0 | BL70: ='User Add-in Location'!B6 -> 0 | BM70: 0.055 | BN70: 0.0685 | BO70: 0 | BP70: 0.07 | BQ70: 0.05125 | BR70: 0.04 | BS70: 0.0475 | BT70: 0.05 | BU70: 0.0575 | BV70: 0.045 | BW70: 0 | BX70: 0.06 | BY70: 0.07 | BZ70: 0.06 | CA70: 0.045 | CB70: 0.07 | CC70: 0.0625 | CD70: 0.047 | CE70: 0.06 | CF70: 0.043 | CG70: 0.065 | CH70: 0.06 | CI70: 0.05 | CJ70: 0.04 | CK70: 0.0515
AH71: 16
AH72: 17 | AI72: PropertyTax Exemption
AH73: 18 | AI73: Rate | AJ73: 1 | AK73: 1 | AL73: 1 | AM73: 1 | AN73: 1 | AO73: 1 | AP73: 1 | AQ73: 1 | AR73: 1 | AS73: 1 | AT73: 1 | AU73: 1 | AV73: 1 | AW73: 1 | AX73: 1 | AY73: 1 | AZ73: 1 | BA73: 1 | BB73: 1 | BC73: 1 | BD73: 1 | BE73: 1 | BF73: 1 | BG73: 1 | BH73: 1 | BI73: 1 | BJ73: 1 | BK73: 1 | BL73: 1 | BM73: 1 | BN73: 1 | BO73: 1 | BP73: 1 | BQ73: 1 | BR73: 1 | BS73: 1 | BT73: 1 | BU73: 1 | BV73: 1 | BW73: 1 | BX73: 1 | BY73: 1 | BZ73: 1 | CA73: 1 | CB73: 1 | CC73: 1 | CD73: 1 | CE73: 1 | CF73: 1 | CG73: 1 | CH73: 1 | CI73: 1 | CJ73: 1
AI75: Prop Tax Exemption | AJ75: =HLOOKUP(AJ$63,AJ$56:CJ$73,AJ76) -> 1 | AK75: Tax Rate | AL75: =1-AJ75 -> 0
AI76: Offset | AJ76: =AH73 -> 18
AI78: Sales Tax Rate | AJ78: =HLOOKUP(AJ$63,AJ$56:CJ$73,AJ79) -> 0.075 | AK78: =AJ78 -> 0.075
AI79: Offset | AJ79: =$AH70 -> 15 | AK79: =$AH70 -> 15
C81: Margins
D82: Agriculture | E82: Mining | F82: Construction | G82: Other Manufacturing | H82: Fabricated Metals | I82: Machinery | J82: Electrical Equipment | K82: TCPU | L82: Wholesale Trade | M82: Retail Trade | N82: FIRE | O82: Other Services | P82: Professional Services | Q82: Government | R82: Total
C83: Agriculture | D83: 0.583669 | E83: 0 | F83: 0 | G83: 0 | H83: 0 | I83: 0 | J83: 0 | K83: 0.051572 | L83: 0.07245 | M83: 0.292309 | N83: 0 | O83: 0 | P83: 0 | Q83: 0 | R83: =SUM(D83:Q83) -> 1
C84: Mining | D84: 0 | E84: 0.362051 | F84: 0 | G84: 0 | H84: 0 | I84: 0 | J84: 0 | K84: =0.284423+0.346126 -> 0.630549 | L84: 0.0074 | M84: 0 | N84: 0 | O84: 0 | P84: 0 | Q84: 0 | R84: =SUM(D84:Q84) -> 1
C85: Construction | D85: 0 | E85: 0 | F85: 1 | G85: 0 | H85: 0 | I85: 0 | J85: 0 | K85: 0 | L85: 0 | M85: 0 | N85: 0 | O85: 0 | P85: 0 | Q85: 0 | R85: 1
C86: Manufacturing | D86: 0 | E86: 0 | F86: 0 | G86: 0.558412 | H86: 0 | I86: 0 | J86: 0 | K86: 0.023014 | L86: =0.080398+0.338175 -> 0.418573 | M86: 0 | N86: 0 | O86: 0 | P86: 0 | Q86: 0 | R86: 0.999999
C87: Fabricated Metals | D87: 0 | E87: 0 | F87: 0 | G87: 0 | H87: 1 | I87: 0 | J87: 0 | K87: 0 | L87: 0 | M87: 0 | N87: 0 | O87: 0 | P87: 0 | Q87: 0 | R87: 1
C88: Machinery | D88: 0 | E88: 0 | F88: 0 | G88: 0 | H88: 0 | I88: 0.631251 | J88: 0 | K88: =0.000889 -> 0.000889 | L88: =0.1018+0.266059 -> 0.367859 | M88: 0 | N88: 0 | O88: 0 | P88: 0 | Q88: 0 | R88: 0.999999
C89: Electrical Equipment | D89: 0 | E89: 0 | F89: 0 | G89: 0 | H89: 0 | I89: 0 | J89: 0.512774 | K89: 0.012136 | L89: =0.075345+0.399745 -> 0.47509 | M89: 0 | N89: 0 | O89: 0 | P89: 0 | Q89: 0 | R89: 1
C90: TCPU | D90: 0 | E90: 0 | F90: 0 | G90: 0 | H90: 0 | I90: 0 | J90: 0 | K90: 1 | L90: 0 | M90: 0 | N90: 0 | O90: 0 | P90: 0 | Q90: 0 | R90: 1
C91: Wholesale Trade | D91: 0 | E91: 0 | F91: 0 | G91: 0 | H91: 0 | I91: 0 | J91: 0 | K91: 0 | L91: 1 | M91: 0 | N91: 0 | O91: 0 | P91: 0 | Q91: 0 | R91: 1
C92: Retail Trade | D92: 0 | E92: 0 | F92: 0 | G92: 0 | H92: 0 | I92: 0 | J92: 0 | K92: 0 | L92: =1-M92 -> 0.688714 | M92: 0.311286 | N92: 0 | O92: 0 | P92: 0 | Q92: 0 | R92: 1
C93: FIRE | D93: 0 | E93: 0 | F93: 0 | G93: 0 | H93: 0 | I93: 0 | J93: 0 | K93: 0 | L93: 0 | M93: 0 | N93: 1 | O93: 0 | P93: 0 | Q93: 0 | R93: 1
C94: Misc. Services | D94: 0 | E94: 0 | F94: 0 | G94: 0 | H94: 0 | I94: 0 | J94: 0 | K94: 0.042428 | L94: 0.092083 | M94: 0.361097 | N94: 0 | O94: 0.504392 | P94: 0 | Q94: 0 | R94: 1
C95: Professional Services | D95: 0 | E95: 0 | F95: 0 | G95: 0 | H95: 0 | I95: 0 | J95: 0 | K95: 0 | L95: 0 | M95: 0 | N95: 0 | O95: 0 | P95: 1 | Q95: 0 | R95: 1
C96: Government | D96: 0 | E96: 0 | F96: 0 | G96: 0 | H96: 0 | I96: 0 | J96: 0 | K96: 0 | L96: 0 | M96: 0 | N96: 0 | O96: 0 | P96: 0 | Q96: 1 | R96: 1
C100: Labor Parameters | J100: User Revised (per KW)
C101: Construction and Installation Labor | D101: Day Rate | E101: Fuel Cost | F101: Crew | G101: Wage Per Hour | H101: Employer Cost | J101: Cost Adj.
C102: Vessel | D102: 10000 | E102: 3500 | F102: 4 | G102: =64.2191192514833*J102 -> 64.21911925 | H102: =Calculations!K29 -> 0.2457349296 | J102: =ProjectData!B19/DefaultData!AI13 -> 1
C103: O&M Labor
C104: Operators/Personnel | G104: =30.8745765632131*J104 -> 30.87457656 | H104: =Calculations!K29 -> 0.2457349296 | J104: =ProjectData!B20/DefaultData!AI48 -> 1

Sheet Calculations
C1: Economic Impact Analysis for | E1: =ProjectData!B12 -> California | F1: =Project_Data -> Marine and Hydrokinetic Project Data
AB3: Detailed Hydro Project Data Costs | AC3: =IF(ProjectData!B$12="MyCounty",'User Add-in Location'!B$3,IF(ProjectData!B$12="MyRegion",'User Add-in Location'!B4,ProjectData!B$12)) -> California | AD3: =ProjectData!_xlnm.Print_Area -> 2011
C4: Project Construction Costs | R4: Cable Landing and Grid Interconnection
A5: Warning | C5: =DefaultData!C14 -> Installed Capital Costs | D5: Cost | E5: Local Share | G5: Local $ Spending | R5: Cable Landing | S5: =200000/1100000 -> 0.1818181818 | AB5: Construction Costs | AC5: Cost | AD5: Local Share
C6: =DefaultData!C15 -> Tidal Power | R6: Grid Interconnection | S6: =1-S5 -> 0.8181818182 | AB6: =C6 -> Tidal Power
A7: This Worksheet contains Data and Formulas that are an integral part of the JEDI model. | C7: =DefaultData!C16 -> Device | D7: =IF(ProjectData!$B$24="y",DefaultData!D16,ProjectData!B31) -> 36.29232121 | E7: =IF(ProjectData!$B$24="y",ProjectData!T31,ProjectData!E31) -> 0.25 | G7: =+E7*D7 -> 9.073080302 | AB7: Device | AC7: =D7 -> 36.29232121 | AD7: 0.25
C8: =DefaultData!C17 -> Underwater Electrical Collector System | D8: =IF(ProjectData!$B$24="y",DefaultData!D17,ProjectData!B32) -> 4.88397529 | E8: =IF(ProjectData!$B$24="y",ProjectData!T32,ProjectData!E32) -> 0 | G8: =+E8*D8 -> 0 | AB8: Underwater Electrical Collector System | AC8: 4.88397529 | AD8: 0
A9: Although the data and formulas are available for review they must not be changed. | C9: =DefaultData!C18 -> Underwater Transmission Cable | D9: =IF(ProjectData!$B$24="y",DefaultData!D18,ProjectData!B33) -> 0.7848685382 | E9: =IF(ProjectData!$B$24="y",ProjectData!T33,ProjectData!E33) -> 0 | G9: =+E9*D9 -> 0 | R9: O&M Vessel and Equip | AB9: Underwater Transmission Cable | AC9: 0.7848685382 | AD9: 0
C10: =DefaultData!C19 -> Cable Landing and Grid Interconnection | D10: =IF(ProjectData!$B$24="y",DefaultData!D19,ProjectData!B34) -> 1.151140523 | E10: =IF(ProjectData!$B$24="y",ProjectData!T34,ProjectData!E34) -> 0 | G10: =+E10*D10 -> 0 | R10: Vessel - tug purchase | S10: 0.5 | W10: Cable Landing | X10: Grid Interconnection | AB10: Cable Landing and Grid Interconnection | AC10: 1.151140523 | AD10: 0
C11: =DefaultData!C20 -> Balance of Plant | D11: =IF(ProjectData!$B$24="y",DefaultData!D20,ProjectData!B35) -> 2.092982769 | E11: =IF(ProjectData!$B$24="y",ProjectData!T35,ProjectData!E35) -> 0.75 | G11: =+E11*D11 -> 1.569737076 | R11: Tug conversion | S11: 0.25 | W11: =G10*S5 -> 0 | X11: =G10*S6 -> 0 | AB11: Balance of Plant | AC11: 2.092982769 | AD11: 0.75
C12: =DefaultData!C21 -> Subtotal | D12: =SUM(D7:D11) -> 45.20528833 | G12: =SUM(G7:G11) -> 10.64281738 | R12: Shore upgrades (contingency) cranes and modifications | S12: 0.25 | W12: vessel | X12: modifications | Y12: dock upgrade | AB12: Subtotal | AC12: =D12 -> 45.20528833
A13: Any changes to the data or formulas will impact the analysis and may invalidate the model results. | C13: =DefaultData!C22 -> Installation/Labor | W13: =$G11*$S10 -> 0.7848685382 | X13: =$G11*$S11 -> 0.3924342691 | Y13: =$G11*$S12 -> 0.3924342691 | AB13: Installation/Labor | AC13: 0 | AD13: =E13 -> 0
C14: =DefaultData!C23 -> Mooring and Device Installation | D14: =IF(ProjectData!$B$24="y",DefaultData!D23,ProjectData!B38) -> 2.616228461 | E14: =IF(ProjectData!$B$24="y",ProjectData!T38,ProjectData!E38) -> 0.25 | G14: =+E14*D14 -> 0.6540571152 | AB14: Mooring and Device Installation | AC14: 2.616228461 | AD14: 0.25
C15: =DefaultData!C24 -> Underwater Cable Installation | D15: =IF(ProjectData!$B$24="y",DefaultData!D24,ProjectData!B39) -> 2.092982769 | E15: =IF(ProjectData!$B$24="y",ProjectData!T39,ProjectData!E39) -> 0.25 | G15: =+E15*D15 -> 0.5232456921 | R15: Overhead/Other | W15: Vessel days | X15: Fuel | Y15: Labor | Z15: Overhead/Other | AB15: Underwater Cable Installation | AC15: 2.092982769 | AD15: 0.25
C16: =DefaultData!C25 -> Cable Landing and Grid Connection | D16: =IF(ProjectData!$B$24="y",DefaultData!D25,ProjectData!B40) -> 0.5232456921 | E16: =IF(ProjectData!$B$24="y",ProjectData!T40,ProjectData!E40) -> 0.25 | G16: =+E16*D16 -> 0.130811423 | R16: Wholesale/Mfg. | S16: 0.2206979632 | W16: =G14/DefaultData!AD$34 -> 6.540571152e-05 | X16: =$G14*DefaultData!$AD$39 -> 0.2289199903 | Y16: =$G14*DefaultData!$AD$38 -> 0.2092982769 | Z16: =$G14*DefaultData!$AD$40 -> 0.215838848 | AB16: Cable Landing and Grid Connection | AC16: 0.5232456921 | AD16: 0.25
C17: =DefaultData!C27 -> Subtotal | D17: =SUM(D14:D16) -> 5.232456921 | G17: =SUM(G14:G16) -> 1.30811423 | R17: Misc. Services | S17: 0.2054499667 | W17: =G15/DefaultData!AD$34 -> 5.232456921e-05 | X17: =$G15*DefaultData!$AD$39 -> 0.1831359922 | Y17: =$G15*DefaultData!$AD$38 -> 0.1674386215 | Z17: =$G15*DefaultData!$AD$40 -> 0.1726710784 | AB17: Subtotal | AC17: 5.232456921 | AD17: 0
C18: =DefaultData!C28 -> Permitting Cost | D18: =IF(ProjectData!$B$24="y",DefaultData!D28,ProjectData!B42) -> 2.459254753 | E18: =IF(ProjectData!$B$24="y",ProjectData!T42,ProjectData!E42) -> 0.75 | G18: =+E18*D18 -> 1.844441065 | R18: Prof Services | W18: =G16/DefaultData!AD$34 -> 1.30811423e-05 | X18: =$G16*DefaultData!$AD$39 -> 0.04578399806 | Y18: =$G16*DefaultData!$AD$38 -> 0.04185965537 | Z18: =$G16*DefaultData!$AD$40 -> 0.0431677696 | AB18: Permitting Cost | AC18: 2.459254753 | AD18: 0.75
C19: Subtotal | D19: =D18+D17+D12 -> 52.897 | G19: =G18+G17+G12 -> 13.79537267 | R19: Other | S19: 0.5738520701 | W19: =SUM(W16:W18) -> 0.000130811423 | X19: =SUM(X16:X18) -> 0.4578399806 | Y19: =SUM(Y16:Y18) -> 0.4185965537 | Z19: =SUM(Z16:Z18) -> 0.431677696 | AB19: Subtotal | AC19: =AC18+AC17+AC12 -> 52.897
C20: Sales Tax (Materials & Equipment Purchases) | D20: =IF(ProjectData!$B$24="y",DefaultData!$D31,ProjectData!B44) -> 3.390396624 | E20: =IF(ProjectData!$B$24="y",ProjectData!T44,ProjectData!E44) -> 1 | G20: =+E20*D20 -> 3.390396624 | AB20: Sales Tax (Materials & Equipment Purchases) | AC20: =D20 -> 3.390396624 | AD20: =E20 -> 1
C21: Total | D21: =D20+D19 -> 56.28739662 | G21: =G20+G19 -> 17.1857693 | AB21: Total | AC21: =AC20+AC19 -> 56.28739662
A22: To view the data and formulas simply scroll over to the adjacent columns to the right.
AB23: =C63 -> Annualized Operating and Maintenance Costs
AC24: Cost | AD24: Local Share
M25: O&M | AB25: =C66 -> Labor | AC25: 0.76 | AD25: 1
J26: Payroll expense | K26: Default | M26: User Revised | AB26: Materials and Services | AC26: 2.845555 | AD26: 0.5
J27: Govt | K27: 0.07118694551 | M27: =K27 -> 0.07118694551 | AB27: =C68 -> Subtotal | AC27: 3.605555
J28: Health/Ins/Misc | K28: 0.1745479841 | M28: =K28 -> 0.1745479841 | AB28: Sales Tax (Materials & Equipment Purchases) | AC28: 0.1358105795 | AD28: =E69 -> 1
J29: Total | K29: =K28+K27 -> 0.2457349296 | M29: =M28+M27 -> 0.2457349296 | AB29: Average Annual Debt Payment (Interest and Principal) | AC29: 1.0314915 | AD29: 0
C30: Payroll Parameters | D30: Payroll Cost | E30: wage/hour | F30: Payroll expense | G30: Payroll expense | H30: Labor | AB30: Equity Payment - Individuals | AC30: 0 | AD30: 0
C31: Construction Labor | AB31: Equity Payment - Corporate | AC31: 6.934607264 | AD31: 0
C32: Day Vessel workers | D32: =DefaultData!Z45 -> 80 | E32: =DefaultData!AA45 -> 64.21911925 | F32: =DefaultData!AB45 -> 15.78088075 | H32: =(Y19*10^6)/(D32*(52*40)) -> 2.515604289 | AB32: Property Taxes | AC32: 0 | AD32: 1
C33: O&M Labor | AB33: Lease Cost | AC33: 0 | AD33: 1
C34: All workers | D34: =DefaultData!Z55 -> 38.46153846 | E34: =DefaultData!AA55 -> 30.87457656 | F34: =DefaultData!AB55 -> 7.586961898 | H34: =(G66*10^6)/(D34*(52*40)) -> 9.5 | AB34: Total | AC34: 11.70746434
H36: Eng.& Prof. Svcs. | I36: =I56 -> 14.10865286 | L36: Eng. & Prof. Svcs. | M36: =(M56)*$G61 -> 0.7586894731 | N36: =M46-H46 -> 0.1337775437 | P36: Eng. & Prof. Svcs. | Q36: =(Q56)*$G61 -> 1.933129233 | R36: =(Q58-Q36-Q46)*G61 -> 11.20150051 | U36: =(U56)*$G61 -> 1.226879118 | V36: =(U58-U36-U46)*G61 -> 4.962404642 | AB36: Other Parameters
H37: Other Sectors (not Construction) | I37: =I58-I46-I38-I36 -> 15.06745042 | L37: Other Sectors (not Construction) | M37: =((M58-M46)*G61)-M38-M36 -> 1.311777775 | P37: Other Sectors (not Construction) | Q37: =((Q58-Q46)*G61)-Q38-Q36 -> 3.880108906 | U37: =((U58-U46)*G61)-U38-U36 -> 2.543182642 | AD37: Local Share
H38: Manufacturing Jobs | I38: =I47+I48+I49+I50 -> 24.85906909 | L38: Mfg W&S Earnings | M38: =(M47+M48+M49+M50)*$G61 -> 1.644069182 | N38: =(N47+N48+N49+N50)*$G61 -> 1.128051669 | P38: Mfg Output | Q38: =(Q47+Q48+Q49+Q50)*$G61 -> 7.171098515 | R38: =(R47+R48+R49+R50)*$G61 -> 3.898420028 | U38: =(U47+U48+U49+U50)*$G61 -> 2.323837041 | V38: =(V47+V48+V49+V50)*$G61 -> 1.998824165 | AB38: Financial Parameters
AB39: =DefaultData!C43 -> Debt Financing | AG39: Local Economic Impacts - Summary Results
C40: Year | D40: =+ProjectData!B21 -> 2009 | F40: =CONCATENATE("Convert to ",Deflators!E4, " dollars") -> Convert to 2014 dollars | G40: =Deflators!F7 -> 1.0843 | M40: =M47+M48+M49+M50 -> 1.782664214 | AB40: =DefaultData!C44 -> Percentage financed | AC40: =IF(ProjectData!$B$24="y",DefaultData!D44,ProjectData!B59) -> 0.2 | AD40: =IF(ProjectData!$B$24="y",DefaultData!F44,ProjectData!D59) -> 0 | AH40: Jobs | AI40: Earnings | AJ40: Output | AK40: Value Added
C41: Installation Costs Local Demand - margined | M41: =Deflators!E4 -> 2014 | N41: Dollars | AB41: =DefaultData!C45 -> Years financed (term) | AC41: =IF(ProjectData!$B$24="y",DefaultData!D45,ProjectData!B60) -> 20 | AG41: During construction and installation period
D42: Demand | F42: Total | G42: Adj Demand | I42: Jobs | J42: Jobs | K42: Jobs | L42: Jobs | M42: Earnings | Q42: Output | U42: Value Added | AB42: =DefaultData!C46 -> Interest rate | AC42: =IF(ProjectData!$B$24="y",DefaultData!D46,ProjectData!B61) -> 0.1 | AG42: Project Development and Onsite Labor Impacts | AH42: =AH43+AH44 -> 18.87556697 | AI42: =AI43+AI44 -> 1.3006629 | AJ42: =AJ43+AJ44 -> 2.744160056 | AK42: =AK43+AK44 -> 1.817372908
I43: Direct | J43: Indirect | K43: Induced | L43: Total | M43: Direct | N43: Indirect | O43: Induced | P43: Total | Q43: Direct | R43: Indirect | S43: Induced | T43: Total | U43: Direct | V43: Indirect | W43: Induced | X43: Total | AB43: =DefaultData!C54 -> Tax Parameters | AG43: Construction and Installation Labor | AH43: =I46 -> 4.76691412 | AI43: =M46*G61 -> 0.541973427 | AJ43: =Q46*G61 -> 0.8110308228 | AK43: =U46*G61 -> 0.5904937899
C44: Agriculture | D44: =$E$130*DefaultData!D83+$E$131*DefaultData!D84+$E$132*DefaultData!D85+$E$133*DefaultData!D86+$E$134*DefaultData!D87+$E$135*DefaultData!D88+$E$136*DefaultData!D89+$E$137*DefaultData!D90+$E$138*DefaultData!D91+$E$139*DefaultData!D92+$E$140*DefaultData!D93+$E$141*DefaultData!D94+$E$142*DefaultData!D95+$E$143*DefaultData!D96 -> 0 | F44: =D44 -> 0 | G44: =F44*G$40 -> 0 | I44: =+G44*Multipliers!D213 -> 0 | J44: =+$G44*Multipliers!E213 -> 0 | K44: =+$G44*Multipliers!F213 -> 0 | L44: =+K44+J44+I44 -> 0 | M44: =+$G44*Multipliers!H213 -> 0 | N44: =+$G44*Multipliers!I213 -> 0 | O44: =+$G44*Multipliers!J213 -> 0 | P44: =+O44+N44+M44 -> 0 | Q44: =+$G44*Multipliers!L213 -> 0 | R44: =+$G44*Multipliers!M213 -> 0 | S44: =+$G44*Multipliers!N213 -> 0 | T44: =+S44+R44+Q44 -> 0 | U44: =+$G44*Multipliers!P213 -> 0 | V44: =+$G44*Multipliers!Q213 -> 0 | W44: =+$G44*Multipliers!R213 -> 0 | X44: =+W44+V44+U44 -> 0 | AB44: =DefaultData!C55 -> Local Property Tax (percent of taxable value) | AC44: =IF(ProjectData!$B$24="y",DefaultData!D55,ProjectData!B69) -> 0 | AG44: Construction and Installation Related Services | AH44: =I36 -> 14.10865286 | AI44: =M36 -> 0.7586894731 | AJ44: =Q36 -> 1.933129233 | AK44: =U36 -> 1.226879118
C45: Mining | D45: =$E$130*DefaultData!E83+$E$131*DefaultData!E84+$E$132*DefaultData!E85+$E$133*DefaultData!E86+$E$134*DefaultData!E87+$E$135*DefaultData!E88+$E$136*DefaultData!E89+$E$137*DefaultData!E90+$E$138*DefaultData!E91+$E$139*DefaultData!E92+$E$140*DefaultData!E93+$E$141*DefaultData!E94+$E$142*DefaultData!E95+$E$143*DefaultData!E96 -> 0 | F45: =D45 -> 0 | G45: =F45*G$40 -> 0 | I45: =+G45*Multipliers!D214 -> 0 | J45: =+$G45*Multipliers!E214 -> 0 | K45: =+$G45*Multipliers!F214 -> 0 | L45: =+K45+J45+I45 -> 0 | M45: =+$G45*Multipliers!H214 -> 0 | N45: =+$G45*Multipliers!I214 -> 0 | O45: =+$G45*Multipliers!J214 -> 0 | P45: =+O45+N45+M45 -> 0 | Q45: =+$G45*Multipliers!L214 -> 0 | R45: =+$G45*Multipliers!M214 -> 0 | S45: =+$G45*Multipliers!N214 -> 0 | T45: =+S45+R45+Q45 -> 0 | U45: =+$G45*Multipliers!P214 -> 0 | V45: =+$G45*Multipliers!Q214 -> 0 | W45: =+$G45*Multipliers!R214 -> 0 | X45: =+W45+V45+U45 -> 0 | AB45: =DefaultData!C56 -> Assessed Value (percent of construction cost) | AC45: =IF(ProjectData!$B$24="y",DefaultData!D56,ProjectData!B70) -> 1 | AG45: Equipment and Supply Chain Impacts | AH45: =I37+I38+J58 -> 74.86329177 | AI45: =((M37+M38+N61)) -> 5.214560814 | AJ45: =+((Q37+Q38+R61)) -> 18.16149954 | AK45: =+((U37+U38+V61)) -> 8.813697782
C46: Construction | D46: =$E$130*DefaultData!F83+$E$131*DefaultData!F84+$E$132*DefaultData!F85+$E$133*DefaultData!F86+$E$134*DefaultData!F87+$E$135*DefaultData!F88+$E$136*DefaultData!F89+$E$137*DefaultData!F90+$E$138*DefaultData!F91+$E$139*DefaultData!F92+$E$140*DefaultData!F93+$E$141*DefaultData!F94+$E$142*DefaultData!F95+$E$143*DefaultData!F96 -> 0.8110308228 | F46: 0.8110308228 | G46: 0.8794007212 | H46: =Y19*G40 -> 0.4538842432 | I46: =(H47*Multipliers!D215)+H32 -> 4.76691412 | J46: =+$G46*Multipliers!E215 -> 2.581984662 | K46: =+$G46*Multipliers!F215 -> 2.323320719 | L46: 9.6722195 | M46: =H46 +($H47*Multipliers!H215) -> 0.5876617869 | N46: =+$G46*Multipliers!I215 -> 0.1545465673 | O46: =+$G46*Multipliers!J215 -> 0.1378266502 | P46: 0.8800350044 | Q46: =+$G46*Multipliers!L215 -> 0.8794007212 | R46: =+$G46*Multipliers!M215 -> 0.4657697458 | S46: =+$G46*Multipliers!N215 -> 0.3880478567 | T46: 1.733218324 | U46: =H46+$H47*Multipliers!P215 -> 0.6402724163 | V46: =+$G46*Multipliers!Q215 -> 0.2662241725 | W46: =+$G46*Multipliers!R215 -> 0.2383004796 | X46: 1.144797068 | AB46: =DefaultData!C57 -> Taxable Value (percent of assessed value) | AC46: =IF(ProjectData!$B$24="y",DefaultData!D57,ProjectData!B71) -> 1 | AG46: Induced Impacts | AH46: =K58 -> 48.66390558 | AI46: =O61 -> 2.81434892 | AJ46: =S61 -> 7.925382118 | AK46: =W61 -> 4.866620882
C47: Manufacturing | D47: =$E$130*DefaultData!G83+$E$131*DefaultData!G84+$E$132*DefaultData!G85+$E$133*DefaultData!G86+$E$134*DefaultData!G87+$E$135*DefaultData!G88+$E$136*DefaultData!G89+$E$137*DefaultData!G90+$E$138*DefaultData!G91+$E$139*DefaultData!G92+$E$140*DefaultData!G93+$E$141*DefaultData!G94+$E$142*DefaultData!G95+$E$143*DefaultData!G96 -> 2.901413667 | F47: 2.901413667 | G47: 3.146002839 | H47: =G46-H46 -> 0.425516478 | I47: =+G47*Multipliers!D216 -> 5.584929677 | J47: =+$G47*Multipliers!E216 -> 6.740484881 | K47: =+$G47*Multipliers!F216 -> 5.573595498 | L47: 17.89901006 | M47: =+$G47*Multipliers!H216 -> 0.5354156653 | N47: =+$G47*Multipliers!I216 -> 0.4893961919 | O47: =+$G47*Multipliers!J216 -> 0.3296121001 | P47: 1.354423957 | Q47: =+$G47*Multipliers!L216 -> 3.146002839 | R47: =+$G47*Multipliers!M216 -> 1.681501023 | S47: =+$G47*Multipliers!N216 -> 0.9281880878 | T47: 5.755691951 | U47: =+$G47*Multipliers!P216 -> 0.9848454125 | V47: =+$G47*Multipliers!Q216 -> 0.8913737467 | W47: =+$G47*Multipliers!R216 -> 0.569963074 | X47: 2.446182233 | AB47: =DefaultData!C58 -> Taxable Value ( million$ - if applicable) | AC47: =IF(ProjectData!$B$24="y",DefaultData!D58,ProjectData!B72) -> 52.897 | AG47: Total Impacts (Direct, Indirect, Induced) | AH47: =AH46+AH45+AH42 -> 142.4027643 | AI47: =AI46+AI45+AI42 -> 9.329572634 | AJ47: =AJ46+AJ45+AJ42 -> 28.83104171 | AK47: =AK46+AK45+AK42 -> 15.49769157
C48: Fabricated Metals | D48: =$E$130*DefaultData!H83+$E$131*DefaultData!H84+$E$132*DefaultData!H85+$E$133*DefaultData!H86+$E$134*DefaultData!H87+$E$135*DefaultData!H88+$E$136*DefaultData!H89+$E$137*DefaultData!H90+$E$138*DefaultData!H91+$E$139*DefaultData!H92+$E$140*DefaultData!H93+$E$141*DefaultData!H94+$E$142*DefaultData!H95+$E$143*DefaultData!H96 -> 4.269684848 | F48: 4.269684848 | G48: 4.62961928 | I48: =+G48*Multipliers!D217 -> 19.27413942 | J48: =+$G48*Multipliers!E217 -> 10.3308831 | K48: =+$G48*Multipliers!F217 -> 10.95478074 | L48: 40.55980325 | M48: =+$G48*Multipliers!H217 -> 1.247248549 | N48: =+$G48*Multipliers!I217 -> 0.7337502324 | O48: =+$G48*Multipliers!J217 -> 0.6378990722 | P48: 2.618897854 | Q48: =+$G48*Multipliers!L217 -> 4.62961928 | R48: =+$G48*Multipliers!M217 -> 2.545555813 | S48: =+$G48*Multipliers!N217 -> 1.796399677 | T48: 8.971574771 | U48: =+$G48*Multipliers!P217 -> 1.534891092 | V48: =+$G48*Multipliers!Q217 -> 1.275951295 | W48: =+$G48*Multipliers!R217 -> 1.103080344 | X48: 3.91392273 | AB48: =DefaultData!C59 -> Property Tax Exemption (percent of local taxes) | AC48: =IF(ProjectData!$B$24="y",DefaultData!D59,ProjectData!B73) -> 1
C49: Machinery | D49: =$E$130*DefaultData!I83+$E$131*DefaultData!I84+$E$132*DefaultData!I85+$E$133*DefaultData!I86+$E$134*DefaultData!I87+$E$135*DefaultData!I88+$E$136*DefaultData!I89+$E$137*DefaultData!I90+$E$138*DefaultData!I91+$E$139*DefaultData!I92+$E$140*DefaultData!I93+$E$141*DefaultData!I94+$E$142*DefaultData!I95+$E$143*DefaultData!I96 -> 0 | F49: 0 | G49: 0 | I49: =+G49*Multipliers!D218 -> 0 | J49: =+$G49*Multipliers!E218 -> 0 | K49: =+$G49*Multipliers!F218 -> 0 | L49: 0 | M49: =+$G49*Multipliers!H218 -> 0 | N49: =+$G49*Multipliers!I218 -> 0 | O49: =+$G49*Multipliers!J218 -> 0 | P49: 0 | Q49: =+$G49*Multipliers!L218 -> 0 | R49: =+$G49*Multipliers!M218 -> 0 | S49: =+$G49*Multipliers!N218 -> 0 | T49: 0 | U49: =+$G49*Multipliers!P218 -> 0 | V49: =+$G49*Multipliers!Q218 -> 0 | W49: =+$G49*Multipliers!R218 -> 0 | X49: 0 | AB49: =DefaultData!C60 -> Local Property Taxes | AC49: =IF(ProjectData!$B$24="y",DefaultData!D60,ProjectData!B74) -> 0 | AD49: =IF(ProjectData!$B$24="y",DefaultData!F60,ProjectData!D74) -> 1 | AG49: During operating years (annual)
C50: Electrical Equipment | D50: =$E$130*DefaultData!J83+$E$131*DefaultData!J84+$E$132*DefaultData!J85+$E$133*DefaultData!J86+$E$134*DefaultData!J87+$E$135*DefaultData!J88+$E$136*DefaultData!J89+$E$137*DefaultData!J90+$E$138*DefaultData!J91+$E$139*DefaultData!J92+$E$140*DefaultData!J93+$E$141*DefaultData!J94+$E$142*DefaultData!J95+$E$143*DefaultData!J96 -> 0 | F50: 0 | G50: 0 | I50: =+G50*Multipliers!D219 -> 0 | J50: =+$G50*Multipliers!E219 -> 0 | K50: =+$G50*Multipliers!F219 -> 0 | L50: 0 | M50: =+$G50*Multipliers!H219 -> 0 | N50: =+$G50*Multipliers!I219 -> 0 | O50: =+$G50*Multipliers!J219 -> 0 | P50: 0 | Q50: =+$G50*Multipliers!L219 -> 0 | R50: =+$G50*Multipliers!M219 -> 0 | S50: =+$G50*Multipliers!N219 -> 0 | T50: 0 | U50: =+$G50*Multipliers!P219 -> 0 | V50: =+$G50*Multipliers!Q219 -> 0 | W50: =+$G50*Multipliers!R219 -> 0 | X50: 0 | AB50: =DefaultData!C61 -> Local Sales Tax Rate | AC50: =IF(ProjectData!$B$24="y",DefaultData!D61,ProjectData!B75) -> 0.075 | AD50: =IF(ProjectData!$B$24="y",DefaultData!G38,ProjectData!E44) -> 1 | AG50: Onsite Labor Impacts
C51: TCPU | D51: =$E$130*DefaultData!K83+$E$131*DefaultData!K84+$E$132*DefaultData!K85+$E$133*DefaultData!K86+$E$134*DefaultData!K87+$E$135*DefaultData!K88+$E$136*DefaultData!K89+$E$137*DefaultData!K90+$E$138*DefaultData!K91+$E$139*DefaultData!K92+$E$140*DefaultData!K93+$E$141*DefaultData!K94+$E$142*DefaultData!K95+$E$143*DefaultData!K96 -> 0.1300870529 | F51: 0.1300870529 | G51: 0.1410533914 | I51: =+G51*Multipliers!D220 -> 0.4517569292 | J51: =+$G51*Multipliers!E220 -> 0.3270155669 | K51: =+$G51*Multipliers!F220 -> 0.328875047 | L51: 1.107647543 | M51: =+$G51*Multipliers!H220 -> 0.03765259441 | N51: =+$G51*Multipliers!I220 -> 0.02261353032 | O51: =+$G51*Multipliers!J220 -> 0.01930913843 | P51: 0.07957526317 | Q51: =+$G51*Multipliers!L220 -> 0.1410533914 | R51: =+$G51*Multipliers!M220 -> 0.07072215183 | S51: =+$G51*Multipliers!N220 -> 0.05436762227 | T51: 0.2661431655 | U51: =+$G51*Multipliers!P220 -> 0.06153887622 | V51: =+$G51*Multipliers!Q220 -> 0.03966139601 | W51: =+$G51*Multipliers!R220 -> 0.03338650519 | X51: 0.1345867774 | AB51: =DefaultData!C62 -> Lease Cost (if applicable) | AC51: =IF(ProjectData!$B$24="y",DefaultData!D62,ProjectData!B76) -> 0 | AD51: =IF(ProjectData!$B$24="y",DefaultData!F62,ProjectData!D76) -> 1 | AG51: Hydro Project Labor Only | AH51: =L126 -> 9.5 | AI51: =P128 -> 0.7058979214 | AJ51: =T128 -> 0.7058979214 | AK51: =X128 -> 0.7058979214
C52: Wholesale Trade | D52: =$E$130*DefaultData!L83+$E$131*DefaultData!L84+$E$132*DefaultData!L85+$E$133*DefaultData!L86+$E$134*DefaultData!L87+$E$135*DefaultData!L88+$E$136*DefaultData!L89+$E$137*DefaultData!L90+$E$138*DefaultData!L91+$E$139*DefaultData!L92+$E$140*DefaultData!L93+$E$141*DefaultData!L94+$E$142*DefaultData!L95+$E$143*DefaultData!L96 -> 3.535623663 | F52: 3.535623663 | G52: 3.833676738 | I52: =+G52*Multipliers!D221 -> 12.94017972 | J52: =+$G52*Multipliers!E221 -> 7.957406111 | K52: =+$G52*Multipliers!F221 -> 9.004772679 | L52: 29.90235851 | M52: =+$G52*Multipliers!H221 -> 1.270089412 | N52: =+$G52*Multipliers!I221 -> 0.5743655617 | O52: =+$G52*Multipliers!J221 -> 0.5929474692 | P52: 2.437402443 | Q52: =+$G52*Multipliers!L221 -> 3.833676738 | R52: =+$G52*Multipliers!M221 -> 1.579341599 | S52: =+$G52*Multipliers!N221 -> 1.669721587 | T52: 7.082739925 | U52: =+$G52*Multipliers!P221 -> 2.538456125 | V52: =+$G52*Multipliers!Q221 -> 0.9880441645 | W52: =+$G52*Multipliers!R221 -> 1.025313206 | X52: 4.551813495 | AG52: Local Revenue and Supply Chain Impacts | AH52: =(L148-AH51)+M148 -> 9.711776173 | AI52: =((P149+Q149))-AI51 -> 0.6656643971 | AJ52: =((T149+U149))-AJ51 -> 2.391907389 | AK52: =((X149+Y149))-AK51 -> 1.319470164
C53: Retail Trade | D53: =$E$130*DefaultData!M83+$E$131*DefaultData!M84+$E$132*DefaultData!M85+$E$133*DefaultData!M86+$E$134*DefaultData!M87+$E$135*DefaultData!M88+$E$136*DefaultData!M89+$E$137*DefaultData!M90+$E$138*DefaultData!M91+$E$139*DefaultData!M92+$E$140*DefaultData!M93+$E$141*DefaultData!M94+$E$142*DefaultData!M95+$E$143*DefaultData!M96 -> 0.08945063811 | F53: 0.08945063811 | G53: 0.0969913269 | I53: =+G53*Multipliers!D222 -> 0.9935821797 | J53: =+$G53*Multipliers!E222 -> 0.1858641333 | K53: =+$G53*Multipliers!F222 -> 0.2788990666 | L53: 1.45834538 | M53: =+$G53*Multipliers!H222 -> 0.04054754709 | N53: =+$G53*Multipliers!I222 -> 0.01181144993 | O53: =+$G53*Multipliers!J222 -> 0.01679244283 | P53: 0.06915143985 | Q53: =+$G53*Multipliers!L222 -> 0.0969913269 | R53: =+$G53*Multipliers!M222 -> 0.03422796451 | S53: =+$G53*Multipliers!N222 -> 0.04728337997 | T53: 0.1785026714 | U53: =+$G53*Multipliers!P222 -> 0.06846438103 | V53: =+$G53*Multipliers!Q222 -> 0.02129339352 | W53: =+$G53*Multipliers!R222 -> 0.02903573765 | X53: 0.1187935122 | AG53: Induced Impacts | AH53: =N148 -> 5.8741967 | AI53: =R149 -> 0.3392686073 | AJ53: =V149 -> 0.955320634 | AK53: =Z149 -> 0.5866372761
C54: FIRE | D54: =$E$130*DefaultData!N83+$E$131*DefaultData!N84+$E$132*DefaultData!N85+$E$133*DefaultData!N86+$E$134*DefaultData!N87+$E$135*DefaultData!N88+$E$136*DefaultData!N89+$E$137*DefaultData!N90+$E$138*DefaultData!N91+$E$139*DefaultData!N92+$E$140*DefaultData!N93+$E$141*DefaultData!N94+$E$142*DefaultData!N95+$E$143*DefaultData!N96 -> 0 | F54: 0 | G54: 0 | I54: =+G54*Multipliers!D223 -> 0 | J54: =+$G54*Multipliers!E223 -> 0 | K54: =+$G54*Multipliers!F223 -> 0 | L54: 0 | M54: =+$G54*Multipliers!H223 -> 0 | N54: =+$G54*Multipliers!I223 -> 0 | O54: =+$G54*Multipliers!J223 -> 0 | P54: 0 | Q54: =+$G54*Multipliers!L223 -> 0 | R54: =+$G54*Multipliers!M223 -> 0 | S54: =+$G54*Multipliers!N223 -> 0 | T54: 0 | U54: =+$G54*Multipliers!P223 -> 0 | V54: =+$G54*Multipliers!Q223 -> 0 | W54: =+$G54*Multipliers!R223 -> 0 | X54: 0 | AG54: Total Impacts (Direct, Indirect, Induced) | AH54: =SUM(AH51:AH53) -> 25.08597287 | AI54: =SUM(AI51:AI53) -> 1.710830926 | AJ54: =SUM(AJ51:AJ53) -> 4.053125945 | AK54: =SUM(AK51:AK53) -> 2.612005362
C55: Misc. Services | D55: =$E$130*DefaultData!O83+$E$131*DefaultData!O84+$E$132*DefaultData!O85+$E$133*DefaultData!O86+$E$134*DefaultData!O87+$E$135*DefaultData!O88+$E$136*DefaultData!O89+$E$137*DefaultData!O90+$E$138*DefaultData!O91+$E$139*DefaultData!O92+$E$140*DefaultData!O93+$E$141*DefaultData!O94+$E$142*DefaultData!O95+$E$143*DefaultData!O96 -> 0.1249475522 | F55: 0.1249475522 | G55: 0.1354806308 | I55: =+G55*Multipliers!D224 -> 0.6819315912 | J55: =+$G55*Multipliers!E224 -> 0.2885113712 | K55: =+$G55*Multipliers!F224 -> 0.47467157 | L55: 1.445114532 | M55: =+$G55*Multipliers!H224 -> 0.07407108867 | N55: =+$G55*Multipliers!I224 -> 0.02234182464 | O55: =+$G55*Multipliers!J224 -> 0.03093367687 | P55: 0.1273465902 | Q55: =+$G55*Multipliers!L224 -> 0.1354806308 | R55: =+$G55*Multipliers!M224 -> 0.05749521419 | S55: =+$G55*Multipliers!N224 -> 0.08710276538 | T55: 0.2800786104 | U55: =+$G55*Multipliers!P224 -> 0.08911355728 | V55: =+$G55*Multipliers!Q224 -> 0.03629614794 | W55: =+$G55*Multipliers!R224 -> 0.0534877379 | X55: 0.1788974431
C56: Professional Services | D56: =$E$130*DefaultData!P83+$E$131*DefaultData!P84+$E$132*DefaultData!P85+$E$133*DefaultData!P86+$E$134*DefaultData!P87+$E$135*DefaultData!P88+$E$136*DefaultData!P89+$E$137*DefaultData!P90+$E$138*DefaultData!P91+$E$139*DefaultData!P92+$E$140*DefaultData!P93+$E$141*DefaultData!P94+$E$142*DefaultData!P95+$E$143*DefaultData!P96 -> 1.933129233 | F56: 1.933129233 | G56: 2.096092027 | I56: =+G56*Multipliers!D225 -> 14.10865286 | J56: =+$G56*Multipliers!E225 -> 4.745891442 | K56: =+$G56*Multipliers!F225 -> 6.060588606 | L56: 24.9151329 | M56: =+$G56*Multipliers!H225 -> 0.8226469957 | N56: =+$G56*Multipliers!I225 -> 0.3077809208 | O56: =+$G56*Multipliers!J225 -> 0.3627311018 | P56: 1.493159018 | Q56: =+$G56*Multipliers!L225 -> 2.096092027 | R56: =+$G56*Multipliers!M225 -> 0.8840736828 | S56: =+$G56*Multipliers!N225 -> 1.021376563 | T56: 4.001542273 | U56: =+$G56*Multipliers!P225 -> 1.330305028 | V56: =+$G56*Multipliers!Q225 -> 0.5378596348 | W56: =+$G56*Multipliers!R225 -> 0.6272027049 | X56: 2.495367368
C57: Government | D57: =$E$130*DefaultData!Q83+$E$131*DefaultData!Q84+$E$132*DefaultData!Q85+$E$133*DefaultData!Q86+$E$134*DefaultData!Q87+$E$135*DefaultData!Q88+$E$136*DefaultData!Q89+$E$137*DefaultData!Q90+$E$138*DefaultData!Q91+$E$139*DefaultData!Q92+$E$140*DefaultData!Q93+$E$141*DefaultData!Q94+$E$142*DefaultData!Q95+$E$143*DefaultData!Q96 -> 3.390396624 | F57: 3.390396624 | G57: 3.67620706 | I57: 0 | J57: =+$G57*Multipliers!E226 -> 1.778730995 | K57: =+$G57*Multipliers!F226 -> 13.66440166 | L57: 15.44313265 | M57: 0 | N57: =+$G57*Multipliers!I226 -> 0.1325171551 | O57: =+$G57*Multipliers!J226 -> 0.923546882 | P57: 1.056064037 | Q57: 0 | R57: =+$G57*Multipliers!M226 -> 0.3910025456 | S57: =+$G57*Multipliers!N226 -> 2.601004291 | T57: 2.992006837 | U57: 0 | V57: =+$G57*Multipliers!Q226 -> 0.2226791111 | W57: =+$G57*Multipliers!R226 -> 1.597107233 | X57: 1.819786344
C58: Total | D58: =SUM(D44:D57) -> 17.1857641 | F58: =SUM(F44:F57) -> 17.1857641 | G58: =SUM(G44:G57) -> 18.63452402 | I58: =SUM(I44:I57) -> 58.80208649 | J58: 34.93677226 | K58: 48.66390558 | L58: 142.4027643 | M58: 4.615333639 | N58: 2.449123434 | O58: 3.051598534 | P58: 10.11605561 | Q58: 14.95831696 | R58: 7.709689741 | S58: 8.593491831 | T58: 31.26149853 | U58: =SUM(U44:U57) -> 7.247886888 | V58: 4.279383062 | W58: 5.276877022 | X58: 16.80414697
F60: Inflator to | G60: =D40 -> 2009 | H60: Dollars
G61: =Deflators!F8 -> 0.9222539887 | M61: =M58*$G61 -> 4.256509858 | N61: 2.258713856 | O61: 2.81434892 | P61: 9.329572634 | Q61: 13.79536748 | R61: 7.110292115 | S61: 7.925382118 | T61: 28.83104171 | U61: =U58*$G61 -> 6.684392592 | V61: 3.946678098 | W61: 4.866620882 | X61: 15.49769157
C63: =DefaultData!C33 -> Annualized Operating and Maintenance Costs
D64: Cost | E64: Local Share | G64: Local $ Spending
C66: =DefaultData!C35 -> Labor | D66: =IF(ProjectData!$B$24="y",DefaultData!D35,ProjectData!B50) -> 0.76 | E66: =IF(ProjectData!$B$24="y",ProjectData!T$50,ProjectData!E$50) -> 1 | G66: =D66*E66 -> 0.76
C67: =DefaultData!C36 -> Materials and Services | D67: =IF(ProjectData!$B$24="y",DefaultData!D36,ProjectData!B51) -> 2.845555 | E67: =IF(ProjectData!$B$24="y",ProjectData!T$51,ProjectData!E$51) -> 0.5 | G67: =D67*E67 -> 1.4227775
C68: =DefaultData!C37 -> Subtotal | D68: =D66+D67 -> 3.605555 | G68: =G66+G67 -> 2.1827775
C69: =DefaultData!C38 -> Sales Tax (Materials & Equipment Purchases) | D69: =IF(ProjectData!$B$24="y",DefaultData!D38,ProjectData!B53) -> 0.1358105795 | E69: =IF(ProjectData!$B$24="y",ProjectData!T53,ProjectData!E53) -> 1 | G69: =D69*E69 -> 0.1358105795
C70: Average Annual Debt Payment (Interest and Principal) | D70: =IF(ProjectData!$B$24="y",F186,Calculations!F222) -> 1.0314915 | E70: =IF(ProjectData!$B$24="y",DefaultData!F44,ProjectData!D59) -> 0 | G70: 0 | H70: =IF(ProjectData!$B$24="y",Calculations!D186,D222)*E70 -> 0 | I70: Debt Pmt - Local share Avg Ann Interest
C71: Equity Payment - Individuals | D71: =IF(ProjectData!$B$24="y",K186,Calculations!K223) -> 0 | E71: =IF(ProjectData!$B$24="y",DefaultData!F45,ProjectData!D60) -> 0 | G71: 0 | H71: =IF(ProjectData!$B$24="y",Calculations!I186,I222)*E71 -> 0 | I71: Debt Pmt - Local share Avg Ann Interest
C72: Equity Payment - Corporate | D72: =IF(ProjectData!$B$24="y",P186,Calculations!P222) -> 6.934607264 | E72: =IF(ProjectData!$B$24="y",DefaultData!F46,ProjectData!D61) -> 0 | G72: 0 | H72: =IF(ProjectData!$B$24="y",Calculations!N186,N222)*E72 -> 0 | I72: Debt Pmt - Local share Avg Ann Interest
C73: Property Taxes | D73: =IF(ProjectData!$B$24="y",DefaultData!D60,ProjectData!B74) -> 0 | E73: =IF(ProjectData!$B$24="y",DefaultData!F60,ProjectData!D74) -> 1 | G73: 0
C74: Lease Cost | D74: =IF(ProjectData!$B$24="y",DefaultData!D62,ProjectData!B76) -> 0 | E74: =IF(ProjectData!$B$24="y",DefaultData!F62,ProjectData!D76) -> 1 | G74: 0
C75: Total | D75: =SUM(D68:D74) -> 11.70746434 | G75: =SUM(G68:G74) -> 2.31858808
C76: Total (without debt, equity, or property taxes) | D76: =D68 -> 3.605555 | E76: =D75-D76 -> 8.101909344 | G76: =G68 -> 2.1827775 | H76: =G75-G76 -> 0.1358105795
C77: Total cost per KW | D77: =D76/(ProjectData!B17*1000) -> 0.0003605555
L83: Without Plant Employees
C84: Annual Operations and Maintenance Costs Local Demand - margined | O84: =M41 -> 2014 | P84: =N41 -> Dollars
D85: Demand | G85: Total | H85: Adj Demand - Million | L85: Jobs | P85: Earnings | T85: Output | X85: Value Added
H86: =M41 -> 2014 | I86: Dollars | L86: Direct | M86: Indirect | N86: Induced | O86: Total | P86: Direct | Q86: Indirect | R86: Induced | S86: Total | T86: Direct | U86: Indirect | V86: Induced | W86: Total | X86: Direct | Y86: Indirect | Z86: Induced | AA86: Total
C87: Agriculture | D87: =$D$130*DefaultData!D83+$D$131*DefaultData!D84+$D$132*DefaultData!D85+$D$133*DefaultData!D86+$D$134*DefaultData!D87+$D$135*DefaultData!D88+$D$136*DefaultData!D89+$D$137*DefaultData!D90+$D$138*DefaultData!D91+$D$139*DefaultData!D92+$D$140*DefaultData!D93+$D$141*DefaultData!D94+$D$142*DefaultData!D95+$D$143*DefaultData!D96 -> 0 | G87: =F87+E87+D87 -> 0 | H87: =G87*G$40 -> 0 | L87: =$H87*Multipliers!D213 -> 0 | M87: =$H87*Multipliers!E213 -> 0 | N87: =$H87*Multipliers!F213 -> 0 | O87: =+N87+M87+L87 -> 0 | P87: =$H87*Multipliers!H213 -> 0 | Q87: =$H87*Multipliers!I213 -> 0 | R87: =$H87*Multipliers!J213 -> 0 | S87: =+R87+Q87+P87 -> 0 | T87: =$H87*Multipliers!L213 -> 0 | U87: =$H87*Multipliers!M213 -> 0 | V87: =$H87*Multipliers!N213 -> 0 | W87: =+V87+U87+T87 -> 0 | X87: =$H87*Multipliers!P213 -> 0 | Y87: =$H87*Multipliers!Q213 -> 0 | Z87: =$H87*Multipliers!R213 -> 0 | AA87: =+Z87+Y87+X87 -> 0
C88: Mining | D88: =$D$130*DefaultData!E83+$D$131*DefaultData!E84+$D$132*DefaultData!E85+$D$133*DefaultData!E86+$D$134*DefaultData!E87+$D$135*DefaultData!E88+$D$136*DefaultData!E89+$D$137*DefaultData!E90+$D$138*DefaultData!E91+$D$139*DefaultData!E92+$D$140*DefaultData!E93+$D$141*DefaultData!E94+$D$142*DefaultData!E95+$D$143*DefaultData!E96 -> 0 | G88: =F88+E88+D88 -> 0 | H88: =G88*G$40 -> 0 | L88: =$H88*Multipliers!D214 -> 0 | M88: =$H88*Multipliers!E214 -> 0 | N88: =$H88*Multipliers!F214 -> 0 | O88: =+N88+M88+L88 -> 0 | P88: =$H88*Multipliers!H214 -> 0 | Q88: =$H88*Multipliers!I214 -> 0 | R88: =$H88*Multipliers!J214 -> 0 | S88: =+R88+Q88+P88 -> 0 | T88: =$H88*Multipliers!L214 -> 0 | U88: =$H88*Multipliers!M214 -> 0 | V88: =$H88*Multipliers!N214 -> 0 | W88: =+V88+U88+T88 -> 0 | X88: =$H88*Multipliers!P214 -> 0 | Y88: =$H88*Multipliers!Q214 -> 0 | Z88: =$H88*Multipliers!R214 -> 0 | AA88: =+Z88+Y88+X88 -> 0
C89: Construction | D89: =$D$130*DefaultData!F83+$D$131*DefaultData!F84+$D$132*DefaultData!F85+$D$133*DefaultData!F86+$D$134*DefaultData!F87+$D$135*DefaultData!F88+$D$136*DefaultData!F89+$D$137*DefaultData!F90+$D$138*DefaultData!F91+$D$139*DefaultData!F92+$D$140*DefaultData!F93+$D$141*DefaultData!F94+$D$142*DefaultData!F95+$D$143*DefaultData!F96 -> 0 | G89: 0 | H89: 0 | L89: =$H89*Multipliers!D215 -> 0 | M89: =$H89*Multipliers!E215 -> 0 | N89: =$H89*Multipliers!F215 -> 0 | O89: 0 | P89: =$H89*Multipliers!H215 -> 0 | Q89: =$H89*Multipliers!I215 -> 0 | R89: =$H89*Multipliers!J215 -> 0 | S89: 0 | T89: =$H89*Multipliers!L215 -> 0 | U89: =$H89*Multipliers!M215 -> 0 | V89: =$H89*Multipliers!N215 -> 0 | W89: 0 | X89: =$H89*Multipliers!P215 -> 0 | Y89: =$H89*Multipliers!Q215 -> 0 | Z89: =$H89*Multipliers!R215 -> 0 | AA89: 0
C90: Manufacturing | D90: =$D$130*DefaultData!G83+$D$131*DefaultData!G84+$D$132*DefaultData!G85+$D$133*DefaultData!G86+$D$134*DefaultData!G87+$D$135*DefaultData!G88+$D$136*DefaultData!G89+$D$137*DefaultData!G90+$D$138*DefaultData!G91+$D$139*DefaultData!G92+$D$140*DefaultData!G93+$D$141*DefaultData!G94+$D$142*DefaultData!G95+$D$143*DefaultData!G96 -> 0.5492959241 | G90: 0.5492959241 | H90: 0.5956015705 | L90: =$H90*Multipliers!D216 -> 1.057339442 | M90: =$H90*Multipliers!E216 -> 1.276109268 | N90: =$H90*Multipliers!F216 -> 1.055193654 | O90: 3.388642364 | P90: =$H90*Multipliers!H216 -> 0.101364947 | Q90: =$H90*Multipliers!I216 -> 0.09265253573 | R90: =$H90*Multipliers!J216 -> 0.06240219558 | S90: 0.2564196783 | T90: =$H90*Multipliers!L216 -> 0.5956015705 | U90: =$H90*Multipliers!M216 -> 0.318341941 | V90: =$H90*Multipliers!N216 -> 0.1757246611 | W90: 1.089668173 | X90: =$H90*Multipliers!P216 -> 0.1864510315 | Y90: =$H90*Multipliers!Q216 -> 0.1687549664 | Z90: =$H90*Multipliers!R216 -> 0.1079054659 | AA90: 0.4631114637
C91: Fabricated Metals | D91: =$D$130*DefaultData!H83+$D$131*DefaultData!H84+$D$132*DefaultData!H85+$D$133*DefaultData!H86+$D$134*DefaultData!H87+$D$135*DefaultData!H88+$D$136*DefaultData!H89+$D$137*DefaultData!H90+$D$138*DefaultData!H91+$D$139*DefaultData!H92+$D$140*DefaultData!H93+$D$141*DefaultData!H94+$D$142*DefaultData!H95+$D$143*DefaultData!H96 -> 0 | G91: 0 | H91: 0 | L91: =$H91*Multipliers!D217 -> 0 | M91: =$H91*Multipliers!E217 -> 0 | N91: =$H91*Multipliers!F217 -> 0 | O91: 0 | P91: =$H91*Multipliers!H217 -> 0 | Q91: =$H91*Multipliers!I217 -> 0 | R91: =$H91*Multipliers!J217 -> 0 | S91: 0 | T91: =$H91*Multipliers!L217 -> 0 | U91: =$H91*Multipliers!M217 -> 0 | V91: =$H91*Multipliers!N217 -> 0 | W91: 0 | X91: =$H91*Multipliers!P217 -> 0 | Y91: =$H91*Multipliers!Q217 -> 0 | Z91: =$H91*Multipliers!R217 -> 0 | AA91: 0
C92: Machinery | D92: =$D$130*DefaultData!I83+$D$131*DefaultData!I84+$D$132*DefaultData!I85+$D$133*DefaultData!I86+$D$134*DefaultData!I87+$D$135*DefaultData!I88+$D$136*DefaultData!I89+$D$137*DefaultData!I90+$D$138*DefaultData!I91+$D$139*DefaultData!I92+$D$140*DefaultData!I93+$D$141*DefaultData!I94+$D$142*DefaultData!I95+$D$143*DefaultData!I96 -> 0 | G92: 0 | H92: 0 | L92: =$H92*Multipliers!D218 -> 0 | M92: =$H92*Multipliers!E218 -> 0 | N92: =$H92*Multipliers!F218 -> 0 | O92: 0 | P92: =$H92*Multipliers!H218 -> 0 | Q92: =$H92*Multipliers!I218 -> 0 | R92: =$H92*Multipliers!J218 -> 0 | S92: 0 | T92: =$H92*Multipliers!L218 -> 0 | U92: =$H92*Multipliers!M218 -> 0 | V92: =$H92*Multipliers!N218 -> 0 | W92: 0 | X92: =$H92*Multipliers!P218 -> 0 | Y92: =$H92*Multipliers!Q218 -> 0 | Z92: =$H92*Multipliers!R218 -> 0 | AA92: 0
C93: Electrical Equipment | D93: =$D$130*DefaultData!J83+$D$131*DefaultData!J84+$D$132*DefaultData!J85+$D$133*DefaultData!J86+$D$134*DefaultData!J87+$D$135*DefaultData!J88+$D$136*DefaultData!J89+$D$137*DefaultData!J90+$D$138*DefaultData!J91+$D$139*DefaultData!J92+$D$140*DefaultData!J93+$D$141*DefaultData!J94+$D$142*DefaultData!J95+$D$143*DefaultData!J96 -> 0 | G93: 0 | H93: 0 | L93: =$H93*Multipliers!D219 -> 0 | M93: =$H93*Multipliers!E219 -> 0 | N93: =$H93*Multipliers!F219 -> 0 | O93: 0 | P93: =$H93*Multipliers!H219 -> 0 | Q93: =$H93*Multipliers!I219 -> 0 | R93: =$H93*Multipliers!J219 -> 0 | S93: 0 | T93: =$H93*Multipliers!L219 -> 0 | U93: =$H93*Multipliers!M219 -> 0 | V93: =$H93*Multipliers!N219 -> 0 | W93: 0 | X93: =$H93*Multipliers!P219 -> 0 | Y93: =$H93*Multipliers!Q219 -> 0 | Z93: =$H93*Multipliers!R219 -> 0 | AA93: 0
C94: TCPU | D94: =$D$130*DefaultData!K83+$D$131*DefaultData!K84+$D$132*DefaultData!K85+$D$133*DefaultData!K86+$D$134*DefaultData!K87+$D$135*DefaultData!K88+$D$136*DefaultData!K89+$D$137*DefaultData!K90+$D$138*DefaultData!K91+$D$139*DefaultData!K92+$D$140*DefaultData!K93+$D$141*DefaultData!K94+$D$142*DefaultData!K95+$D$143*DefaultData!K96 -> 0.02263829645 | G94: 0.02263829645 | H94: 0.02454670484 | L94: =$H94*Multipliers!D220 -> 0.07861664216 | M94: =$H94*Multipliers!E220 -> 0.05690862529 | N94: =$H94*Multipliers!F220 -> 0.05723221984 | O94: 0.1927574873 | P94: =$H94*Multipliers!H220 -> 0.00655246295 | Q94: =$H94*Multipliers!I220 -> 0.003935301722 | R94: =$H94*Multipliers!J220 -> 0.003360257537 | S94: 0.01384802221 | T94: =$H94*Multipliers!L220 -> 0.02454670484 | U94: =$H94*Multipliers!M220 -> 0.01230736651 | V94: =$H94*Multipliers!N220 -> 0.009461282448 | W94: 0.0463153538 | X94: =$H94*Multipliers!P220 -> 0.01070925424 | Y94: =$H94*Multipliers!Q220 -> 0.00690204306 | Z94: =$H94*Multipliers!R220 -> 0.005810060149 | AA94: 0.02342135745
C95: Wholesale Trade | D95: =$D$130*DefaultData!L83+$D$131*DefaultData!L84+$D$132*DefaultData!L85+$D$133*DefaultData!L86+$D$134*DefaultData!L87+$D$135*DefaultData!L88+$D$136*DefaultData!L89+$D$137*DefaultData!L90+$D$138*DefaultData!L91+$D$139*DefaultData!L92+$D$140*DefaultData!L93+$D$141*DefaultData!L94+$D$142*DefaultData!L95+$D$143*DefaultData!L96 -> 0.4117397958 | G95: 0.4117397958 | H95: 0.4464494606 | L95: =$H95*Multipliers!D221 -> 1.506944025 | M95: =$H95*Multipliers!E221 -> 0.9266768975 | N95: =$H95*Multipliers!F221 -> 1.048647599 | O95: 3.482268521 | P95: =$H95*Multipliers!H221 -> 0.1479078106 | Q95: =$H95*Multipliers!I221 -> 0.06688753714 | R95: =$H95*Multipliers!J221 -> 0.06905148656 | S95: 0.2838468343 | T95: =$H95*Multipliers!L221 -> 0.4464494606 | U95: =$H95*Multipliers!M221 -> 0.1839216641 | V95: =$H95*Multipliers!N221 -> 0.1944468334 | W95: 0.824817958 | X95: =$H95*Multipliers!P221 -> 0.2956150048 | Y95: =$H95*Multipliers!Q221 -> 0.1150623316 | Z95: =$H95*Multipliers!R221 -> 0.1194024846 | AA95: 0.5300798211
C96: Retail Trade | D96: =$D$130*DefaultData!M83+$D$131*DefaultData!M84+$D$132*DefaultData!M85+$D$133*DefaultData!M86+$D$134*DefaultData!M87+$D$135*DefaultData!M88+$D$136*DefaultData!M89+$D$137*DefaultData!M90+$D$138*DefaultData!M91+$D$139*DefaultData!M92+$D$140*DefaultData!M93+$D$141*DefaultData!M94+$D$142*DefaultData!M95+$D$143*DefaultData!M96 -> 0 | G96: 0 | H96: 0 | L96: =$H96*Multipliers!D222 -> 0 | M96: =$H96*Multipliers!E222 -> 0 | N96: =$H96*Multipliers!F222 -> 0 | O96: 0 | P96: =$H96*Multipliers!H222 -> 0 | Q96: =$H96*Multipliers!I222 -> 0 | R96: =$H96*Multipliers!J222 -> 0 | S96: 0 | T96: =$H96*Multipliers!L222 -> 0 | U96: =$H96*Multipliers!M222 -> 0 | V96: =$H96*Multipliers!N222 -> 0 | W96: 0 | X96: =$H96*Multipliers!P222 -> 0 | Y96: =$H96*Multipliers!Q222 -> 0 | Z96: =$H96*Multipliers!R222 -> 0 | AA96: 0
C97: FIRE | D97: =$D$130*DefaultData!N83+$D$131*DefaultData!N84+$D$132*DefaultData!N85+$D$133*DefaultData!N86+$D$134*DefaultData!N87+$D$135*DefaultData!N88+$D$136*DefaultData!N89+$D$137*DefaultData!N90+$D$138*DefaultData!N91+$D$139*DefaultData!N92+$D$140*DefaultData!N93+$D$141*DefaultData!N94+$D$142*DefaultData!N95+$D$143*DefaultData!N96 -> 0.4391025 | G97: 0.4391025 | H97: 0.4761188408 | L97: =$H97*Multipliers!D223 -> 2.097936383 | M97: =$H97*Multipliers!E223 -> 1.024737102 | N97: =$H97*Multipliers!F223 -> 0.9841597822 | O97: 4.106833268 | P97: =$H97*Multipliers!H223 -> 0.118983935 | Q97: =$H97*Multipliers!I223 -> 0.06338138013 | R97: =$H97*Multipliers!J223 -> 0.05826469385 | S97: 0.240630009 | T97: =$H97*Multipliers!L223 -> 0.4761188408 | U97: =$H97*Multipliers!M223 -> 0.1973538127 | V97: =$H97*Multipliers!N223 -> 0.1640381117 | W97: 0.8375107651 | X97: =$H97*Multipliers!P223 -> 0.3142534882 | Y97: =$H97*Multipliers!Q223 -> 0.1240503907 | Z97: =$H97*Multipliers!R223 -> 0.1007369941 | AA97: 0.539040873
C98: Misc. Services | D98: =$D$130*DefaultData!O83+$D$131*DefaultData!O84+$D$132*DefaultData!O85+$D$133*DefaultData!O86+$D$134*DefaultData!O87+$D$135*DefaultData!O88+$D$136*DefaultData!O89+$D$137*DefaultData!O90+$D$138*DefaultData!O91+$D$139*DefaultData!O92+$D$140*DefaultData!O93+$D$141*DefaultData!O94+$D$142*DefaultData!O95+$D$143*DefaultData!O96 -> 0 | G98: 0 | H98: 0 | L98: =$H98*Multipliers!D224 -> 0 | M98: =$H98*Multipliers!E224 -> 0 | N98: =$H98*Multipliers!F224 -> 0 | O98: 0 | P98: =$H98*Multipliers!H224 -> 0 | Q98: =$H98*Multipliers!I224 -> 0 | R98: =$H98*Multipliers!J224 -> 0 | S98: 0 | T98: =$H98*Multipliers!L224 -> 0 | U98: =$H98*Multipliers!M224 -> 0 | V98: =$H98*Multipliers!N224 -> 0 | W98: 0 | X98: =$H98*Multipliers!P224 -> 0 | Y98: =$H98*Multipliers!Q224 -> 0 | Z98: =$H98*Multipliers!R224 -> 0 | AA98: 0
C99: Professional Services | D99: =$D$130*DefaultData!P83+$D$131*DefaultData!P84+$D$132*DefaultData!P85+$D$133*DefaultData!P86+$D$134*DefaultData!P87+$D$135*DefaultData!P88+$D$136*DefaultData!P89+$D$137*DefaultData!P90+$D$138*DefaultData!P91+$D$139*DefaultData!P92+$D$140*DefaultData!P93+$D$141*DefaultData!P94+$D$142*DefaultData!P95+$D$143*DefaultData!P96 -> 0 | G99: 0 | H99: 0 | L99: =$H99*Multipliers!D225 -> 0 | M99: =$H99*Multipliers!E225 -> 0 | N99: =$H99*Multipliers!F225 -> 0 | O99: 0 | P99: =$H99*Multipliers!H225 -> 0 | Q99: =$H99*Multipliers!I225 -> 0 | R99: =$H99*Multipliers!J225 -> 0 | S99: 0 | T99: =$H99*Multipliers!L225 -> 0 | U99: =$H99*Multipliers!M225 -> 0 | V99: =$H99*Multipliers!N225 -> 0 | W99: 0 | X99: =$H99*Multipliers!P225 -> 0 | Y99: =$H99*Multipliers!Q225 -> 0 | Z99: =$H99*Multipliers!R225 -> 0 | AA99: 0
C100: Government | D100: =$D$130*DefaultData!Q83+$D$131*DefaultData!Q84+$D$132*DefaultData!Q85+$D$133*DefaultData!Q86+$D$134*DefaultData!Q87+$D$135*DefaultData!Q88+$D$136*DefaultData!Q89+$D$137*DefaultData!Q90+$D$138*DefaultData!Q91+$D$139*DefaultData!Q92+$D$140*DefaultData!Q93+$D$141*DefaultData!Q94+$D$142*DefaultData!Q95+$D$143*DefaultData!Q96 -> 0.1358105795 | G100: 0.1358105795 | H100: 0.1472594114 | L100: 0 | M100: =$H100*Multipliers!E226 -> 0.07125139448 | N100: =$H100*Multipliers!F226 -> 0.5473608294 | O100: 0.6186122239 | P100: 0 | Q100: =$H100*Multipliers!I226 -> 0.005308296822 | R100: =$H100*Multipliers!J226 -> 0.03699491569 | S100: 0.04230321251 | T100: 0 | U100: =$H100*Multipliers!M226 -> 0.01566255757 | V100: =$H100*Multipliers!N226 -> 0.1041895505 | W100: 0.119852108 | X100: 0 | Y100: =$H100*Multipliers!Q226 -> 0.008919953172 | Z100: =$H100*Multipliers!R226 -> 0.06397601312 | AA100: 0.0728959663
C101: Total | D101: =SUM(D87:D100) -> 1.558587096 | G101: 1.558587096 | H101: =SUM(H87:H100) -> 1.689975988 | K101: Total | L101: =SUM(L87:L100) -> 4.740836492 | M101: =SUM(M87:M100) -> 3.355683288 | N101: 3.692594084 | O101: 11.78911386 | P101: 0.3748091556 | Q101: 0.2321650515 | R101: 0.2300735492 | S101: 0.8370477563 | T101: 1.542716577 | U101: 0.7275873418 | V101: 0.6478604391 | W101: 2.918164358 | X101: =SUM(X87:X100) -> 0.8070287787 | Y101: 0.4236896849 | Z101: 0.3978310179 | AA101: 1.628549482
C103: Plant Employees | E103: Earnings - Gross | G103: =G66 -> 0.76 | H103: =G103*G40 -> 0.824068
C104: Plant Employees | E104: Employee - (SSI, Med, Inc Tax) | F104: =IF(ProjectData!B$24="y",Calculations!K27,Calculations!M27) -> 0.07118694551 | G104: =G$103*F104 -> 0.05410207859 | H104: 0 | O104: Inflate to | P104: =D40 -> 2009 | Q104: Dollars | T104: =P104 -> 2009 | U104: Dollars | X104: =T104 -> 2009 | Y104: Dollars
C105: Technicians and other personnel | D105: =Calculations!H34 -> 9.5 | E105: Other benefits | F105: =IF(ProjectData!B$24="y",Calculations!K28,Calculations!M28) -> 0.1745479841 | G105: =G$103*F105 -> 0.1326564679 | H105: =IF(ProjectData!B12="MyCounty",0,IF(ProjectData!B12="MyRegion",0,1)) -> 1 | J105: Without Plant Employees | L105: =L101 -> 4.740836492 | M105: =M101 -> 3.355683288 | N105: =N101 -> 3.692594084 | O105: =O101 -> 11.78911386 | P105: =P101*$G61 -> 0.3456692387 | Q105: =Q101*$G61 -> 0.2141151448 | R105: =R101*$G61 -> 0.2121862485 | S105: =+R105+Q105+P105 -> 0.771970632 | T105: =T101*$G61 -> 1.422776516 | U105: =U101*$G61 -> 0.6710203282 | V105: =V101*$G61 -> 0.5974918741 | W105: =+V105+U105+T105 -> 2.691288719 | X105: =X101*$G61 -> 0.7442855102 | Y105: =Y101*$G61 -> 0.3907495019 | Z105: =Z101*$G61 -> 0.3669012431 | AA105: =+Z105+Y105+X105 -> 1.501936255
E106: Earnings (minus taxes, benefits, etc) | G106: =G103-G104-G105 -> 0.5732414535 | J106: With Plant Employees | L106: =L105+L126 -> 14.24083649 | M106: =M105+M126 -> 4.970939681 | N106: =N105+N126 -> 5.8741967 | O106: =O105+O126 -> 25.08597287 | P106: =(P101+P126)*$G61 -> 1.05156716 | Q106: =(Q101+Q126)*$G61 -> 0.3199951584 | R106: =(R101+R126)*$G61 -> 0.3392686073 | S106: =+R106+Q106+P106 -> 1.710830926 | T106: =(T101+T126)*$G61 -> 2.128674438 | U106: =(U101+U126)*$G61 -> 0.9691308731 | V106: =(V101+V126)*$G61 -> 0.955320634 | W106: =+V106+U106+T106 -> 4.053125945 | X106: =(X101+X126)*$G61 -> 1.450183432 | Y106: =(Y101+Y126)*$G61 -> 0.5751846539 | Z106: =(Z101+Z126)*$G61 -> 0.5866372761 | AA106: =+Z106+Y106+X106 -> 2.612005362
C108: Total | D108: =SUM(D105:D107) -> 9.5
L109: Plant Employees Only
C110: Plant Employee Spending | F110: PCE | H110: Adj Demand - Million | L110: Jobs | P110: Earnings | T110: Output | X110: Value Added
F111: Plant Emp | H111: =H86 -> 2014 | I111: Dollars | L111: Direct | M111: Indirect | N111: Induced | O111: Total | P111: Direct | Q111: Indirect | R111: Induced | S111: Total | T111: Direct | U111: Indirect | V111: Induced | W111: Total | X111: Direct | Y111: Indirect | Z111: Induced | AA111: Total
C112: Agriculture | F112: =G$106*Multipliers!U213 -> 0.002281070618 | H112: =F112*G$40 -> 0.002473364871 | M112: =$H112*Multipliers!E213 -> 0.001937799509 | N112: =$H112*Multipliers!F213 -> 0.005861382555 | O112: =N112+M112 -> 0.007799182064 | Q112: =$H112*Multipliers!I213 -> 0.0001460434453 | R112: =$H112*Multipliers!J213 -> 0.0003862417564 | S112: =R112+Q112 -> 0.0005322852017 | T112: =$H112*Multipliers!L213 -> 0.002473364871 | U112: =$H112*Multipliers!M213 -> 0.0004518066055 | V112: =$H112*Multipliers!N213 -> 0.001087100113 | W112: =V112+U112 -> 0.001538906718 | Y112: =$H112*Multipliers!Q213 -> 0.0002665780362 | Z112: =$H112*Multipliers!R213 -> 0.0006676671619 | AA112: =Z112+Y112 -> 0.0009342451981
C113: Mining | F113: =G$106*Multipliers!U214 -> 4.377266978e-06 | H113: =F113*G$40 -> 4.746270585e-06 | M113: =$H113*Multipliers!E214 -> 5.057936458e-06 | N113: =$H113*Multipliers!F214 -> 7.194029523e-06 | O113: =N113+M113 -> 1.225196598e-05 | Q113: =$H113*Multipliers!I214 -> 3.574936172e-07 | R113: =$H113*Multipliers!J214 -> 4.127122225e-07 | S113: =R113+Q113 -> 7.702058397e-07 | T113: =$H113*Multipliers!L214 -> 4.746270585e-06 | U113: =$H113*Multipliers!M214 -> 1.186444868e-06 | V113: =$H113*Multipliers!N214 -> 1.161852249e-06 | W113: =V113+U113 -> 2.348297117e-06 | Y113: =$H113*Multipliers!Q214 -> 6.806312495e-07 | Z113: =$H113*Multipliers!R214 -> 7.135230158e-07 | AA113: =Z113+Y113 -> 1.394154265e-06
C114: Construction | F114: =G$106*Multipliers!U215 -> 0 | H114: 0 | M114: =$H114*Multipliers!E215 -> 0 | N114: =$H114*Multipliers!F215 -> 0 | O114: 0 | Q114: =$H114*Multipliers!I215 -> 0 | R114: =$H114*Multipliers!J215 -> 0 | S114: 0 | T114: =$H114*Multipliers!L215 -> 0 | U114: =$H114*Multipliers!M215 -> 0 | V114: =$H114*Multipliers!N215 -> 0 | W114: 0 | Y114: =$H114*Multipliers!Q215 -> 0 | Z114: =$H114*Multipliers!R215 -> 0 | AA114: 0
C115: Manufacturing | F115: =G$106*Multipliers!U216 -> 0.04829384528 | H115: 0.05236501644 | M115: =$H115*Multipliers!E216 -> 0.1121949406 | N115: =$H115*Multipliers!F216 -> 0.09277214127 | O115: 0.2049670818 | Q115: =$H115*Multipliers!I216 -> 0.008145968373 | R115: =$H115*Multipliers!J216 -> 0.005486372365 | S115: 0.01363234074 | T115: =$H115*Multipliers!L216 -> 0.05236501644 | U115: =$H115*Multipliers!M216 -> 0.0279884772 | V115: =$H115*Multipliers!N216 -> 0.01544963147 | W115: 0.04343810867 | Y115: =$H115*Multipliers!Q216 -> 0.01483685911 | Z115: =$H115*Multipliers!R216 -> 0.009486998985 | AA115: 0.0243238581
C116: Fabricated Metals | F116: =G$106*Multipliers!U217 -> 1.06598514e-06 | H116: 1.155847687e-06 | M116: =$H116*Multipliers!E217 -> 2.579246069e-06 | N116: =$H116*Multipliers!F217 -> 2.735010636e-06 | O116: 5.314256705e-06 | Q116: =$H116*Multipliers!I217 -> 1.831907674e-07 | R116: =$H116*Multipliers!J217 -> 1.592602161e-07 | S116: 3.424509835e-07 | T116: =$H116*Multipliers!L217 -> 1.155847687e-06 | U116: =$H116*Multipliers!M217 -> 6.355327771e-07 | V116: =$H116*Multipliers!N217 -> 4.484957154e-07 | W116: 1.084028493e-06 | Y116: =$H116*Multipliers!Q217 -> 3.185586683e-07 | Z116: =$H116*Multipliers!R217 -> 2.753990742e-07 | AA116: 5.939577425e-07
C117: Machinery | F117: =G$106*Multipliers!U218 -> 6.93764047e-06 | H117: 7.522483561e-06 | M117: =$H117*Multipliers!E218 -> 1.634834907e-05 | N117: =$H117*Multipliers!F218 -> 1.472906207e-05 | O117: 3.107741115e-05 | Q117: =$H117*Multipliers!I218 -> 1.174107946e-06 | R117: =$H117*Multipliers!J218 -> 8.553913663e-07 | S117: 2.029499312e-06 | T117: =$H117*Multipliers!L218 -> 7.522483561e-06 | U117: =$H117*Multipliers!M218 -> 4.062676196e-06 | V117: =$H117*Multipliers!N218 -> 2.408902322e-06 | W117: 6.471578518e-06 | Y117: =$H117*Multipliers!Q218 -> 2.072985182e-06 | Z117: =$H117*Multipliers!R218 -> 1.479184063e-06 | AA117: 3.552169245e-06
C118: Electrical Equipment | F118: =G$106*Multipliers!U219 -> 1.864638132e-05 | H118: 2.021827127e-05 | M118: =$H118*Multipliers!E219 -> 4.990260511e-05 | N118: =$H118*Multipliers!F219 -> 4.571046438e-05 | O118: 9.561306949e-05 | Q118: =$H118*Multipliers!I219 -> 3.774536464e-06 | R118: =$H118*Multipliers!J219 -> 2.641455355e-06 | S118: 6.415991819e-06 | T118: =$H118*Multipliers!L219 -> 2.021827127e-05 | U118: =$H118*Multipliers!M219 -> 1.254867841e-05 | V118: =$H118*Multipliers!N219 -> 7.438769259e-06 | W118: 1.998744767e-05 | Y118: =$H118*Multipliers!Q219 -> 6.505721972e-06 | Z118: =$H118*Multipliers!R219 -> 4.567755664e-06 | AA118: 1.107347764e-05
C119: TCPU | F119: =G$106*Multipliers!U220 -> 0.01648688088 | H119: 0.01787672494 | M119: =$H119*Multipliers!E220 -> 0.04144506759 | N119: =$H119*Multipliers!F220 -> 0.04168073306 | O119: 0.08312580065 | Q119: =$H119*Multipliers!I220 -> 0.002865977609 | R119: =$H119*Multipliers!J220 -> 0.002447187927 | S119: 0.005313165536 | T119: =$H119*Multipliers!L220 -> 0.01787672494 | U119: =$H119*Multipliers!M220 -> 0.008963134049 | V119: =$H119*Multipliers!N220 -> 0.006890405251 | W119: 0.0158535393 | Y119: =$H119*Multipliers!Q220 -> 0.005026577951 | Z119: =$H119*Multipliers!R220 -> 0.004231315277 | AA119: 0.009257893228
C120: Wholesale Trade | F120: =G$106*Multipliers!U221 -> 0.02549144815 | H120: 0.02764037723 | M120: =$H120*Multipliers!E221 -> 0.05737200126 | N120: =$H120*Multipliers!F221 -> 0.06492339619 | O120: 0.1222953975 | Q120: =$H120*Multipliers!I221 -> 0.004141110969 | R120: =$H120*Multipliers!J221 -> 0.004275084428 | S120: 0.008416195398 | T120: =$H120*Multipliers!L221 -> 0.02764037723 | U120: =$H120*Multipliers!M221 -> 0.01138687494 | V120: =$H120*Multipliers!N221 -> 0.01203850447 | W120: 0.02342537941 | Y120: =$H120*Multipliers!Q221 -> 0.007123687074 | Z120: =$H120*Multipliers!R221 -> 0.007392392663 | AA120: 0.01451607974
C121: Retail Trade | F121: =G$106*Multipliers!U222 -> 0.05492602229 | H121: 0.05955628597 | M121: =$H121*Multipliers!E222 -> 0.1141274981 | N121: =$H121*Multipliers!F222 -> 0.1712544111 | O121: 0.2853819091 | Q121: =$H121*Multipliers!I222 -> 0.007252670028 | R121: =$H121*Multipliers!J222 -> 0.01031118513 | S121: 0.01756385515 | T121: =$H121*Multipliers!L222 -> 0.05955628597 | U121: =$H121*Multipliers!M222 -> 0.02101724461 | V121: =$H121*Multipliers!N222 -> 0.02903375579 | W121: 0.0500510004 | Y121: =$H121*Multipliers!Q222 -> 0.01307493643 | Z121: =$H121*Multipliers!R222 -> 0.017829024 | AA121: 0.03090396043
C122: FIRE | F122: =(G$106*Multipliers!U223)+(G105*H105) -> 0.2011950025 | H122: 0.2181557412 | M122: =$H122*Multipliers!E223 -> 0.469530426 | N122: =$H122*Multipliers!F223 -> 0.4509380608 | O122: 0.9204684867 | Q122: =$H122*Multipliers!I223 -> 0.0290410939 | R122: =$H122*Multipliers!J223 -> 0.02669664879 | S122: 0.05573774269 | T122: =$H122*Multipliers!L223 -> 0.2181557412 | U122: =$H122*Multipliers!M223 -> 0.09042672459 | V122: =$H122*Multipliers!N223 -> 0.07516160415 | W122: 0.1655883287 | Y122: =$H122*Multipliers!Q223 -> 0.05683939094 | Z122: =$H122*Multipliers!R223 -> 0.04615728625 | AA122: 0.1029966772
C123: Misc. Services | F123: =G$106*Multipliers!U224 -> 0.3475677191 | H123: 0.3768676778 | M123: =$H123*Multipliers!E224 -> 0.8025546515 | N123: =$H123*Multipliers!F224 -> 1.320398135 | O123: 2.122952787 | Q123: =$H123*Multipliers!I224 -> 0.06214845265 | R123: =$H123*Multipliers!J224 -> 0.08604848454 | S123: 0.1481969372 | T123: =$H123*Multipliers!L224 -> 0.3768676778 | U123: =$H123*Multipliers!M224 -> 0.1599349495 | V123: =$H123*Multipliers!N224 -> 0.2422945385 | W123: 0.402229488 | Y123: =$H123*Multipliers!Q224 -> 0.1009653181 | Z123: =$H123*Multipliers!R224 -> 0.1487873171 | AA123: 0.2497526351
C124: Professional Services | F124: =G$106*Multipliers!U225 -> 0.005683055923 | H124: 0.006162137538 | M124: =$H124*Multipliers!E225 -> 0.01395207625 | N124: =$H124*Multipliers!F225 -> 0.01781705195 | O124: 0.03176912821 | Q124: =$H124*Multipliers!I225 -> 0.0009048211341 | R124: =$H124*Multipliers!J225 -> 0.001066364887 | S124: 0.001971186021 | T124: =$H124*Multipliers!L225 -> 0.006162137538 | U124: =$H124*Multipliers!M225 -> 0.002599019297 | V124: =$H124*Multipliers!N225 -> 0.003002665329 | W124: 0.005601684626 | Y124: =$H124*Multipliers!Q225 -> 0.001581211608 | Z124: =$H124*Multipliers!R225 -> 0.001843864335 | AA124: 0.003425075943
C125: Government | F125: =(G$106*Multipliers!U226)+(G104*H104) -> 0.003941849366 | H125: 0.004274147267 | M125: =$H125*Multipliers!E226 -> 0.002068044073 | N125: =$H125*Multipliers!F226 -> 0.01588693565 | O125: 0.01795497973 | Q125: =$H125*Multipliers!I226 -> 0.0001540712552 | R125: =$H125*Multipliers!J226 -> 0.001073763071 | S125: 0.001227834326 | T125: =$H125*Multipliers!L226 -> 0.004274147267 | U125: =$H125*Multipliers!M226 -> 0.0004545996552 | V125: =$H125*Multipliers!N226 -> 0.003024061268 | W125: 0.003478660924 | Y125: =$H125*Multipliers!Q226 -> 0.0002588981791 | Z125: =$H125*Multipliers!R226 -> 0.001856878953 | AA125: 0.002115777132
C126: Total | F126: =SUM(F112:F125) -> 0.7058979214 | H126: =SUM(H112:H125) -> 0.7654051162 | L126: =IF(L128=0,0,D108) -> 9.5 | M126: =SUM(M112:M125) -> 1.615256393 | N126: =SUM(N112:N125) -> 2.181602616 | O126: =N126+M126+L126 -> 13.29685901 | P126: =H126 -> 0.7654051162 | Q126: =SUM(Q112:Q125) -> 0.1148056987 | R126: =SUM(R112:R125) -> 0.1377954017 | S126: =R126+Q126+P126 -> 1.018006217 | T126: =SUM(T112:T125) -> 0.7654051162 | U126: =SUM(U112:U125) -> 0.3232412638 | V126: =SUM(V112:V125) -> 0.3879937243 | W126: =V126+U126+T126 -> 1.476640104 | X126: =P126 -> 0.7654051162 | Y126: =SUM(Y112:Y125) -> 0.1999830353 | Z126: =SUM(Z112:Z125) -> 0.2382597805 | AA126: =Z126+Y126+X126 -> 1.203647932
O127: Inflate to | P127: =P104 -> 2009 | Q127: Dollars
C128: Annual O&M Costs Local Demand | E128: Construction Costs Local Demand | L128: =SUM(L133:L146) -> 4.740836492 | P128: =P126*$G61 -> 0.7058979214 | Q128: 0.1058800135 | R128: 0.1270823589 | S128: 0.9388602938 | T128: 0.7058979214 | U128: 0.2981105449 | V128: 0.3578287599 | W128: 1.361837226 | X128: =X126*$G61 -> 0.7058979214 | Y128: 0.184435152 | Z128: 0.219736033 | AA128: 1.110069106
D129: Demand | E129: Demand
C130: Agriculture | D130: 0 | E130: 0 | L130: With Plant Employees
C131: Mining | D131: 0 | E131: 0 | L131: Jobs | P131: Earnings | T131: Output | X131: Output
C132: Construction | D132: 0 | E132: =Y19+Y13 -> 0.8110308228 | L132: Direct | M132: Indirect | N132: Induced | O132: Total | P132: Direct | Q132: Indirect | R132: Induced | S132: Total | T132: Direct | U132: Indirect | V132: Induced | W132: Total | X132: Direct | Y132: Indirect | Z132: Induced | AA132: Total
C133: Manufacturing | D133: =G67*DefaultData!AI44 -> 0.983675 | E133: =X13+(G7*(1-DefaultData!AR16)) -> 5.195829723 | J133: Agriculture | L133: =L87+L112 -> 0 | M133: =M87+M112 -> 0.001937799509 | N133: 0.005861382555 | O133: =N133+M133+L133 -> 0.007799182064 | P133: 0 | Q133: 0.0001460434453 | R133: 0.0003862417564 | S133: =R133+Q133+P133 -> 0.0005322852017 | T133: 0.002473364871 | U133: 0.0004518066055 | V133: 0.001087100113 | W133: =V133+U133+T133 -> 0.004012271589 | X133: =X87+X112 -> 0 | Y133: 0.0002665780362 | Z133: 0.0006676671619 | AA133: =Z133+Y133+X133 -> 0.0009342451981
C134: Fabricated Metals | D134: 0 | E134: =(G7*DefaultData!AR16)+G8+W11 -> 4.269684848 | J134: Mining | L134: =L88+L113 -> 0 | M134: 5.057936458e-06 | N134: 7.194029523e-06 | O134: =N134+M134+L134 -> 1.225196598e-05 | P134: 0 | Q134: 3.574936172e-07 | R134: 4.127122225e-07 | S134: =R134+Q134+P134 -> 7.702058397e-07 | T134: 4.746270585e-06 | U134: 1.186444868e-06 | V134: 1.161852249e-06 | W134: =V134+U134+T134 -> 7.094567701e-06 | X134: =X88+X113 -> 0 | Y134: 6.806312495e-07 | Z134: 7.135230158e-07 | AA134: =Z134+Y134+X134 -> 1.394154265e-06
C135: Machinery | D135: 0 | E135: 0 | J135: Construction | L135: =L89+L114 -> 0 | M135: 0 | N135: 0 | O135: 0 | P135: 0 | Q135: 0 | R135: 0 | S135: 0 | T135: 0 | U135: 0 | V135: 0 | W135: 0 | X135: =X89+X114 -> 0 | Y135: 0 | Z135: 0 | AA135: 0
C136: Electrical Equipment | D136: 0 | E136: =X11+G9 -> 0 | J136: Manufacturing | L136: =L90+L115 -> 1.057339442 | M136: 1.388304209 | N136: 1.147965795 | O136: 3.593609446 | P136: 0.101364947 | Q136: 0.1007985041 | R136: 0.06788856794 | S136: 0.2700520191 | T136: 0.6479665869 | U136: 0.3463304182 | V136: 0.1911742926 | W136: 1.185471298 | X136: =X90+X115 -> 0.1864510315 | Y136: 0.1835918255 | Z136: 0.1173924649 | AA136: 0.4874353218
C137: TCPU | D137: 0 | E137: 0 | J137: Fabricated Metals | L137: =L91+L116 -> 0 | M137: 2.579246069e-06 | N137: 2.735010636e-06 | O137: 5.314256705e-06 | P137: 0 | Q137: 1.831907674e-07 | R137: 1.592602161e-07 | S137: 3.424509835e-07 | T137: 1.155847687e-06 | U137: 6.355327771e-07 | V137: 4.484957154e-07 | W137: 2.239876179e-06 | X137: =X91+X116 -> 0 | Y137: 3.185586683e-07 | Z137: 2.753990742e-07 | AA137: 5.939577425e-07
C138: Wholesale Trade | D138: 0 | E138: =W13+X19+(S16*Z19) -> 1.337978907 | J138: Machinery | L138: =L92+L117 -> 0 | M138: 1.634834907e-05 | N138: 1.472906207e-05 | O138: 3.107741115e-05 | P138: 0 | Q138: 1.174107946e-06 | R138: 8.553913663e-07 | S138: 2.029499312e-06 | T138: 7.522483561e-06 | U138: 4.062676196e-06 | V138: 2.408902322e-06 | W138: 1.399406208e-05 | X138: =X92+X117 -> 0 | Y138: 2.072985182e-06 | Z138: 1.479184063e-06 | AA138: 3.552169245e-06
C139: Retail Trade | D139: 0 | E139: 0 | J139: Electrical Equipment | L139: =L93+L118 -> 0 | M139: 4.990260511e-05 | N139: 4.571046438e-05 | O139: 9.561306949e-05 | P139: 0 | Q139: 3.774536464e-06 | R139: 2.641455355e-06 | S139: 6.415991819e-06 | T139: 2.021827127e-05 | U139: 1.254867841e-05 | V139: 7.438769259e-06 | W139: 4.020571894e-05 | X139: =X93+X118 -> 0 | Y139: 6.505721972e-06 | Z139: 4.567755664e-06 | AA139: 1.107347764e-05
C140: FIRE | D140: =H70+H71+H72+(G67-D133) -> 0.4391025 | E140: 0 | J140: TCPU | L140: =L94+L119 -> 0.07861664216 | M140: 0.09835369288 | N140: 0.09891295291 | O140: 0.2758832879 | P140: 0.00655246295 | Q140: 0.006801279331 | R140: 0.005807445464 | S140: 0.01916118775 | T140: 0.04242342978 | U140: 0.02127050056 | V140: 0.0163516877 | W140: 0.08004561805 | X140: =X94+X119 -> 0.01070925424 | Y140: 0.01192862101 | Z140: 0.01004137543 | AA140: 0.03267925068
C141: Misc. Services | D141: 0 | E141: =(S18*Z19)+(S19*Z19) -> 0.2477191395 | J141: Wholesale Trade | L141: =L95+L120 -> 1.506944025 | M141: 0.9840488988 | N141: 1.113570995 | O141: 3.604563919 | P141: 0.1479078106 | Q141: 0.07102864811 | R141: 0.07332657099 | S141: 0.2922630297 | T141: 0.4740898378 | U141: 0.195308539 | V141: 0.2064853378 | W141: 0.8758837146 | X141: =X95+X120 -> 0.2956150048 | Y141: 0.1221860187 | Z141: 0.1267948773 | AA141: 0.5445959008
C142: Professional Services | D142: 0 | E142: =G18+(S17*Z19) -> 1.933129233 | J142: Retail Trade | L142: =L96+L121 -> 0 | M142: 0.1141274981 | N142: 0.1712544111 | O142: 0.2853819091 | P142: 0 | Q142: 0.007252670028 | R142: 0.01031118513 | S142: 0.01756385515 | T142: 0.05955628597 | U142: 0.02101724461 | V142: 0.02903375579 | W142: 0.1096072864 | X142: =X96+X121 -> 0 | Y142: 0.01307493643 | Z142: 0.017829024 | AA142: 0.03090396043
C143: Government | D143: =G73+G69+G74 -> 0.1358105795 | E143: =G20 -> 3.390396624 | J143: FIRE | L143: =L97+L122 -> 2.097936383 | M143: 1.494267528 | N143: 1.435097843 | O143: 5.027301754 | P143: 0.118983935 | Q143: 0.09242247402 | R143: 0.08496134264 | S143: 0.2963677517 | T143: 0.694274582 | U143: 0.2877805373 | V143: 0.2391997158 | W143: 1.221254835 | X143: =X97+X122 -> 0.3142534882 | Y143: 0.1808897816 | Z143: 0.1468942804 | AA143: 0.6420375502
C144: Total | D144: =SUM(D130:D143) -> 1.55858808 | E144: =SUM(E130:E143) -> 17.1857693 | J144: Misc. Services | L144: =L98+L123 -> 0 | M144: 0.8025546515 | N144: 1.320398135 | O144: 2.122952787 | P144: 0 | Q144: 0.06214845265 | R144: 0.08604848454 | S144: 0.1481969372 | T144: 0.3768676778 | U144: 0.1599349495 | V144: 0.2422945385 | W144: 0.7790971659 | X144: =X98+X123 -> 0 | Y144: 0.1009653181 | Z144: 0.1487873171 | AA144: 0.2497526351
J145: Professional Services | L145: =L99+L124 -> 0 | M145: 0.01395207625 | N145: 0.01781705195 | O145: 0.03176912821 | P145: 0 | Q145: 0.0009048211341 | R145: 0.001066364887 | S145: 0.001971186021 | T145: 0.006162137538 | U145: 0.002599019297 | V145: 0.003002665329 | W145: 0.01176382216 | X145: =X99+X124 -> 0 | Y145: 0.001581211608 | Z145: 0.001843864335 | AA145: 0.003425075943
J146: Government | L146: =L100+L125 -> 0 | M146: 0.07331943855 | N146: 0.5632477651 | O146: 0.6365672036 | P146: 0 | Q146: 0.005462368078 | R146: 0.03806867876 | S146: 0.04353104684 | T146: 0.004274147267 | U146: 0.01611715723 | V146: 0.1072136117 | W146: 0.1276049162 | X146: =X100+X125 -> 0 | Y146: 0.009178851351 | Z146: 0.06583289208 | AA146: 0.07501174343
J147: Plant Employees | L147: =L126 -> 9.5 | O147: 9.5 | P147: =P126 -> 0.7654051162 | S147: 0.7654051162 | W147: 0 | X147: =P147 -> 0.7654051162 | AA147: 0.7654051162
J148: Total | L148: =SUM(L133:L147) -> 14.24083649 | M148: =SUM(M133:M147) -> 4.970939681 | N148: 5.8741967 | O148: 25.08597287 | P148: 1.140214272 | Q148: 0.3469707502 | R148: 0.3678689509 | S148: 1.855053973 | T148: 2.308121693 | U148: 1.050828606 | V148: 1.035854163 | W148: 4.394804462 | X148: =SUM(X133:X147) -> 1.572433895 | Y148: 0.6236727203 | Z148: 0.6360907984 | AA148: 2.832197414
J149: Inflate to | K149: =P127 -> 2009 | L149: Dollars | P149: =P148*$G61 -> 1.05156716 | Q149: 0.3199951584 | R149: 0.3392686073 | S149: 1.710830926 | T149: 2.128674438 | U149: 0.9691308731 | V149: 0.955320634 | W149: 4.053125945 | X149: =X148*$G61 -> 1.450183432 | Y149: 0.5751846539 | Z149: 0.5866372761 | AA149: 2.612005362
C151: Default | H151: Default | M151: Default
C152: From DefaultData | H152: From DefaultData | M152: From DefaultData
C153: Debt - Loan Repayment Schedule | H153: Equity - Individual Investment Repayment Schedule | M153: Equity - Corporate Investment Repayment Schedule
C154: Year | D154: Interest Pmt | E154: Principal Pmt | F154: Total Pmt | H154: Year | I154: Interest Pmt | J154: Principal Pmt | K154: Total Pmt | M154: Year | N154: Interest Pmt | O154: Principal Pmt | P154: Total Pmt
C155: 1 | D155: =IF(C155<=DefaultData!D$45,-ISPMT(DefaultData!D$46,C155,DefaultData!D$45,DefaultData!D$30*DefaultData!D$44),0) -> 1.005043 | E155: =IF(C155<=DefaultData!D$45,-PPMT(DefaultData!D$46,C155,DefaultData!D$45,DefaultData!D$44*DefaultData!D$30),0) -> 0.1847123543 | F155: =E155+D155 -> 1.189755354 | H155: 1 | I155: =IF(H155<=DefaultData!$D$53,-ISPMT(DefaultData!$D$52,$H155,DefaultData!$D$53,DefaultData!$D$32*DefaultData!$D$49*DefaultData!$D$50),0) -> 0 | J155: =IF(H155<=DefaultData!$D$53,-PPMT(DefaultData!$D$52,$H155,DefaultData!$D$53,DefaultData!$D$32*DefaultData!$D$49*DefaultData!$D$50),0) -> 0 | K155: =J155+I155 -> 0 | M155: 1 | N155: =IF(M155<=DefaultData!$D$53,-ISPMT(DefaultData!$D$52,$H155,DefaultData!$D$53,DefaultData!$D$32*DefaultData!$D$49*DefaultData!$D$51),0) -> 4.863231068 | O155: =IF(M155<=DefaultData!$D$53,-PPMT(DefaultData!$D$52,$H155,DefaultData!$D$53,DefaultData!$D$32*DefaultData!$D$49*DefaultData!$D$51),0) -> 2.5659922 | P155: =O155+N155 -> 7.429223268
C156: 2 | D156: =IF(C156<=DefaultData!D$45,-ISPMT(DefaultData!D$46,C156,DefaultData!D$45,DefaultData!D$30*DefaultData!D$44),0) -> 0.952146 | E156: =IF(C156<=DefaultData!D$45,-PPMT(DefaultData!D$46,C156,DefaultData!D$45,DefaultData!D$44*DefaultData!D$30),0) -> 0.2031835898 | F156: 1.15532959 | H156: 2 | I156: =IF(H156<=DefaultData!$D$53,-ISPMT(DefaultData!$D$52,$H156,DefaultData!$D$53,DefaultData!$D$32*DefaultData!$D$49*DefaultData!$D$50),0) -> 0 | J156: =IF(H156<=DefaultData!$D$53,-PPMT(DefaultData!$D$52,$H156,DefaultData!$D$53,DefaultData!$D$32*DefaultData!$D$49*DefaultData!$D$50),0) -> 0 | K156: 0 | M156: 2 | N156: =IF(M156<=DefaultData!$D$53,-ISPMT(DefaultData!$D$52,$H156,DefaultData!$D$53,DefaultData!$D$32*DefaultData!$D$49*DefaultData!$D$51),0) -> 4.322872061 | O156: =IF(M156<=DefaultData!$D$53,-PPMT(DefaultData!$D$52,$H156,DefaultData!$D$53,DefaultData!$D$32*DefaultData!$D$49*DefaultData!$D$51),0) -> 2.873911263 | P156: 7.196783324
C157: 3 | D157: =IF(C157<=DefaultData!D$45,-ISPMT(DefaultData!D$46,C157,DefaultData!D$45,DefaultData!D$30*DefaultData!D$44),0) -> 0.899249 | E157: =IF(C157<=DefaultData!D$45,-PPMT(DefaultData!D$46,C157,DefaultData!D$45,DefaultData!D$44*DefaultData!D$30),0) -> 0.2235019487 | F157: 1.122750949 | H157: 3 | I157: =IF(H157<=DefaultData!$D$53,-ISPMT(DefaultData!$D$52,$H157,DefaultData!$D$53,DefaultData!$D$32*DefaultData!$D$49*DefaultData!$D$50),0) -> 0 | J157: =IF(H157<=DefaultData!$D$53,-PPMT(DefaultData!$D$52,$H157,DefaultData!$D$53,DefaultData!$D$32*DefaultData!$D$49*DefaultData!$D$50),0) -> 0 | K157: 0 | M157: 3 | N157: =IF(M157<=DefaultData!$D$53,-ISPMT(DefaultData!$D$52,$H157,DefaultData!$D$53,DefaultData!$D$32*DefaultData!$D$49*DefaultData!$D$51),0) -> 3.782513053 | O157: =IF(M157<=DefaultData!$D$53,-PPMT(DefaultData!$D$52,$H157,DefaultData!$D$53,DefaultData!$D$32*DefaultData!$D$49*DefaultData!$D$51),0) -> 3.218780615 | P157: 7.001293668
C158: 4 | D158: =IF(C158<=DefaultData!D$45,-ISPMT(DefaultData!D$46,C158,DefaultData!D$45,DefaultData!D$30*DefaultData!D$44),0) -> 0.846352 | E158: =IF(C158<=DefaultData!D$45,-PPMT(DefaultData!D$46,C158,DefaultData!D$45,DefaultData!D$44*DefaultData!D$30),0) -> 0.2458521436 | F158: 1.092204144 | H158: 4 | I158: =IF(H158<=DefaultData!$D$53,-ISPMT(DefaultData!$D$52,$H158,DefaultData!$D$53,DefaultData!$D$32*DefaultData!$D$49*DefaultData!$D$50),0) -> 0 | J158: =IF(H158<=DefaultData!$D$53,-PPMT(DefaultData!$D$52,$H158,DefaultData!$D$53,DefaultData!$D$32*DefaultData!$D$49*DefaultData!$D$50),0) -> 0 | K158: 0 | M158: 4 | N158: =IF(M158<=DefaultData!$D$53,-ISPMT(DefaultData!$D$52,$H158,DefaultData!$D$53,DefaultData!$D$32*DefaultData!$D$49*DefaultData!$D$51),0) -> 3.242154046 | O158: =IF(M158<=DefaultData!$D$53,-PPMT(DefaultData!$D$52,$H158,DefaultData!$D$53,DefaultData!$D$32*DefaultData!$D$49*DefaultData!$D$51),0) -> 3.605034289 | P158: 6.847188334
C159: 5 | D159: =IF(C159<=DefaultData!D$45,-ISPMT(DefaultData!D$46,C159,DefaultData!D$45,DefaultData!D$30*DefaultData!D$44),0) -> 0.793455 | E159: =IF(C159<=DefaultData!D$45,-PPMT(DefaultData!D$46,C159,DefaultData!D$45,DefaultData!D$44*DefaultData!D$30),0) -> 0.270437358 | F159: 1.063892358 | H159: 5 | I159: =IF(H159<=DefaultData!$D$53,-ISPMT(DefaultData!$D$52,$H159,DefaultData!$D$53,DefaultData!$D$32*DefaultData!$D$49*DefaultData!$D$50),0) -> 0 | J159: =IF(H159<=DefaultData!$D$53,-PPMT(DefaultData!$D$52,$H159,DefaultData!$D$53,DefaultData!$D$32*DefaultData!$D$49*DefaultData!$D$50),0) -> 0 | K159: 0 | M159: 5 | N159: =IF(M159<=DefaultData!$D$53,-ISPMT(DefaultData!$D$52,$H159,DefaultData!$D$53,DefaultData!$D$32*DefaultData!$D$49*DefaultData!$D$51),0) -> 2.701795038 | O159: =IF(M159<=DefaultData!$D$53,-PPMT(DefaultData!$D$52,$H159,DefaultData!$D$53,DefaultData!$D$32*DefaultData!$D$49*DefaultData!$D$51),0) -> 4.037638404 | P159: 6.739433441
C160: 6 | D160: =IF(C160<=DefaultData!D$45,-ISPMT(DefaultData!D$46,C160,DefaultData!D$45,DefaultData!D$30*DefaultData!D$44),0) -> 0.740558 | E160: =IF(C160<=DefaultData!D$45,-PPMT(DefaultData!D$46,C160,DefaultData!D$45,DefaultData!D$44*DefaultData!D$30),0) -> 0.2974810938 | F160: 1.038039094 | H160: 6 | I160: =IF(H160<=DefaultData!$D$53,-ISPMT(DefaultData!$D$52,$H160,DefaultData!$D$53,DefaultData!$D$32*DefaultData!$D$49*DefaultData!$D$50),0) -> 0 | J160: =IF(H160<=DefaultData!$D$53,-PPMT(DefaultData!$D$52,$H160,DefaultData!$D$53,DefaultData!$D$32*DefaultData!$D$49*DefaultData!$D$50),0) -> 0 | K160: 0 | M160: 6 | N160: =IF(M160<=DefaultData!$D$53,-ISPMT(DefaultData!$D$52,$H160,DefaultData!$D$53,DefaultData!$D$32*DefaultData!$D$49*DefaultData!$D$51),0) -> 2.16143603 | O160: =IF(M160<=DefaultData!$D$53,-PPMT(DefaultData!$D$52,$H160,DefaultData!$D$53,DefaultData!$D$32*DefaultData!$D$49*DefaultData!$D$51),0) -> 4.522155012 | P160: 6.683591042
C161: 7 | D161: =IF(C161<=DefaultData!D$45,-ISPMT(DefaultData!D$46,C161,DefaultData!D$45,DefaultData!D$30*DefaultData!D$44),0) -> 0.687661 | E161: =IF(C161<=DefaultData!D$45,-PPMT(DefaultData!D$46,C161,DefaultData!D$45,DefaultData!D$44*DefaultData!D$30),0) -> 0.3272292031 | F161: 1.014890203 | H161: 7 | I161: =IF(H161<=DefaultData!$D$53,-ISPMT(DefaultData!$D$52,$H161,DefaultData!$D$53,DefaultData!$D$32*DefaultData!$D$49*DefaultData!$D$50),0) -> 0 | J161: =IF(H161<=DefaultData!$D$53,-PPMT(DefaultData!$D$52,$H161,DefaultData!$D$53,DefaultData!$D$32*DefaultData!$D$49*DefaultData!$D$50),0) -> 0 | K161: 0 | M161: 7 | N161: =IF(M161<=DefaultData!$D$53,-ISPMT(DefaultData!$D$52,$H161,DefaultData!$D$53,DefaultData!$D$32*DefaultData!$D$49*DefaultData!$D$51),0) -> 1.621077023 | O161: =IF(M161<=DefaultData!$D$53,-PPMT(DefaultData!$D$52,$H161,DefaultData!$D$53,DefaultData!$D$32*DefaultData!$D$49*DefaultData!$D$51),0) -> 5.064813613 | P161: 6.685890636
C162: 8 | D162: =IF(C162<=DefaultData!D$45,-ISPMT(DefaultData!D$46,C162,DefaultData!D$45,DefaultData!D$30*DefaultData!D$44),0) -> 0.634764 | E162: =IF(C162<=DefaultData!D$45,-PPMT(DefaultData!D$46,C162,DefaultData!D$45,DefaultData!D$44*DefaultData!D$30),0) -> 0.3599521234 | F162: 0.9947161234 | H162: 8 | I162: =IF(H162<=DefaultData!$D$53,-ISPMT(DefaultData!$D$52,$H162,DefaultData!$D$53,DefaultData!$D$32*DefaultData!$D$49*DefaultData!$D$50),0) -> 0 | J162: =IF(H162<=DefaultData!$D$53,-PPMT(DefaultData!$D$52,$H162,DefaultData!$D$53,DefaultData!$D$32*DefaultData!$D$49*DefaultData!$D$50),0) -> 0 | K162: 0 | M162: 8 | N162: =IF(M162<=DefaultData!$D$53,-ISPMT(DefaultData!$D$52,$H162,DefaultData!$D$53,DefaultData!$D$32*DefaultData!$D$49*DefaultData!$D$51),0) -> 1.080718015 | O162: =IF(M162<=DefaultData!$D$53,-PPMT(DefaultData!$D$52,$H162,DefaultData!$D$53,DefaultData!$D$32*DefaultData!$D$49*DefaultData!$D$51),0) -> 5.672591247 | P162: 6.753309262
C163: 9 | D163: =IF(C163<=DefaultData!D$45,-ISPMT(DefaultData!D$46,C163,DefaultData!D$45,DefaultData!D$30*DefaultData!D$44),0) -> 0.581867 | E163: =IF(C163<=DefaultData!D$45,-PPMT(DefaultData!D$46,C163,DefaultData!D$45,DefaultData!D$44*DefaultData!D$30),0) -> 0.3959473358 | F163: 0.9778143358 | H163: 9 | I163: =IF(H163<=DefaultData!$D$53,-ISPMT(DefaultData!$D$52,$H163,DefaultData!$D$53,DefaultData!$D$32*DefaultData!$D$49*DefaultData!$D$50),0) -> 0 | J163: =IF(H163<=DefaultData!$D$53,-PPMT(DefaultData!$D$52,$H163,DefaultData!$D$53,DefaultData!$D$32*DefaultData!$D$49*DefaultData!$D$50),0) -> 0 | K163: 0 | M163: 9 | N163: =IF(M163<=DefaultData!$D$53,-ISPMT(DefaultData!$D$52,$H163,DefaultData!$D$53,DefaultData!$D$32*DefaultData!$D$49*DefaultData!$D$51),0) -> 0.5403590076 | O163: =IF(M163<=DefaultData!$D$53,-PPMT(DefaultData!$D$52,$H163,DefaultData!$D$53,DefaultData!$D$32*DefaultData!$D$49*DefaultData!$D$51),0) -> 6.353302197 | P163: 6.893661204
C164: 10 | D164: =IF(C164<=DefaultData!D$45,-ISPMT(DefaultData!D$46,C164,DefaultData!D$45,DefaultData!D$30*DefaultData!D$44),0) -> 0.52897 | E164: =IF(C164<=DefaultData!D$45,-PPMT(DefaultData!D$46,C164,DefaultData!D$45,DefaultData!D$44*DefaultData!D$30),0) -> 0.4355420694 | F164: 0.9645120694 | H164: 10 | I164: =IF(H164<=DefaultData!$D$53,-ISPMT(DefaultData!$D$52,$H164,DefaultData!$D$53,DefaultData!$D$32*DefaultData!$D$49*DefaultData!$D$50),0) -> 0 | J164: =IF(H164<=DefaultData!$D$53,-PPMT(DefaultData!$D$52,$H164,DefaultData!$D$53,DefaultData!$D$32*DefaultData!$D$49*DefaultData!$D$50),0) -> 0 | K164: 0 | M164: 10 | N164: =IF(M164<=DefaultData!$D$53,-ISPMT(DefaultData!$D$52,$H164,DefaultData!$D$53,DefaultData!$D$32*DefaultData!$D$49*DefaultData!$D$51),0) -> 0 | O164: =IF(M164<=DefaultData!$D$53,-PPMT(DefaultData!$D$52,$H164,DefaultData!$D$53,DefaultData!$D$32*DefaultData!$D$49*DefaultData!$D$51),0) -> 7.11569846 | P164: 7.11569846
C165: 11 | D165: =IF(C165<=DefaultData!D$45,-ISPMT(DefaultData!D$46,C165,DefaultData!D$45,DefaultData!D$30*DefaultData!D$44),0) -> 0.476073 | E165: =IF(C165<=DefaultData!D$45,-PPMT(DefaultData!D$46,C165,DefaultData!D$45,DefaultData!D$44*DefaultData!D$30),0) -> 0.4790962763 | F165: 0.9551692763 | H165: 11 | I165: =IF(H165<=DefaultData!$D$53,-ISPMT(DefaultData!$D$52,$H165,DefaultData!$D$53,DefaultData!$D$32*DefaultData!$D$49*DefaultData!$D$50),0) -> 0 | J165: =IF(H165<=DefaultData!$D$53,-PPMT(DefaultData!$D$52,$H165,DefaultData!$D$53,DefaultData!$D$32*DefaultData!$D$49*DefaultData!$D$50),0) -> 0 | K165: 0 | M165: 11 | N165: =IF(M165<=DefaultData!$D$53,-ISPMT(DefaultData!$D$52,$H165,DefaultData!$D$53,DefaultData!$D$32*DefaultData!$D$49*DefaultData!$D$51),0) -> 0 | O165: =IF(M165<=DefaultData!$D$53,-PPMT(DefaultData!$D$52,$H165,DefaultData!$D$53,DefaultData!$D$32*DefaultData!$D$49*DefaultData!$D$51),0) -> 0 | P165: 0
C166: 12 | D166: =IF(C166<=DefaultData!D$45,-ISPMT(DefaultData!D$46,C166,DefaultData!D$45,DefaultData!D$30*DefaultData!D$44),0) -> 0.423176 | E166: =IF(C166<=DefaultData!D$45,-PPMT(DefaultData!D$46,C166,DefaultData!D$45,DefaultData!D$44*DefaultData!D$30),0) -> 0.5270059039 | F166: 0.9501819039 | H166: 12 | I166: =IF(H166<=DefaultData!$D$53,-ISPMT(DefaultData!$D$52,$H166,DefaultData!$D$53,DefaultData!$D$32*DefaultData!$D$49*DefaultData!$D$50),0) -> 0 | J166: =IF(H166<=DefaultData!$D$53,-PPMT(DefaultData!$D$52,$H166,DefaultData!$D$53,DefaultData!$D$32*DefaultData!$D$49*DefaultData!$D$50),0) -> 0 | K166: 0 | M166: 12 | N166: =IF(M166<=DefaultData!$D$53,-ISPMT(DefaultData!$D$52,$H166,DefaultData!$D$53,DefaultData!$D$32*DefaultData!$D$49*DefaultData!$D$51),0) -> 0 | O166: =IF(M166<=DefaultData!$D$53,-PPMT(DefaultData!$D$52,$H166,DefaultData!$D$53,DefaultData!$D$32*DefaultData!$D$49*DefaultData!$D$51),0) -> 0 | P166: 0
C167: 13 | D167: =IF(C167<=DefaultData!D$45,-ISPMT(DefaultData!D$46,C167,DefaultData!D$45,DefaultData!D$30*DefaultData!D$44),0) -> 0.370279 | E167: =IF(C167<=DefaultData!D$45,-PPMT(DefaultData!D$46,C167,DefaultData!D$45,DefaultData!D$44*DefaultData!D$30),0) -> 0.5797064943 | F167: 0.9499854943 | H167: 13 | I167: =IF(H167<=DefaultData!$D$53,-ISPMT(DefaultData!$D$52,$H167,DefaultData!$D$53,DefaultData!$D$32*DefaultData!$D$49*DefaultData!$D$50),0) -> 0 | J167: =IF(H167<=DefaultData!$D$53,-PPMT(DefaultData!$D$52,$H167,DefaultData!$D$53,DefaultData!$D$32*DefaultData!$D$49*DefaultData!$D$50),0) -> 0 | K167: 0 | M167: 13 | N167: =IF(M167<=DefaultData!$D$53,-ISPMT(DefaultData!$D$52,$H167,DefaultData!$D$53,DefaultData!$D$32*DefaultData!$D$49*DefaultData!$D$51),0) -> 0 | O167: =IF(M167<=DefaultData!$D$53,-PPMT(DefaultData!$D$52,$H167,DefaultData!$D$53,DefaultData!$D$32*DefaultData!$D$49*DefaultData!$D$51),0) -> 0 | P167: 0
C168: 14 | D168: =IF(C168<=DefaultData!D$45,-ISPMT(DefaultData!D$46,C168,DefaultData!D$45,DefaultData!D$30*DefaultData!D$44),0) -> 0.317382 | E168: =IF(C168<=DefaultData!D$45,-PPMT(DefaultData!D$46,C168,DefaultData!D$45,DefaultData!D$44*DefaultData!D$30),0) -> 0.6376771438 | F168: 0.9550591438 | H168: 14 | I168: =IF(H168<=DefaultData!$D$53,-ISPMT(DefaultData!$D$52,$H168,DefaultData!$D$53,DefaultData!$D$32*DefaultData!$D$49*DefaultData!$D$50),0) -> 0 | J168: =IF(H168<=DefaultData!$D$53,-PPMT(DefaultData!$D$52,$H168,DefaultData!$D$53,DefaultData!$D$32*DefaultData!$D$49*DefaultData!$D$50),0) -> 0 | K168: 0 | M168: 14 | N168: =IF(M168<=DefaultData!$D$53,-ISPMT(DefaultData!$D$52,$H168,DefaultData!$D$53,DefaultData!$D$32*DefaultData!$D$49*DefaultData!$D$51),0) -> 0 | O168: =IF(M168<=DefaultData!$D$53,-PPMT(DefaultData!$D$52,$H168,DefaultData!$D$53,DefaultData!$D$32*DefaultData!$D$49*DefaultData!$D$51),0) -> 0 | P168: 0
C169: 15 | D169: =IF(C169<=DefaultData!D$45,-ISPMT(DefaultData!D$46,C169,DefaultData!D$45,DefaultData!D$30*DefaultData!D$44),0) -> 0.264485 | E169: =IF(C169<=DefaultData!D$45,-PPMT(DefaultData!D$46,C169,DefaultData!D$45,DefaultData!D$44*DefaultData!D$30),0) -> 0.7014448581 | F169: 0.9659298581 | H169: 15 | I169: =IF(H169<=DefaultData!$D$53,-ISPMT(DefaultData!$D$52,$H169,DefaultData!$D$53,DefaultData!$D$32*DefaultData!$D$49*DefaultData!$D$50),0) -> 0 | J169: =IF(H169<=DefaultData!$D$53,-PPMT(DefaultData!$D$52,$H169,DefaultData!$D$53,DefaultData!$D$32*DefaultData!$D$49*DefaultData!$D$50),0) -> 0 | K169: 0 | M169: 15 | N169: =IF(M169<=DefaultData!$D$53,-ISPMT(DefaultData!$D$52,$H169,DefaultData!$D$53,DefaultData!$D$32*DefaultData!$D$49*DefaultData!$D$51),0) -> 0 | O169: =IF(M169<=DefaultData!$D$53,-PPMT(DefaultData!$D$52,$H169,DefaultData!$D$53,DefaultData!$D$32*DefaultData!$D$49*DefaultData!$D$51),0) -> 0 | P169: 0
C170: 16 | D170: =IF(C170<=DefaultData!D$45,-ISPMT(DefaultData!D$46,C170,DefaultData!D$45,DefaultData!D$30*DefaultData!D$44),0) -> 0.211588 | E170: =IF(C170<=DefaultData!D$45,-PPMT(DefaultData!D$46,C170,DefaultData!D$45,DefaultData!D$44*DefaultData!D$30),0) -> 0.7715893439 | F170: 0.9831773439 | H170: 16 | I170: =IF(H170<=DefaultData!$D$53,-ISPMT(DefaultData!$D$52,$H170,DefaultData!$D$53,DefaultData!$D$32*DefaultData!$D$49*DefaultData!$D$50),0) -> 0 | J170: =IF(H170<=DefaultData!$D$53,-PPMT(DefaultData!$D$52,$H170,DefaultData!$D$53,DefaultData!$D$32*DefaultData!$D$49*DefaultData!$D$50),0) -> 0 | K170: 0 | M170: 16 | N170: =IF(M170<=DefaultData!$D$53,-ISPMT(DefaultData!$D$52,$H170,DefaultData!$D$53,DefaultData!$D$32*DefaultData!$D$49*DefaultData!$D$51),0) -> 0 | O170: =IF(M170<=DefaultData!$D$53,-PPMT(DefaultData!$D$52,$H170,DefaultData!$D$53,DefaultData!$D$32*DefaultData!$D$49*DefaultData!$D$51),0) -> 0 | P170: 0
C171: 17 | D171: =IF(C171<=DefaultData!D$45,-ISPMT(DefaultData!D$46,C171,DefaultData!D$45,DefaultData!D$30*DefaultData!D$44),0) -> 0.158691 | E171: =IF(C171<=DefaultData!D$45,-PPMT(DefaultData!D$46,C171,DefaultData!D$45,DefaultData!D$44*DefaultData!D$30),0) -> 0.8487482783 | F171: 1.007439278 | H171: 17 | I171: =IF(H171<=DefaultData!$D$53,-ISPMT(DefaultData!$D$52,$H171,DefaultData!$D$53,DefaultData!$D$32*DefaultData!$D$49*DefaultData!$D$50),0) -> 0 | J171: =IF(H171<=DefaultData!$D$53,-PPMT(DefaultData!$D$52,$H171,DefaultData!$D$53,DefaultData!$D$32*DefaultData!$D$49*DefaultData!$D$50),0) -> 0 | K171: 0 | M171: 17 | N171: =IF(M171<=DefaultData!$D$53,-ISPMT(DefaultData!$D$52,$H171,DefaultData!$D$53,DefaultData!$D$32*DefaultData!$D$49*DefaultData!$D$51),0) -> 0 | O171: =IF(M171<=DefaultData!$D$53,-PPMT(DefaultData!$D$52,$H171,DefaultData!$D$53,DefaultData!$D$32*DefaultData!$D$49*DefaultData!$D$51),0) -> 0 | P171: 0
C172: 18 | D172: =IF(C172<=DefaultData!D$45,-ISPMT(DefaultData!D$46,C172,DefaultData!D$45,DefaultData!D$30*DefaultData!D$44),0) -> 0.105794 | E172: =IF(C172<=DefaultData!D$45,-PPMT(DefaultData!D$46,C172,DefaultData!D$45,DefaultData!D$44*DefaultData!D$30),0) -> 0.9336231062 | F172: 1.039417106 | H172: 18 | I172: =IF(H172<=DefaultData!$D$53,-ISPMT(DefaultData!$D$52,$H172,DefaultData!$D$53,DefaultData!$D$32*DefaultData!$D$49*DefaultData!$D$50),0) -> 0 | J172: =IF(H172<=DefaultData!$D$53,-PPMT(DefaultData!$D$52,$H172,DefaultData!$D$53,DefaultData!$D$32*DefaultData!$D$49*DefaultData!$D$50),0) -> 0 | K172: 0 | M172: 18 | N172: =IF(M172<=DefaultData!$D$53,-ISPMT(DefaultData!$D$52,$H172,DefaultData!$D$53,DefaultData!$D$32*DefaultData!$D$49*DefaultData!$D$51),0) -> 0 | O172: =IF(M172<=DefaultData!$D$53,-PPMT(DefaultData!$D$52,$H172,DefaultData!$D$53,DefaultData!$D$32*DefaultData!$D$49*DefaultData!$D$51),0) -> 0 | P172: 0
C173: 19 | D173: =IF(C173<=DefaultData!D$45,-ISPMT(DefaultData!D$46,C173,DefaultData!D$45,DefaultData!D$30*DefaultData!D$44),0) -> 0.052897 | E173: =IF(C173<=DefaultData!D$45,-PPMT(DefaultData!D$46,C173,DefaultData!D$45,DefaultData!D$44*DefaultData!D$30),0) -> 1.026985417 | F173: 1.079882417 | H173: 19 | I173: =IF(H173<=DefaultData!$D$53,-ISPMT(DefaultData!$D$52,$H173,DefaultData!$D$53,DefaultData!$D$32*DefaultData!$D$49*DefaultData!$D$50),0) -> 0 | J173: =IF(H173<=DefaultData!$D$53,-PPMT(DefaultData!$D$52,$H173,DefaultData!$D$53,DefaultData!$D$32*DefaultData!$D$49*DefaultData!$D$50),0) -> 0 | K173: 0 | M173: 19 | N173: =IF(M173<=DefaultData!$D$53,-ISPMT(DefaultData!$D$52,$H173,DefaultData!$D$53,DefaultData!$D$32*DefaultData!$D$49*DefaultData!$D$51),0) -> 0 | O173: =IF(M173<=DefaultData!$D$53,-PPMT(DefaultData!$D$52,$H173,DefaultData!$D$53,DefaultData!$D$32*DefaultData!$D$49*DefaultData!$D$51),0) -> 0 | P173: 0
C174: 20 | D174: =IF(C174<=DefaultData!D$45,-ISPMT(DefaultData!D$46,C174,DefaultData!D$45,DefaultData!D$30*DefaultData!D$44),0) -> 0 | E174: =IF(C174<=DefaultData!D$45,-PPMT(DefaultData!D$46,C174,DefaultData!D$45,DefaultData!D$44*DefaultData!D$30),0) -> 1.129683958 | F174: 1.129683958 | H174: 20 | I174: =IF(H174<=DefaultData!$D$53,-ISPMT(DefaultData!$D$52,$H174,DefaultData!$D$53,DefaultData!$D$32*DefaultData!$D$49*DefaultData!$D$50),0) -> 0 | J174: =IF(H174<=DefaultData!$D$53,-PPMT(DefaultData!$D$52,$H174,DefaultData!$D$53,DefaultData!$D$32*DefaultData!$D$49*DefaultData!$D$50),0) -> 0 | K174: 0 | M174: 20 | N174: =IF(M174<=DefaultData!$D$53,-ISPMT(DefaultData!$D$52,$H174,DefaultData!$D$53,DefaultData!$D$32*DefaultData!$D$49*DefaultData!$D$51),0) -> 0 | O174: =IF(M174<=DefaultData!$D$53,-PPMT(DefaultData!$D$52,$H174,DefaultData!$D$53,DefaultData!$D$32*DefaultData!$D$49*DefaultData!$D$51),0) -> 0 | P174: 0
C175: 21 | D175: =IF(C175<=DefaultData!D$45,-ISPMT(DefaultData!D$46,C175,DefaultData!D$45,DefaultData!D$30*DefaultData!D$44),0) -> 0 | E175: =IF(C175<=DefaultData!D$45,-PPMT(DefaultData!D$46,C175,DefaultData!D$45,DefaultData!D$44*DefaultData!D$30),0) -> 0 | F175: 0 | H175: 21 | I175: =IF(H175<=DefaultData!$D$53,-ISPMT(DefaultData!$D$52,$H175,DefaultData!$D$53,DefaultData!$D$32*DefaultData!$D$49*DefaultData!$D$50),0) -> 0 | J175: =IF(H175<=DefaultData!$D$53,-PPMT(DefaultData!$D$52,$H175,DefaultData!$D$53,DefaultData!$D$32*DefaultData!$D$49*DefaultData!$D$50),0) -> 0 | K175: 0 | M175: 21 | N175: =IF(M175<=DefaultData!$D$53,-ISPMT(DefaultData!$D$52,$H175,DefaultData!$D$53,DefaultData!$D$32*DefaultData!$D$49*DefaultData!$D$51),0) -> 0 | O175: =IF(M175<=DefaultData!$D$53,-PPMT(DefaultData!$D$52,$H175,DefaultData!$D$53,DefaultData!$D$32*DefaultData!$D$49*DefaultData!$D$51),0) -> 0 | P175: 0
C176: 22 | D176: =IF(C176<=DefaultData!D$45,-ISPMT(DefaultData!D$46,C176,DefaultData!D$45,DefaultData!D$30*DefaultData!D$44),0) -> 0 | E176: =IF(C176<=DefaultData!D$45,-PPMT(DefaultData!D$46,C176,DefaultData!D$45,DefaultData!D$44*DefaultData!D$30),0) -> 0 | F176: 0 | H176: 22 | I176: =IF(H176<=DefaultData!$D$53,-ISPMT(DefaultData!$D$52,$H176,DefaultData!$D$53,DefaultData!$D$32*DefaultData!$D$49*DefaultData!$D$50),0) -> 0 | J176: =IF(H176<=DefaultData!$D$53,-PPMT(DefaultData!$D$52,$H176,DefaultData!$D$53,DefaultData!$D$32*DefaultData!$D$49*DefaultData!$D$50),0) -> 0 | K176: 0 | M176: 22 | N176: =IF(M176<=DefaultData!$D$53,-ISPMT(DefaultData!$D$52,$H176,DefaultData!$D$53,DefaultData!$D$32*DefaultData!$D$49*DefaultData!$D$51),0) -> 0 | O176: =IF(M176<=DefaultData!$D$53,-PPMT(DefaultData!$D$52,$H176,DefaultData!$D$53,DefaultData!$D$32*DefaultData!$D$49*DefaultData!$D$51),0) -> 0 | P176: 0
C177: 23 | D177: =IF(C177<=DefaultData!D$45,-ISPMT(DefaultData!D$46,C177,DefaultData!D$45,DefaultData!D$30*DefaultData!D$44),0) -> 0 | E177: =IF(C177<=DefaultData!D$45,-PPMT(DefaultData!D$46,C177,DefaultData!D$45,DefaultData!D$44*DefaultData!D$30),0) -> 0 | F177: 0 | H177: 23 | I177: =IF(H177<=DefaultData!$D$53,-ISPMT(DefaultData!$D$52,$H177,DefaultData!$D$53,DefaultData!$D$32*DefaultData!$D$49*DefaultData!$D$50),0) -> 0 | J177: =IF(H177<=DefaultData!$D$53,-PPMT(DefaultData!$D$52,$H177,DefaultData!$D$53,DefaultData!$D$32*DefaultData!$D$49*DefaultData!$D$50),0) -> 0 | K177: 0 | M177: 23 | N177: =IF(M177<=DefaultData!$D$53,-ISPMT(DefaultData!$D$52,$H177,DefaultData!$D$53,DefaultData!$D$32*DefaultData!$D$49*DefaultData!$D$51),0) -> 0 | O177: =IF(M177<=DefaultData!$D$53,-PPMT(DefaultData!$D$52,$H177,DefaultData!$D$53,DefaultData!$D$32*DefaultData!$D$49*DefaultData!$D$51),0) -> 0 | P177: 0
C178: 24 | D178: =IF(C178<=DefaultData!D$45,-ISPMT(DefaultData!D$46,C178,DefaultData!D$45,DefaultData!D$30*DefaultData!D$44),0) -> 0 | E178: =IF(C178<=DefaultData!D$45,-PPMT(DefaultData!D$46,C178,DefaultData!D$45,DefaultData!D$44*DefaultData!D$30),0) -> 0 | F178: 0 | H178: 24 | I178: =IF(H178<=DefaultData!$D$53,-ISPMT(DefaultData!$D$52,$H178,DefaultData!$D$53,DefaultData!$D$32*DefaultData!$D$49*DefaultData!$D$50),0) -> 0 | J178: =IF(H178<=DefaultData!$D$53,-PPMT(DefaultData!$D$52,$H178,DefaultData!$D$53,DefaultData!$D$32*DefaultData!$D$49*DefaultData!$D$50),0) -> 0 | K178: 0 | M178: 24 | N178: =IF(M178<=DefaultData!$D$53,-ISPMT(DefaultData!$D$52,$H178,DefaultData!$D$53,DefaultData!$D$32*DefaultData!$D$49*DefaultData!$D$51),0) -> 0 | O178: =IF(M178<=DefaultData!$D$53,-PPMT(DefaultData!$D$52,$H178,DefaultData!$D$53,DefaultData!$D$32*DefaultData!$D$49*DefaultData!$D$51),0) -> 0 | P178: 0
C179: 25 | D179: =IF(C179<=DefaultData!D$45,-ISPMT(DefaultData!D$46,C179,DefaultData!D$45,DefaultData!D$30*DefaultData!D$44),0) -> 0 | E179: =IF(C179<=DefaultData!D$45,-PPMT(DefaultData!D$46,C179,DefaultData!D$45,DefaultData!D$44*DefaultData!D$30),0) -> 0 | F179: 0 | H179: 25 | I179: =IF(H179<=DefaultData!$D$53,-ISPMT(DefaultData!$D$52,$H179,DefaultData!$D$53,DefaultData!$D$32*DefaultData!$D$49*DefaultData!$D$50),0) -> 0 | J179: =IF(H179<=DefaultData!$D$53,-PPMT(DefaultData!$D$52,$H179,DefaultData!$D$53,DefaultData!$D$32*DefaultData!$D$49*DefaultData!$D$50),0) -> 0 | K179: 0 | M179: 25 | N179: =IF(M179<=DefaultData!$D$53,-ISPMT(DefaultData!$D$52,$H179,DefaultData!$D$53,DefaultData!$D$32*DefaultData!$D$49*DefaultData!$D$51),0) -> 0 | O179: =IF(M179<=DefaultData!$D$53,-PPMT(DefaultData!$D$52,$H179,DefaultData!$D$53,DefaultData!$D$32*DefaultData!$D$49*DefaultData!$D$51),0) -> 0 | P179: 0
C180: 26 | D180: =IF(C180<=DefaultData!D$45,-ISPMT(DefaultData!D$46,C180,DefaultData!D$45,DefaultData!D$30*DefaultData!D$44),0) -> 0 | E180: =IF(C180<=DefaultData!D$45,-PPMT(DefaultData!D$46,C180,DefaultData!D$45,DefaultData!D$44*DefaultData!D$30),0) -> 0 | F180: 0 | H180: 26 | I180: =IF(H180<=DefaultData!$D$53,-ISPMT(DefaultData!$D$52,$H180,DefaultData!$D$53,DefaultData!$D$32*DefaultData!$D$49*DefaultData!$D$50),0) -> 0 | J180: =IF(H180<=DefaultData!$D$53,-PPMT(DefaultData!$D$52,$H180,DefaultData!$D$53,DefaultData!$D$32*DefaultData!$D$49*DefaultData!$D$50),0) -> 0 | K180: 0 | M180: 26 | N180: =IF(M180<=DefaultData!$D$53,-ISPMT(DefaultData!$D$52,$H180,DefaultData!$D$53,DefaultData!$D$32*DefaultData!$D$49*DefaultData!$D$51),0) -> 0 | O180: =IF(M180<=DefaultData!$D$53,-PPMT(DefaultData!$D$52,$H180,DefaultData!$D$53,DefaultData!$D$32*DefaultData!$D$49*DefaultData!$D$51),0) -> 0 | P180: 0
C181: 27 | D181: =IF(C181<=DefaultData!D$45,-ISPMT(DefaultData!D$46,C181,DefaultData!D$45,DefaultData!D$30*DefaultData!D$44),0) -> 0 | E181: =IF(C181<=DefaultData!D$45,-PPMT(DefaultData!D$46,C181,DefaultData!D$45,DefaultData!D$44*DefaultData!D$30),0) -> 0 | F181: 0 | H181: 27 | I181: =IF(H181<=DefaultData!$D$53,-ISPMT(DefaultData!$D$52,$H181,DefaultData!$D$53,DefaultData!$D$32*DefaultData!$D$49*DefaultData!$D$50),0) -> 0 | J181: =IF(H181<=DefaultData!$D$53,-PPMT(DefaultData!$D$52,$H181,DefaultData!$D$53,DefaultData!$D$32*DefaultData!$D$49*DefaultData!$D$50),0) -> 0 | K181: 0 | M181: 27 | N181: =IF(M181<=DefaultData!$D$53,-ISPMT(DefaultData!$D$52,$H181,DefaultData!$D$53,DefaultData!$D$32*DefaultData!$D$49*DefaultData!$D$51),0) -> 0 | O181: =IF(M181<=DefaultData!$D$53,-PPMT(DefaultData!$D$52,$H181,DefaultData!$D$53,DefaultData!$D$32*DefaultData!$D$49*DefaultData!$D$51),0) -> 0 | P181: 0
C182: 28 | D182: =IF(C182<=DefaultData!D$45,-ISPMT(DefaultData!D$46,C182,DefaultData!D$45,DefaultData!D$30*DefaultData!D$44),0) -> 0 | E182: =IF(C182<=DefaultData!D$45,-PPMT(DefaultData!D$46,C182,DefaultData!D$45,DefaultData!D$44*DefaultData!D$30),0) -> 0 | F182: 0 | H182: 28 | I182: =IF(H182<=DefaultData!$D$53,-ISPMT(DefaultData!$D$52,$H182,DefaultData!$D$53,DefaultData!$D$32*DefaultData!$D$49*DefaultData!$D$50),0) -> 0 | J182: =IF(H182<=DefaultData!$D$53,-PPMT(DefaultData!$D$52,$H182,DefaultData!$D$53,DefaultData!$D$32*DefaultData!$D$49*DefaultData!$D$50),0) -> 0 | K182: 0 | M182: 28 | N182: =IF(M182<=DefaultData!$D$53,-ISPMT(DefaultData!$D$52,$H182,DefaultData!$D$53,DefaultData!$D$32*DefaultData!$D$49*DefaultData!$D$51),0) -> 0 | O182: =IF(M182<=DefaultData!$D$53,-PPMT(DefaultData!$D$52,$H182,DefaultData!$D$53,DefaultData!$D$32*DefaultData!$D$49*DefaultData!$D$51),0) -> 0 | P182: 0
C183: 29 | D183: =IF(C183<=DefaultData!D$45,-ISPMT(DefaultData!D$46,C183,DefaultData!D$45,DefaultData!D$30*DefaultData!D$44),0) -> 0 | E183: =IF(C183<=DefaultData!D$45,-PPMT(DefaultData!D$46,C183,DefaultData!D$45,DefaultData!D$44*DefaultData!D$30),0) -> 0 | F183: 0 | H183: 29 | I183: =IF(H183<=DefaultData!$D$53,-ISPMT(DefaultData!$D$52,$H183,DefaultData!$D$53,DefaultData!$D$32*DefaultData!$D$49*DefaultData!$D$50),0) -> 0 | J183: =IF(H183<=DefaultData!$D$53,-PPMT(DefaultData!$D$52,$H183,DefaultData!$D$53,DefaultData!$D$32*DefaultData!$D$49*DefaultData!$D$50),0) -> 0 | K183: 0 | M183: 29 | N183: =IF(M183<=DefaultData!$D$53,-ISPMT(DefaultData!$D$52,$H183,DefaultData!$D$53,DefaultData!$D$32*DefaultData!$D$49*DefaultData!$D$51),0) -> 0 | O183: =IF(M183<=DefaultData!$D$53,-PPMT(DefaultData!$D$52,$H183,DefaultData!$D$53,DefaultData!$D$32*DefaultData!$D$49*DefaultData!$D$51),0) -> 0 | P183: 0
C184: 30 | D184: =IF(C184<=DefaultData!D$45,-ISPMT(DefaultData!D$46,C184,DefaultData!D$45,DefaultData!D$30*DefaultData!D$44),0) -> 0 | E184: =IF(C184<=DefaultData!D$45,-PPMT(DefaultData!D$46,C184,DefaultData!D$45,DefaultData!D$44*DefaultData!D$30),0) -> 0 | F184: 0 | H184: 30 | I184: =IF(H184<=DefaultData!$D$53,-ISPMT(DefaultData!$D$52,$H184,DefaultData!$D$53,DefaultData!$D$32*DefaultData!$D$49*DefaultData!$D$50),0) -> 0 | J184: =IF(H184<=DefaultData!$D$53,-PPMT(DefaultData!$D$52,$H184,DefaultData!$D$53,DefaultData!$D$32*DefaultData!$D$49*DefaultData!$D$50),0) -> 0 | K184: 0 | M184: 30 | N184: =IF(M184<=DefaultData!$D$53,-ISPMT(DefaultData!$D$52,$H184,DefaultData!$D$53,DefaultData!$D$32*DefaultData!$D$49*DefaultData!$D$51),0) -> 0 | O184: =IF(M184<=DefaultData!$D$53,-PPMT(DefaultData!$D$52,$H184,DefaultData!$D$53,DefaultData!$D$32*DefaultData!$D$49*DefaultData!$D$51),0) -> 0 | P184: 0
C185: Total | D185: =SUM(D155:D184) -> 10.05043 | E185: =SUM(E155:E184) -> 10.5794 | F185: 20.62983 | H185: Total | I185: =SUM(I155:I184) -> 0 | J185: =SUM(J155:J184) -> 0 | K185: 0 | M185: Total | N185: =SUM(N155:N184) -> 24.31615534 | O185: =SUM(O155:O184) -> 45.0299173 | P185: 69.34607264
C186: AvgAnn | D186: =D185/DefaultData!$D45 -> 0.5025215 | E186: =E185/DefaultData!$D45 -> 0.52897 | F186: 1.0314915 | H186: AvgAnn | I186: =I185/ProjectData!$B$67 -> 0 | J186: =J185/ProjectData!$B$67 -> 0 | K186: 0 | M186: AvgAnn | N186: =N185/ProjectData!$B$67 -> 2.431615534 | O186: =O185/ProjectData!$B$67 -> 4.50299173 | P186: 6.934607264
C188: User Modified (from Project Data worksheet - based on loan parameters) | H188: User Modified (from Project Data worksheet - based on equity investment parameters) | M188: User Modified (from Project Data worksheet - based on equity investment parameters)
C189: Loan Repayment Schedule | H189: Equity - Individual Investment Repayment Schedule | M189: Equity - Corporate Investment Repayment Schedule
D190: Interest Pmt | E190: Principal Pmt | F190: Total Pmt | I190: Interest Pmt | J190: Principal Pmt | K190: Total Pmt | N190: Interest Pmt | O190: Principal Pmt | P190: Total Pmt
C191: 1 | D191: =IF(C191<=ProjectData!B$60,-ISPMT(ProjectData!B$61,C191,ProjectData!B$60,ProjectData!B$59*ProjectData!B$43),0) -> 1.005043 | E191: =IF(C191<=ProjectData!B$60,-PPMT(ProjectData!B$61,C191,ProjectData!B$60,ProjectData!B$43*ProjectData!B$59),0) -> 0.1847123543 | F191: =E191+D191 -> 1.189755354 | H191: 1 | I191: =IF($H191<=ProjectData!$B$67,-ISPMT(ProjectData!$B$66,$H191,ProjectData!$B$67,(ProjectData!$B$45*10^6)*ProjectData!$B$63*ProjectData!$B$64),0) -> 0 | J191: =IF($H191<=ProjectData!$B$67,-PPMT(ProjectData!$B$66,$H191,ProjectData!$B$67,(ProjectData!$B$45*10^6)*ProjectData!$B$63*ProjectData!$B$64),0) -> 0 | K191: =J191+I191 -> 0 | M191: 1 | N191: =IF($H191<=ProjectData!$B$67,-ISPMT(ProjectData!$B$66,$H191,ProjectData!$B$67,(ProjectData!$B$45*10^6)*ProjectData!$B$63*ProjectData!$B$65),0) -> 4863231.068 | O191: =IF($H191<=ProjectData!$B$67,-PPMT(ProjectData!$B$66,$H191,ProjectData!$B$67,(ProjectData!$B$45*10^6)*ProjectData!$B$63*ProjectData!$B$65),0) -> 2565992.2 | P191: =O191+N191 -> 7429223.268
C192: 2 | D192: =IF(C192<=ProjectData!B$60,-ISPMT(ProjectData!B$61,C192,ProjectData!B$60,ProjectData!B$59*ProjectData!B$43),0) -> 0.952146 | E192: =IF(C192<=ProjectData!B$60,-PPMT(ProjectData!B$61,C192,ProjectData!B$60,ProjectData!B$43*ProjectData!B$59),0) -> 0.2031835898 | F192: 1.15532959 | H192: 2 | I192: =IF($H192<=ProjectData!$B$67,-ISPMT(ProjectData!$B$66,$H192,ProjectData!$B$67,(ProjectData!$B$45*10^6)*ProjectData!$B$63*ProjectData!$B$64),0) -> 0 | J192: =IF($H192<=ProjectData!$B$67,-PPMT(ProjectData!$B$66,$H192,ProjectData!$B$67,(ProjectData!$B$45*10^6)*ProjectData!$B$63*ProjectData!$B$64),0) -> 0 | K192: 0 | M192: 2 | N192: =IF($H192<=ProjectData!$B$67,-ISPMT(ProjectData!$B$66,$H192,ProjectData!$B$67,(ProjectData!$B$45*10^6)*ProjectData!$B$63*ProjectData!$B$65),0) -> 4322872.061 | O192: =IF($H192<=ProjectData!$B$67,-PPMT(ProjectData!$B$66,$H192,ProjectData!$B$67,(ProjectData!$B$45*10^6)*ProjectData!$B$63*ProjectData!$B$65),0) -> 2873911.263 | P192: 7196783.324
C193: 3 | D193: =IF(C193<=ProjectData!B$60,-ISPMT(ProjectData!B$61,C193,ProjectData!B$60,ProjectData!B$59*ProjectData!B$43),0) -> 0.899249 | E193: =IF(C193<=ProjectData!B$60,-PPMT(ProjectData!B$61,C193,ProjectData!B$60,ProjectData!B$43*ProjectData!B$59),0) -> 0.2235019487 | F193: 1.122750949 | H193: 3 | I193: =IF($H193<=ProjectData!$B$67,-ISPMT(ProjectData!$B$66,$H193,ProjectData!$B$67,(ProjectData!$B$45*10^6)*ProjectData!$B$63*ProjectData!$B$64),0) -> 0 | J193: =IF($H193<=ProjectData!$B$67,-PPMT(ProjectData!$B$66,$H193,ProjectData!$B$67,(ProjectData!$B$45*10^6)*ProjectData!$B$63*ProjectData!$B$64),0) -> 0 | K193: 0 | M193: 3 | N193: =IF($H193<=ProjectData!$B$67,-ISPMT(ProjectData!$B$66,$H193,ProjectData!$B$67,(ProjectData!$B$45*10^6)*ProjectData!$B$63*ProjectData!$B$65),0) -> 3782513.053 | O193: =IF($H193<=ProjectData!$B$67,-PPMT(ProjectData!$B$66,$H193,ProjectData!$B$67,(ProjectData!$B$45*10^6)*ProjectData!$B$63*ProjectData!$B$65),0) -> 3218780.615 | P193: 7001293.668
C194: 4 | D194: =IF(C194<=ProjectData!B$60,-ISPMT(ProjectData!B$61,C194,ProjectData!B$60,ProjectData!B$59*ProjectData!B$43),0) -> 0.846352 | E194: =IF(C194<=ProjectData!B$60,-PPMT(ProjectData!B$61,C194,ProjectData!B$60,ProjectData!B$43*ProjectData!B$59),0) -> 0.2458521436 | F194: 1.092204144 | H194: 4 | I194: =IF($H194<=ProjectData!$B$67,-ISPMT(ProjectData!$B$66,$H194,ProjectData!$B$67,(ProjectData!$B$45*10^6)*ProjectData!$B$63*ProjectData!$B$64),0) -> 0 | J194: =IF($H194<=ProjectData!$B$67,-PPMT(ProjectData!$B$66,$H194,ProjectData!$B$67,(ProjectData!$B$45*10^6)*ProjectData!$B$63*ProjectData!$B$64),0) -> 0 | K194: 0 | M194: 4 | N194: =IF($H194<=ProjectData!$B$67,-ISPMT(ProjectData!$B$66,$H194,ProjectData!$B$67,(ProjectData!$B$45*10^6)*ProjectData!$B$63*ProjectData!$B$65),0) -> 3242154.046 | O194: =IF($H194<=ProjectData!$B$67,-PPMT(ProjectData!$B$66,$H194,ProjectData!$B$67,(ProjectData!$B$45*10^6)*ProjectData!$B$63*ProjectData!$B$65),0) -> 3605034.289 | P194: 6847188.334
C195: 5 | D195: =IF(C195<=ProjectData!B$60,-ISPMT(ProjectData!B$61,C195,ProjectData!B$60,ProjectData!B$59*ProjectData!B$43),0) -> 0.793455 | E195: =IF(C195<=ProjectData!B$60,-PPMT(ProjectData!B$61,C195,ProjectData!B$60,ProjectData!B$43*ProjectData!B$59),0) -> 0.270437358 | F195: 1.063892358 | H195: 5 | I195: =IF($H195<=ProjectData!$B$67,-ISPMT(ProjectData!$B$66,$H195,ProjectData!$B$67,(ProjectData!$B$45*10^6)*ProjectData!$B$63*ProjectData!$B$64),0) -> 0 | J195: =IF($H195<=ProjectData!$B$67,-PPMT(ProjectData!$B$66,$H195,ProjectData!$B$67,(ProjectData!$B$45*10^6)*ProjectData!$B$63*ProjectData!$B$64),0) -> 0 | K195: 0 | M195: 5 | N195: =IF($H195<=ProjectData!$B$67,-ISPMT(ProjectData!$B$66,$H195,ProjectData!$B$67,(ProjectData!$B$45*10^6)*ProjectData!$B$63*ProjectData!$B$65),0) -> 2701795.038 | O195: =IF($H195<=ProjectData!$B$67,-PPMT(ProjectData!$B$66,$H195,ProjectData!$B$67,(ProjectData!$B$45*10^6)*ProjectData!$B$63*ProjectData!$B$65),0) -> 4037638.404 | P195: 6739433.441
C196: 6 | D196: =IF(C196<=ProjectData!B$60,-ISPMT(ProjectData!B$61,C196,ProjectData!B$60,ProjectData!B$59*ProjectData!B$43),0) -> 0.740558 | E196: =IF(C196<=ProjectData!B$60,-PPMT(ProjectData!B$61,C196,ProjectData!B$60,ProjectData!B$43*ProjectData!B$59),0) -> 0.2974810938 | F196: 1.038039094 | H196: 6 | I196: =IF($H196<=ProjectData!$B$67,-ISPMT(ProjectData!$B$66,$H196,ProjectData!$B$67,(ProjectData!$B$45*10^6)*ProjectData!$B$63*ProjectData!$B$64),0) -> 0 | J196: =IF($H196<=ProjectData!$B$67,-PPMT(ProjectData!$B$66,$H196,ProjectData!$B$67,(ProjectData!$B$45*10^6)*ProjectData!$B$63*ProjectData!$B$64),0) -> 0 | K196: 0 | M196: 6 | N196: =IF($H196<=ProjectData!$B$67,-ISPMT(ProjectData!$B$66,$H196,ProjectData!$B$67,(ProjectData!$B$45*10^6)*ProjectData!$B$63*ProjectData!$B$65),0) -> 2161436.03 | O196: =IF($H196<=ProjectData!$B$67,-PPMT(ProjectData!$B$66,$H196,ProjectData!$B$67,(ProjectData!$B$45*10^6)*ProjectData!$B$63*ProjectData!$B$65),0) -> 4522155.012 | P196: 6683591.042
C197: 7 | D197: =IF(C197<=ProjectData!B$60,-ISPMT(ProjectData!B$61,C197,ProjectData!B$60,ProjectData!B$59*ProjectData!B$43),0) -> 0.687661 | E197: =IF(C197<=ProjectData!B$60,-PPMT(ProjectData!B$61,C197,ProjectData!B$60,ProjectData!B$43*ProjectData!B$59),0) -> 0.3272292031 | F197: 1.014890203 | H197: 7 | I197: =IF($H197<=ProjectData!$B$67,-ISPMT(ProjectData!$B$66,$H197,ProjectData!$B$67,(ProjectData!$B$45*10^6)*ProjectData!$B$63*ProjectData!$B$64),0) -> 0 | J197: =IF($H197<=ProjectData!$B$67,-PPMT(ProjectData!$B$66,$H197,ProjectData!$B$67,(ProjectData!$B$45*10^6)*ProjectData!$B$63*ProjectData!$B$64),0) -> 0 | K197: 0 | M197: 7 | N197: =IF($H197<=ProjectData!$B$67,-ISPMT(ProjectData!$B$66,$H197,ProjectData!$B$67,(ProjectData!$B$45*10^6)*ProjectData!$B$63*ProjectData!$B$65),0) -> 1621077.023 | O197: =IF($H197<=ProjectData!$B$67,-PPMT(ProjectData!$B$66,$H197,ProjectData!$B$67,(ProjectData!$B$45*10^6)*ProjectData!$B$63*ProjectData!$B$65),0) -> 5064813.613 | P197: 6685890.636
C198: 8 | D198: =IF(C198<=ProjectData!B$60,-ISPMT(ProjectData!B$61,C198,ProjectData!B$60,ProjectData!B$59*ProjectData!B$43),0) -> 0.634764 | E198: =IF(C198<=ProjectData!B$60,-PPMT(ProjectData!B$61,C198,ProjectData!B$60,ProjectData!B$43*ProjectData!B$59),0) -> 0.3599521234 | F198: 0.9947161234 | H198: 8 | I198: =IF($H198<=ProjectData!$B$67,-ISPMT(ProjectData!$B$66,$H198,ProjectData!$B$67,(ProjectData!$B$45*10^6)*ProjectData!$B$63*ProjectData!$B$64),0) -> 0 | J198: =IF($H198<=ProjectData!$B$67,-PPMT(ProjectData!$B$66,$H198,ProjectData!$B$67,(ProjectData!$B$45*10^6)*ProjectData!$B$63*ProjectData!$B$64),0) -> 0 | K198: 0 | M198: 8 | N198: =IF($H198<=ProjectData!$B$67,-ISPMT(ProjectData!$B$66,$H198,ProjectData!$B$67,(ProjectData!$B$45*10^6)*ProjectData!$B$63*ProjectData!$B$65),0) -> 1080718.015 | O198: =IF($H198<=ProjectData!$B$67,-PPMT(ProjectData!$B$66,$H198,ProjectData!$B$67,(ProjectData!$B$45*10^6)*ProjectData!$B$63*ProjectData!$B$65),0) -> 5672591.247 | P198: 6753309.262
C199: 9 | D199: =IF(C199<=ProjectData!B$60,-ISPMT(ProjectData!B$61,C199,ProjectData!B$60,ProjectData!B$59*ProjectData!B$43),0) -> 0.581867 | E199: =IF(C199<=ProjectData!B$60,-PPMT(ProjectData!B$61,C199,ProjectData!B$60,ProjectData!B$43*ProjectData!B$59),0) -> 0.3959473358 | F199: 0.9778143358 | H199: 9 | I199: =IF($H199<=ProjectData!$B$67,-ISPMT(ProjectData!$B$66,$H199,ProjectData!$B$67,(ProjectData!$B$45*10^6)*ProjectData!$B$63*ProjectData!$B$64),0) -> 0 | J199: =IF($H199<=ProjectData!$B$67,-PPMT(ProjectData!$B$66,$H199,ProjectData!$B$67,(ProjectData!$B$45*10^6)*ProjectData!$B$63*ProjectData!$B$64),0) -> 0 | K199: 0 | M199: 9 | N199: =IF($H199<=ProjectData!$B$67,-ISPMT(ProjectData!$B$66,$H199,ProjectData!$B$67,(ProjectData!$B$45*10^6)*ProjectData!$B$63*ProjectData!$B$65),0) -> 540359.0076 | O199: =IF($H199<=ProjectData!$B$67,-PPMT(ProjectData!$B$66,$H199,ProjectData!$B$67,(ProjectData!$B$45*10^6)*ProjectData!$B$63*ProjectData!$B$65),0) -> 6353302.197 | P199: 6893661.204
C200: 10 | D200: =IF(C200<=ProjectData!B$60,-ISPMT(ProjectData!B$61,C200,ProjectData!B$60,ProjectData!B$59*ProjectData!B$43),0) -> 0.52897 | E200: =IF(C200<=ProjectData!B$60,-PPMT(ProjectData!B$61,C200,ProjectData!B$60,ProjectData!B$43*ProjectData!B$59),0) -> 0.4355420694 | F200: 0.9645120694 | H200: 10 | I200: =IF($H200<=ProjectData!$B$67,-ISPMT(ProjectData!$B$66,$H200,ProjectData!$B$67,(ProjectData!$B$45*10^6)*ProjectData!$B$63*ProjectData!$B$64),0) -> 0 | J200: =IF($H200<=ProjectData!$B$67,-PPMT(ProjectData!$B$66,$H200,ProjectData!$B$67,(ProjectData!$B$45*10^6)*ProjectData!$B$63*ProjectData!$B$64),0) -> 0 | K200: 0 | M200: 10 | N200: =IF($H200<=ProjectData!$B$67,-ISPMT(ProjectData!$B$66,$H200,ProjectData!$B$67,(ProjectData!$B$45*10^6)*ProjectData!$B$63*ProjectData!$B$65),0) -> 0 | O200: =IF($H200<=ProjectData!$B$67,-PPMT(ProjectData!$B$66,$H200,ProjectData!$B$67,(ProjectData!$B$45*10^6)*ProjectData!$B$63*ProjectData!$B$65),0) -> 7115698.46 | P200: 7115698.46
C201: 11 | D201: =IF(C201<=ProjectData!B$60,-ISPMT(ProjectData!B$61,C201,ProjectData!B$60,ProjectData!B$59*ProjectData!B$43),0) -> 0.476073 | E201: =IF(C201<=ProjectData!B$60,-PPMT(ProjectData!B$61,C201,ProjectData!B$60,ProjectData!B$43*ProjectData!B$59),0) -> 0.4790962763 | F201: 0.9551692763 | H201: 11 | I201: =IF($H201<=ProjectData!$B$67,-ISPMT(ProjectData!$B$66,$H201,ProjectData!$B$67,(ProjectData!$B$45*10^6)*ProjectData!$B$63*ProjectData!$B$64),0) -> 0 | J201: =IF($H201<=ProjectData!$B$67,-PPMT(ProjectData!$B$66,$H201,ProjectData!$B$67,(ProjectData!$B$45*10^6)*ProjectData!$B$63*ProjectData!$B$64),0) -> 0 | K201: 0 | M201: 11 | N201: =IF($H201<=ProjectData!$B$67,-ISPMT(ProjectData!$B$66,$H201,ProjectData!$B$67,(ProjectData!$B$45*10^6)*ProjectData!$B$63*ProjectData!$B$65),0) -> 0 | O201: =IF($H201<=ProjectData!$B$67,-PPMT(ProjectData!$B$66,$H201,ProjectData!$B$67,(ProjectData!$B$45*10^6)*ProjectData!$B$63*ProjectData!$B$65),0) -> 0 | P201: 0
C202: 12 | D202: =IF(C202<=ProjectData!B$60,-ISPMT(ProjectData!B$61,C202,ProjectData!B$60,ProjectData!B$59*ProjectData!B$43),0) -> 0.423176 | E202: =IF(C202<=ProjectData!B$60,-PPMT(ProjectData!B$61,C202,ProjectData!B$60,ProjectData!B$43*ProjectData!B$59),0) -> 0.5270059039 | F202: 0.9501819039 | H202: 12 | I202: =IF($H202<=ProjectData!$B$67,-ISPMT(ProjectData!$B$66,$H202,ProjectData!$B$67,(ProjectData!$B$45*10^6)*ProjectData!$B$63*ProjectData!$B$64),0) -> 0 | J202: =IF($H202<=ProjectData!$B$67,-PPMT(ProjectData!$B$66,$H202,ProjectData!$B$67,(ProjectData!$B$45*10^6)*ProjectData!$B$63*ProjectData!$B$64),0) -> 0 | K202: 0 | M202: 12 | N202: =IF($H202<=ProjectData!$B$67,-ISPMT(ProjectData!$B$66,$H202,ProjectData!$B$67,(ProjectData!$B$45*10^6)*ProjectData!$B$63*ProjectData!$B$65),0) -> 0 | O202: =IF($H202<=ProjectData!$B$67,-PPMT(ProjectData!$B$66,$H202,ProjectData!$B$67,(ProjectData!$B$45*10^6)*ProjectData!$B$63*ProjectData!$B$65),0) -> 0 | P202: 0
C203: 13 | D203: =IF(C203<=ProjectData!B$60,-ISPMT(ProjectData!B$61,C203,ProjectData!B$60,ProjectData!B$59*ProjectData!B$43),0) -> 0.370279 | E203: =IF(C203<=ProjectData!B$60,-PPMT(ProjectData!B$61,C203,ProjectData!B$60,ProjectData!B$43*ProjectData!B$59),0) -> 0.5797064943 | F203: 0.9499854943 | H203: 13 | I203: =IF($H203<=ProjectData!$B$67,-ISPMT(ProjectData!$B$66,$H203,ProjectData!$B$67,(ProjectData!$B$45*10^6)*ProjectData!$B$63*ProjectData!$B$64),0) -> 0 | J203: =IF($H203<=ProjectData!$B$67,-PPMT(ProjectData!$B$66,$H203,ProjectData!$B$67,(ProjectData!$B$45*10^6)*ProjectData!$B$63*ProjectData!$B$64),0) -> 0 | K203: 0 | M203: 13 | N203: =IF($H203<=ProjectData!$B$67,-ISPMT(ProjectData!$B$66,$H203,ProjectData!$B$67,(ProjectData!$B$45*10^6)*ProjectData!$B$63*ProjectData!$B$65),0) -> 0 | O203: =IF($H203<=ProjectData!$B$67,-PPMT(ProjectData!$B$66,$H203,ProjectData!$B$67,(ProjectData!$B$45*10^6)*ProjectData!$B$63*ProjectData!$B$65),0) -> 0 | P203: 0
C204: 14 | D204: =IF(C204<=ProjectData!B$60,-ISPMT(ProjectData!B$61,C204,ProjectData!B$60,ProjectData!B$59*ProjectData!B$43),0) -> 0.317382 | E204: =IF(C204<=ProjectData!B$60,-PPMT(ProjectData!B$61,C204,ProjectData!B$60,ProjectData!B$43*ProjectData!B$59),0) -> 0.6376771438 | F204: 0.9550591438 | H204: 14 | I204: =IF($H204<=ProjectData!$B$67,-ISPMT(ProjectData!$B$66,$H204,ProjectData!$B$67,(ProjectData!$B$45*10^6)*ProjectData!$B$63*ProjectData!$B$64),0) -> 0 | J204: =IF($H204<=ProjectData!$B$67,-PPMT(ProjectData!$B$66,$H204,ProjectData!$B$67,(ProjectData!$B$45*10^6)*ProjectData!$B$63*ProjectData!$B$64),0) -> 0 | K204: 0 | M204: 14 | N204: =IF($H204<=ProjectData!$B$67,-ISPMT(ProjectData!$B$66,$H204,ProjectData!$B$67,(ProjectData!$B$45*10^6)*ProjectData!$B$63*ProjectData!$B$65),0) -> 0 | O204: =IF($H204<=ProjectData!$B$67,-PPMT(ProjectData!$B$66,$H204,ProjectData!$B$67,(ProjectData!$B$45*10^6)*ProjectData!$B$63*ProjectData!$B$65),0) -> 0 | P204: 0
C205: 15 | D205: =IF(C205<=ProjectData!B$60,-ISPMT(ProjectData!B$61,C205,ProjectData!B$60,ProjectData!B$59*ProjectData!B$43),0) -> 0.264485 | E205: =IF(C205<=ProjectData!B$60,-PPMT(ProjectData!B$61,C205,ProjectData!B$60,ProjectData!B$43*ProjectData!B$59),0) -> 0.7014448581 | F205: 0.9659298581 | H205: 15 | I205: =IF($H205<=ProjectData!$B$67,-ISPMT(ProjectData!$B$66,$H205,ProjectData!$B$67,(ProjectData!$B$45*10^6)*ProjectData!$B$63*ProjectData!$B$64),0) -> 0 | J205: =IF($H205<=ProjectData!$B$67,-PPMT(ProjectData!$B$66,$H205,ProjectData!$B$67,(ProjectData!$B$45*10^6)*ProjectData!$B$63*ProjectData!$B$64),0) -> 0 | K205: 0 | M205: 15 | N205: =IF($H205<=ProjectData!$B$67,-ISPMT(ProjectData!$B$66,$H205,ProjectData!$B$67,(ProjectData!$B$45*10^6)*ProjectData!$B$63*ProjectData!$B$65),0) -> 0 | O205: =IF($H205<=ProjectData!$B$67,-PPMT(ProjectData!$B$66,$H205,ProjectData!$B$67,(ProjectData!$B$45*10^6)*ProjectData!$B$63*ProjectData!$B$65),0) -> 0 | P205: 0
C206: 16 | D206: =IF(C206<=ProjectData!B$60,-ISPMT(ProjectData!B$61,C206,ProjectData!B$60,ProjectData!B$59*ProjectData!B$43),0) -> 0.211588 | E206: =IF(C206<=ProjectData!B$60,-PPMT(ProjectData!B$61,C206,ProjectData!B$60,ProjectData!B$43*ProjectData!B$59),0) -> 0.7715893439 | F206: 0.9831773439 | H206: 16 | I206: =IF($H206<=ProjectData!$B$67,-ISPMT(ProjectData!$B$66,$H206,ProjectData!$B$67,(ProjectData!$B$45*10^6)*ProjectData!$B$63*ProjectData!$B$64),0) -> 0 | J206: =IF($H206<=ProjectData!$B$67,-PPMT(ProjectData!$B$66,$H206,ProjectData!$B$67,(ProjectData!$B$45*10^6)*ProjectData!$B$63*ProjectData!$B$64),0) -> 0 | K206: 0 | M206: 16 | N206: =IF($H206<=ProjectData!$B$67,-ISPMT(ProjectData!$B$66,$H206,ProjectData!$B$67,(ProjectData!$B$45*10^6)*ProjectData!$B$63*ProjectData!$B$65),0) -> 0 | O206: =IF($H206<=ProjectData!$B$67,-PPMT(ProjectData!$B$66,$H206,ProjectData!$B$67,(ProjectData!$B$45*10^6)*ProjectData!$B$63*ProjectData!$B$65),0) -> 0 | P206: 0
C207: 17 | D207: =IF(C207<=ProjectData!B$60,-ISPMT(ProjectData!B$61,C207,ProjectData!B$60,ProjectData!B$59*ProjectData!B$43),0) -> 0.158691 | E207: =IF(C207<=ProjectData!B$60,-PPMT(ProjectData!B$61,C207,ProjectData!B$60,ProjectData!B$43*ProjectData!B$59),0) -> 0.8487482783 | F207: 1.007439278 | H207: 17 | I207: =IF($H207<=ProjectData!$B$67,-ISPMT(ProjectData!$B$66,$H207,ProjectData!$B$67,(ProjectData!$B$45*10^6)*ProjectData!$B$63*ProjectData!$B$64),0) -> 0 | J207: =IF($H207<=ProjectData!$B$67,-PPMT(ProjectData!$B$66,$H207,ProjectData!$B$67,(ProjectData!$B$45*10^6)*ProjectData!$B$63*ProjectData!$B$64),0) -> 0 | K207: 0 | M207: 17 | N207: =IF($H207<=ProjectData!$B$67,-ISPMT(ProjectData!$B$66,$H207,ProjectData!$B$67,(ProjectData!$B$45*10^6)*ProjectData!$B$63*ProjectData!$B$65),0) -> 0 | O207: =IF($H207<=ProjectData!$B$67,-PPMT(ProjectData!$B$66,$H207,ProjectData!$B$67,(ProjectData!$B$45*10^6)*ProjectData!$B$63*ProjectData!$B$65),0) -> 0 | P207: 0
C208: 18 | D208: =IF(C208<=ProjectData!B$60,-ISPMT(ProjectData!B$61,C208,ProjectData!B$60,ProjectData!B$59*ProjectData!B$43),0) -> 0.105794 | E208: =IF(C208<=ProjectData!B$60,-PPMT(ProjectData!B$61,C208,ProjectData!B$60,ProjectData!B$43*ProjectData!B$59),0) -> 0.9336231062 | F208: 1.039417106 | H208: 18 | I208: =IF($H208<=ProjectData!$B$67,-ISPMT(ProjectData!$B$66,$H208,ProjectData!$B$67,(ProjectData!$B$45*10^6)*ProjectData!$B$63*ProjectData!$B$64),0) -> 0 | J208: =IF($H208<=ProjectData!$B$67,-PPMT(ProjectData!$B$66,$H208,ProjectData!$B$67,(ProjectData!$B$45*10^6)*ProjectData!$B$63*ProjectData!$B$64),0) -> 0 | K208: 0 | M208: 18 | N208: =IF($H208<=ProjectData!$B$67,-ISPMT(ProjectData!$B$66,$H208,ProjectData!$B$67,(ProjectData!$B$45*10^6)*ProjectData!$B$63*ProjectData!$B$65),0) -> 0 | O208: =IF($H208<=ProjectData!$B$67,-PPMT(ProjectData!$B$66,$H208,ProjectData!$B$67,(ProjectData!$B$45*10^6)*ProjectData!$B$63*ProjectData!$B$65),0) -> 0 | P208: 0
C209: 19 | D209: =IF(C209<=ProjectData!B$60,-ISPMT(ProjectData!B$61,C209,ProjectData!B$60,ProjectData!B$59*ProjectData!B$43),0) -> 0.052897 | E209: =IF(C209<=ProjectData!B$60,-PPMT(ProjectData!B$61,C209,ProjectData!B$60,ProjectData!B$43*ProjectData!B$59),0) -> 1.026985417 | F209: 1.079882417 | H209: 19 | I209: =IF($H209<=ProjectData!$B$67,-ISPMT(ProjectData!$B$66,$H209,ProjectData!$B$67,(ProjectData!$B$45*10^6)*ProjectData!$B$63*ProjectData!$B$64),0) -> 0 | J209: =IF($H209<=ProjectData!$B$67,-PPMT(ProjectData!$B$66,$H209,ProjectData!$B$67,(ProjectData!$B$45*10^6)*ProjectData!$B$63*ProjectData!$B$64),0) -> 0 | K209: 0 | M209: 19 | N209: =IF($H209<=ProjectData!$B$67,-ISPMT(ProjectData!$B$66,$H209,ProjectData!$B$67,(ProjectData!$B$45*10^6)*ProjectData!$B$63*ProjectData!$B$65),0) -> 0 | O209: =IF($H209<=ProjectData!$B$67,-PPMT(ProjectData!$B$66,$H209,ProjectData!$B$67,(ProjectData!$B$45*10^6)*ProjectData!$B$63*ProjectData!$B$65),0) -> 0 | P209: 0
C210: 20 | D210: =IF(C210<=ProjectData!B$60,-ISPMT(ProjectData!B$61,C210,ProjectData!B$60,ProjectData!B$59*ProjectData!B$43),0) -> 0 | E210: =IF(C210<=ProjectData!B$60,-PPMT(ProjectData!B$61,C210,ProjectData!B$60,ProjectData!B$43*ProjectData!B$59),0) -> 1.129683958 | F210: 1.129683958 | H210: 20 | I210: =IF($H210<=ProjectData!$B$67,-ISPMT(ProjectData!$B$66,$H210,ProjectData!$B$67,(ProjectData!$B$45*10^6)*ProjectData!$B$63*ProjectData!$B$64),0) -> 0 | J210: =IF($H210<=ProjectData!$B$67,-PPMT(ProjectData!$B$66,$H210,ProjectData!$B$67,(ProjectData!$B$45*10^6)*ProjectData!$B$63*ProjectData!$B$64),0) -> 0 | K210: 0 | M210: 20 | N210: =IF($H210<=ProjectData!$B$67,-ISPMT(ProjectData!$B$66,$H210,ProjectData!$B$67,(ProjectData!$B$45*10^6)*ProjectData!$B$63*ProjectData!$B$65),0) -> 0 | O210: =IF($H210<=ProjectData!$B$67,-PPMT(ProjectData!$B$66,$H210,ProjectData!$B$67,(ProjectData!$B$45*10^6)*ProjectData!$B$63*ProjectData!$B$65),0) -> 0 | P210: 0
C211: 21 | D211: =IF(C211<=ProjectData!B$60,-ISPMT(ProjectData!B$61,C211,ProjectData!B$60,ProjectData!B$59*ProjectData!B$43),0) -> 0 | E211: =IF(C211<=ProjectData!B$60,-PPMT(ProjectData!B$61,C211,ProjectData!B$60,ProjectData!B$43*ProjectData!B$59),0) -> 0 | F211: 0 | H211: 21 | I211: =IF($H211<=ProjectData!$B$67,-ISPMT(ProjectData!$B$66,$H211,ProjectData!$B$67,(ProjectData!$B$45*10^6)*ProjectData!$B$63*ProjectData!$B$64),0) -> 0 | J211: =IF($H211<=ProjectData!$B$67,-PPMT(ProjectData!$B$66,$H211,ProjectData!$B$67,(ProjectData!$B$45*10^6)*ProjectData!$B$63*ProjectData!$B$64),0) -> 0 | K211: 0 | M211: 21 | N211: =IF($H211<=ProjectData!$B$67,-ISPMT(ProjectData!$B$66,$H211,ProjectData!$B$67,(ProjectData!$B$45*10^6)*ProjectData!$B$63*ProjectData!$B$65),0) -> 0 | O211: =IF($H211<=ProjectData!$B$67,-PPMT(ProjectData!$B$66,$H211,ProjectData!$B$67,(ProjectData!$B$45*10^6)*ProjectData!$B$63*ProjectData!$B$65),0) -> 0 | P211: 0
C212: 22 | D212: =IF(C212<=ProjectData!B$60,-ISPMT(ProjectData!B$61,C212,ProjectData!B$60,ProjectData!B$59*ProjectData!B$43),0) -> 0 | E212: =IF(C212<=ProjectData!B$60,-PPMT(ProjectData!B$61,C212,ProjectData!B$60,ProjectData!B$43*ProjectData!B$59),0) -> 0 | F212: 0 | H212: 22 | I212: =IF($H212<=ProjectData!$B$67,-ISPMT(ProjectData!$B$66,$H212,ProjectData!$B$67,(ProjectData!$B$45*10^6)*ProjectData!$B$63*ProjectData!$B$64),0) -> 0 | J212: =IF($H212<=ProjectData!$B$67,-PPMT(ProjectData!$B$66,$H212,ProjectData!$B$67,(ProjectData!$B$45*10^6)*ProjectData!$B$63*ProjectData!$B$64),0) -> 0 | K212: 0 | M212: 22 | N212: =IF($H212<=ProjectData!$B$67,-ISPMT(ProjectData!$B$66,$H212,ProjectData!$B$67,(ProjectData!$B$45*10^6)*ProjectData!$B$63*ProjectData!$B$65),0) -> 0 | O212: =IF($H212<=ProjectData!$B$67,-PPMT(ProjectData!$B$66,$H212,ProjectData!$B$67,(ProjectData!$B$45*10^6)*ProjectData!$B$63*ProjectData!$B$65),0) -> 0 | P212: 0
C213: 23 | D213: =IF(C213<=ProjectData!B$60,-ISPMT(ProjectData!B$61,C213,ProjectData!B$60,ProjectData!B$59*ProjectData!B$43),0) -> 0 | E213: =IF(C213<=ProjectData!B$60,-PPMT(ProjectData!B$61,C213,ProjectData!B$60,ProjectData!B$43*ProjectData!B$59),0) -> 0 | F213: 0 | H213: 23 | I213: =IF($H213<=ProjectData!$B$67,-ISPMT(ProjectData!$B$66,$H213,ProjectData!$B$67,(ProjectData!$B$45*10^6)*ProjectData!$B$63*ProjectData!$B$64),0) -> 0 | J213: =IF($H213<=ProjectData!$B$67,-PPMT(ProjectData!$B$66,$H213,ProjectData!$B$67,(ProjectData!$B$45*10^6)*ProjectData!$B$63*ProjectData!$B$64),0) -> 0 | K213: 0 | M213: 23 | N213: =IF($H213<=ProjectData!$B$67,-ISPMT(ProjectData!$B$66,$H213,ProjectData!$B$67,(ProjectData!$B$45*10^6)*ProjectData!$B$63*ProjectData!$B$65),0) -> 0 | O213: =IF($H213<=ProjectData!$B$67,-PPMT(ProjectData!$B$66,$H213,ProjectData!$B$67,(ProjectData!$B$45*10^6)*ProjectData!$B$63*ProjectData!$B$65),0) -> 0 | P213: 0
C214: 24 | D214: =IF(C214<=ProjectData!B$60,-ISPMT(ProjectData!B$61,C214,ProjectData!B$60,ProjectData!B$59*ProjectData!B$43),0) -> 0 | E214: =IF(C214<=ProjectData!B$60,-PPMT(ProjectData!B$61,C214,ProjectData!B$60,ProjectData!B$43*ProjectData!B$59),0) -> 0 | F214: 0 | H214: 24 | I214: =IF($H214<=ProjectData!$B$67,-ISPMT(ProjectData!$B$66,$H214,ProjectData!$B$67,(ProjectData!$B$45*10^6)*ProjectData!$B$63*ProjectData!$B$64),0) -> 0 | J214: =IF($H214<=ProjectData!$B$67,-PPMT(ProjectData!$B$66,$H214,ProjectData!$B$67,(ProjectData!$B$45*10^6)*ProjectData!$B$63*ProjectData!$B$64),0) -> 0 | K214: 0 | M214: 24 | N214: =IF($H214<=ProjectData!$B$67,-ISPMT(ProjectData!$B$66,$H214,ProjectData!$B$67,(ProjectData!$B$45*10^6)*ProjectData!$B$63*ProjectData!$B$65),0) -> 0 | O214: =IF($H214<=ProjectData!$B$67,-PPMT(ProjectData!$B$66,$H214,ProjectData!$B$67,(ProjectData!$B$45*10^6)*ProjectData!$B$63*ProjectData!$B$65),0) -> 0 | P214: 0
... 8 more rows

Sheet Deflators
C2: =CONCATENATE("Conversion to Year ",E4," dollars and back for consistency with multiplier data.") -> Conversion to Year 2014 dollars and back for consistency with multiplier data.
C4: Year of Multiplier Data | E4: =IF(ProjectData!B12="MYCOUNTY",'User Add-in Location'!D3,IF(ProjectData!B12="MYREGION",'User Add-in Location'!D4,Multipliers!D2)) -> 2014 | F4: =IF(E4=0,"ERROR","") ->  | G4: Region of Analysis | I4: =ProjectData!B12 -> California
A5: Warning | C5: Year of Construction $s | E5: =+ProjectData!B21 -> 2009
A7: This Worksheet contains Data and Formulas that are an integral part of the JEDI model. | D7: Deflator | F7: =HLOOKUP($E$5,$D$11:$AM$39,$D$51) -> 1.0843
D8: Inflator | F8: =HLOOKUP($E$5,$D$11:$AM$39,$D$52) -> 0.9222539887
A9: Although the data and formulas are available for review they must not be changed.
A11: Any changes to the data or formulas will impact the analysis and may invalidate the model results. | D11: 2005 | E11: 2006 | F11: 2007 | G11: 2008 | H11: 2009 | I11: 2010 | J11: 2011 | K11: 2012 | L11: 2013 | M11: 2014 | N11: 2015 | O11: 2016 | P11: 2017 | Q11: 2018 | R11: 2019 | S11: 2020 | T11: 2021 | U11: 2022 | V11: 2023 | W11: 2024 | X11: 2025 | Y11: 2026 | Z11: 2027 | AA11: 2028 | AB11: 2029 | AC11: 2030 | AD11: 2031 | AE11: 2032 | AF11: 2033 | AG11: 2034 | AH11: 2035 | AI11: 2036 | AJ11: 2037 | AK11: 2038 | AL11: 2039 | AM11: 2040
C12: 2007$ | D12: 0.9428954977 | E12: 0.9735646427 | F12: 1 | G12: 1.020755886 | H12: 1.032631144 | I12: 1.041718298 | J12: 1.062887237 | K12: 1.082300702 | L12: 1.100888063 | M12: 1.11968195 | N12: 1.134861627 | O12: 1.152829409 | P12: 1.173482032 | Q12: 1.196199917 | R12: 1.22015696 | S12: 1.244630318 | T12: 1.26664615 | U12: 1.289051411 | V12: 1.311852992 | W12: 1.335057902 | X12: 1.358673275 | Y12: 1.382706373 | Z12: 1.407164583 | AA12: 1.432055427 | AB12: 1.457386556 | AC12: 1.483165758 | AD12: 1.50940096 | AE12: 1.536100227 | AF12: 1.563271768 | AG12: 1.590923936 | AH12: 1.619065235 | AI12: 1.647704315 | AJ12: 1.676849982 | AK12: 1.706511196 | AL12: 1.736697077 | AM12: 1.767416906
D13: 1.060562918 | E13: 1.027153161 | F13: 1 | G13: 0.9796661608 | H13: 0.9684 | I13: 0.9599524187 | J13: 0.9408335762 | K13: 0.9239576376 | L13: 0.908357565 | M13: 0.8931107627 | N13: 0.8811646952 | O13: 0.8674310283 | P13: 0.8521647307 | Q13: 0.835980663 | R13: 0.8195666892 | S13: 0.8034514229 | T13: 0.7894864721 | U13: 0.775764249 | V13: 0.7622805346 | W13: 0.7490311833 | X13: 0.7360121216 | Y13: 0.7232193469 | Z13: 0.710648926 | AA13: 0.6982969941 | AB13: 0.6861597536 | AC13: 0.674233473 | AD13: 0.6625144854 | AE13: 0.6509991879 | AF13: 0.6396840401 | AG13: 0.6285655631 | AH13: 0.6176403387 | AI13: 0.6069050077 | AJ13: 0.5963562697 | AK13: 0.5859908815 | AL13: 0.5758056561 | AM13: 0.5657974622
C14: 2008$ | D14: 0.9237228123 | E14: 0.9537683359 | F14: 0.9796661608 | G14: 1 | H14: 1.011633789 | I14: 1.020536166 | J14: 1.041274659 | K14: 1.060293374 | L14: 1.078502782 | M14: 1.096914517 | N14: 1.111785534 | O14: 1.129387962 | P14: 1.149620637 | Q14: 1.171876581 | R14: 1.195346485 | S14: 1.219322205 | T14: 1.24089037 | U14: 1.262840047 | V14: 1.285177984 | W14: 1.307911049 | X14: 1.331046231 | Y14: 1.354590644 | Z14: 1.378551525 | AA14: 1.402936242 | AB14: 1.427752292 | AC14: 1.453007304 | AD14: 1.478709043 | AE14: 1.504865412 | AF14: 1.531484451 | AG14: 1.558574345 | AH14: 1.586143423 | AI14: 1.61420016 | AJ14: 1.642753184 | AK14: 1.671811272 | AL14: 1.701383358 | AM14: 1.731478535
D15: 1.082575841 | E15: 1.048472635 | F15: 1.020755886 | G15: 1 | H15: 0.9885 | I15: 0.9798770817 | J15: 0.9603614107 | K15: 0.943135197 | L15: 0.927211331 | M15: 0.9116480679 | N15: 0.8994540491 | O15: 0.8854353278 | P15: 0.8698521647 | Q15: 0.8533321823 | R15: 0.836577522 | S15: 0.820127769 | T15: 0.8058729633 | U15: 0.7918659233 | V15: 0.7781023424 | W15: 0.7645779891 | X15: 0.7512887053 | Y15: 0.7382304053 | Z15: 0.7253990741 | AA15: 0.7127907669 | AB15: 0.7004016073 | AC15: 0.6882277861 | AD15: 0.6762655605 | AE15: 0.6645112528 | AF15: 0.6529612491 | AG15: 0.6416119983 | AH15: 0.6304600111 | AI15: 0.6195018589 | AJ15: 0.6087341725 | AK15: 0.5981536414 | AL15: 0.5877570127 | AM15: 0.5775410898
C16: 2009$ | D16: 0.9131 | E16: 0.9428 | F16: 0.9684 | G16: 0.9885 | H16: 1 | I16: 1.0088 | J16: 1.0293 | K16: 1.0481 | L16: 1.0661 | M16: 1.0843 | N16: 1.099 | O16: 1.1164 | P16: 1.1364 | Q16: 1.1584 | R16: 1.1816 | S16: 1.2053 | T16: 1.226620131 | U16: 1.248317387 | V16: 1.270398437 | W16: 1.292870072 | X16: 1.3157392 | Y16: 1.339012851 | Z16: 1.362698183 | AA16: 1.386802475 | AB16: 1.411333141 | AC16: 1.43629772 | AD16: 1.461703889 | AE16: 1.487559459 | AF16: 1.51387238 | AG16: 1.54065074 | AH16: 1.567902773 | AI16: 1.595636859 | AJ16: 1.623861522 | AK16: 1.652585442 | AL16: 1.68181745 | AM16: 1.711566532
D17: 1.095170299 | E17: 1.060670344 | F17: 1.032631144 | G17: 1.011633789 | H17: 1 | I17: 0.9912767645 | J17: 0.9715340523 | K17: 0.9541074325 | L17: 0.9379983116 | M17: 0.9222539887 | N17: 0.9099181074 | O17: 0.8957362952 | P17: 0.8799718409 | Q17: 0.8632596685 | R17: 0.846310088 | S17: 0.8296689621 | T17: 0.815248319 | U17: 0.801078324 | V17: 0.7871546206 | W17: 0.7734729278 | X17: 0.7600290393 | Y17: 0.7468188217 | Z17: 0.7338382136 | AA17: 0.721083224 | AB17: 0.7085499315 | AC17: 0.6962344826 | AD17: 0.6841330911 | AE17: 0.6722420362 | AF17: 0.6605576622 | AG17: 0.6490763766 | AH17: 0.6377946496 | AI17: 0.6267090125 | AJ17: 0.6158160571 | AK17: 0.6051124344 | AL17: 0.5945948535 | AM17: 0.5842600808
A18: To view the data and formulas simply scroll over to the adjacent columns to the right. | C18: 2010$ | D18: 0.9051348136 | E18: 0.9345757335 | F18: 0.9599524187 | G18: 0.9798770817 | H18: 0.9912767645 | I18: 1 | J18: 1.020321174 | K18: 1.038957177 | L18: 1.056800159 | M18: 1.074841396 | N18: 1.089413164 | O18: 1.10666138 | P18: 1.126486915 | Q18: 1.148295004 | R18: 1.171292625 | S18: 1.194785884 | T18: 1.215920035 | U18: 1.23742802 | V18: 1.259316453 | W18: 1.281592062 | X18: 1.304261697 | Y18: 1.327332327 | Z18: 1.350811045 | AA18: 1.374705071 | AB18: 1.399021749 | AC18: 1.423768557 | AD18: 1.448953102 | AE18: 1.474583128 | AF18: 1.500666514 | AG18: 1.527211281 | AH18: 1.554225588 | AI18: 1.581717742 | AJ18: 1.609696196 | AK18: 1.63816955 | AL18: 1.66714656 | AM18: 1.696636134
D19: 1.104807798 | E19: 1.070004243 | F19: 1.041718298 | G19: 1.020536166 | H19: 1.0088 | I19: 1 | J19: 0.9800835519 | K19: 0.9625035779 | L19: 0.9462526967 | M19: 0.9303698238 | N19: 0.9179253867 | O19: 0.9036187746 | P19: 0.8877155931 | Q19: 0.8708563536 | R19: 0.8537576168 | S19: 0.836970049 | T19: 0.8224225042 | U19: 0.8081278133 | V19: 0.7940815812 | W19: 0.7802794896 | X19: 0.7667172948 | Y19: 0.7533908273 | Z19: 0.7402959899 | AA19: 0.7274287564 | AB19: 0.7147851709 | AC19: 0.7023613461 | AD19: 0.6901534623 | AE19: 0.6781577661 | AF19: 0.6663705696 | AG19: 0.6547882487 | AH19: 0.6434072425 | AI19: 0.6322240518 | AJ19: 0.6212352384 | AK19: 0.6104374238 | AL19: 0.5998272882 | AM19: 0.5894015695
C20: 2011$ | D20: 0.8871077431 | E20: 0.9159623045 | F20: 0.9408335762 | G20: 0.9603614107 | H20: 0.9715340523 | I20: 0.9800835519 | J20: 1 | K20: 1.01826484 | L20: 1.035752453 | M20: 1.053434373 | N20: 1.067715923 | O20: 1.084620616 | P20: 1.104051297 | Q20: 1.125425046 | R20: 1.147964636 | S20: 1.170989993 | T20: 1.191703227 | U20: 1.212782849 | V20: 1.234235342 | W20: 1.2560673 | X20: 1.278285437 | Y20: 1.300896582 | Z20: 1.323907687 | AA20: 1.347325829 | AB20: 1.371158205 | AC20: 1.395412144 | AD20: 1.420095103 | AE20: 1.44521467 | AF20: 1.470778568 | AG20: 1.496794657 | AH20: 1.523270935 | AI20: 1.550215543 | AJ20: 1.577636765 | AK20: 1.605543031 | AL20: 1.633942922 | AM20: 1.662845168
D21: 1.127258789 | E21: 1.091747985 | F21: 1.062887237 | G21: 1.041274659 | H21: 1.0293 | I21: 1.020321174 | J21: 1 | K21: 0.9820627803 | L21: 0.9654816621 | M21: 0.9492760306 | N21: 0.9365787079 | O21: 0.9219813687 | P21: 0.9057550158 | Q21: 0.8885531768 | R21: 0.8711069736 | S21: 0.8539782627 | T21: 0.8391350947 | U21: 0.8245499189 | V21: 0.8102182509 | W21: 0.7961356846 | X21: 0.7822978901 | Y21: 0.7687006132 | Z21: 0.7553396732 | AA21: 0.7422109625 | AB21: 0.7293104445 | AC21: 0.716634153 | AD21: 0.7041781906 | AE21: 0.6919387279 | AF21: 0.6799120017 | AG21: 0.6680943145 | AH21: 0.6564820328 | AI21: 0.6450715866 | AJ21: 0.6338594676 | AK21: 0.6228422287 | AL21: 0.6120164827 | AM21: 0.6013789011
C22: 2012$ | D22: 0.8711954966 | E22: 0.8995324874 | F22: 0.9239576376 | G22: 0.943135197 | H22: 0.9541074325 | I22: 0.9625035779 | J22: 0.9820627803 | K22: 1 | L22: 1.017173934 | M22: 1.034538689 | N22: 1.048564068 | O22: 1.065165538 | P22: 1.084247686 | Q22: 1.10523805 | R22: 1.127373342 | S22: 1.149985688 | T22: 1.170327384 | U22: 1.191028897 | V22: 1.212096591 | W22: 1.233536945 | X22: 1.25535655 | Y22: 1.277562114 | Z22: 1.300160464 | AA22: 1.323158549 | AB22: 1.346563439 | AC22: 1.37038233 | AD22: 1.394622545 | AE22: 1.419291537 | AF22: 1.444396889 | AG22: 1.469946322 | AH22: 1.49594769 | AI22: 1.522408986 | AJ22: 1.549338348 | AK22: 1.576744053 | AL22: 1.604634529 | AM22: 1.633018349
D23: 1.14784799 | E23: 1.111688587 | F23: 1.082300702 | G23: 1.060293374 | H23: 1.0481 | I23: 1.038957177 | J23: 1.01826484 | K23: 1 | L23: 0.9831160304 | M23: 0.9666144056 | N23: 0.9536851683 | O23: 0.938821211 | P23: 0.9222984864 | Q23: 0.9047824586 | R23: 0.8870176032 | S23: 0.8695760392 | T23: 0.8544617631 | U23: 0.8396101914 | V23: 0.8250167578 | W23: 0.8106769756 | X23: 0.7965864361 | Y23: 0.782740807 | Z23: 0.7691358317 | AA23: 0.7557673271 | AB23: 0.7426311832 | AC23: 0.7297233612 | AD23: 0.7170398927 | AE23: 0.7045768782 | AF23: 0.6923304857 | AG23: 0.6802969503 | AH23: 0.6684725722 | AI23: 0.656853716 | AJ23: 0.6454368095 | AK23: 0.6342183425 | AL23: 0.6231948659 | AM23: 0.6123629906
C24: 2013$ | D24: 0.8564862583 | E24: 0.8843448082 | F24: 0.908357565 | G24: 0.927211331 | H24: 0.9379983116 | I24: 0.9462526967 | J24: 0.9654816621 | K24: 0.9831160304 | L24: 1 | M24: 1.017071569 | N24: 1.030860144 | O24: 1.047181315 | P24: 1.065941281 | Q24: 1.086577244 | R24: 1.108338805 | S24: 1.130569365 | T24: 1.150567612 | U24: 1.170919601 | V24: 1.191631589 | W24: 1.212709945 | X24: 1.234161148 | Y24: 1.255991794 | Z24: 1.278208595 | AA24: 1.30081838 | AB24: 1.323828103 | AC24: 1.347244836 | AD24: 1.37107578 | AE24: 1.395328261 | AF24: 1.420009736 | AG24: 1.445127793 | AH24: 1.470690154 | AI24: 1.496704679 | AJ24: 1.523179366 | AK24: 1.550122355 | AL24: 1.577541928 | AM24: 1.605446517
D25: 1.167561056 | E25: 1.130780653 | F25: 1.100888063 | G25: 1.078502782 | H25: 1.0661 | I25: 1.056800159 | J25: 1.035752453 | K25: 1.017173934 | L25: 1 | M25: 0.9832149774 | N25: 0.9700636943 | O25: 0.9549444643 | P25: 0.9381379796 | Q25: 0.9203211326 | R25: 0.9022511848 | S25: 0.8845100805 | T25: 0.8691362329 | U25: 0.8540296012 | V25: 0.839185541 | W25: 0.8245994883 | X25: 0.8102669588 | Y25: 0.7961835458 | Z25: 0.7823449195 | AA25: 0.7687468251 | AB25: 0.7553850819 | AC25: 0.7422555819 | AD25: 0.7293542884 | AE25: 0.7166772348 | AF25: 0.7042205237 | AG25: 0.6919803251 | AH25: 0.6799528759 | AI25: 0.6681344782 | AJ25: 0.6565214985 | AK25: 0.6451103663 | AL25: 0.6338975733 | AM25: 0.6228796721
C26: 2014$ | D26: 0.8421101171 | E26: 0.8695010606 | F26: 0.8931107627 | G26: 0.9116480679 | H26: 0.9222539887 | I26: 0.9303698238 | J26: 0.9492760306 | K26: 0.9666144056 | L26: 0.9832149774 | M26: 1 | N26: 1.013557134 | O26: 1.029604353 | P26: 1.048049433 | Q26: 1.068339021 | R26: 1.089735313 | S26: 1.111592733 | T26: 1.131255309 | U26: 1.151265689 | V26: 1.171630026 | W26: 1.192354581 | X26: 1.213445725 | Y26: 1.234909943 | Z26: 1.256753834 | AA26: 1.278984115 | AB26: 1.301607618 | AC26: 1.324631301 | AD26: 1.348062242 | AE26: 1.371907645 | AF26: 1.396174841 | AG26: 1.42087129 | AH26: 1.446004587 | AI26: 1.471582457 | AJ26: 1.497612766 | AK26: 1.524103516 | AL26: 1.551062851 | AM26: 1.578499061
D27: 1.187493155 | E27: 1.150084854 | F27: 1.11968195 | G27: 1.096914517 | H27: 1.0843 | I27: 1.074841396 | J27: 1.053434373 | K27: 1.034538689 | L27: 1.017071569 | M27: 1 | N27: 0.9866242038 | O27: 0.9712468649 | P27: 0.9541534671 | Q27: 0.9360324586 | R27: 0.9176540284 | S27: 0.8996100556 | T27: 0.8839737523 | U27: 0.8686092267 | V27: 0.8535117551 | W27: 0.8386766956 | X27: 0.8240994873 | Y27: 0.8097756484 | Z27: 0.795700775 | AA27: 0.7818705398 | AB27: 0.7682806907 | AC27: 0.7549270495 | AD27: 0.7418055106 | AE27: 0.7289120399 | AF27: 0.7162426731 | AG27: 0.7037935152 | AH27: 0.6915607385 | AI27: 0.6795405823 | AJ27: 0.6677293507 | AK27: 0.6561234126 | AL27: 0.6447191996 | AM27: 0.6335132056
C28: 2015$ | D28: 0.8308462238 | E28: 0.8578707916 | F28: 0.8811646952 | G28: 0.8994540491 | H28: 0.9099181074 | I28: 0.9179253867 | J28: 0.9365787079 | K28: 0.9536851683 | L28: 0.9700636943 | M28: 0.9866242038 | N28: 1 | O28: 1.015832575 | P28: 1.034030937 | Q28: 1.054049136 | R28: 1.075159236 | S28: 1.096724295 | T28: 1.116123868 | U28: 1.135866594 | V28: 1.155958542 | W28: 1.176405889 | X28: 1.197214923 | Y28: 1.21839204 | Z28: 1.239943751 | AA28: 1.261876684 | AB28: 1.28419758 | AC28: 1.306913303 | AD28: 1.330030836 | AE28: 1.353557288 | AF28: 1.377499891 | AG28: 1.401866006 | AH28: 1.426663124 | AI28: 1.45189887 | AJ28: 1.477581003 | AK28: 1.503717418 | AL28: 1.530316151 | AM28: 1.557385379
D29: 1.203592159 | E29: 1.165676708 | F29: 1.134861627 | G29: 1.111785534 | H29: 1.099 | I29: 1.089413164 | J29: 1.067715923 | K29: 1.048564068 | L29: 1.030860144 | M29: 1.013557134 | N29: 1 | O29: 0.9844141885 | P29: 0.9670890532 | Q29: 0.9487223757 | R29: 0.9300947867 | S29: 0.9118061893 | T29: 0.8959579026 | U29: 0.8803850781 | V29: 0.865082928 | W29: 0.8500467477 | X29: 0.8352719142 | Y29: 0.8207538851 | Z29: 0.8064881967 | AA29: 0.7924704632 | AB29: 0.7786963747 | AC29: 0.7651616964 | AD29: 0.7518622671 | AE29: 0.7387939978 | AF29: 0.7259528708 | AG29: 0.7133349379 | AH29: 0.7009363199 | AI29: 0.6887532048 | AJ29: 0.6767818468 | AK29: 0.6650185654 | AL29: 0.653459744 | AM29: 0.6421018288
C30: 2016$ | D30: 0.8178968112 | E30: 0.8445001791 | F30: 0.8674310283 | G30: 0.8854353278 | H30: 0.8957362952 | I30: 0.9036187746 | J30: 0.9219813687 | K30: 0.938821211 | L30: 0.9549444643 | M30: 0.9712468649 | N30: 0.9844141885 | O30: 1 | P30: 1.017914726 | Q30: 1.037620924 | R30: 1.058402006 | S30: 1.079630957 | T30: 1.098728172 | U30: 1.118163191 | V30: 1.13794199 | W30: 1.158070649 | X30: 1.178555356 | Y30: 1.199402411 | Z30: 1.220618222 | AA30: 1.242209312 | AB30: 1.264182319 | AC30: 1.286543999 | AD30: 1.309301227 | AE30: 1.332460999 | AF30: 1.356030437 | AG30: 1.380016786 | AH30: 1.404427422 | AI30: 1.429269848 | AJ30: 1.454551704 | AK30: 1.480280762 | AL30: 1.506464932 | AM30: 1.533112264
D31: 1.222648122 | E31: 1.184132372 | F31: 1.152829409 | G31: 1.129387962 | H31: 1.1164 | I31: 1.10666138 | J31: 1.084620616 | K31: 1.065165538 | L31: 1.047181315 | M31: 1.029604353 | N31: 1.015832575 | O31: 1 | P31: 0.9824005632 | Q31: 0.9637430939 | R31: 0.9448205823 | S31: 0.9262424293 | T31: 0.9101432233 | U31: 0.8943238409 | V31: 0.8787794184 | W31: 0.8635051766 | X31: 0.8484964195 | Y31: 0.8337485326 | Z31: 0.8192569816 | AA31: 0.8050173113 | AB31: 0.7910251435 | AC31: 0.7772761764 | AD31: 0.7637661829 | AE31: 0.7504910092 | AF31: 0.7374465741 | AG31: 0.7246288669 | AH31: 0.7120339468 | AI31: 0.6996579416 | AJ31: 0.6874970462 | AK31: 0.6755475218 | AL31: 0.6638056944 | AM31: 0.6522679542
C32: 2017$ | D32: 0.8035022879 | E32: 0.8296374516 | F32: 0.8521647307 | G32: 0.8698521647 | H32: 0.8799718409 | I32: 0.8877155931 | J32: 0.9057550158 | K32: 0.9222984864 | L32: 0.9381379796 | M32: 0.9541534671 | N32: 0.9670890532 | O32: 0.9824005632 | P32: 1 | Q32: 1.01935938 | R32: 1.039774727 | S32: 1.06063006 | T32: 1.079391175 | U32: 1.098484149 | V32: 1.117914852 | W32: 1.137689257 | X32: 1.157813446 | Y32: 1.178293604 | Z32: 1.199136028 | AA32: 1.220347127 | AB32: 1.241933422 | AC32: 1.263901549 | AD32: 1.286258262 | AE32: 1.309010436 | AF32: 1.332165065 | AG32: 1.355729268 | AH32: 1.37971029 | AI32: 1.404115504 | AJ32: 1.428952413 | AK32: 1.454228654 | AL32: 1.479951997 | AM32: 1.506130352
D33: 1.244551528 | E33: 1.205345779 | F33: 1.173482032 | G33: 1.149620637 | H33: 1.1364 | I33: 1.126486915 | J33: 1.104051297 | K33: 1.084247686 | L33: 1.065941281 | M33: 1.048049433 | N33: 1.034030937 | O33: 1.017914726 | P33: 1 | Q33: 0.9810082873 | R33: 0.961746784 | S33: 0.9428358085 | T33: 0.9264481897 | U33: 0.9103454074 | V33: 0.8945225108 | W33: 0.8789746352 | X33: 0.8636970002 | Y33: 0.848684909 | Z33: 0.8339337459 | AA33: 0.8194389758 | AB33: 0.8051961421 | AC33: 0.791200866 | AD33: 0.7774488447 | AE33: 0.76393585 | AF33: 0.7506577273 | AG33: 0.7376103944 | AH33: 0.7247898398 | AI33: 0.7121921218 | AJ33: 0.6998133673 | AK33: 0.6876497705 | AL33: 0.6756975915 | AM33: 0.6639531558
C34: 2018$ | D34: 0.7882424033 | E34: 0.8138812155 | F34: 0.835980663 | G34: 0.8533321823 | H34: 0.8632596685 | I34: 0.8708563536 | J34: 0.8885531768 | K34: 0.9047824586 | L34: 0.9203211326 | M34: 0.9360324586 | N34: 0.9487223757 | O34: 0.9637430939 | P34: 0.9810082873 | Q34: 1 | R34: 1.020027624 | S34: 1.040486878 | T34: 1.058891688 | U34: 1.077622053 | V34: 1.096683734 | W34: 1.11608259 | X34: 1.135824585 | Y34: 1.15591579 | Z34: 1.176362381 | AA34: 1.197170645 | AB34: 1.218346979 | AC34: 1.239897894 | AD34: 1.261830015 | AE34: 1.284150086 | AF34: 1.306864969 | AG34: 1.329981647 | AH34: 1.353507228 | AI34: 1.377448946 | AJ34: 1.401814159 | AK34: 1.426610361 | AL34: 1.451845174 | AM34: 1.477526357
D35: 1.268645274 | E35: 1.228680526 | F35: 1.196199917 | G35: 1.171876581 | H35: 1.1584 | I35: 1.148295004 | J35: 1.125425046 | K35: 1.10523805 | L35: 1.086577244 | M35: 1.068339021 | N35: 1.054049136 | O35: 1.037620924 | P35: 1.01935938 | Q35: 1 | R35: 0.980365606 | S35: 0.9610885257 | T35: 0.9443836527 | U35: 0.9279691305 | V35: 0.9118399125 | W35: 0.8959910396 | X35: 0.8804176391 | Y35: 0.8651149231 | Z35: 0.8500781866 | AA35: 0.8353028067 | AB35: 0.8207842406 | AC35: 0.8065180247 | AD35: 0.7924997727 | AE35: 0.7787251748 | AF35: 0.7651899959 | AG35: 0.7518900747 | AH35: 0.7388213221 | AI35: 0.7259797201 | AJ35: 0.7133613206 | AK35: 0.700962244 | AL35: 0.6887786783 | AM35: 0.6768068775
C36: 2019$ | D36: 0.7727657414 | E36: 0.797901151 | F36: 0.8195666892 | G36: 0.836577522 | H36: 0.846310088 | I36: 0.8537576168 | J36: 0.8711069736 | K36: 0.8870176032 | L36: 0.9022511848 | M36: 0.9176540284 | N36: 0.9300947867 | O36: 0.9448205823 | P36: 0.961746784 | Q36: 0.980365606 | R36: 1 | S36: 1.020057549 | T36: 1.038100991 | U36: 1.056463597 | V36: 1.075151013 | W36: 1.094168985 | X36: 1.113523358 | Y36: 1.133220084 | Z36: 1.153265219 | AA36: 1.173664925 | AB36: 1.194425474 | AC36: 1.21555325 | AD36: 1.237054747 | AE36: 1.258936577 | AF36: 1.281205467 | AG36: 1.303868263 | AH36: 1.326931934 | AI36: 1.35040357 | AJ36: 1.374290388 | AK36: 1.398599731 | AL36: 1.423339074 | AM36: 1.448516022
D37: 1.294053225 | E37: 1.253288078 | F37: 1.22015696 | G37: 1.195346485 | H37: 1.1816 | I37: 1.171292625 | J37: 1.147964636 | K37: 1.127373342 | L37: 1.108338805 | M37: 1.089735313 | N37: 1.075159236 | O37: 1.058402006 | P37: 1.039774727 | Q37: 1.020027624 | R37: 1 | S37: 0.9803368456 | T37: 0.9632974137 | U37: 0.9465541477 | V37: 0.9301018997 | W37: 0.9139356115 | X37: 0.8980503128 | Y37: 0.8824411197 | Z37: 0.8671032332 | AA37: 0.8520319375 | AB37: 0.837222599 | AC37: 0.8226706647 | AD37: 0.8083716604 | AE37: 0.79432119 | AF37: 0.7805149336 | AG37: 0.7669486466 | AH37: 0.753618158 | AI37: 0.7405193692 | AJ37: 0.7276482531 | AK37: 0.7150008525 | AL37: 0.7025732789 | AM37: 0.6903617114
C38: 2020$ | D38: 0.7575707293 | E38: 0.7822118975 | F38: 0.8034514229 | G38: 0.820127769 | H38: 0.8296689621 | I38: 0.836970049 | J38: 0.8539782627 | K38: 0.8695760392 | L38: 0.8845100805 | M38: 0.8996100556 | N38: 0.9118061893 | O38: 0.9262424293 | P38: 0.9428358085 | Q38: 0.9610885257 | R38: 0.9803368456 | S38: 1 | T38: 1.017688651 | U38: 1.035690191 | V38: 1.054010153 | W38: 1.072654171 | X38: 1.091627976 | Y38: 1.110937403 | Z38: 1.130588387 | AA38: 1.15058697 | AB38: 1.170939302 | AC38: 1.191651639 | AD38: 1.212730349 | AE38: 1.234181913 | AF38: 1.256012926 | AG38: 1.2782301 | AH38: 1.300840267 | AI38: 1.323850376 | AJ38: 1.347267504 | AK38: 1.371098849 | AL38: 1.395351738 | AM38: 1.420033628
D39: 1.320008761 | E39: 1.278425965 | F39: 1.244630318 | G39: 1.219322205 | H39: 1.2053 | I39: 1.194785884 | J39: 1.170989993 | K39: 1.149985688 | L39: 1.130569365 | M39: 1.111592733 | N39: 1.096724295 | O39: 1.079630957 | P39: 1.06063006 | Q39: 1.040486878 | R39: 1.020057549 | S39: 1 | T39: 0.9826187989 | U39: 0.9655397039 | V39: 0.9487574642 | W39: 0.9322669199 | X39: 0.9160630011 | Y39: 0.9001407258 | Z39: 0.8844951988 | AA39: 0.8691216099 | AB39: 0.8540152324 | AC39: 0.8391714219 | AD39: 0.8245856147 | AE39: 0.8102533263 | AF39: 0.7961701502 | AG39: 0.7823317567 | AH39: 0.7687338911 | AI39: 0.7553723728 | AJ39: 0.7422430937 | AK39: 0.7293420172 | AL39: 0.7166651769 | AM39: 0.7042086753
C43: Source: Deflators and Inflators derived from data contained in the Budget of the United States Government: Table 10.1 - Gross Domestic Product and Deflators Used in the Historical Tables 1940-2021.
C44: https://www.whitehouse.gov/omb/budget/Historicals
C45: Updated November 2016. Deflators for 2016-2040 assume average annual inflation rate derived from 2013-2020 GDP values.
C50: =(ROUND(C49,4))*100 -> 0
D51: =HLOOKUP($E$4,E$51:R$53,3) -> 17 | E51: 2007 | F51: 2008 | G51: 2009 | H51: 2010 | I51: 2011 | J51: 2012 | K51: 2013 | L51: 2014 | M51: 2015 | N51: 2016 | O51: 2017 | P51: 2018 | Q51: 2019 | R51: 2020
D52: =HLOOKUP($E$4,E$51:R$53,2) -> 16 | E52: 2 | F52: 4 | G52: 6 | H52: 8 | I52: 10 | J52: 12 | K52: 14 | L52: 16 | M52: 18 | N52: 20 | O52: 22 | P52: 24 | Q52: 26 | R52: 28
E53: 3 | F53: 5 | G53: 7 | H53: 9 | I53: 11 | J53: 13 | K53: 15 | L53: 17 | M53: 19 | N53: 21 | O53: 23 | P53: 25 | Q53: 27 | R53: 29
C55: =C53*100 -> 0

Sheet Household Exp (hidden)
C1: Personal Consumption Expenditures
C2: Year of Data | D2: 2014
D3: Alabama | E3: Alaska | F3: Arizona | G3: Arkansas | H3: California | I3: Colorado | J3: Connecticut | K3: Delaware | L3: District of Columbia | M3: Florida | N3: Georgia | O3: Hawaii | P3: Idaho | Q3: Illinois | R3: Indiana | S3: Iowa | T3: Kansas | U3: Kentucky | V3: Louisiana | W3: Maine | X3: Maryland | Y3: Massachusetts | Z3: Michigan | AA3: Minnesota | AB3: Mississippi | AC3: Missouri | AD3: Montana | AE3: ='User Add-in Location'!E10 -> MyCounty | AF3: ='User Add-in Location'!F10 -> MyRegion | AG3: Nebraska | AH3: Nevada | AI3: New Hampshire | AJ3: New Jersey | AK3: New Mexico | AL3: New York | AM3: North Carolina | AN3: North Dakota | AO3: Ohio | AP3: Oklahoma | AQ3: Oregon | AR3: Pennsylvania | AS3: Rhode Island | AT3: South Carolina | AU3: South Dakota | AV3: Tennessee | AW3: Texas | AX3: United States | AY3: Utah | AZ3: Vermont | BA3: Virginia | BB3: Washington | BC3: West Virginia | BD3: Wisconsin | BE3: Wyoming
C4: Agriculture | D4: 0.004384330381 | E4: 0.001411951342 | F4: 0.004564238075 | G4: 0.008178632879 | H4: 0.003979249239 | I4: 0.007019546287 | J4: 0.0007608607585 | K4: 0.005151456372 | L4: 0.0004292289416 | M4: 0.003458368365 | N4: 0.004508102546 | O4: 0.004942989179 | P4: 0.009491750692 | Q4: 0.002866761014 | R4: 0.002545043718 | S4: 0.00939347376 | T4: 0.008790065648 | U4: 0.003175961094 | V4: 0.001639637082 | W4: 0.004067660925 | X4: 0.002083186058 | Y4: 0.0006372773432 | Z4: 0.002381238121 | AA4: 0.005639805481 | AB4: 0.006386139845 | AC4: 0.004104364189 | AD4: 0.006243838265 | AE4: ='User Add-in Location'!E11 -> 0 | AF4: ='User Add-in Location'!F11 -> 0 | AG4: 0.008887131788 | AH4: 0.00253756422 | AI4: 0.001388857498 | AJ4: 0.0005516395517 | AK4: 0.006979170237 | AL4: 0.002880344653 | AM4: 0.004607794108 | AN4: 0.005609597272 | AO4: 0.002063641271 | AP4: 0.004905058883 | AQ4: 0.006340977661 | AR4: 0.002903552179 | AS4: 0.0005167988573 | AT4: 0.002462276783 | AU4: 0.009496244544 | AV4: 0.002096612765 | AW4: 0.003014855509 | AX4: 0.005526011436 | AY4: 0.003326996211 | AZ4: 0.008753813665 | BA4: 0.003736384389 | BB4: 0.003850574353 | BC4: 0.002707634016 | BD4: 0.007505445268 | BE4: 0.003989125579
A5: Warning | C5: Mining | D5: 3.677333795e-06 | E5: 2.363481662e-05 | F5: 4.428329713e-06 | G5: 6.797702789e-06 | H5: 7.635991695e-06 | I5: 1.285516538e-05 | J5: 1.442187022e-06 | K5: 6.185274109e-07 | L5: 4.082166389e-07 | M5: 3.620128991e-06 | N5: 1.558401713e-06 | O5: 2.020136929e-06 | P5: 3.672698612e-06 | Q5: 2.302590235e-06 | R5: 2.00895267e-06 | S5: 1.286750495e-06 | T5: 1.11851766e-05 | U5: 3.426991232e-06 | V5: 2.114691262e-05 | W5: 1.233221425e-06 | X5: 1.991835158e-06 | Y5: 1.274897916e-06 | Z5: 2.444063022e-06 | AA5: 1.445369735e-06 | AB5: 6.815324922e-06 | AC5: 1.683675783e-06 | AD5: 1.167053079e-05 | AE5: ='User Add-in Location'!E12 -> 0 | AF5: ='User Add-in Location'!F12 -> 0 | AG5: 2.010026498e-06 | AH5: 1.12494696e-05 | AI5: 1.717982414e-06 | AJ5: 1.254319065e-06 | AK5: 2.348061397e-05 | AL5: 1.632789003e-06 | AM5: 1.421748408e-06 | AN5: 1.777251441e-05 | AO5: 4.497899189e-06 | AP5: 2.062758352e-05 | AQ5: 2.110349725e-06 | AR5: 7.603598691e-06 | AS5: 9.475994394e-07 | AT5: 1.25061441e-06 | AU5: 3.304554079e-06 | AV5: 1.620804846e-06 | AW5: 2.145813723e-05 | AX5: 1.192597005e-05 | AY5: 1.005186848e-05 | AZ5: 2.124491659e-06 | BA5: 3.091334567e-06 | BB5: 1.606151154e-06 | BC5: 1.335015412e-05 | BD5: 1.162093327e-06 | BE5: 2.707344934e-05
C6: Construction | D6: 0 | E6: 0 | F6: 0 | G6: 0 | H6: 0 | I6: 0 | J6: 0 | K6: 0 | L6: 0 | M6: 0 | N6: 0 | O6: 0 | P6: 0 | Q6: 0 | R6: 0 | S6: 0 | T6: 0 | U6: 0 | V6: 0 | W6: 0 | X6: 0 | Y6: 0 | Z6: 0 | AA6: 0 | AB6: 0 | AC6: 0 | AD6: 0 | AE6: ='User Add-in Location'!E13 -> 0 | AF6: ='User Add-in Location'!F13 -> 0 | AG6: 0 | AH6: 0 | AI6: 0 | AJ6: 0 | AK6: 0 | AL6: 0 | AM6: 0 | AN6: 0 | AO6: 0 | AP6: 0 | AQ6: 0 | AR6: 0 | AS6: 0 | AT6: 0 | AU6: 0 | AV6: 0 | AW6: 0 | AX6: 0 | AY6: 0 | AZ6: 0 | BA6: 0 | BB6: 0 | BC6: 0 | BD6: 0 | BE6: 0
A7: This Worksheet contains Data and Formulas that are an integral part of the JEDI model. | C7: Manufacturing | D7: 0.04538769938 | E7: 0.04751615439 | F7: 0.02601601984 | G7: 0.03871614099 | H7: 0.08424695211 | I7: 0.04678531296 | J7: 0.02691443385 | K7: 0.02705081818 | L7: 0.001406269771 | M7: 0.03588294144 | N7: 0.0410778666 | O7: 0.04771712351 | P7: 0.03484069858 | Q7: 0.05361990316 | R7: 0.05450634659 | S7: 0.03447882879 | T7: 0.04344903928 | U7: 0.04175371942 | V7: 0.05444260812 | W7: 0.03338105864 | X7: 0.02171790025 | Y7: 0.03500828748 | Z7: 0.05973790234 | AA7: 0.05856184383 | AB7: 0.0396461678 | AC7: 0.03229916169 | AD7: 0.0413166807 | AE7: ='User Add-in Location'!E14 -> 0 | AF7: ='User Add-in Location'!F14 -> 0 | AG7: 0.02751341254 | AH7: 0.01636506977 | AI7: 0.01746298532 | AJ7: 0.03947687808 | AK7: 0.03449942446 | AL7: 0.03029455747 | AM7: 0.05098974521 | AN7: 0.03093297646 | AO7: 0.06105505725 | AP7: 0.0440218515 | AQ7: 0.03783917751 | AR7: 0.05278222274 | AS7: 0.01426469323 | AT7: 0.03476185021 | AU7: 0.01765264397 | AV7: 0.04081066686 | AW7: 0.08837585581 | AX7: 0.1437582122 | AY7: 0.0577237525 | AZ7: 0.02215678822 | BA7: 0.03094563227 | BB7: 0.06532834545 | BC7: 0.01903501173 | BD7: 0.04879692887 | BE7: 0.03716154501
C8: Fabricated Metals | D8: 1.124576773e-06 | E8: 4.390845948e-07 | F8: 9.565433436e-07 | G8: 6.010669205e-07 | H8: 1.859574413e-06 | I8: 1.223899791e-06 | J8: 6.605104667e-07 | K8: 1.605972056e-07 | L8: 4.762379372e-10 | M8: 9.658091649e-07 | N8: 7.556860275e-07 | O8: 2.81068995e-07 | P8: 5.338386941e-07 | Q8: 1.02481144e-06 | R8: 1.066130651e-06 | S8: 6.078364364e-07 | T8: 6.578107747e-07 | U8: 4.918720961e-07 | V8: 1.193632829e-06 | W8: 3.587796833e-07 | X8: 2.364265729e-07 | Y8: 8.710747453e-07 | Z8: 1.320824718e-06 | AA8: 1.43898867e-06 | AB8: 4.438984913e-07 | AC8: 4.881579697e-07 | AD8: 2.968145928e-07 | AE8: ='User Add-in Location'!E15 -> 0 | AF8: ='User Add-in Location'!F15 -> 0 | AG8: 7.868117458e-07 | AH8: 2.892156947e-07 | AI8: 6.236808163e-07 | AJ8: 5.276479165e-07 | AK8: 2.485846872e-07 | AL8: 7.205077775e-07 | AM8: 1.174243993e-06 | AN8: 2.19869449e-07 | AO8: 1.21269199e-06 | AP8: 1.349960827e-06 | AQ8: 1.245413612e-06 | AR8: 1.386643675e-06 | AS8: 1.424880068e-07 | AT8: 1.01362734e-06 | AU8: 3.369006909e-07 | AV8: 8.38763205e-07 | AW8: 2.42447799e-06 | AX8: 3.410079261e-06 | AY8: 1.811724918e-06 | AZ8: 2.150720866e-07 | BA8: 9.552529812e-07 | BB8: 1.413516415e-06 | BC8: 2.14343243e-07 | BD8: 1.301580095e-06 | BE8: 1.011573689e-07
A9: Although the data and formulas are available for review they must not be changed. | C9: Machinery | D9: 1.307928247e-05 | E9: 2.900514522e-08 | F9: 5.103683399e-06 | G9: 1.391998166e-05 | H9: 1.210247519e-05 | I9: 8.706528041e-06 | J9: 1.570700562e-06 | K9: 9.758902935e-07 | L9: 1.606295756e-08 | M9: 3.301582381e-06 | N9: 1.035649193e-05 | O9: 2.520304913e-06 | P9: 1.886711376e-05 | Q9: 1.484023893e-05 | R9: 1.819948194e-05 | S9: 2.203164679e-05 | T9: 1.877686928e-05 | U9: 7.584942784e-06 | V9: 8.161308805e-06 | W9: 1.70012645e-06 | X9: 8.199209748e-07 | Y9: 1.423799777e-06 | Z9: 9.153174283e-06 | AA9: 1.663820865e-05 | AB9: 1.177562923e-05 | AC9: 5.427090201e-06 | AD9: 3.251735408e-06 | AE9: ='User Add-in Location'!E16 -> 0 | AF9: ='User Add-in Location'!F16 -> 0 | AG9: 2.383829285e-05 | AH9: 3.121221969e-07 | AI9: 1.011786691e-06 | AJ9: 1.546109172e-06 | AK9: 3.616975678e-06 | AL9: 5.591949379e-06 | AM9: 9.547878173e-06 | AN9: 2.835510013e-05 | AO9: 1.252876363e-05 | AP9: 6.62272691e-06 | AQ9: 1.634150813e-05 | AR9: 8.659070921e-06 | AS9: 3.41083948e-07 | AT9: 4.936522279e-06 | AU9: 2.363174601e-05 | AV9: 4.939401124e-06 | AW9: 1.130864428e-05 | AX9: 4.373952927e-05 | AY9: 2.372495433e-06 | AZ9: 6.296237229e-07 | BA9: 3.759250661e-06 | BB9: 8.426869107e-06 | BC9: 4.133355552e-07 | BD9: 2.046187369e-05 | BE9: 2.331583356e-06
C10: Electrical Equipment | D10: 2.918616822e-07 | E10: 5.499958101e-09 | F10: 2.186621283e-05 | G10: 6.000474649e-07 | H10: 3.252797091e-05 | I10: 9.854241956e-06 | J10: 2.417312934e-06 | K10: 4.735816086e-08 | L10: 2.792982139e-09 | M10: 1.238023624e-05 | N10: 1.481671304e-06 | O10: 1.895089834e-07 | P10: 2.402038417e-05 | Q10: 1.924691101e-06 | R10: 5.235843839e-07 | S10: 4.195261504e-07 | T10: 1.624167057e-06 | U10: 3.069342669e-07 | V10: 6.250753927e-08 | W10: 2.94946301e-06 | X10: 9.738756564e-07 | Y10: 2.266155337e-05 | Z10: 1.536595897e-06 | AA10: 8.834900949e-06 | AB10: 2.713905008e-07 | AC10: 4.145611169e-06 | AD10: 1.167844336e-07 | AE10: ='User Add-in Location'!E17 -> 0 | AF10: ='User Add-in Location'!F17 -> 0 | AG10: 3.727665999e-07 | AH10: 1.69319091e-05 | AI10: 5.549750234e-06 | AJ10: 3.311717294e-06 | AK10: 2.261643457e-05 | AL10: 8.19297219e-06 | AM10: 1.016658211e-05 | AN10: 2.442368364e-07 | AO10: 2.181530376e-06 | AP10: 2.837204351e-07 | AQ10: 2.987625035e-05 | AR10: 3.145417892e-06 | AS10: 1.253802612e-06 | AT10: 4.721131875e-07 | AU10: 7.020724617e-07 | AV10: 3.45949342e-07 | AW10: 2.206647345e-05 | AX10: 2.912657396e-05 | AY10: 6.855421196e-06 | AZ10: 1.563965999e-05 | BA10: 4.791699098e-06 | BB10: 4.679602927e-06 | BC10: 8.159716628e-08 | BD10: 1.344261444e-06 | BE10: 3.113559667e-09
A11: Any changes to the data or formulas will impact the analysis and may invalidate the model results. | C11: TCPU | D11: 0.04910826769 | E11: 0.04835386398 | F11: 0.04216965163 | G11: 0.04794139656 | H11: 0.02876079667 | I11: 0.0400811386 | J11: 0.03439142139 | K11: 0.03415905229 | L11: 0.02616570636 | M11: 0.0403257064 | N11: 0.04115556621 | O11: 0.03535262521 | P11: 0.0449418335 | Q11: 0.04044798461 | R11: 0.04401526211 | S11: 0.04636094916 | T11: 0.03601811672 | U11: 0.04388881668 | V11: 0.04192266253 | W11: 0.04142866034 | X11: 0.03738629091 | Y11: 0.03318106721 | Z11: 0.04059482442 | AA11: 0.04620491451 | AB11: 0.05042339249 | AC11: 0.04488649008 | AD11: 0.05237250038 | AE11: ='User Add-in Location'!E18 -> 0 | AF11: ='User Add-in Location'!F18 -> 0 | AG11: 0.04382999187 | AH11: 0.06021540961 | AI11: 0.03388921465 | AJ11: 0.03734646317 | AK11: 0.04115653129 | AL11: 0.03844284718 | AM11: 0.037083272 | AN11: 0.05218752319 | AO11: 0.04175786561 | AP11: 0.05035585175 | AQ11: 0.0447057481 | AR11: 0.03895277857 | AS11: 0.03128476433 | AT11: 0.03862322921 | AU11: 0.04531526911 | AV11: 0.04065908017 | AW11: 0.04501976605 | AX11: 0.04060037507 | AY11: 0.03851929391 | AZ11: 0.04674274773 | BA11: 0.04197815136 | BB11: 0.03879307875 | BC11: 0.0449439744 | BD11: 0.04122486426 | BE11: 0.05499510085
C12: Wholesale Trade | D12: 0.04078921789 | E12: 0.02951692186 | F12: 0.04754833718 | G12: 0.0474622171 | H12: 0.04446895456 | I12: 0.04756537449 | J12: 0.04947347602 | K12: 0.03700805424 | L12: 0.02273244424 | M12: 0.04818623027 | N12: 0.04745430716 | O12: 0.03917455688 | P12: 0.04587526894 | Q12: 0.04676870526 | R12: 0.03965390501 | S12: 0.04203630956 | T12: 0.04117300303 | U12: 0.0451014901 | V12: 0.03432619036 | W12: 0.04270168495 | X12: 0.04397547696 | Y12: 0.04923105077 | Z12: 0.04424976936 | AA12: 0.0478424641 | AB12: 0.03513748371 | AC12: 0.04626068316 | AD12: 0.04312295421 | AE12: ='User Add-in Location'!E19 -> 0 | AF12: ='User Add-in Location'!F19 -> 0 | AG12: 0.04386616679 | AH12: 0.1037791601 | AI12: 0.05338174907 | AJ12: 0.04921855155 | AK12: 0.03771081743 | AL12: 0.04738991625 | AM12: 0.0469533378 | AN12: 0.05924934108 | AO12: 0.04438023987 | AP12: 0.0455380824 | AQ12: 0.04558880983 | AR12: 0.04674839908 | AS12: 0.04882621324 | AT12: 0.04330633857 | AU12: 0.05310626102 | AV12: 0.04711474199 | AW12: 0.04387452626 | AX12: 0.03921366992 | AY12: 0.04178039593 | AZ12: 0.03629905598 | BA12: 0.04218881739 | BB12: 0.04500803773 | BC12: 0.0415127776 | BD12: 0.04531418813 | BE12: 0.042292843
C13: Retail Trade | D13: 0.1151295514 | E13: 0.1090847846 | F13: 0.1092415844 | G13: 0.1092664302 | H13: 0.0958165568 | I13: 0.09414097933 | J13: 0.1006055347 | K13: 0.1076609856 | L13: 0.07824600187 | M13: 0.1047842408 | N13: 0.1032883753 | O13: 0.1129557974 | P13: 0.1185999134 | Q13: 0.09538325744 | R13: 0.1118705409 | S13: 0.1126937907 | T13: 0.1135284211 | U13: 0.1104511696 | V13: 0.1121974306 | W13: 0.1129882696 | X13: 0.09801724209 | Y13: 0.08809832473 | Z13: 0.1070901649 | AA13: 0.09800682089 | AB13: 0.1191690879 | AC13: 0.1038885433 | AD13: 0.112637871 | AE13: ='User Add-in Location'!E20 -> 0 | AF13: ='User Add-in Location'!F20 -> 0 | AG13: 0.1129912306 | AH13: 0.7945738712 | AI13: 0.1103240457 | AJ13: 0.1004493015 | AK13: 0.1178309824 | AL13: 0.09394311761 | AM13: 0.1003219116 | AN13: 0.1153770187 | AO13: 0.1035244776 | AP13: 0.1083776876 | AQ13: 0.1011224312 | AR13: 0.09763034216 | AS13: 0.09537728365 | AT13: 0.1166012205 | AU13: 0.1190922675 | AV13: 0.1110808563 | AW13: 0.1006792258 | AX13: 0.08667908637 | AY13: 0.1018476793 | AZ13: 0.1087484127 | BA13: 0.1039600408 | BB13: 0.1008403261 | BC13: 0.1236364348 | BD13: 0.1040048097 | BE13: 0.1153686743
C14: FIRE | D14: 0.1249465985 | E14: 0.1141976709 | F14: 0.140537736 | G14: 0.1136069109 | H14: 0.1195631163 | I14: 0.1306090754 | J14: 0.1414132647 | K14: 0.1612698163 | L14: 0.1625997792 | M14: 0.1333966401 | N14: 0.1287445953 | O14: 0.1250249885 | P14: 0.1340643121 | Q14: 0.1370516427 | R14: 0.117816163 | S14: 0.1426880107 | T14: 0.1222340576 | U14: 0.1185538929 | V14: 0.1118676834 | W14: 0.1335688862 | X14: 0.1321333103 | Y14: 0.1414593148 | Z14: 0.1197437119 | AA14: 0.1308916887 | AB14: 0.1151213884 | AC14: 0.1258752802 | AD14: 0.1272501893 | AE14: ='User Add-in Location'!E21 -> 0 | AF14: ='User Add-in Location'!F21 -> 0 | AG14: 0.1345509208 | AH14: 0.01108952917 | AI14: 0.1429205652 | AJ14: 0.1353698486 | AK14: 0.1237713709 | AL14: 0.1432728602 | AM14: 0.129960827 | AN14: 0.1311120114 | AO14: 0.1311621089 | AP14: 0.120536059 | AQ14: 0.1252608657 | AR14: 0.1291927022 | AS14: 0.151296094 | AT14: 0.1201525482 | AU14: 0.1419129173 | AV14: 0.1206724579 | AW14: 0.1255628291 | AX14: 0.1200748833 | AY14: 0.1352166842 | AZ14: 0.1314002906 | BA14: 0.1285480146 | BB14: 0.1192889483 | BC14: 0.1113922117 | BD14: 0.1299396082 | BE14: 0.1330434427
C15: Misc. Services | D15: 0.6018238326 | E15: 0.6334737062 | F15: 0.613332561 | G15: 0.6190500136 | H15: 0.606319932 | I15: 0.6163870582 | J15: 0.6283612429 | K15: 0.6090744044 | L15: 0.6896865499 | M15: 0.6174779079 | N15: 0.6180286829 | O15: 0.6204023664 | P15: 0.5945808906 | Q15: 0.6067366571 | R15: 0.612340947 | S15: 0.5965963501 | T15: 0.6177794415 | U15: 0.6202673616 | V15: 0.6259100026 | W15: 0.6147601995 | X15: 0.6465592442 | Y15: 0.6335044281 | Z15: 0.6084009495 | AA15: 0.596166288 | AB15: 0.617747213 | AC15: 0.6257068968 | AD15: 0.5999510311 | AE15: ='User Add-in Location'!E22 -> 0 | AF15: ='User Add-in Location'!F22 -> 0 | AG15: 0.6123817683 | AH15: 0.01141061326 | AI15: 0.6224434252 | AJ15: 0.6195378096 | AK15: 0.6191561379 | AL15: 0.6256972783 | AM15: 0.613204367 | AN15: 0.5899893759 | AO15: 0.5995911005 | AP15: 0.6099028098 | AQ15: 0.6216366078 | AR15: 0.6137686639 | AS15: 0.6413069436 | AT15: 0.6262824194 | AU15: 0.5977993414 | AV15: 0.6204157343 | AW15: 0.5771804508 | AX15: 0.5490881243 | AY15: 0.6049829643 | AZ15: 0.62756152 | BA15: 0.6304515603 | BB15: 0.6090215844 | BC15: 0.6371578019 | BD15: 0.606554321 | BE15: 0.5960737486
C16: Professional Services | D16: 0.00934341492 | E16: 0.007512323512 | F16: 0.008757965134 | G16: 0.006907223896 | H16: 0.009913895599 | I16: 0.0100882752 | J16: 0.01032451331 | K16: 0.01092017967 | L16: 0.009569306515 | M16: 0.009259718899 | N16: 0.008817609427 | O16: 0.0060651887 | P16: 0.008700813603 | Q16: 0.01021379651 | R16: 0.009104180137 | S16: 0.007077533703 | T16: 0.008608287113 | U16: 0.007619201119 | V16: 0.008484477275 | W16: 0.008606286097 | X16: 0.01023903517 | Y16: 0.01166573006 | Z16: 0.01008650401 | AA16: 0.009151465092 | AB16: 0.006820621005 | AC16: 0.008988197697 | AD16: 0.007868477056 | AE16: ='User Add-in Location'!E23 -> 0 | AF16: ='User Add-in Location'!F23 -> 0 | AG16: 0.007832492896 | AH16: 0 | AI16: 0.01006916311 | AJ16: 0.01083201281 | AK16: 0.009281309958 | AL16: 0.01049806108 | AM16: 0.009353089705 | AN16: 0.006444352277 | AO16: 0.009014277993 | AP16: 0.007686993373 | AQ16: 0.009288579202 | AR16: 0.01033121994 | AS16: 0.009493852475 | AT16: 0.008993842757 | AU16: 0.006569221685 | AV16: 0.009028809194 | AW16: 0.0088012448 | AX16: 0.008905399586 | AY16: 0.009233047842 | AZ16: 0.009866140945 | BA16: 0.009805343665 | BB16: 0.01007900324 | BC16: 0.009346395967 | BD16: 0.008463657009 | BE16: 0.006544897326
C17: Government | D17: 0.009068914188 | E17: 0.008908514871 | F17: 0.007799551977 | G17: 0.008849115104 | H17: 0.006876420645 | I17: 0.007290599771 | J17: 0.007749161625 | K17: 0.007703430608 | L17: 0.009164285633 | M17: 0.007207978093 | N17: 0.006910742365 | O17: 0.008359353228 | P17: 0.008857424526 | Q17: 0.006891199812 | R17: 0.008125813337 | S17: 0.008650407803 | T17: 0.008387324013 | U17: 0.009176576679 | V17: 0.009178743736 | W17: 0.008491052168 | X17: 0.007884292005 | Y17: 0.007188288222 | Z17: 0.007700480933 | AA17: 0.007506351909 | AB17: 0.009529199643 | AC17: 0.00797863831 | AD17: 0.009221122133 | AE17: ='User Add-in Location'!E24 -> 0 | AF17: ='User Add-in Location'!F24 -> 0 | AG17: 0.008119876567 | AH17: 0 | AI17: 0.008111091045 | AJ17: 0.007210855321 | AK17: 0.009564292753 | AL17: 0.007564879108 | AM17: 0.007503345123 | AN17: 0.009051211995 | AO17: 0.007430810136 | AP17: 0.008646721594 | AQ17: 0.00816722948 | AR17: 0.007669324536 | AS17: 0.007630671708 | AT17: 0.008808601474 | AU17: 0.009027858199 | AV17: 0.008113295549 | AW17: 0.007433988167 | AX17: 0.00606603566 | AY17: 0.007348094254 | AZ17: 0.008452621276 | BA17: 0.008373457733 | BB17: 0.007773975567 | BC17: 0.01025369845 | BD17: 0.008171907784 | BE17: 0.01050111326
A18: To view the data and formulas simply scroll over to the adjacent columns to the right. | C18: Total | D18: =SUM(D4:D17) -> 1 | E18: =SUM(E4:E17) -> 1 | F18: 1 | G18: 1 | H18: 1 | I18: 1 | J18: 1 | K18: 1 | L18: 1 | M18: 1 | N18: 1 | O18: 1 | P18: 1 | Q18: 1 | R18: 1 | S18: 1 | T18: 1 | U18: 1 | V18: 1 | W18: 1 | X18: 1 | Y18: 1 | Z18: 1 | AA18: 1 | AB18: 1 | AC18: 1 | AD18: 1 | AE18: 0 | AF18: 0 | AG18: 1 | AH18: 1 | AI18: 1 | AJ18: 1 | AK18: 1 | AL18: 1 | AM18: 1 | AN18: 1 | AO18: 1 | AP18: 1 | AQ18: 1 | AR18: 1 | AS18: 1 | AT18: 1 | AU18: 1 | AV18: 1 | AW18: 1 | AY18: 1 | AZ18: 1 | BA18: 1 | BB18: 1 | BC18: 1 | BD18: 1 | BE18: 1
C20: =CONCATENATE("Source: All values are averages for $25,000-$100,000 income classes and are derived from IMPLAN™ using ", D2," state data.") -> Source: All values are averages for $25,000-$100,000 income classes and are derived from IMPLAN™ using 2014 state data.

Sheet Multipliers (hidden)
C1: Multipliers For Economic Input-Output Analysis
C2: Year of Data | D2: 2014
C3: Jobs Per Million Dollars Change in Final Demand
C4: Jobs Direct Multipliers | D4: Alabama | E4: Alaska | F4: Arizona | G4: Arkansas | H4: California | I4: Colorado | J4: Connecticut | K4: Delaware | L4: District of Columbia | M4: Florida | N4: Georgia | O4: Hawaii | P4: Idaho | Q4: Illinois | R4: Indiana | S4: Iowa | T4: Kansas | U4: Kentucky | V4: Louisiana | W4: Maine | X4: Maryland | Y4: Massachusetts | Z4: Michigan | AA4: Minnesota | AB4: Mississippi | AC4: Missouri | AD4: Montana | AE4: MyCounty | AF4: MyRegion | AG4: Nebraska | AH4: Nevada | AI4: New Hampshire | AJ4: New Jersey | AK4: New Mexico | AL4: New York | AM4: North Carolina | AN4: North Dakota | AO4: Ohio | AP4: Oklahoma | AQ4: Oregon | AR4: Pennsylvania | AS4: Rhode Island | AT4: South Carolina | AU4: South Dakota | AV4: Tennessee | AW4: Texas | AX4: United States | AY4: Utah | AZ4: Vermont | BA4: Virginia | BB4: Washington | BC4: West Virginia | BD4: Wisconsin | BE4: Wyoming
A5: Warning | C5: Agriculture | D5: 6.566301505 | E5: 15.00798786 | F5: 7.084637135 | G5: 4.826203119 | H5: 6.406473951 | I5: 5.332756246 | J5: 10.92911051 | K5: 2.142725394 | L5: 32.54869104 | M5: 9.84666822 | N5: 5.300310796 | O5: 15.7001553 | P5: 4.394204329 | Q5: 3.975800704 | R5: 4.925988671 | S5: 2.856584219 | T5: 3.3648776 | U5: 11.00036025 | V5: 8.009157392 | W5: 12.25358869 | X5: 6.770732962 | Y5: 14.2032497 | Z5: 7.462780943 | AA5: 4.183273309 | AB5: 5.943993734 | AC5: 8.067411278 | AD5: 5.871679553 | AE5: ='User Add-in Location'!B11 -> 0 | AF5: ='User Add-in Location'!C11 -> 0 | AG5: 1.94009228 | AH5: 5.058456534 | AI5: 14.27052803 | AJ5: 14.39903185 | AK5: 7.201252905 | AL5: 7.847738493 | AM5: 4.672248817 | AN5: 3.677496627 | AO5: 7.389474319 | AP5: 9.555810332 | AQ5: 10.97362891 | AR5: 7.962284287 | AS5: 12.47815987 | AT5: 8.890139416 | AU5: 2.873845819 | AV5: 14.21344577 | AW5: 9.068770211 | AX5: 6.185195093 | AY5: 6.982782015 | AZ5: 8.757503827 | BA5: 10.05915581 | BB5: 8.553233958 | BC5: 18.06799576 | BD5: 6.072027102 | BE5: 6.086522665 | BG5: =AZ39/AZ5 -> 0.1814964601
C6: Mining | D6: 2.121725317 | E6: 1.154506435 | F6: 2.257920818 | G6: 3.381585273 | H6: 1.900933183 | I6: 2.470654419 | J6: 4.560099781 | K6: 4.344126743 | L6: 5.427036589 | M6: 3.862160282 | N6: 4.170659024 | O6: 5.132557634 | P6: 3.974133422 | Q6: 2.999673208 | R6: 2.51679321 | S6: 4.757555837 | T6: 4.857676022 | U6: 2.209793768 | V6: 2.309223161 | W6: 7.269813786 | X6: 3.08386688 | Y6: 3.960562886 | Z6: 4.143467668 | AA6: 2.358541005 | AB6: 3.56174451 | AC6: 3.018330229 | AD6: 2.715247624 | AE6: ='User Add-in Location'!B12 -> 0 | AF6: ='User Add-in Location'!C12 -> 0 | AG6: 4.362795982 | AH6: 2.315334555 | AI6: 5.067094526 | AJ6: 3.732540932 | AK6: 2.586908354 | AL6: 5.273916687 | AM6: 3.413465555 | AN6: 2.540094044 | AO6: 3.120457235 | AP6: 3.08392656 | AQ6: 5.288848601 | AR6: 2.282537681 | AS6: 5.233906207 | AT6: 4.847757754 | AU6: 4.918396162 | AV6: 3.488801583 | AW6: 1.876195431 | AX6: 2.300683422 | AY6: 2.686323415 | AZ6: 4.407466253 | BA6: 2.471554798 | BB6: 4.319209361 | BC6: 2.090407537 | BD6: 3.808428889 | BE6: 1.692485077 | BG6: =AZ40/AZ6 -> 0.271283141
A7: This Worksheet contains Data and Formulas that are an integral part of the JEDI model. | C7: Construction | D7: 5.658464877 | E7: 4.605736505 | F7: 5.424763932 | G7: 5.864647721 | H7: 5.290770034 | I7: 5.648863013 | J7: 5.165300016 | K7: 5.752076231 | L7: 5.172071493 | M7: 5.679083343 | N7: 5.624088496 | O7: 4.746385538 | P7: 6.161492008 | Q7: 5.076730913 | R7: 5.737118538 | S7: 5.598390968 | T7: 5.830203625 | U7: 5.636659357 | V7: 5.459092594 | W7: 6.096579447 | X7: 5.354560075 | Y7: 5.231740932 | Z7: 5.650198221 | AA7: 5.140882706 | AB7: 5.682670408 | AC7: 5.812212401 | AD7: 5.7962149 | AE7: ='User Add-in Location'!B13 -> 0 | AF7: ='User Add-in Location'!C13 -> 0 | AG7: 5.473703533 | AH7: 5.319873297 | AI7: 5.791518949 | AJ7: 4.96365179 | AK7: 5.826582475 | AL7: 4.978394977 | AM7: 5.833846589 | AN7: 5.408876865 | AO7: 5.690305362 | AP7: 5.765250162 | AQ7: 5.625962241 | AR7: 5.575375672 | AS7: 5.034845465 | AT7: 5.725158019 | AU7: 6.013969244 | AV7: 5.782569692 | AW7: 5.177427777 | AX7: 5.439894321 | AY7: 5.59366275 | AZ7: 6.152719537 | BA7: 5.648744399 | BB7: 5.28734203 | BC7: 5.382394936 | BD7: 5.665991669 | BE7: 5.147663727 | BG7: 0.3931996955
C8: Manufacturing | D8: 1.722263429 | E8: 2.026583535 | F8: 2.356520262 | G8: 2.108720256 | H8: 1.775246229 | I8: 2.085765814 | J8: 2.169984453 | K8: 1.528338099 | L8: 3.089486298 | M8: 2.451248791 | N8: 1.993219047 | O8: 1.99791402 | P8: 1.907363004 | Q8: 1.715457132 | R8: 1.65804698 | S8: 1.754338829 | T8: 1.633724235 | U8: 1.547241314 | V8: 0.6666777554 | W8: 2.413729585 | X8: 2.140737982 | Y8: 2.090552425 | Z8: 1.734994975 | AA8: 2.060976559 | AB8: 1.766480426 | AC8: 1.81842181 | AD8: 1.142202462 | AE8: ='User Add-in Location'!B14 -> 0 | AF8: ='User Add-in Location'!C14 -> 0 | AG8: 1.7157333 | AH8: 2.668537629 | AI8: 2.702337968 | AJ8: 1.618079873 | AK8: 1.639213519 | AL8: 2.23001883 | AM8: 1.823091252 | AN8: 1.712811708 | AO8: 1.811331708 | AP8: 1.820484808 | AQ8: 2.5514421 | AR8: 1.988448393 | AS8: 2.674774722 | AT8: 1.879663326 | AU8: 2.254838632 | AV8: 1.860522353 | AW8: 1.045759592 | AX8: 1.739941611 | AY8: 1.884202263 | AZ8: 2.515819028 | BA8: 2.070320913 | BB8: 1.575458679 | BC8: 1.388108271 | BD8: 2.299952633 | BE8: 0.7000990042 | BG8: 0.5733815101
A9: Although the data and formulas are available for review they must not be changed. | C9: Fabricated Metals | D9: 3.720983504 | E9: 4.038309568 | F9: 4.430362292 | G9: 3.585653411 | H9: 4.163223421 | I9: 3.70814309 | J9: 3.917571749 | K9: 4.144720426 | L9: 0 | M9: 4.178092585 | N9: 4.096107755 | O9: 4.56051251 | P9: 4.631162456 | Q9: 3.962268143 | R9: 3.973712765 | S9: 3.867207218 | T9: 3.953798003 | U9: 3.997935524 | V9: 3.471644522 | W9: 3.916482248 | X9: 4.112196994 | Y9: 3.784932533 | Z9: 4.069965751 | AA9: 4.114231994 | AB9: 4.104337122 | AC9: 4.067109805 | AD9: 4.133525838 | AE9: ='User Add-in Location'!B15 -> 0 | AF9: ='User Add-in Location'!C15 -> 0 | AG9: 3.686296813 | AH9: 4.061259467 | AI9: 3.824423122 | AJ9: 3.99466841 | AK9: 4.472397211 | AL9: 3.912603939 | AM9: 3.916370196 | AN9: 3.868533557 | AO9: 3.864503839 | AP9: 3.361617197 | AQ9: 3.910300847 | AR9: 3.980617413 | AS9: 4.538269651 | AT9: 3.64737019 | AU9: 3.730272044 | AV9: 3.714427051 | AW9: 3.677903535 | AX9: 3.869482298 | AY9: 3.8157599 | AZ9: 4.484955411 | BA9: 3.616452533 | BB9: 4.024883193 | BC9: 4.146812842 | BD9: 3.979422342 | BE9: 3.623728297 | BG9: 0.4544939707
C10: Machinery | D10: 1.886453153 | E10: 2.3926353 | F10: 2.133516161 | G10: 2.373938912 | H10: 2.113626381 | I10: 1.671733698 | J10: 2.025134587 | K10: 2.981434556 | L10: 2.482101585 | M10: 2.296220139 | N10: 1.900483916 | O10: 1.895837443 | P10: 2.021468989 | Q10: 1.738677709 | R10: 1.371589495 | S10: 1.539954945 | T10: 2.011445987 | U10: 2.350756106 | V10: 2.137380697 | W10: 2.44305185 | X10: 1.463423528 | Y10: 2.484971202 | Z10: 2.293084266 | AA10: 2.234651032 | AB10: 1.49963951 | AC10: 1.672030595 | AD10: 2.074005137 | AE10: ='User Add-in Location'!B16 -> 0 | AF10: ='User Add-in Location'!C16 -> 0 | AG10: 1.540550944 | AH10: 2.192826854 | AI10: 2.734187584 | AJ10: 2.767154296 | AK10: 2.106585813 | AL10: 1.955293451 | AM10: 1.795432163 | AN10: 1.548158959 | AO10: 2.384861194 | AP10: 1.964364015 | AQ10: 2.479930453 | AR10: 2.248830128 | AS10: 3.264932214 | AT10: 1.841499949 | AU10: 1.886563183 | AV10: 1.797522049 | AW10: 2.051071177 | AX10: 1.905029876 | AY10: 1.86629677 | AZ10: 3.196590884 | BA10: 2.828091539 | BB10: 2.50362186 | BC10: 3.165161351 | BD10: 1.729062911 | BE10: 2.333420941 | BG10: 0.6332782279
A11: Any changes to the data or formulas will impact the analysis and may invalidate the model results. | C11: Electrical Equipment | D11: 3.747754946 | E11: 0 | F11: 1.170886574 | G11: 3.016914665 | H11: 1.319321895 | I11: 1.513755961 | J11: 2.455377145 | K11: 3.570936006 | L11: 0.6757981732 | M11: 1.676763706 | N11: 2.53584118 | O11: 1.149847782 | P11: 1.124117735 | Q11: 3.009896796 | R11: 3.262094721 | S11: 2.501515165 | T11: 2.668945997 | U11: 3.702867134 | V11: 2.838088487 | W11: 1.522556992 | X11: 3.052604501 | Y11: 1.369327418 | Z11: 2.930208455 | AA11: 2.311043319 | AB11: 2.755542794 | AC11: 1.927473116 | AD11: 1.756795569 | AE11: ='User Add-in Location'!B17 -> 0 | AF11: ='User Add-in Location'!C17 -> 0 | AG11: 4.064168633 | AH11: 3.329947961 | AI11: 2.722707277 | AJ11: 2.342255595 | AK11: 0.983826263 | AL11: 1.835241634 | AM11: 1.326298005 | AN11: 3.220841821 | AO11: 2.312894485 | AP11: 3.186727167 | AQ11: 0.5630010725 | AR11: 2.427348829 | AS11: 1.843139595 | AT11: 3.682804549 | AU11: 3.062733776 | AV11: 3.014649407 | AW11: 1.240553771 | AX11: 1.358589253 | AY11: 1.456675529 | AZ11: 1.459853074 | BA11: 1.696150796 | BB11: 1.836212943 | BC11: 2.476933028 | BD11: 3.439866422 | BE11: 5.032342916 | BG11: 1.150149006
C12: TCPU | D12: 2.283608886 | E12: 1.645986495 | F12: 2.459674264 | G12: 3.284334276 | H12: 3.202737095 | I12: 2.710833008 | J12: 3.011261121 | K12: 2.707828264 | L12: 4.166595066 | M12: 2.710778823 | N12: 2.804426209 | O12: 2.241599856 | P12: 3.414317561 | Q12: 3.452649813 | R12: 3.190412521 | S12: 3.26513922 | T12: 2.578994344 | U12: 2.854591237 | V12: 2.430578727 | W12: 3.315745535 | X12: 2.814767977 | Y12: 3.1121429 | Z12: 2.675160416 | AA12: 3.042009531 | AB12: 2.789842394 | AC12: 3.14421563 | AD12: 2.605081233 | AE12: ='User Add-in Location'!B18 -> 0 | AF12: ='User Add-in Location'!C18 -> 0 | AG12: 2.744033063 | AH12: 0 | AI12: 2.785416439 | AJ12: 3.517803437 | AK12: 2.672647469 | AL12: 3.564482713 | AM12: 3.051091727 | AN12: 2.750117172 | AO12: 3.010500463 | AP12: 2.130499603 | AQ12: 2.94509543 | AR12: 3.460524784 | AS12: 3.389656015 | AT12: 2.458988455 | AU12: 3.14367906 | AV12: 3.182802276 | AW12: 2.625546652 | AX12: 2.970278852 | AY12: 3.56663037 | AZ12: 2.614791149 | BA12: 3.26818116 | BB12: 2.960805881 | BC12: 2.501016312 | BD12: 3.306148811 | BE12: 2.111241179 | BG12: 0.7657668938
C13: Wholesale Trade | D13: 3.940881736 | E13: 3.514911845 | F13: 3.685652831 | G13: 3.481172608 | H13: 3.375396676 | I13: 3.662646963 | J13: 3.025677558 | K13: 3.366370311 | L13: 3.137867347 | M13: 3.576838971 | N13: 3.462482362 | O13: 4.387286957 | P13: 4.234213406 | Q13: 3.389059468 | R13: 3.87941033 | S13: 3.999720777 | T13: 3.713357157 | U13: 3.667716795 | V13: 3.716003035 | W13: 3.915924831 | X13: 3.536271716 | Y13: 3.380872889 | Z13: 3.564893215 | AA13: 3.657934173 | AB13: 4.049456476 | AC13: 3.852700561 | AD13: 4.083031113 | AE13: ='User Add-in Location'!B19 -> 0 | AF13: ='User Add-in Location'!C19 -> 0 | AG13: 3.970727496 | AH13: 3.826737223 | AI13: 3.677236958 | AJ13: 3.130205071 | AK13: 4.384957995 | AL13: 3.205602342 | AM13: 3.826758924 | AN13: 3.557794549 | AO13: 3.767327816 | AP13: 3.813662199 | AQ13: 3.862045889 | AR13: 3.456788526 | AS13: 3.712679924 | AT13: 3.72062247 | AU13: 3.93382074 | AV13: 3.701558395 | AW13: 3.261407345 | AX13: 3.523543088 | AY13: 4.037879636 | AZ13: 4.188429735 | BA13: 3.63958541 | BB13: 3.455734597 | BC13: 3.925528932 | BD13: 3.973483106 | BE13: 3.522505128 | BG13: 0.546064221
C14: Retail Trade | D14: 11.95631014 | E14: 12.34929243 | F14: 11.11949076 | G14: 12.82827608 | H14: 10.24403121 | I14: 12.19017333 | J14: 11.05452269 | K14: 13.11178238 | L14: 11.22845538 | M14: 11.93067004 | N14: 12.37445878 | O14: 10.96384825 | P14: 12.6050209 | Q14: 11.98193502 | R14: 12.7164949 | S14: 13.69820281 | T14: 12.32988458 | U14: 13.61372301 | V14: 11.97193869 | W14: 12.81210034 | X14: 11.81415757 | Y14: 12.58433866 | Z14: 11.82613669 | AA14: 12.21553939 | AB14: 12.63467494 | AC14: 12.99716225 | AD14: 14.28571584 | AE14: ='User Add-in Location'!B20 -> 0 | AF14: ='User Add-in Location'!C20 -> 0 | AG14: 13.05087213 | AH14: 7.792341105 | AI14: 12.73738223 | AJ14: 10.86196578 | AK14: 12.9524967 | AL14: 10.8873793 | AM14: 13.45326683 | AN14: 12.23223456 | AO14: 12.20490631 | AP14: 12.48480974 | AQ14: 13.78582606 | AR14: 13.02342298 | AS14: 12.02415208 | AT14: 12.66643177 | AU14: 12.82805309 | AV14: 12.0195632 | AW14: 11.10307679 | AX14: 11.76465954 | AY14: 11.81232614 | AZ14: 12.46919014 | BA14: 12.34015495 | BB14: 9.576041566 | BC14: 12.8113006 | BD14: 12.8448405 | BE14: 12.38982135 | BG14: 0.2437455219
C15: FIRE | D15: 5.57680298 | E15: 4.538493312 | F15: 5.628341884 | G15: 5.553065675 | H15: 4.406329268 | I15: 5.424818837 | J15: 3.437540676 | K15: 2.967515542 | L15: 3.269774774 | M15: 5.780774123 | N15: 4.710104015 | O15: 4.556523754 | P15: 5.707009331 | Q15: 4.129217207 | R15: 4.855444572 | S15: 4.085347867 | T15: 5.315893908 | U15: 5.191717741 | V15: 5.743036973 | W15: 4.561257007 | X15: 4.372383638 | Y15: 3.631232683 | Z15: 5.082985895 | AA15: 4.472011919 | AB15: 5.5064103 | AC15: 4.959296987 | AD15: 5.911714098 | AE15: ='User Add-in Location'!B21 -> 0 | AF15: ='User Add-in Location'!C21 -> 0 | AG15: 4.46843033 | AH15: 0 | AI15: 4.220286105 | AJ15: 4.306843067 | AK15: 5.00978851 | AL15: 2.82839939 | AM15: 4.251653355 | AN15: 4.954991795 | AO15: 4.059830469 | AP15: 5.569875235 | AQ15: 5.112114936 | AR15: 4.318733122 | AS15: 4.046045564 | AT15: 5.562812242 | AU15: 3.981673962 | AV15: 5.020840205 | AW15: 5.513486955 | AX15: 4.469860689 | AY15: 5.235307932 | AZ15: 4.655335988 | BA15: 4.598234123 | BB15: 4.492445418 | BC15: 5.064781041 | BD15: 4.323031029 | BE15: 5.696082867 | BG15: 0.3968390372
C16: Misc. Services | D16: 5.966384458 | E16: 5.421060997 | F16: 6.186165631 | G16: 7.014538529 | H16: 5.033424977 | I16: 5.613721645 | J16: 5.238210305 | K16: 4.074880673 | L16: 3.300984228 | M16: 6.254501876 | N16: 6.054370402 | O16: 5.902937884 | P16: 5.926176543 | Q16: 4.899407697 | R16: 5.345679638 | S16: 6.279439239 | T16: 6.458609542 | U16: 6.631448385 | V16: 6.184171536 | W16: 6.463589402 | X16: 5.008065627 | Y16: 4.342149864 | Z16: 5.649893792 | AA16: 5.606170974 | AB16: 6.954467438 | AC16: 5.711629249 | AD16: 7.079556797 | AE16: ='User Add-in Location'!B22 -> 0 | AF16: ='User Add-in Location'!C22 -> 0 | AG16: 6.065710269 | AH16: 6.245225195 | AI16: 5.778699946 | AJ16: 4.92410552 | AK16: 4.868187278 | AL16: 4.57377853 | AM16: 5.4841042 | AN16: 5.983771563 | AO16: 5.925975065 | AP16: 6.710986316 | AQ16: 5.591995106 | AR16: 5.122834921 | AS16: 5.923428663 | AT16: 6.295337806 | AU16: 6.718101348 | AV16: 5.79021109 | AW16: 5.476999097 | AX16: 5.328985501 | AY16: 6.319458501 | AZ16: 6.513734697 | BA16: 5.018896626 | BB16: 5.316556743 | BC16: 6.069555315 | BD16: 5.947434759 | BE16: 6.698138467 | BG16: 0.4777720058
C17: Professional Services | D17: 8.676103089 | E17: 7.050957372 | F17: 7.873900538 | G17: 7.724927774 | H17: 6.730931978 | I17: 7.01002572 | J17: 6.636015356 | K17: 7.565920304 | L17: 6.255980836 | M17: 8.215776058 | N17: 7.399140396 | O17: 8.055422579 | P17: 9.126508033 | Q17: 7.400240448 | R17: 8.566045667 | S17: 8.719636666 | T17: 7.72315742 | U17: 8.484307593 | V17: 8.181339305 | W17: 8.694315657 | X17: 7.102651242 | Y17: 6.917442091 | Z17: 8.33230856 | AA17: 7.572606203 | AB17: 8.973313448 | AC17: 7.515239094 | AD17: 9.292308615 | AE17: ='User Add-in Location'!B23 -> 0 | AF17: ='User Add-in Location'!C23 -> 0 | AG17: 8.277221287 | AH17: 7.905510131 | AI17: 7.550501111 | AJ17: 6.694155475 | AK17: 7.923336194 | AL17: 6.570752831 | AM17: 8.204395343 | AN17: 7.848705661 | AO17: 8.074757722 | AP17: 8.149709892 | AQ17: 8.060584083 | AR17: 7.436002488 | AS17: 7.519260454 | AT17: 8.464939115 | AU17: 8.546069053 | AV17: 7.997073892 | AW17: 7.503820539 | AX17: 7.444977234 | AY17: 7.941773096 | AZ17: 8.726917188 | BA17: 7.037438719 | BB17: 5.968075419 | BC17: 8.531529631 | BD17: 8.065657294 | BE17: 8.344410029 | BG17: 0.3151882795
A18: To view the data and formulas simply scroll over to the adjacent columns to the right. | C18: Government | D18: 8.657383336 | E18: 7.868630479 | F18: 8.181833948 | G18: 11.91821956 | H18: 6.770617173 | I18: 9.711362017 | J18: 6.58025484 | K18: 8.582900024 | L18: 4.369121568 | M18: 8.689600875 | N18: 10.18366731 | O18: 8.098019677 | P18: 11.16642991 | Q18: 9.243610901 | R18: 11.81268678 | S18: 10.93198947 | T18: 11.40573171 | U18: 10.06286351 | V18: 10.26485663 | W18: 10.41489398 | X18: 5.81563841 | Y18: 6.468442506 | Z18: 9.650036194 | AA18: 9.588872337 | AB18: 11.85901764 | AC18: 10.39527543 | AD18: 10.62671193 | AE18: ='User Add-in Location'!B24 -> 0 | AF18: ='User Add-in Location'!C24 -> 0 | AG18: 11.16511823 | AH18: 7.310316005 | AI18: 8.182084476 | AJ18: 8.001138872 | AK18: 6.370609457 | AL18: 6.644235538 | AM18: 10.440893 | AN18: 10.32477024 | AO18: 9.061888183 | AP18: 9.041431881 | AQ18: 8.744981851 | AR18: 8.422181737 | AS18: 6.85620269 | AT18: 10.1753975 | AU18: 10.56980784 | AV18: 9.989033641 | AW18: 9.540162258 | AX18: 8.370479687 | AY18: 10.32011234 | AZ18: 10.72922721 | BA18: 7.09368457 | BB18: 7.405113601 | BC18: 10.04400053 | BD18: 9.213557155 | BE18: 10.03858865 | BG18: 0.3866835431
C20: Jobs Per Million Dollars Change in Final Demand
C21: Jobs Indirect Multipliers | D21: Alabama | E21: Alaska | F21: Arizona | G21: Arkansas | H21: California | I21: Colorado | J21: Connecticut | K21: Delaware | L21: District of Columbia | M21: Florida | N21: Georgia | O21: Hawaii | P21: Idaho | Q21: Illinois | R21: Indiana | S21: Iowa | T21: Kansas | U21: Kentucky | V21: Louisiana | W21: Maine | X21: Maryland | Y21: Massachusetts | Z21: Michigan | AA21: Minnesota | AB21: Mississippi | AC21: Missouri | AD21: Montana | AE21: MyCounty | AF21: MyRegion | AG21: Nebraska | AH21: Nevada | AI21: New Hampshire | AJ21: New Jersey | AK21: New Mexico | AL21: New York | AM21: North Carolina | AN21: North Dakota | AO21: Ohio | AP21: Oklahoma | AQ21: Oregon | AR21: Pennsylvania | AS21: Rhode Island | AT21: South Carolina | AU21: South Dakota | AV21: Tennessee | AW21: Texas | AX21: United States | AY21: Utah | AZ21: Vermont | BA21: Virginia | BB21: Washington | BC21: West Virginia | BD21: Wisconsin | BE21: Wyoming
C22: Agriculture | D22: 1.319513921 | E22: 0.5703235415 | F22: 1.165353439 | G22: 1.834331818 | H22: 0.7834669005 | I22: 2.026241145 | J22: 0.4780140413 | K22: 0.9070569782 | L22: 0.5029372137 | M22: 0.9565018046 | N22: 1.305311264 | O22: 1.165347712 | P22: 1.66038997 | Q22: 1.168718992 | R22: 0.9044684848 | S22: 1.210844038 | T22: 1.742841513 | U22: 1.22197098 | V22: 0.7252396053 | W22: 1.457319133 | X22: 0.8659669208 | Y22: 0.4385928514 | Z22: 1.00593579 | AA22: 1.436992863 | AB22: 1.358500661 | AC22: 1.47400249 | AD22: 1.824493293 | AE22: ='User Add-in Location'!B28 -> 0 | AF22: ='User Add-in Location'!C28 -> 0 | AG22: 1.366329141 | AH22: 0.503640433 | AI22: 0.8668947284 | AJ22: 0.4255577263 | AK22: 1.483500655 | AL22: 0.9745106007 | AM22: 1.009163481 | AN22: 1.251393692 | AO22: 1.061526524 | AP22: 1.723134396 | AQ22: 1.677969634 | AR22: 1.162707469 | AS22: 0.4827201699 | AT22: 0.9600256738 | AU22: 1.490908389 | AV22: 1.286478159 | AW22: 1.528496873 | AX22: 2.516047916 | AY22: 1.234952924 | AZ22: 2.177824792 | BA22: 1.273794848 | BB22: 0.8879994894 | BC22: 1.305237219 | BD22: 1.935772124 | BE22: 0.907689221
C23: Mining | D23: 1.346741372 | E23: 0.3854762229 | F23: 1.760999887 | G23: 1.57240124 | H23: 1.065665425 | I23: 1.442883395 | J23: 1.620188063 | K23: 1.49295829 | L23: 1.247215879 | M23: 2.813005724 | N23: 1.640434376 | O23: 1.758629343 | P23: 1.918676432 | Q23: 1.814276626 | R23: 1.691773373 | S23: 1.5867199 | T23: 2.89075083 | U23: 1.582600524 | V23: 0.9860352088 | W23: 2.762200093 | X23: 2.09805794 | Y23: 2.13432945 | Z23: 2.277222813 | AA23: 1.544520503 | AB23: 1.609170872 | AC23: 1.824329763 | AD23: 1.887356067 | AE23: ='User Add-in Location'!B29 -> 0 | AF23: ='User Add-in Location'!C29 -> 0 | AG23: 1.635139244 | AH23: 1.025620405 | AI23: 1.80153128 | AJ23: 1.841913002 | AK23: 1.413369428 | AL23: 1.90174686 | AM23: 1.591698301 | AN23: 0.9860312144 | AO23: 1.964549949 | AP23: 1.87621693 | AQ23: 2.258830361 | AR23: 1.354896711 | AS23: 1.924752111 | AT23: 1.754068706 | AU23: 1.959714171 | AV23: 1.68396202 | AW23: 1.09131178 | AX23: 2.057463107 | AY23: 1.717369328 | AZ23: 1.506530237 | BA23: 1.58902348 | BB23: 1.709575598 | BC23: 1.549169955 | BD23: 1.401150164 | BE23: 0.8881504639
C24: Construction | D24: 2.85242293 | E24: 1.94161881 | F24: 2.870700919 | G24: 3.019637513 | H24: 2.936072941 | I24: 3.169258981 | J24: 2.553290429 | K24: 2.694446186 | L24: 1.270779025 | M24: 3.406551081 | N24: 3.2325782 | O24: 2.220518683 | P24: 3.400061824 | Q24: 2.773124388 | R24: 2.961146494 | S24: 2.913186712 | T24: 3.055180497 | U24: 2.884599262 | V24: 2.396554365 | W24: 3.597705335 | X24: 2.365404662 | Y24: 2.630187595 | Z24: 3.145467919 | AA24: 2.977011292 | AB24: 2.789715416 | AC24: 3.261789625 | AD24: 3.215115969 | AE24: ='User Add-in Location'!B30 -> 0 | AF24: ='User Add-in Location'!C30 -> 0 | AG24: 2.917470921 | AH24: 1.028848235 | AI24: 3.317632952 | AJ24: 2.45769535 | AK24: 2.69654489 | AL24: 2.233649441 | AM24: 3.37204018 | AN24: 2.46032032 | AO24: 3.286720931 | AP24: 3.071064837 | AQ24: 3.126425525 | AR24: 3.112256777 | AS24: 2.486140099 | AT24: 2.983040633 | AU24: 3.09520538 | AV24: 3.280821566 | AW24: 2.882276964 | AX24: 4.535933937 | AY24: 3.203824872 | AZ24: 3.22967919 | BA24: 2.725901288 | BB24: 2.312682122 | BC24: 2.288466139 | BD24: 3.168419136 | BE24: 1.910163254
C25: Manufacturing | D25: 1.719606379 | E25: 1.513774018 | F25: 1.907002834 | G25: 1.943847292 | H25: 2.142555244 | I25: 2.206959301 | J25: 1.28778708 | K25: 1.381814646 | L25: 0.6678359406 | M25: 2.236954606 | N25: 1.827781666 | O25: 2.208179775 | P25: 2.185982146 | Q25: 1.843757361 | R25: 1.579410517 | S25: 1.722338655 | T25: 2.181515129 | U25: 1.709322278 | V25: 1.622698025 | W25: 2.099713503 | X25: 1.260373828 | Y25: 1.417690293 | Z25: 1.860247439 | AA25: 2.070162712 | AB25: 1.842514776 | AC25: 1.920575081 | AD25: 2.173145969 | AE25: ='User Add-in Location'!B31 -> 0 | AF25: ='User Add-in Location'!C31 -> 0 | AG25: 1.757824383 | AH25: 1.09730422 | AI25: 1.50381008 | AJ25: 1.538768206 | AK25: 2.084511831 | AL25: 1.536531506 | AM25: 1.686701792 | AN25: 1.826769201 | AO25: 1.970702053 | AP25: 2.326871222 | AQ25: 2.210013906 | AR25: 1.935594617 | AS25: 1.474982136 | AT25: 1.604136401 | AU25: 1.828434074 | AV25: 1.838215078 | AW25: 2.34775993 | AX25: 4.069121681 | AY25: 2.287479816 | AZ25: 2.196046612 | BA25: 1.440061851 | BB25: 1.65595184 | BC25: 1.632989306 | BD25: 2.06277718 | BE25: 1.574550618
C26: Fabricated Metals | D26: 1.535072799 | E26: 1.347216768 | F26: 1.931791671 | G26: 1.433570946 | H26: 2.231475737 | I26: 1.914001274 | J26: 1.353465771 | K26: 1.233500743 | L26: 0 | M26: 2.166902549 | N26: 1.770556644 | O26: 1.722141222 | P26: 1.86849412 | Q26: 1.800496389 | R26: 1.603295329 | S26: 1.520989853 | T26: 1.588079821 | U26: 1.477411899 | V26: 1.297191403 | W26: 1.732763509 | X26: 1.393661086 | Y26: 1.476599056 | Z26: 1.830308339 | AA26: 1.915584361 | AB26: 1.502996882 | AC26: 1.682244096 | AD26: 1.696523828 | AE26: ='User Add-in Location'!B32 -> 0 | AF26: ='User Add-in Location'!C32 -> 0 | AG26: 1.484228341 | AH26: 1.156830529 | AI26: 1.478596089 | AJ26: 1.50269221 | AK26: 1.577912689 | AL26: 1.469166326 | AM26: 1.872709049 | AN26: 1.390724573 | AO26: 1.864812135 | AP26: 1.538101917 | AQ26: 1.832334079 | AR26: 1.817148668 | AS26: 1.6795428 | AT26: 1.475785519 | AU26: 1.475379213 | AV26: 1.662181397 | AW26: 1.993921701 | AX26: 3.919340046 | AY26: 2.205167276 | AZ26: 1.592460976 | BA26: 1.331633848 | BB26: 1.540330231 | BC26: 1.296711708 | BD26: 1.780891855 | BE26: 1.10759694
C27: Machinery | D27: 1.782071681 | E27: 1.372440724 | F27: 1.820820224 | G27: 1.762615641 | H27: 2.173264845 | I27: 2.218861635 | J27: 1.458751404 | K27: 1.229152511 | L27: 1.06051477 | M27: 2.388286072 | N27: 1.868461982 | O27: 2.103107777 | P27: 2.057203412 | Q27: 1.769351187 | R27: 1.806685001 | S27: 1.52933606 | T27: 1.890685734 | U27: 1.699285579 | V27: 1.509961382 | W27: 1.885040977 | X27: 1.644895623 | Y27: 1.592356689 | Z27: 1.878113689 | AA27: 2.240593151 | AB27: 1.651137773 | AC27: 2.156241202 | AD27: 2.080329346 | AE27: ='User Add-in Location'!B33 -> 0 | AF27: ='User Add-in Location'!C33 -> 0 | AG27: 1.588472538 | AH27: 1.228877666 | AI27: 1.235437953 | AJ27: 1.517498713 | AK27: 1.678648567 | AL27: 1.510279171 | AM27: 1.730346254 | AN27: 1.601898249 | AO27: 1.993967364 | AP27: 1.589697615 | AQ27: 2.004047006 | AR27: 1.881152763 | AS27: 1.436684922 | AT27: 1.575703064 | AU27: 1.776496563 | AV27: 1.849220664 | AW27: 1.998616275 | AX27: 4.136537375 | AY27: 2.257757467 | AZ27: 1.443509375 | BA27: 1.50952567 | BB27: 1.701084835 | BC27: 1.245834223 | BD27: 2.010167867 | BE27: 1.37893346
C28: Electrical Equipment | D28: 2.00198344 | E28: 0 | F28: 2.419003066 | G28: 1.963623119 | H28: 2.46819347 | I28: 2.438621931 | J28: 1.785700478 | K28: 1.47690865 | L28: 0.6618369722 | M28: 2.743473702 | N28: 2.251517411 | O28: 1.951990281 | P28: 2.275527518 | Q28: 2.087844203 | R28: 1.784610541 | S28: 1.88823107 | T28: 1.767970339 | U28: 1.988752324 | V28: 1.56119283 | W28: 2.058046138 | X28: 1.786945553 | Y28: 2.1120939 | Z28: 2.371245305 | AA28: 2.717101753 | AB28: 2.042583125 | AC28: 1.676510469 | AD28: 2.424258186 | AE28: ='User Add-in Location'!B34 -> 0 | AF28: ='User Add-in Location'!C34 -> 0 | AG28: 1.850753989 | AH28: 1.100042423 | AI28: 2.056121718 | AJ28: 1.96962687 | AK28: 1.437903279 | AL28: 2.064196397 | AM28: 2.266683445 | AN28: 2.033587412 | AO28: 2.340057991 | AP28: 2.024501649 | AQ28: 1.101671729 | AR28: 2.071844152 | AS28: 2.173761422 | AT28: 1.675998278 | AU28: 2.139474133 | AV28: 1.939891795 | AW28: 2.238292128 | AX28: 3.584556718 | AY28: 2.796452522 | AZ28: 2.563166823 | BA28: 1.961740458 | BB28: 1.904983485 | BC28: 1.792028504 | BD28: 2.306549895 | BE28: 1.587917748
C29: TCPU | D29: 2.423218054 | E29: 1.234251262 | F29: 2.417477883 | G29: 2.386263388 | H29: 2.318381455 | I29: 2.517959473 | J29: 1.857720103 | K29: 1.964521829 | L29: 1.228023425 | M29: 2.761678793 | N29: 2.462624135 | O29: 2.006116664 | P29: 2.599194807 | Q29: 2.564059933 | R29: 2.422297138 | S29: 2.245537227 | T29: 2.314320102 | U29: 2.314607788 | V29: 2.274938129 | W29: 2.337000909 | X29: 1.973185009 | Y29: 2.08916582 | Z29: 2.470016262 | AA29: 2.743791067 | AB29: 2.421623269 | AC29: 2.428410865 | AD29: 2.500574795 | AE29: ='User Add-in Location'!B35 -> 0 | AF29: ='User Add-in Location'!C35 -> 0 | AG29: 1.578155762 | AH29: 0 | AI29: 2.071439272 | AJ29: 1.946396469 | AK29: 2.183864763 | AL29: 2.214101171 | AM29: 2.305848866 | AN29: 2.10975683 | AO29: 2.294422018 | AP29: 2.323531102 | AQ29: 2.254004101 | AR29: 2.34465891 | AS29: 2.035620196 | AT29: 2.262590595 | AU29: 2.396903864 | AV29: 2.589615533 | AW29: 2.44655046 | AX29: 3.724966444 | AY29: 2.920791826 | AZ29: 2.511165448 | BA29: 2.053490014 | BB29: 1.928387286 | BC29: 2.199101325 | BD29: 2.356693503 | BE29: 1.712212111
C30: Wholesale Trade | D30: 2.156728738 | E30: 1.537777259 | F30: 2.47446701 | G30: 1.852723479 | H30: 2.075659127 | I30: 2.38896365 | J30: 1.61628923 | K30: 1.630476529 | L30: 1.202688467 | M30: 2.662347239 | N30: 2.143685242 | O30: 2.375427584 | P30: 2.609572998 | Q30: 2.100241179 | R30: 2.16937998 | S30: 2.139098154 | T30: 2.093627304 | U30: 1.990510557 | V30: 1.916046836 | W30: 2.432676314 | X30: 1.886581866 | Y30: 1.921275535 | Z30: 2.191256579 | AA30: 2.314221912 | AB30: 2.114577724 | AC30: 2.360595193 | AD30: 2.413913185 | AE30: ='User Add-in Location'!B36 -> 0 | AF30: ='User Add-in Location'!C36 -> 0 | AG30: 2.298960415 | AH30: 1.748734599 | AI30: 2.104123601 | AJ30: 1.772678726 | AK30: 2.158784186 | AL30: 1.650345587 | AM30: 2.341719465 | AN30: 1.790304192 | AO30: 2.314753789 | AP30: 2.187417969 | AQ30: 2.353375739 | AR30: 2.040132838 | AS30: 2.224922115 | AT30: 2.113490629 | AU30: 2.124067588 | AV30: 2.246795848 | AW30: 2.026669039 | AX30: 2.7373629 | AY30: 2.781928042 | AZ30: 2.468676543 | BA30: 1.91064412 | BB30: 1.736869505 | BC30: 1.857349056 | BD30: 2.340242982 | BE30: 1.509584456
C31: Retail Trade | D31: 2.026087659 | E31: 1.648407043 | F31: 2.389389038 | G31: 2.094880694 | H31: 1.916296428 | I31: 2.515363178 | J31: 1.806047562 | K31: 1.961905006 | L31: 1.3182963 | M31: 2.79437014 | N31: 2.376148965 | O31: 1.819152405 | P31: 2.509192716 | Q31: 2.308811227 | R31: 2.232822305 | S31: 2.316977014 | T31: 2.173733642 | U31: 2.269804774 | V31: 1.89285136 | W31: 2.458237599 | X31: 1.947433527 | Y31: 2.140530468 | Z31: 2.232321683 | AA31: 2.456390938 | AB31: 2.045062052 | AC31: 2.501905481 | AD31: 2.65415916 | AE31: ='User Add-in Location'!B37 -> 0 | AF31: ='User Add-in Location'!C37 -> 0 | AG31: 2.397141072 | AH31: 1.71681588 | AI31: 2.236431443 | AJ31: 1.900782508 | AK31: 1.950211578 | AL31: 1.69277526 | AM31: 2.508730603 | AN31: 1.992029218 | AO31: 2.337374464 | AP31: 2.237703149 | AQ31: 2.619117386 | AR31: 2.390209378 | AS31: 2.190856001 | AT31: 2.194468721 | AU31: 2.170909021 | AV31: 2.246612257 | AW31: 2.183741611 | AX31: 2.85241278 | AY31: 2.690846092 | AZ31: 2.247721865 | BA31: 2.05132207 | BB31: 1.519347673 | BC31: 1.84832015 | BD31: 2.412506328 | BE31: 1.710030164
C32: FIRE | D32: 2.672926329 | E32: 1.515002523 | F32: 3.403565446 | G32: 2.485941434 | H32: 2.152271691 | I32: 3.38130586 | J32: 1.889472324 | K32: 1.191061131 | L32: 1.021411763 | M32: 3.878261446 | N32: 2.520645732 | O32: 1.910245539 | P32: 3.477491444 | Q32: 2.336089851 | R32: 2.322165144 | S32: 2.195485735 | T32: 2.730085117 | U32: 2.498029581 | V32: 2.42923894 | W32: 2.498142516 | X32: 1.962908785 | Y32: 1.916349723 | Z32: 2.691694037 | AA32: 2.743977493 | AB32: 2.641649245 | AC32: 2.607271457 | AD32: 2.812825968 | AE32: ='User Add-in Location'!B38 -> 0 | AF32: ='User Add-in Location'!C38 -> 0 | AG32: 2.527044322 | AH32: 0 | AI32: 2.27110257 | AJ32: 2.253544816 | AK32: 2.064098574 | AL32: 1.186696966 | AM32: 2.049237599 | AN32: 2.272276548 | AO32: 2.264706258 | AP32: 2.981819583 | AQ32: 2.590588948 | AR32: 2.477824684 | AS32: 2.19731 | AT32: 2.691993679 | AU32: 1.757509559 | AV32: 2.529782996 | AW32: 3.318630105 | AX32: 3.030891677 | AY32: 3.249955586 | AZ32: 2.356212324 | BA32: 2.067170134 | BB32: 1.962393291 | BC32: 1.8575955 | BD32: 2.472662005 | BE32: 2.293024262
C33: Misc. Services | D33: 2.391045793 | E33: 1.68729931 | F33: 2.816766554 | G33: 2.447200266 | H33: 2.12953962 | I33: 2.645974761 | J33: 2.007974266 | K33: 1.601592508 | L33: 0.9365368548 | M33: 2.949056169 | N33: 2.350960338 | O33: 2.172193818 | P33: 2.847602633 | Q33: 2.051671434 | R33: 2.110613917 | S33: 2.326551286 | T33: 2.533646372 | U33: 2.364222314 | V33: 2.019686888 | W33: 2.837717381 | X33: 2.063325309 | Y33: 2.024249312 | Z33: 2.587198177 | AA33: 2.507469939 | AB33: 2.391963822 | AC33: 2.453167245 | AD33: 2.719559779 | AE33: ='User Add-in Location'!B39 -> 0 | AF33: ='User Add-in Location'!C39 -> 0 | AG33: 2.420023062 | AH33: 1.799711269 | AI33: 2.397519157 | AJ33: 1.949856313 | AK33: 2.216516933 | AL33: 1.585555347 | AM33: 2.428538511 | AN33: 1.998166378 | AO33: 2.55126557 | AP33: 2.42986777 | AQ33: 2.214031347 | AR33: 2.250957692 | AS33: 2.559284564 | AT33: 2.484487368 | AU33: 2.529309421 | AV33: 2.323308191 | AW33: 2.240851104 | AX33: 2.896294141 | AY33: 3.197679741 | AZ33: 2.748779069 | BA33: 1.831675543 | BB33: 2.019034463 | BC33: 2.002864914 | BD33: 2.527157287 | BE33: 1.842741946
C34: Professional Services | D34: 2.248534463 | E34: 1.694080487 | F34: 2.786096654 | G34: 2.068190855 | H34: 2.264161773 | I34: 2.558318385 | J34: 1.867994063 | K34: 1.776466339 | L34: 1.254010714 | M34: 3.029120683 | N34: 2.605051211 | O34: 2.091139681 | P34: 2.75474473 | Q34: 2.377903603 | R34: 2.265441563 | S34: 2.216481605 | T34: 2.312454583 | U34: 2.276239368 | V34: 2.054640669 | W34: 2.600950118 | X34: 2.027942568 | Y34: 2.075984915 | Z34: 2.496147897 | AA34: 2.473432415 | AB34: 2.297373694 | AC34: 2.561215368 | AD34: 2.654966169 | AE34: ='User Add-in Location'!B40 -> 0 | AF34: ='User Add-in Location'!C40 -> 0 | AG34: 2.414114313 | AH34: 1.614957851 | AI34: 2.146222899 | AJ34: 2.014463556 | AK34: 2.322989312 | AL34: 1.817750261 | AM34: 2.5125793 | AN34: 1.918526166 | AO34: 2.435413512 | AP34: 2.375861165 | AQ34: 2.505264541 | AR34: 2.213249922 | AS34: 2.294111378 | AT34: 2.432577343 | AU34: 2.255512268 | AV34: 2.374444882 | AW34: 2.468405603 | AX34: 3.150516026 | AY34: 2.922830104 | AZ34: 2.479608381 | BA34: 2.003782424 | BB34: 1.894285838 | BC34: 1.903541679 | BD34: 2.325163288 | BE34: 1.721607906
C35: Government | D35: 0.5341393522 | E35: 0.1736148769 | F35: 0.8388863152 | G35: 0.4782421612 | H35: 0.4838495129 | I35: 0.3816948612 | J35: 0.7452436203 | K35: 0.09223168162 | L35: 0.03468052929 | M35: 0.5094647703 | N35: 0.09014927011 | O35: 0.2726068163 | P35: 0.7045085394 | Q35: 0.2316607017 | R35: 0.3189855516 | S35: 0.4297921844 | T35: 0.5065916807 | U35: 0.4833245218 | V35: 0.6263016201 | W35: 0.5674986272 | X35: 0.1221430098 | Y35: 0.1649884273 | Z35: 0.3824695821 | AA35: 0.7699592919 | AB35: 0.401656491 | AC35: 0.4769121305 | AD35: 0.5883355082 | AE35: ='User Add-in Location'!B41 -> 0 | AF35: ='User Add-in Location'!C41 -> 0 | AG35: 0.4348514071 | AH35: 0.7641907726 | AI35: 0.3241086031 | AJ35: 0.2488577507 | AK35: 0.5854309031 | AL35: 0.4444807652 | AM35: 0.2627077819 | AN35: 1.087932361 | AO35: 0.3509908602 | AP35: 1.140728274 | AQ35: 0.5922482078 | AR35: 0.4699117172 | AS35: 0.2128224571 | AT35: 0.4951607574 | AU35: 1.216297472 | AV35: 0.6544891743 | AW35: 0.437734071 | AX35: 0.6106213007 | AY35: 0.3667788906 | AZ35: 0.2420767486 | BA35: 0.361158773 | BB35: 0.7186473955 | BC35: 0.4430653637 | BD35: 0.5983510299 | BE35: 0.4077042608
C37: Jobs Per Million Dollars Change in Final Demand
C38: Jobs Induced Multipliers | D38: Alabama | E38: Alaska | F38: Arizona | G38: Arkansas | H38: California | I38: Colorado | J38: Connecticut | K38: Delaware | L38: District of Columbia | M38: Florida | N38: Georgia | O38: Hawaii | P38: Idaho | Q38: Illinois | R38: Indiana | S38: Iowa | T38: Kansas | U38: Kentucky | V38: Louisiana | W38: Maine | X38: Maryland | Y38: Massachusetts | Z38: Michigan | AA38: Minnesota | AB38: Mississippi | AC38: Missouri | AD38: Montana | AE38: MyCounty | AF38: MyRegion | AG38: Nebraska | AH38: Nevada | AI38: New Hampshire | AJ38: New Jersey | AK38: New Mexico | AL38: New York | AM38: North Carolina | AN38: North Dakota | AO38: Ohio | AP38: Oklahoma | AQ38: Oregon | AR38: Pennsylvania | AS38: Rhode Island | AT38: South Carolina | AU38: South Dakota | AV38: Tennessee | AW38: Texas | AX38: United States | AY38: Utah | AZ38: Vermont | BA38: Virginia | BB38: Washington | BC38: West Virginia | BD38: Wisconsin | BE38: Wyoming
C39: Agriculture | D39: 1.794707312 | E39: 1.649150222 | F39: 2.026849456 | G39: 1.660150552 | H39: 2.369801004 | I39: 1.697127758 | J39: 1.250260933 | K39: 1.038418468 | L39: 0.4934282077 | M39: 2.78137248 | N39: 2.781269799 | O39: 2.35165496 | P39: 2.472046597 | Q39: 3.209408042 | R39: 2.223219869 | S39: 1.669330039 | T39: 1.63172601 | U39: 1.739775821 | V39: 1.955917782 | W39: 2.486824429 | X39: 1.323949643 | Y39: 1.981511447 | Z39: 1.928198301 | AA39: 1.924933997 | AB39: 1.98748022 | AC39: 1.844892994 | AD39: 1.406127815 | AE39: ='User Add-in Location'!B45 -> 0 | AF39: ='User Add-in Location'!C45 -> 0 | AG39: 1.762856673 | AH39: 0.9745741113 | AI39: 1.651136847 | AJ39: 2.299985931 | AK39: 2.148710326 | AL39: 1.386038918 | AM39: 1.879581056 | AN39: 0.9138449468 | AO39: 1.85972094 | AP39: 1.015784951 | AQ39: 2.527799329 | AR39: 1.465469359 | AS39: 1.692736933 | AT39: 1.811880754 | AU39: 1.915341946 | AV39: 1.533766927 | AW39: 1.406079645 | AX39: 3.634442342 | AY39: 1.255170172 | AZ39: 1.589455944 | BA39: 1.059209869 | BB39: 2.060472871 | BC39: 0.414305706 | BD39: 1.986191394 | BE39: 0.6690314577
C40: Mining | D40: 1.099679643 | E40: 0.6885730426 | F40: 1.707639383 | G40: 1.441064427 | H40: 1.515722586 | I40: 2.719303325 | J40: 1.496216173 | K40: 2.415380257 | L40: 0.5136019112 | M40: 1.692070367 | N40: 1.992067904 | O40: 1.255637901 | P40: 1.659218042 | Q40: 1.599978171 | R40: 1.73549639 | S40: 1.291221321 | T40: 2.190045108 | U40: 1.224792633 | V40: 1.431481099 | W40: 1.459909536 | X40: 1.313443792 | Y40: 2.113530974 | Z40: 2.138847088 | AA40: 1.823352081 | AB40: 1.901089316 | AC40: 1.581514759 | AD40: 1.966055711 | AE40: ='User Add-in Location'!B46 -> 0 | AF40: ='User Add-in Location'!C46 -> 0 | AG40: 1.611860144 | AH40: 1.022382729 | AI40: 1.489035696 | AJ40: 2.555087283 | AK40: 1.470951868 | AL40: 2.142060211 | AM40: 1.118405156 | AN40: 1.393350325 | AO40: 2.075273555 | AP40: 2.498470306 | AQ40: 1.700408507 | AR40: 1.82757719 | AS40: 1.801788213 | AT40: 1.175511678 | AU40: 1.279071372 | AV40: 1.442316546 | AW40: 2.152451225 | AX40: 3.471256643 | AY40: 2.06731958 | AZ40: 1.195671289 | BA40: 1.694064147 | BB40: 1.014519215 | BC40: 1.251846887 | BD40: 1.55102452 | BE40: 0.7934806623
C41: Construction | D41: 2.204880434 | E41: 1.804629556 | F41: 2.835806679 | G41: 1.904810606 | H41: 2.641936335 | I41: 2.861447173 | J41: 2.358399137 | K41: 2.067108369 | L41: 0.6188673921 | M41: 2.869501822 | N41: 2.598847018 | O41: 2.206407879 | P41: 2.222000455 | Q41: 2.792330388 | R41: 2.426059827 | S41: 2.2481988 | T41: 2.225542756 | U41: 2.089834628 | V41: 2.06649371 | W41: 2.593488234 | X41: 2.380628215 | Y41: 2.529597303 | Z41: 2.735324549 | AA41: 2.811133962 | AB41: 1.857113389 | AC41: 2.753917252 | AD41: 2.185272463 | AE41: ='User Add-in Location'!B47 -> 0 | AF41: ='User Add-in Location'!C47 -> 0 | AG41: 2.327058105 | AH41: 1.385780861 | AI41: 2.884403389 | AJ41: 2.568883913 | AK41: 1.808818896 | AL41: 1.920291611 | AM41: 2.597257539 | AN41: 1.880368755 | AO41: 2.896856999 | AP41: 2.334570354 | AQ41: 2.744379695 | AR41: 2.903752771 | AS41: 2.365142437 | AT41: 2.145564794 | AU41: 2.043410699 | AV41: 2.956966583 | AW41: 2.693015542 | AX41: 4.857479574 | AY41: 2.913917031 | AZ41: 2.419247448 | BA41: 2.214176899 | BB41: 2.059128025 | BC41: 1.92437313 | BD41: 2.646078071 | BE41: 1.208755135
C42: Manufacturing | D42: 1.108840482 | E42: 0.761504249 | F42: 1.962378256 | G42: 1.109171701 | H42: 1.771643505 | I42: 1.907725453 | J42: 1.528411843 | K42: 0.9562937588 | L42: 0.3781193517 | M42: 2.015255056 | N42: 1.583052335 | O42: 1.027393555 | P42: 1.295619405 | Q42: 1.681350079 | R42: 1.208193432 | S42: 1.230596676 | T42: 1.308644786 | U42: 1.05254184 | V42: 0.750603414 | W42: 1.649395724 | X42: 1.294634523 | Y42: 1.601032444 | Z42: 1.583512919 | AA42: 1.897472012 | AB42: 0.9788719595 | AC42: 1.4592328 | AD42: 0.9264163641 | AE42: ='User Add-in Location'!B48 -> 0 | AF42: ='User Add-in Location'!C48 -> 0 | AG42: 1.191373845 | AH42: 0.9151697205 | AI42: 1.788633945 | AJ42: 1.443235905 | AK42: 0.9548449873 | AL42: 1.157122154 | AM42: 1.396303502 | AN42: 0.853091722 | AO42: 1.606435105 | AP42: 1.402315032 | AQ42: 1.68369369 | AR42: 1.634297087 | AS42: 1.600288169 | AT42: 1.205186242 | AU42: 1.218117591 | AV42: 1.442606291 | AW42: 1.447817812 | AX42: 3.545985776 | AY42: 1.630477806 | AZ42: 1.442524113 | BA42: 1.193024129 | BB42: 1.165687128 | BC42: 0.8949973629 | BD42: 1.664327953 | BE42: 0.4489263102
C43: Fabricated Metals | D43: 1.643719843 | E43: 1.328822352 | F43: 2.48944252 | G43: 1.50071011 | H43: 2.366237929 | I43: 2.236813041 | J43: 1.921826534 | K43: 1.619745265 | L43: 0 | M43: 2.626277217 | N43: 2.121462071 | O43: 1.735244636 | P43: 1.835283557 | Q43: 2.469865535 | R43: 1.83875637 | S43: 1.709404989 | T43: 1.681272204 | U43: 1.832531097 | V43: 1.593608008 | W43: 2.107952815 | X43: 1.849339184 | Y43: 2.124156884 | Z43: 2.440352006 | AA43: 2.678483667 | AB43: 1.508825457 | AC43: 2.215696726 | AD43: 1.801379612 | AE43: ='User Add-in Location'!B49 -> 0 | AF43: ='User Add-in Location'!C49 -> 0 | AG43: 1.707463172 | AH43: 1.174136369 | AI43: 2.130581838 | AJ43: 2.200706017 | AK43: 1.310510008 | AL43: 1.619642242 | AM43: 2.113146118 | AN43: 1.295881039 | AO43: 2.427343976 | AP43: 1.850282485 | AQ43: 2.23600645 | AR43: 2.339226593 | AS43: 2.124870408 | AT43: 1.896672861 | AU43: 1.433766806 | AV43: 2.35790114 | AW43: 2.216551009 | AX43: 4.556627719 | AY43: 2.333323934 | AZ43: 2.038385193 | BA43: 1.952326657 | BB43: 1.649840124 | BC43: 1.376470539 | BD43: 2.29721853 | BE43: 0.8742138449
C44: Machinery | D44: 1.151036095 | E44: 0.8607948244 | F44: 1.771327792 | G44: 1.132320441 | H44: 1.958005219 | I44: 1.737020285 | J44: 1.588572935 | K44: 1.426873392 | L44: 0.4038831908 | M44: 2.07952524 | N44: 1.594692287 | O44: 1.155651927 | P44: 1.228443811 | Q44: 1.700753467 | R44: 1.315361865 | S44: 1.122988148 | T44: 1.234265337 | U44: 1.3156063 | V44: 1.156282166 | W44: 1.882384224 | X44: 1.208707936 | Y44: 1.907682218 | Z44: 2.005459763 | AA44: 2.036388122 | AB44: 0.8553875961 | AC44: 1.416819401 | AD44: 1.019219389 | AE44: ='User Add-in Location'!B50 -> 0 | AF44: ='User Add-in Location'!C50 -> 0 | AG44: 1.057085482 | AH44: 0.9105792204 | AI44: 2.693629454 | AJ44: 1.946708044 | AK44: 0.9498336377 | AL44: 1.268264689 | AM44: 1.62977616 | AN44: 0.8180464699 | AO44: 2.006768059 | AP44: 1.485431049 | AQ44: 1.778470383 | AR44: 1.858360288 | AS44: 1.878502046 | AT44: 1.51913803 | AU44: 1.032323017 | AV44: 1.546896625 | AW44: 1.72699148 | AX44: 3.812359254 | AY44: 1.685377497 | AZ44: 2.02433141 | BA44: 1.507865925 | BB44: 1.40739588 | BC44: 1.42529292 | BD44: 1.541284482 | BE44: 0.5896393429
C45: Electrical Equipment | D45: 1.756674491 | E45: 0 | F45: 2.229686245 | G45: 1.422942424 | H45: 2.260849296 | I45: 1.889716669 | J45: 1.651631002 | K45: 1.658727256 | L45: 0.2462602235 | M45: 2.298121314 | N45: 1.733235948 | O45: 0.8944608819 | P45: 1.748062893 | Q45: 2.212259618 | R45: 1.791948252 | S45: 1.500831623 | T45: 1.584046746 | U45: 1.71725491 | V45: 1.493985224 | W45: 1.533903697 | X45: 1.597986251 | Y45: 1.773177401 | Z45: 2.308322442 | AA45: 2.205812846 | AB45: 1.137041489 | AC45: 1.84497793 | AD45: 1.114346445 | AE45: ='User Add-in Location'!B51 -> 0 | AF45: ='User Add-in Location'!C51 -> 0 | AG45: 1.799316524 | AH45: 1.033209482 | AI45: 2.09709047 | AJ45: 1.86406769 | AK45: 1.008157379 | AL45: 1.372951949 | AM45: 1.631007584 | AN45: 1.154953945 | AO45: 2.035908427 | AP45: 1.704823284 | AQ45: 0.9868154244 | AR45: 2.001098799 | AS45: 1.400560924 | AT45: 1.947667044 | AU45: 1.328140889 | AV45: 2.010832179 | AW45: 1.804835846 | AX45: 3.597625697 | AY45: 1.841563012 | AZ45: 1.679048561 | BA45: 1.549402288 | BB45: 1.218519991 | BC45: 1.031977703 | BD45: 2.106071252 | BE45: 0.729022883
C46: TCPU | D46: 1.677560999 | E46: 0.8406013812 | F46: 2.297132878 | G46: 1.775493825 | H46: 2.331564266 | I46: 2.553394891 | J46: 1.729653729 | K46: 1.624755712 | L46: 0.6292101608 | M46: 2.351618475 | N46: 2.259518119 | O46: 1.467386129 | P46: 1.95517927 | Q46: 2.569748675 | R46: 1.957072532 | S46: 1.736733718 | T46: 1.74600028 | U46: 1.729568089 | V46: 1.59314631 | W46: 2.050317892 | X46: 1.670909439 | Y46: 1.976800484 | Z46: 2.259668965 | AA46: 2.444732735 | AB46: 1.504020392 | AC46: 2.175019512 | AD46: 1.906287476 | AE46: ='User Add-in Location'!B52 -> 0 | AF46: ='User Add-in Location'!C52 -> 0 | AG46: 1.96407618 | AH46: 0 | AI46: 1.90344873 | AJ46: 2.043650375 | AK46: 1.504833856 | AL46: 1.749043598 | AM46: 2.098604352 | AN46: 1.530960121 | AO46: 2.228898972 | AP46: 2.234432506 | AQ46: 2.042093473 | AR46: 2.49842048 | AS46: 1.930449303 | AT46: 1.642957528 | AU46: 1.64016826 | AV46: 2.321569878 | AW46: 2.500926309 | AX46: 4.154757928 | AY46: 2.689520833 | AZ46: 2.002320496 | BA46: 1.905419252 | BB46: 1.593321034 | BC46: 1.620362131 | BD46: 2.153056887 | BE46: 0.9791252989
C47: Wholesale Trade | D47: 2.057628508 | E47: 1.224034827 | F47: 2.990613744 | G47: 1.733085966 | H47: 2.348860714 | I47: 2.926689517 | J47: 2.072876697 | K47: 2.011931641 | L47: 0.6279210326 | M47: 3.051366563 | N47: 2.636115505 | O47: 2.006384388 | P47: 2.254841371 | Q47: 2.757553378 | R47: 2.240631347 | S47: 2.134508199 | T47: 2.075224699 | U47: 1.918581138 | V47: 1.81982628 | W47: 2.561067496 | X47: 2.142257688 | Y47: 2.547726943 | Z47: 2.671515888 | AA47: 3.05284018 | AB47: 1.729185324 | AC47: 2.640487222 | AD47: 2.144447846 | AE47: ='User Add-in Location'!B53 -> 0 | AF47: ='User Add-in Location'!C53 -> 0 | AG47: 2.153240618 | AH47: 1.472687015 | AI47: 2.826838352 | AJ47: 2.32623318 | AK47: 1.642047637 | AL47: 1.819238921 | AM47: 2.707614386 | AN47: 1.560605424 | AO47: 2.728656318 | AP47: 1.96612975 | AQ47: 2.617235888 | AR47: 2.632539558 | AS47: 2.535988779 | AT47: 2.111911169 | AU47: 1.943880754 | AV47: 2.542652402 | AW47: 2.371460405 | AX47: 4.066495812 | AY47: 2.818618403 | AZ47: 2.287151621 | BA47: 2.256642959 | BB47: 1.836369361 | BC47: 1.71239217 | BD47: 2.55846543 | BE47: 1.101304315
C48: Retail Trade | D48: 2.447915957 | E48: 2.060249314 | F48: 3.543387168 | G48: 2.423430015 | H48: 2.875505218 | I48: 3.335433878 | J48: 2.727593251 | K48: 2.543114583 | L48: 0.6973198213 | M48: 3.825518319 | N48: 3.24995664 | O48: 2.374591796 | P48: 2.901553925 | Q48: 3.262442645 | R48: 2.718348977 | S48: 2.613935183 | T48: 2.4065817 | U48: 2.760955836 | V48: 2.256943526 | W48: 3.241743836 | X48: 2.614603053 | Y48: 3.126678607 | Z48: 3.065979041 | AA48: 3.352358317 | AB48: 2.29011737 | AC48: 3.216612862 | AD48: 3.144222107 | AE48: ='User Add-in Location'!B54 -> 0 | AF48: ='User Add-in Location'!C54 -> 0 | AG48: 2.580810596 | AH48: 1.172302639 | AI48: 3.535349672 | AJ48: 2.931242667 | AK48: 2.300429832 | AL48: 2.328426847 | AM48: 3.46611445 | AN48: 1.961068769 | AO48: 3.246413774 | AP48: 2.727565265 | AQ48: 3.55526665 | AR48: 3.33014779 | AS48: 3.186632165 | AT48: 2.722089316 | AU48: 2.45150472 | AV48: 3.29204989 | AW48: 2.840851001 | AX48: 4.925249074 | AY48: 3.472514625 | AZ48: 3.039309258 | BA48: 2.613502176 | BB48: 2.169165798 | BC48: 2.251404216 | BD48: 2.984618952 | BE48: 1.466437196
C49: FIRE | D49: 1.862114951 | E49: 1.178146577 | F49: 2.719650239 | G49: 1.50970209 | H49: 2.067046497 | I49: 2.441247622 | J49: 2.196553836 | K49: 1.305017475 | L49: 0.4982934449 | M49: 2.81601957 | N49: 2.223910526 | O49: 1.542936184 | P49: 1.770542968 | Q49: 2.39185289 | R49: 1.724722993 | S49: 1.763973837 | T49: 1.836843915 | U49: 1.858090501 | V49: 1.559414452 | W49: 2.097022552 | X49: 1.707456798 | Y49: 2.417769886 | Z49: 2.225714071 | AA49: 2.869705606 | AB49: 1.525015033 | AC49: 2.171066038 | AD49: 1.68444822 | AE49: ='User Add-in Location'!B55 -> 0 | AF49: ='User Add-in Location'!C55 -> 0 | AG49: 1.81125286 | AH49: 0 | AI49: 2.221067569 | AJ49: 2.037007828 | AK49: 1.163786865 | AL49: 1.871054123 | AM49: 2.554413079 | AN49: 1.364855624 | AO49: 2.17718821 | AP49: 1.826450249 | AQ49: 1.904882947 | AR49: 2.361917137 | AS49: 2.271431357 | AT49: 2.142381223 | AU49: 1.50427859 | AV49: 2.380490624 | AW49: 2.387698884 | AX49: 3.730505765 | AY49: 2.096477231 | AZ49: 1.847419052 | BA49: 1.763319907 | BB49: 1.422667204 | BC49: 1.389118213 | BD49: 1.982803566 | BE49: 0.855843597
C50: Misc. Services | D50: 2.95550471 | E50: 2.210429357 | F50: 4.135759744 | G50: 2.569134238 | H50: 3.503612044 | I50: 3.917657003 | J50: 3.001625614 | K50: 2.670117589 | L50: 0.8615015668 | M50: 4.35482354 | N50: 3.79035304 | O50: 2.732303786 | P50: 2.928540568 | Q50: 3.857410084 | R50: 2.642155572 | S50: 2.702527846 | T50: 2.89303967 | U50: 2.884902975 | V50: 2.702110823 | W50: 3.525691893 | X50: 2.976111535 | Y50: 3.290059522 | Z50: 3.836285911 | AA50: 3.896954817 | AB50: 2.444419289 | AC50: 3.510511945 | AD50: 2.963113508 | AE50: ='User Add-in Location'!B56 -> 0 | AF50: ='User Add-in Location'!C56 -> 0 | AG50: 2.77040218 | AH50: 2.153321484 | AI50: 3.404113094 | AJ50: 3.303471676 | AK50: 2.370277413 | AL50: 2.606369626 | AM50: 3.417968127 | AN50: 2.174025325 | AO50: 3.736107024 | AP50: 2.866310724 | AQ50: 3.045290305 | AR50: 3.57897644 | AS50: 3.308933718 | AT50: 3.131799916 | AU50: 2.441685268 | AV50: 3.607173033 | AW50: 3.462260421 | AX50: 5.635938847 | AY50: 3.775688578 | AZ50: 3.112080091 | BA50: 3.262201554 | BB50: 2.538468814 | BC50: 2.416581592 | BD50: 3.303544076 | BE50: 1.598851972
